Workbook

Sheet Spis tablic
A1: SPIS ZAŁĄCZNIKÓW:
A3: Tablica 1: Wybrane informacje o sytuacji finansowej JST
A5: WYKAZ WSKAŹNIKÓW
A6: WYKAZ ZMIENNYCH
A7: SŁOWNIKI (kody użyte w tabelach z danymi jednostkowymi)

Sheet Parametry (hidden)
B1: Rb | C1: Rok N | D1: Rok N-1 | E1: Rok N-2 | F1: Rok N-3 | G1: Rok N-4 | H1: Rok N-5 | I1: Rok N-6 | J1: Rok N-7
B2: Rok | C2: =2024 -> 2024 | D2: =2023 -> 2023 | E2: =2022 -> 2022 | F2: =2021 -> 2021 | G2: =2020 -> 2020 | H2: =2019 -> 2019 | I2: =2018 -> 2018 | J2: =2017 -> 2017
B3: Kwartal | C3: =4 -> 4 | D3: =4 -> 4 | E3: =4 -> 4 | F3: =4 -> 4 | G3: =4 -> 4 | H3: =4 -> 4 | I3: =4 -> 4 | J3: =4 -> 4
B4: StanBazyDanych | C4: =+"Mar 18 2025 12:00AM" -> Mar 18 2025 12:00AM | D4: =+"Mar 15 2024 12:00AM" -> Mar 15 2024 12:00AM | E4: =+"Mar 23 2023 12:00AM" -> Mar 23 2023 12:00AM | F4: =+"Mar 21 2022 12:00AM" -> Mar 21 2022 12:00AM | G4: =+"Mar 19 2021 12:00AM" -> Mar 19 2021 12:00AM | H4: =+"Jul 9 2020 12:00AM" -> Jul 9 2020 12:00AM | I4: =+"Mar 27 2019 12:00AM" -> Mar 27 2019 12:00AM | J4: =+"Mar 28 2018 12:00AM" -> Mar 28 2018 12:00AM
B5: StanSlownikaJST | C5: =+"Dec 31 2024 12:00AM" -> Dec 31 2024 12:00AM | D5: Dec 31 2024 12:00AM | E5: Dec 31 2024 12:00AM | F5: Dec 31 2024 12:00AM | G5: Dec 31 2024 12:00AM | H5: Dec 31 2024 12:00AM | I5: Dec 31 2024 12:00AM | J5: Dec 31 2024 12:00AM
B6: WybraneTYPY | C6: =+"G,M,P,W" -> G,M,P,W | D6: x | E6: x | F6: x | G6: x | H6: x | I6: x | J6: x
B7: Czy wg DBF? (1 - tak) | C7: =1 -> 1
B9: dokladnosc | C9: 2
B10: skaluj | C10: =+INDEX($A$46:$B$49,$E$10,1) -> 1000000 | D10: =+INDEX($A$46:$B$49,$E$10,2) -> (w mln zł) | E10: 3
B11: dokl_proc | C11: 2
A14: * | B14: WSZYSTKIE
A15: 2 | B15: dolnośląskie
A16: 4 | B16: kujawsko-pomorskie
A17: 6 | B17: lubelskie
A18: 8 | B18: lubuskie
A19: 10 | B19: łódzkie
A20: 12 | B20: małopolskie
A21: 14 | B21: mazowieckie
A22: 16 | B22: opolskie
A23: 18 | B23: podkarpackie
A24: 20 | B24: podlaskie
A25: 22 | B25: pomorskie
A26: 24 | B26: śląskie
A27: 26 | B27: świętokrzyskie
A28: 28 | B28: warmińsko-mazurskie
A29: 30 | B29: wielkopolskie
A30: 32 | B30: zachodniopomorskie
A34: *G* | B34: Gminy
A35: *G1* | B35: Gminy miejskie
A36: *G2* | B36: Gminy wiejskie
A37: *G3* | B37: Gminy miejsko-wiejskie
A38: *M* | B38: Miasta na prawach powiatu (bez metropolii)
A39: *T* | B39: Miasta na prawach powiatu (metropolie)
A40: *P* | B40: Powiaty
A41: *W* | B41: Województwa samorządowe
A42: * | B42: Wszystkie JST (bez związków)
B43: wybrana JST
A46: 1 | B46: (w zł)
A47: 1000 | B47: (w tys. zł)
A48: 1000000 | B48: (w mln zł)
A49: 1000000000 | B49: (w mld zł)

Sheet TabZbiorczo
G3: Wyb_TypJST | H3: 9 | I3: =+INDEX(Parametry!$B$34:$B$44,TabZbiorczo!$H$3) -> Wszystkie JST (bez związków) | O3: ver. 2025-10-28a
G4: Wyb_WK | H4: 1 | I4: =+INDEX(Parametry!$B$14:$B$30,TabZbiorczo!$H$4) -> WSZYSTKIE
G5: KodGUS | I5: =+IF(H3=10,+"["&LEFT(TEXT(H5,"0000000"),6)&"] - "&VLOOKUP(LEFT(TEXT(H5,"0000000"),6),DaneN0[[#All],[KodGUS6]:[NazwaJST]],3,FALSE),"") -> 
I7: Wybrane informacje o sytuacji finansowej JST obliczone dla: | O7: =+Parametry!$D$10 -> (w mln zł)
I8: =+I3&IF(H4=1," ["," [woj. ")&IF(H3=10,I5,I4)&"]" -> Wszystkie JST (bez związków) [WSZYSTKIE]
C9: Y | D9: Rb | E9: X | F9: Wsk | G9: Lp. | H9: Formuła | I9: Wyszczególnienie | J9: =+K9-1 -> 2019 | K9: 2020 | L9: 2021 | M9: 2022 | N9: 2023 | O9: =+Rok -> 2024 | P9: =+Q9-1 -> 2020 | Q9: =+R9-1 -> 2021 | R9: 2022 | S9: =+T9-1 -> 2023 | T9: =+Rok -> 2024 | U9: =+V9-1 -> 2020 | V9: =+W9-1 -> 2021 | W9: 2022 | X9: =+Y9-1 -> 2023 | Y9: =+Rok -> 2024
A10: 1 | G10: L | I10: Liczba mieszkańców JST według stanu na dzień 30 czerwca danego roku | J10: =+ROUND(INDEX(Tab_N5!$M$3:$AR$12,IF(TabZbiorczo!$H$3=9,8,TabZbiorczo!$H$3),$A10),dokladnosc) -> 38386476 | K10: =+ROUND(INDEX(Tab_N4!$M$3:$AR$12,IF(TabZbiorczo!$H$3=9,8,TabZbiorczo!$H$3),$A10),dokladnosc) -> 38354173 | L10: =+ROUND(INDEX(Tab_N3!$M$3:$AR$12,IF(TabZbiorczo!$H$3=9,8,TabZbiorczo!$H$3),$A10),dokladnosc) -> 38162224 | M10: =+ROUND(INDEX(Tab_N2!$M$3:$AR$12,IF(TabZbiorczo!$H$3=9,8,TabZbiorczo!$H$3),$A10),dokladnosc) -> 37827355 | N10: =+ROUND(INDEX(Tab_N1!$M$3:$AR$12,IF(TabZbiorczo!$H$3=9,8,TabZbiorczo!$H$3),$A10),dokladnosc) -> 37698294 | O10: =+ROUND(INDEX(Tab_N0!$M$3:$AR$12,IF(TabZbiorczo!$H$3=9,8,TabZbiorczo!$H$3),$A10),dokladnosc) -> 37563071 | P10: =+K10-J10 -> -32303 | Q10: =+L10-K10 -> -191949 | R10: =+M10-L10 -> -334869 | S10: =+N10-M10 -> -129061 | T10: =+O10-N10 -> -135223 | U10: =+IF(J10<>0,ROUND(K10/J10*100,dokl_proc),"") -> 99.92 | V10: =+IF(K10<>0,ROUND(L10/K10*100,dokl_proc),"") -> 99.5 | W10: =+IF(L10<>0,ROUND(M10/L10*100,dokl_proc),"") -> 99.12 | X10: =+IF(M10<>0,ROUND(N10/M10*100,dokl_proc),"") -> 99.66 | Y10: =+IF(N10<>0,ROUND(O10/N10*100,dokl_proc),"") -> 99.64
A11: 2 | B11: wpf20w_01 | D11: x | E11: x | G11: Do | I11: Dochody ogółem | J11: =+ROUND(INDEX(Tab_N5!$M$3:$AR$12,TabZbiorczo!$H$3,$A11)/skaluj,dokladnosc) -> 278570.49 | K11: =+ROUND(INDEX(Tab_N4!$M$3:$AR$12,TabZbiorczo!$H$3,$A11)/skaluj,dokladnosc) -> 304930.11 | L11: =+ROUND(INDEX(Tab_N3!$M$3:$AR$12,TabZbiorczo!$H$3,$A11)/skaluj,dokladnosc) -> 333409.11 | M11: =+ROUND(INDEX(Tab_N2!$M$3:$AR$12,TabZbiorczo!$H$3,$A11)/skaluj,dokladnosc) -> 345672.94 | N11: =+ROUND(INDEX(Tab_N1!$M$3:$AR$12,TabZbiorczo!$H$3,$A11)/skaluj,dokladnosc) -> 362015.29 | O11: =+ROUND(INDEX(Tab_N0!$M$3:$AR$12,TabZbiorczo!$H$3,$A11)/skaluj,dokladnosc) -> 431411.4 | P11: 26359.62 | Q11: 28479 | R11: 12263.83 | S11: 16342.35 | T11: 69396.11 | U11: 109.46 | V11: 109.34 | W11: 103.68 | X11: 104.73 | Y11: 119.17
A12: =+A11+1 -> 3 | B12: wpf20w_01_1 | D12: x | E12: x | G12: Db | I12: Dochody bieżące | J12: =+ROUND(INDEX(Tab_N5!$M$3:$AR$12,TabZbiorczo!$H$3,$A12)/skaluj,dokladnosc) -> 253381.57 | K12: =+ROUND(INDEX(Tab_N4!$M$3:$AR$12,TabZbiorczo!$H$3,$A12)/skaluj,dokladnosc) -> 271873.12 | L12: =+ROUND(INDEX(Tab_N3!$M$3:$AR$12,TabZbiorczo!$H$3,$A12)/skaluj,dokladnosc) -> 300733.42 | M12: =+ROUND(INDEX(Tab_N2!$M$3:$AR$12,TabZbiorczo!$H$3,$A12)/skaluj,dokladnosc) -> 315750.69 | N12: =+ROUND(INDEX(Tab_N1!$M$3:$AR$12,TabZbiorczo!$H$3,$A12)/skaluj,dokladnosc) -> 308979.09 | O12: =+ROUND(INDEX(Tab_N0!$M$3:$AR$12,TabZbiorczo!$H$3,$A12)/skaluj,dokladnosc) -> 378341.85 | P12: 18491.55 | Q12: 28860.3 | R12: 15017.27 | S12: -6771.6 | T12: 69362.76 | U12: 107.3 | V12: 110.62 | W12: 104.99 | X12: 97.86 | Y12: 122.45
A13: =+A12+1 -> 4 | G13: Tb | I13: Transfery bieżące (dochody z subwencji ogólnej oraz z tytułu dotacji i środków przeznaczonych na cele bieżące) | J13: =+ROUND(INDEX(Tab_N5!$M$3:$AR$12,TabZbiorczo!$H$3,$A13)/skaluj,dokladnosc) -> 126833.08 | K13: =+ROUND(INDEX(Tab_N4!$M$3:$AR$12,TabZbiorczo!$H$3,$A13)/skaluj,dokladnosc) -> 144191.99 | L13: =+ROUND(INDEX(Tab_N3!$M$3:$AR$12,TabZbiorczo!$H$3,$A13)/skaluj,dokladnosc) -> 154868.61 | M13: =+ROUND(INDEX(Tab_N2!$M$3:$AR$12,TabZbiorczo!$H$3,$A13)/skaluj,dokladnosc) -> 153244.31 | N13: =+ROUND(INDEX(Tab_N1!$M$3:$AR$12,TabZbiorczo!$H$3,$A13)/skaluj,dokladnosc) -> 146724.22 | O13: =+ROUND(INDEX(Tab_N0!$M$3:$AR$12,TabZbiorczo!$H$3,$A13)/skaluj,dokladnosc) -> 176619.97 | P13: 17358.91 | Q13: 10676.62 | R13: -1624.3 | S13: -6520.09 | T13: 29895.75 | U13: 113.69 | V13: 107.4 | W13: 98.95 | X13: 95.75 | Y13: 120.38
A14: 5 | G14: Dbs | I14: Dochody bieżące z tytułu subwencji ogólnej | J14: =+ROUND(INDEX(Tab_N5!$M$3:$AR$12,TabZbiorczo!$H$3,$A14)/skaluj,dokladnosc) -> 61477.03 | K14: =+ROUND(INDEX(Tab_N4!$M$3:$AR$12,TabZbiorczo!$H$3,$A14)/skaluj,dokladnosc) -> 66737.51 | L14: =+ROUND(INDEX(Tab_N3!$M$3:$AR$12,TabZbiorczo!$H$3,$A14)/skaluj,dokladnosc) -> 78032.3 | M14: =+ROUND(INDEX(Tab_N2!$M$3:$AR$12,TabZbiorczo!$H$3,$A14)/skaluj,dokladnosc) -> 74645.4 | N14: =+ROUND(INDEX(Tab_N1!$M$3:$AR$12,TabZbiorczo!$H$3,$A14)/skaluj,dokladnosc) -> 99373.29 | O14: =+ROUND(INDEX(Tab_N0!$M$3:$AR$12,TabZbiorczo!$H$3,$A14)/skaluj,dokladnosc) -> 119459.47 | P14: 5260.48 | Q14: 11294.79 | R14: -3386.9 | S14: 24727.89 | T14: 20086.18 | U14: 108.56 | V14: 116.92 | W14: 95.66 | X14: 133.13 | Y14: 120.21
A15: 6 | G15: Dbd | I15: Dochody bieżące z tytułu dotacji i środków przeznaczonych na cele bieżące | J15: =+ROUND(INDEX(Tab_N5!$M$3:$AR$12,TabZbiorczo!$H$3,$A15)/skaluj,dokladnosc) -> 65356.05 | K15: =+ROUND(INDEX(Tab_N4!$M$3:$AR$12,TabZbiorczo!$H$3,$A15)/skaluj,dokladnosc) -> 77454.47 | L15: =+ROUND(INDEX(Tab_N3!$M$3:$AR$12,TabZbiorczo!$H$3,$A15)/skaluj,dokladnosc) -> 76836.31 | M15: =+ROUND(INDEX(Tab_N2!$M$3:$AR$12,TabZbiorczo!$H$3,$A15)/skaluj,dokladnosc) -> 78598.91 | N15: =+ROUND(INDEX(Tab_N1!$M$3:$AR$12,TabZbiorczo!$H$3,$A15)/skaluj,dokladnosc) -> 47350.93 | O15: =+ROUND(INDEX(Tab_N0!$M$3:$AR$12,TabZbiorczo!$H$3,$A15)/skaluj,dokladnosc) -> 57160.5 | P15: 12098.42 | Q15: -618.16 | R15: 1762.6 | S15: -31247.98 | T15: 9809.57 | U15: 118.51 | V15: 99.2 | W15: 102.29 | X15: 60.24 | Y15: 120.72
A16: 7 | G16: Dm | I16: Dochody majątkowe | J16: =+ROUND(INDEX(Tab_N5!$M$3:$AR$12,TabZbiorczo!$H$3,$A16)/skaluj,dokladnosc) -> 25188.92 | K16: =+ROUND(INDEX(Tab_N4!$M$3:$AR$12,TabZbiorczo!$H$3,$A16)/skaluj,dokladnosc) -> 33056.98 | L16: =+ROUND(INDEX(Tab_N3!$M$3:$AR$12,TabZbiorczo!$H$3,$A16)/skaluj,dokladnosc) -> 32675.69 | M16: =+ROUND(INDEX(Tab_N2!$M$3:$AR$12,TabZbiorczo!$H$3,$A16)/skaluj,dokladnosc) -> 29922.25 | N16: =+ROUND(INDEX(Tab_N1!$M$3:$AR$12,TabZbiorczo!$H$3,$A16)/skaluj,dokladnosc) -> 53036.2 | O16: =+ROUND(INDEX(Tab_N0!$M$3:$AR$12,TabZbiorczo!$H$3,$A16)/skaluj,dokladnosc) -> 53069.56 | P16: 7868.06 | Q16: -381.29 | R16: -2753.44 | S16: 23113.95 | T16: 33.36 | U16: 131.24 | V16: 98.85 | W16: 91.57 | X16: 177.25 | Y16: 100.06
A17: 8 | G17: Sm | I17: Dochody ze sprzedaży majątku | J17: =+ROUND(INDEX(Tab_N5!$M$3:$AR$12,TabZbiorczo!$H$3,$A17)/skaluj,dokladnosc) -> 3140.91 | K17: =+ROUND(INDEX(Tab_N4!$M$3:$AR$12,TabZbiorczo!$H$3,$A17)/skaluj,dokladnosc) -> 3686.52 | L17: =+ROUND(INDEX(Tab_N3!$M$3:$AR$12,TabZbiorczo!$H$3,$A17)/skaluj,dokladnosc) -> 5574.87 | M17: =+ROUND(INDEX(Tab_N2!$M$3:$AR$12,TabZbiorczo!$H$3,$A17)/skaluj,dokladnosc) -> 5251.22 | N17: =+ROUND(INDEX(Tab_N1!$M$3:$AR$12,TabZbiorczo!$H$3,$A17)/skaluj,dokladnosc) -> 4797.75 | O17: =+ROUND(INDEX(Tab_N0!$M$3:$AR$12,TabZbiorczo!$H$3,$A17)/skaluj,dokladnosc) -> 4520.05 | P17: 545.61 | Q17: 1888.35 | R17: -323.65 | S17: -453.47 | T17: -277.7 | U17: 117.37 | V17: 151.22 | W17: 94.19 | X17: 91.36 | Y17: 94.21
A18: 9 | G18: Wo | I18: Wydatki ogółem | J18: =+ROUND(INDEX(Tab_N5!$M$3:$AR$12,TabZbiorczo!$H$3,$A18)/skaluj,dokladnosc) -> 280276.67 | K18: =+ROUND(INDEX(Tab_N4!$M$3:$AR$12,TabZbiorczo!$H$3,$A18)/skaluj,dokladnosc) -> 299240.62 | L18: =+ROUND(INDEX(Tab_N3!$M$3:$AR$12,TabZbiorczo!$H$3,$A18)/skaluj,dokladnosc) -> 315967.27 | M18: =+ROUND(INDEX(Tab_N2!$M$3:$AR$12,TabZbiorczo!$H$3,$A18)/skaluj,dokladnosc) -> 353852.76 | N18: =+ROUND(INDEX(Tab_N1!$M$3:$AR$12,TabZbiorczo!$H$3,$A18)/skaluj,dokladnosc) -> 384955.2 | O18: =+ROUND(INDEX(Tab_N0!$M$3:$AR$12,TabZbiorczo!$H$3,$A18)/skaluj,dokladnosc) -> 432230.69 | P18: 18963.95 | Q18: 16726.65 | R18: 37885.49 | S18: 31102.44 | T18: 47275.49 | U18: 106.77 | V18: 105.59 | W18: 111.99 | X18: 108.79 | Y18: 112.28
A19: 10 | G19: Wb | I19: Wydatki bieżące | J19: =+ROUND(INDEX(Tab_N5!$M$3:$AR$12,TabZbiorczo!$H$3,$A19)/skaluj,dokladnosc) -> 229219.11 | K19: =+ROUND(INDEX(Tab_N4!$M$3:$AR$12,TabZbiorczo!$H$3,$A19)/skaluj,dokladnosc) -> 250488.81 | L19: =+ROUND(INDEX(Tab_N3!$M$3:$AR$12,TabZbiorczo!$H$3,$A19)/skaluj,dokladnosc) -> 264127.09 | M19: =+ROUND(INDEX(Tab_N2!$M$3:$AR$12,TabZbiorczo!$H$3,$A19)/skaluj,dokladnosc) -> 288950.39 | N19: =+ROUND(INDEX(Tab_N1!$M$3:$AR$12,TabZbiorczo!$H$3,$A19)/skaluj,dokladnosc) -> 291835.2 | O19: =+ROUND(INDEX(Tab_N0!$M$3:$AR$12,TabZbiorczo!$H$3,$A19)/skaluj,dokladnosc) -> 345713.25 | P19: 21269.7 | Q19: 13638.28 | R19: 24823.3 | S19: 2884.81 | T19: 53878.05 | U19: 109.28 | V19: 105.44 | W19: 109.4 | X19: 101 | Y19: 118.46
A20: 11 | G20: Ww | I20: Wydatki na wynagrodzenia i pochodne od wynagrodzeń z wyłączeniem wynagrodzeń finansowanych lub współfinansowanych środkami, o których mowa w art. 5 ust. 1 pkt 2 i 3 ustawy o finansach publicznych | J20: =+ROUND(INDEX(Tab_N5!$M$3:$AR$12,TabZbiorczo!$H$3,$A20)/skaluj,dokladnosc) -> 88387.91 | K20: =+ROUND(INDEX(Tab_N4!$M$3:$AR$12,TabZbiorczo!$H$3,$A20)/skaluj,dokladnosc) -> 94828.71 | L20: =+ROUND(INDEX(Tab_N3!$M$3:$AR$12,TabZbiorczo!$H$3,$A20)/skaluj,dokladnosc) -> 102172.45 | M20: =+ROUND(INDEX(Tab_N2!$M$3:$AR$12,TabZbiorczo!$H$3,$A20)/skaluj,dokladnosc) -> 111441.3 | N20: =+ROUND(INDEX(Tab_N1!$M$3:$AR$12,TabZbiorczo!$H$3,$A20)/skaluj,dokladnosc) -> 126811.56 | O20: =+ROUND(INDEX(Tab_N0!$M$3:$AR$12,TabZbiorczo!$H$3,$A20)/skaluj,dokladnosc) -> 157763.57 | P20: 6440.8 | Q20: 7343.74 | R20: 9268.85 | S20: 15370.26 | T20: 30952.01 | U20: 107.29 | V20: 107.74 | W20: 109.07 | X20: 113.79 | Y20: 124.41
A21: 12 | G21: O | I21: Wydatki na obsługę długu, w tym odsetki od zaciągniętych kredytów i pożyczek | J21: =+ROUND(INDEX(Tab_N5!$M$3:$AR$12,TabZbiorczo!$H$3,$A21)/skaluj,dokladnosc) -> 2035.46 | K21: =+ROUND(INDEX(Tab_N4!$M$3:$AR$12,TabZbiorczo!$H$3,$A21)/skaluj,dokladnosc) -> 1637.87 | L21: =+ROUND(INDEX(Tab_N3!$M$3:$AR$12,TabZbiorczo!$H$3,$A21)/skaluj,dokladnosc) -> 1187.14 | M21: =+ROUND(INDEX(Tab_N2!$M$3:$AR$12,TabZbiorczo!$H$3,$A21)/skaluj,dokladnosc) -> 4320.73 | N21: =+ROUND(INDEX(Tab_N1!$M$3:$AR$12,TabZbiorczo!$H$3,$A21)/skaluj,dokladnosc) -> 6133.02 | O21: =+ROUND(INDEX(Tab_N0!$M$3:$AR$12,TabZbiorczo!$H$3,$A21)/skaluj,dokladnosc) -> 6305.19 | P21: -397.59 | Q21: -450.73 | R21: 3133.59 | S21: 1812.29 | T21: 172.17 | U21: 80.47 | V21: 72.48 | W21: 363.96 | X21: 141.94 | Y21: 102.81
A22: 13 | G22: Wm | I22: Wydatki majątkowe | J22: =+ROUND(INDEX(Tab_N5!$M$3:$AR$12,TabZbiorczo!$H$3,$A22)/skaluj,dokladnosc) -> 51057.57 | K22: =+ROUND(INDEX(Tab_N4!$M$3:$AR$12,TabZbiorczo!$H$3,$A22)/skaluj,dokladnosc) -> 48751.81 | L22: =+ROUND(INDEX(Tab_N3!$M$3:$AR$12,TabZbiorczo!$H$3,$A22)/skaluj,dokladnosc) -> 51840.18 | M22: =+ROUND(INDEX(Tab_N2!$M$3:$AR$12,TabZbiorczo!$H$3,$A22)/skaluj,dokladnosc) -> 64902.37 | N22: =+ROUND(INDEX(Tab_N1!$M$3:$AR$12,TabZbiorczo!$H$3,$A22)/skaluj,dokladnosc) -> 93120 | O22: =+ROUND(INDEX(Tab_N0!$M$3:$AR$12,TabZbiorczo!$H$3,$A22)/skaluj,dokladnosc) -> 86517.44 | P22: -2305.76 | Q22: 3088.37 | R22: 13062.19 | S22: 28217.63 | T22: -6602.56 | U22: 95.48 | V22: 106.33 | W22: 125.2 | X22: 143.48 | Y22: 92.91
A23: 14 | G23: P | I23: Przychody budżetu | J23: =+ROUND(INDEX(Tab_N5!$M$3:$AR$12,TabZbiorczo!$H$3,$A23)/skaluj,dokladnosc) -> 33133.53 | K23: =+ROUND(INDEX(Tab_N4!$M$3:$AR$12,TabZbiorczo!$H$3,$A23)/skaluj,dokladnosc) -> 38204.86 | L23: =+ROUND(INDEX(Tab_N3!$M$3:$AR$12,TabZbiorczo!$H$3,$A23)/skaluj,dokladnosc) -> 45099.07 | M23: =+ROUND(INDEX(Tab_N2!$M$3:$AR$12,TabZbiorczo!$H$3,$A23)/skaluj,dokladnosc) -> 62570.43 | N23: =+ROUND(INDEX(Tab_N1!$M$3:$AR$12,TabZbiorczo!$H$3,$A23)/skaluj,dokladnosc) -> 65904.06 | O23: =+ROUND(INDEX(Tab_N0!$M$3:$AR$12,TabZbiorczo!$H$3,$A23)/skaluj,dokladnosc) -> 53299.81 | P23: 5071.33 | Q23: 6894.21 | R23: 17471.36 | S23: 3333.63 | T23: -12604.25 | U23: 115.31 | V23: 118.05 | W23: 138.74 | X23: 105.33 | Y23: 80.87
A24: 15 | G24: Pd | I24: Przychody budżetu z tytułu kredytów, pożyczek, emisji papierów wartościowych | J24: =+ROUND(INDEX(Tab_N5!$M$3:$AR$12,TabZbiorczo!$H$3,$A24)/skaluj,dokladnosc) -> 14476.81 | K24: =+ROUND(INDEX(Tab_N4!$M$3:$AR$12,TabZbiorczo!$H$3,$A24)/skaluj,dokladnosc) -> 17104.01 | L24: =+ROUND(INDEX(Tab_N3!$M$3:$AR$12,TabZbiorczo!$H$3,$A24)/skaluj,dokladnosc) -> 11052.94 | M24: =+ROUND(INDEX(Tab_N2!$M$3:$AR$12,TabZbiorczo!$H$3,$A24)/skaluj,dokladnosc) -> 9576.41 | N24: =+ROUND(INDEX(Tab_N1!$M$3:$AR$12,TabZbiorczo!$H$3,$A24)/skaluj,dokladnosc) -> 21302.54 | O24: =+ROUND(INDEX(Tab_N0!$M$3:$AR$12,TabZbiorczo!$H$3,$A24)/skaluj,dokladnosc) -> 19596.28 | P24: 2627.2 | Q24: -6051.07 | R24: -1476.53 | S24: 11726.13 | T24: -1706.26 | U24: 118.15 | V24: 64.62 | W24: 86.64 | X24: 222.45 | Y24: 91.99
A25: 16 | G25: Pbzwr | I25: Przychody budżetu z wyłączeniem kredytów, pożyczek, emisji papierów wartościowych | J25: =+ROUND(INDEX(Tab_N5!$M$3:$AR$12,TabZbiorczo!$H$3,$A25)/skaluj,dokladnosc) -> 18656.72 | K25: =+ROUND(INDEX(Tab_N4!$M$3:$AR$12,TabZbiorczo!$H$3,$A25)/skaluj,dokladnosc) -> 21100.85 | L25: =+ROUND(INDEX(Tab_N3!$M$3:$AR$12,TabZbiorczo!$H$3,$A25)/skaluj,dokladnosc) -> 34046.13 | M25: =+ROUND(INDEX(Tab_N2!$M$3:$AR$12,TabZbiorczo!$H$3,$A25)/skaluj,dokladnosc) -> 52994.02 | N25: =+ROUND(INDEX(Tab_N1!$M$3:$AR$12,TabZbiorczo!$H$3,$A25)/skaluj,dokladnosc) -> 44601.52 | O25: =+ROUND(INDEX(Tab_N0!$M$3:$AR$12,TabZbiorczo!$H$3,$A25)/skaluj,dokladnosc) -> 33703.54 | P25: 2444.13 | Q25: 12945.28 | R25: 18947.89 | S25: -8392.5 | T25: -10897.98 | U25: 113.1 | V25: 161.35 | W25: 155.65 | X25: 84.16 | Y25: 75.57
A26: 17 | G26: R | I26: Rozchody budżetu | J26: =+ROUND(INDEX(Tab_N5!$M$3:$AR$12,TabZbiorczo!$H$3,$A26)/skaluj,dokladnosc) -> 11334.21 | K26: =+ROUND(INDEX(Tab_N4!$M$3:$AR$12,TabZbiorczo!$H$3,$A26)/skaluj,dokladnosc) -> 11283.76 | L26: =+ROUND(INDEX(Tab_N3!$M$3:$AR$12,TabZbiorczo!$H$3,$A26)/skaluj,dokladnosc) -> 12483.79 | M26: =+ROUND(INDEX(Tab_N2!$M$3:$AR$12,TabZbiorczo!$H$3,$A26)/skaluj,dokladnosc) -> 14993.69 | N26: =+ROUND(INDEX(Tab_N1!$M$3:$AR$12,TabZbiorczo!$H$3,$A26)/skaluj,dokladnosc) -> 11498.7 | O26: =+ROUND(INDEX(Tab_N0!$M$3:$AR$12,TabZbiorczo!$H$3,$A26)/skaluj,dokladnosc) -> 13478.14 | P26: -50.45 | Q26: 1200.03 | R26: 2509.9 | S26: -3494.99 | T26: 1979.44 | U26: 99.55 | V26: 110.64 | W26: 120.11 | X26: 76.69 | Y26: 117.21
A27: 18 | G27: Rs | I27: Spłata rat kapitałowych od zaciągniętych kredytów i pożyczek | J27: =+ROUND(INDEX(Tab_N5!$M$3:$AR$12,TabZbiorczo!$H$3,$A27)/skaluj,dokladnosc) -> 10056.74 | K27: =+ROUND(INDEX(Tab_N4!$M$3:$AR$12,TabZbiorczo!$H$3,$A27)/skaluj,dokladnosc) -> 9591.4 | L27: =+ROUND(INDEX(Tab_N3!$M$3:$AR$12,TabZbiorczo!$H$3,$A27)/skaluj,dokladnosc) -> 9807.39 | M27: =+ROUND(INDEX(Tab_N2!$M$3:$AR$12,TabZbiorczo!$H$3,$A27)/skaluj,dokladnosc) -> 9706.61 | N27: =+ROUND(INDEX(Tab_N1!$M$3:$AR$12,TabZbiorczo!$H$3,$A27)/skaluj,dokladnosc) -> 8992.88 | O27: =+ROUND(INDEX(Tab_N0!$M$3:$AR$12,TabZbiorczo!$H$3,$A27)/skaluj,dokladnosc) -> 10519.26 | P27: -465.34 | Q27: 215.99 | R27: -100.78 | S27: -713.73 | T27: 1526.38 | U27: 95.37 | V27: 102.25 | W27: 98.97 | X27: 92.65 | Y27: 116.97
A28: 19 | G28: Zo | I28: Zobowiązania ogółem (kwota długu) | J28: =+ROUND(INDEX(Tab_N5!$M$3:$AR$12,TabZbiorczo!$H$3,$A28)/skaluj,dokladnosc) -> 82075.69 | K28: =+ROUND(INDEX(Tab_N4!$M$3:$AR$12,TabZbiorczo!$H$3,$A28)/skaluj,dokladnosc) -> 89845.11 | L28: =+ROUND(INDEX(Tab_N3!$M$3:$AR$12,TabZbiorczo!$H$3,$A28)/skaluj,dokladnosc) -> 91122.82 | M28: =+ROUND(INDEX(Tab_N2!$M$3:$AR$12,TabZbiorczo!$H$3,$A28)/skaluj,dokladnosc) -> 90825.61 | N28: =+ROUND(INDEX(Tab_N1!$M$3:$AR$12,TabZbiorczo!$H$3,$A28)/skaluj,dokladnosc) -> 102723.75 | O28: =+ROUND(INDEX(Tab_N0!$M$3:$AR$12,TabZbiorczo!$H$3,$A28)/skaluj,dokladnosc) -> 111056.9 | P28: 7769.42 | Q28: 1277.71 | R28: -297.21 | S28: 11898.14 | T28: 8333.15 | U28: 109.47 | V28: 101.42 | W28: 99.67 | X28: 113.1 | Y28: 108.11
A29: 20 | G29: No | I29: Wynik bieżący (Db-Wb) | J29: =+ROUND(INDEX(Tab_N5!$M$3:$AR$12,TabZbiorczo!$H$3,$A29)/skaluj,dokladnosc) -> 24162.46 | K29: =+ROUND(INDEX(Tab_N4!$M$3:$AR$12,TabZbiorczo!$H$3,$A29)/skaluj,dokladnosc) -> 21384.32 | L29: =+ROUND(INDEX(Tab_N3!$M$3:$AR$12,TabZbiorczo!$H$3,$A29)/skaluj,dokladnosc) -> 36606.33 | M29: =+ROUND(INDEX(Tab_N2!$M$3:$AR$12,TabZbiorczo!$H$3,$A29)/skaluj,dokladnosc) -> 26800.3 | N29: =+ROUND(INDEX(Tab_N1!$M$3:$AR$12,TabZbiorczo!$H$3,$A29)/skaluj,dokladnosc) -> 17143.89 | O29: =+ROUND(INDEX(Tab_N0!$M$3:$AR$12,TabZbiorczo!$H$3,$A29)/skaluj,dokladnosc) -> 32628.6 | P29: -2778.14 | Q29: 15222.01 | R29: -9806.03 | S29: -9656.41 | T29: 15484.71 | U29: 88.5 | V29: 171.18 | W29: 73.21 | X29: 63.97 | Y29: 190.32
A30: 21 | G30: Dbe | I30: Dotacje i środki o charakterze bieżącym na realizację programu, projektu lub zadania finansowanego z udziałem środków, o których mowa w art. 5 ust. 1 pkt 2 ustawy o finansach publicznych | J30: =+ROUND(INDEX(Tab_N5!$M$3:$AR$12,TabZbiorczo!$H$3,$A30)/skaluj,dokladnosc) -> 4076.23 | K30: =+ROUND(INDEX(Tab_N4!$M$3:$AR$12,TabZbiorczo!$H$3,$A30)/skaluj,dokladnosc) -> 5764.79 | L30: =+ROUND(INDEX(Tab_N3!$M$3:$AR$12,TabZbiorczo!$H$3,$A30)/skaluj,dokladnosc) -> 3979.19 | M30: =+ROUND(INDEX(Tab_N2!$M$3:$AR$12,TabZbiorczo!$H$3,$A30)/skaluj,dokladnosc) -> 4930.83 | N30: =+ROUND(INDEX(Tab_N1!$M$3:$AR$12,TabZbiorczo!$H$3,$A30)/skaluj,dokladnosc) -> 3625.86 | O30: =+ROUND(INDEX(Tab_N0!$M$3:$AR$12,TabZbiorczo!$H$3,$A30)/skaluj,dokladnosc) -> 4228.48 | P30: 1688.56 | Q30: -1785.6 | R30: 951.64 | S30: -1304.97 | T30: 602.62 | U30: 141.42 | V30: 69.03 | W30: 123.92 | X30: 73.53 | Y30: 116.62
A31: 22 | G31: Wbe | I31: Wydatki bieżące na programy, projekty lub zadania finansowane z udziałem środków, o których mowa w art. 5 ust. 1 pkt 2 ustawy o finansach publicznych | J31: =+ROUND(INDEX(Tab_N5!$M$3:$AR$12,TabZbiorczo!$H$3,$A31)/skaluj,dokladnosc) -> 4232.64 | K31: =+ROUND(INDEX(Tab_N4!$M$3:$AR$12,TabZbiorczo!$H$3,$A31)/skaluj,dokladnosc) -> 5542.8 | L31: =+ROUND(INDEX(Tab_N3!$M$3:$AR$12,TabZbiorczo!$H$3,$A31)/skaluj,dokladnosc) -> 4508.59 | M31: =+ROUND(INDEX(Tab_N2!$M$3:$AR$12,TabZbiorczo!$H$3,$A31)/skaluj,dokladnosc) -> 5227.48 | N31: =+ROUND(INDEX(Tab_N1!$M$3:$AR$12,TabZbiorczo!$H$3,$A31)/skaluj,dokladnosc) -> 4564.41 | O31: =+ROUND(INDEX(Tab_N0!$M$3:$AR$12,TabZbiorczo!$H$3,$A31)/skaluj,dokladnosc) -> 3667.02 | P31: 1310.16 | Q31: -1034.21 | R31: 718.89 | S31: -663.07 | T31: -897.39 | U31: 130.95 | V31: 81.34 | W31: 115.94 | X31: 87.32 | Y31: 80.34
A32: 23 | G32: Wbd | I32: Spłaty zobowiązań dłużnych zaciągniętych po 1 stycznia 2019 r. dokonywane w formie wydatku bieżącego | J32: =+ROUND(INDEX(Tab_N5!$M$3:$AR$12,TabZbiorczo!$H$3,$A32)/skaluj,dokladnosc) -> 2.3 | K32: =+ROUND(INDEX(Tab_N4!$M$3:$AR$12,TabZbiorczo!$H$3,$A32)/skaluj,dokladnosc) -> 17.16 | L32: =+ROUND(INDEX(Tab_N3!$M$3:$AR$12,TabZbiorczo!$H$3,$A32)/skaluj,dokladnosc) -> 15.78 | M32: =+ROUND(INDEX(Tab_N2!$M$3:$AR$12,TabZbiorczo!$H$3,$A32)/skaluj,dokladnosc) -> 19.15 | N32: =+ROUND(INDEX(Tab_N1!$M$3:$AR$12,TabZbiorczo!$H$3,$A32)/skaluj,dokladnosc) -> 44.82 | O32: =+ROUND(INDEX(Tab_N0!$M$3:$AR$12,TabZbiorczo!$H$3,$A32)/skaluj,dokladnosc) -> 31.54 | P32: 14.86 | Q32: -1.38 | R32: 3.37 | S32: 25.67 | T32: -13.28 | U32: 746.09 | V32: 91.96 | W32: 121.36 | X32: 234.05 | Y32: 70.37
A33: 24 | G33: Zw | I33: Zobowiązania wymagalne | J33: =+ROUND(INDEX(Tab_N5!$M$3:$AR$12,TabZbiorczo!$H$3,$A33)/skaluj,dokladnosc) -> 61.45 | K33: =+ROUND(INDEX(Tab_N4!$M$3:$AR$12,TabZbiorczo!$H$3,$A33)/skaluj,dokladnosc) -> 55.66 | L33: =+ROUND(INDEX(Tab_N3!$M$3:$AR$12,TabZbiorczo!$H$3,$A33)/skaluj,dokladnosc) -> 57.35 | M33: =+ROUND(INDEX(Tab_N2!$M$3:$AR$12,TabZbiorczo!$H$3,$A33)/skaluj,dokladnosc) -> 68.4 | N33: =+ROUND(INDEX(Tab_N1!$M$3:$AR$12,TabZbiorczo!$H$3,$A33)/skaluj,dokladnosc) -> 103.52 | O33: =+ROUND(INDEX(Tab_N0!$M$3:$AR$12,TabZbiorczo!$H$3,$A33)/skaluj,dokladnosc) -> 83.85 | P33: -5.79 | Q33: 1.69 | R33: 11.05 | S33: 35.12 | T33: -19.67 | U33: 90.58 | V33: 103.04 | W33: 119.27 | X33: 151.35 | Y33: 81
H34: (Pbzwr+(Do-Wb)) | I34: potencjał rozwojowy | J34: =+J25+(J11-J19) -> 68008.1 | K34: =+K25+(K11-K19) -> 75542.15 | L34: =+L25+(L11-L19) -> 103328.15 | M34: =+M25+(M11-M19) -> 109716.57 | N34: 114781.61 | O34: 119401.69 | P34: 7534.05 | Q34: 27786 | R34: 6388.42 | S34: 5065.04 | T34: 4620.08 | U34: 111.08 | V34: 136.78 | W34: 106.18 | X34: 104.62 | Y34: 104.03
H35: (Pbzwr+(Do-Wb-Rs)) | I35: potencjał inwestycyjny | J35: =+J25+(J11-J19-J27) -> 57951.36 | K35: =+K25+(K11-K19-K27) -> 65950.75 | L35: =+L25+(L11-L19-L27) -> 93520.76 | M35: =+M25+(M11-M19-M27) -> 100009.96 | N35: 105788.73 | O35: 108882.43 | P35: 7999.39 | Q35: 27570.01 | R35: 6489.2 | S35: 5778.77 | T35: 3093.7 | U35: 113.8 | V35: 141.8 | W35: 106.94 | X35: 105.78 | Y35: 102.92
H36: Db-Dbd | I36: dochody bieżące pomniejszone o dotacje i środki na zadania bieżące | J36: =+J12-J15 -> 188025.52 | K36: 194418.65 | L36: 223897.11 | M36: 237151.78 | N36: 261628.16 | O36: 321181.35 | P36: 6393.13 | Q36: 29478.46 | R36: 13254.67 | S36: 24476.38 | T36: 59553.19 | U36: 103.4 | V36: 115.16 | W36: 105.92 | X36: 110.32 | Y36: 122.76
I38: Poniższe wskaźniki zostały policzone na zbiorczych danych dla danego typu JST, w związku z tym średnia dla wskaźników różni się w niewielkim stopniu od wartości prezentowanych w załączniku nr 1, gdzie wartości wskaźników zostały obliczone indywidulanie dla każdej JST i na tej podstawie obliczono średnią dla poszczególnych typów JST oraz dla kraju.
J39: =+K39-1 -> 2019 | K39: 2020 | L39: 2021 | M39: =+N39-1 -> 2022 | N39: =+O39-1 -> 2023 | O39: =+Rok -> 2024 | P39: =+Q39-1 -> 2020 | Q39: =+R39-1 -> 2021 | R39: 2022 | S39: =+T39-1 -> 2023 | T39: =+Rok -> 2024 | U39: =+V39-1 -> 2020 | V39: =+W39-1 -> 2021 | W39: 2022 | X39: =+Y39-1 -> 2023 | Y39: =+Rok -> 2024
G40: WB1 | H40: Db/Do | I40: Udział dochodów bieżących w dochodach ogółem | J40: =+IF(J11<>0,ROUND(J12/J11*100,dokl_proc),"") -> 90.96 | K40: 89.16 | L40: 90.2 | M40: 91.34 | N40: 85.35 | O40: 87.7 | P40: =+K40-J40 -> -1.8 | Q40: =+L40-K40 -> 1.04 | R40: 1.14 | S40: =+N40-M40 -> -5.99 | T40: =+O40-N40 -> 2.35 | U40: =+IF(J40<>0,ROUND(K40/J40*100,dokl_proc),"") -> 98.02 | V40: =+IF(K40<>0,ROUND(L40/K40*100,dokl_proc),"") -> 101.17 | W40: 101.26 | X40: =+IF(M40<>0,ROUND(N40/M40*100,dokl_proc),"") -> 93.44 | Y40: =+IF(N40<>0,ROUND(O40/N40*100,dokl_proc),"") -> 102.75
G41: WB2 | H41: Tb/Db | I41: Udział transferów bieżących w dochodach bieżących | J41: =+IF(J12<>0,ROUND((J13)/J12*100,dokl_proc),"") -> 50.06 | K41: 53.04 | L41: 51.5 | M41: 48.53 | N41: 47.49 | O41: 46.68 | P41: 2.98 | Q41: -1.54 | R41: -2.97 | S41: -1.04 | T41: -0.81 | U41: 105.95 | V41: 97.1 | W41: 94.23 | X41: 97.86 | Y41: 98.29
G42: WB3 | H42: No/Db | I42: Udział nadwyżki operacyjnej w dochodach bieżących | J42: =+IF(J12<>0,ROUND((J29)/J12*100,dokl_proc),"") -> 9.54 | K42: 7.87 | L42: 12.17 | M42: 8.49 | N42: 5.55 | O42: 8.62 | P42: -1.67 | Q42: 4.3 | R42: -3.68 | S42: -2.94 | T42: 3.07 | U42: 82.49 | V42: 154.64 | W42: 69.76 | X42: 65.37 | Y42: 155.32
G43: WB4 | H43: Wm/Wo | I43: Udział wydatków majątkowych w wydatkach ogółem | J43: =+IF(J18<>0,ROUND((J22)/J18*100,dokl_proc),"") -> 18.22 | K43: 16.29 | L43: 16.41 | M43: 18.34 | N43: 24.19 | O43: 20.02 | P43: -1.93 | Q43: 0.12 | R43: 1.93 | S43: 5.85 | T43: -4.17 | U43: 89.41 | V43: 100.74 | W43: 111.76 | X43: 131.9 | Y43: 82.76
G44: WB5 | H44: Ww/Wb | I44: Obciążenie wydatków bieżących wydatkami na wynagrodzenia i pochodne od wynagrodzeń | J44: =+IF(J19<>0,ROUND((J20)/J19*100,dokl_proc),"") -> 38.56 | K44: 37.86 | L44: 38.68 | M44: 38.57 | N44: 43.45 | O44: 45.63 | P44: -0.7 | Q44: 0.82 | R44: -0.11 | S44: 4.88 | T44: 2.18 | U44: 98.18 | V44: 102.17 | W44: 99.72 | X44: 112.65 | Y44: 105.02
G45: WB6 | H45: (No+Sm)/Do | I45: Udział nadwyżki operacyjnej i dochodów ze sprzedaży majątku w dochodach ogółem | J45: =+IF(J11<>0,ROUND((J29+J17)/J11*100,dokl_proc),"") -> 9.8 | K45: 8.22 | L45: 12.65 | M45: 9.27 | N45: 6.06 | O45: 8.61 | P45: -1.58 | Q45: 4.43 | R45: -3.38 | S45: -3.21 | T45: 2.55 | U45: 83.88 | V45: 153.89 | W45: 73.28 | X45: 65.37 | Y45: 142.08
G46: WB7 | H46: (No+Dm)/Wm | I46: Udział nadwyżki operacyjnej i dochodów majątkowych w wydatkach majątkowych (wskaźnik samofinansowania) | J46: =+IF(J22<>0,ROUND((J29+J16)/J22*100,dokl_proc),"") -> 96.66 | K46: 111.67 | L46: 133.65 | M46: 87.4 | N46: 75.37 | O46: 99.05 | P46: 15.01 | Q46: 21.98 | R46: -46.25 | S46: -12.03 | T46: 23.68 | U46: 115.53 | V46: 119.68 | W46: 65.39 | X46: 86.24 | Y46: 131.42
G47: WB8 | H47: ((Do+P) - (Wo+R)) / Do | I47: Odsetek dochodów ogółem pozostający po zakończeniu roku budżetowego | J47: =+IF(J11<>0,ROUND((J11+J23-J18-J26)/J11*100,dokl_proc),"") -> 7.21 | K47: 10.69 | L47: 15.01 | M47: 11.4 | N47: 8.69 | O47: 9.04 | P47: 3.48 | Q47: 4.32 | R47: -3.61 | S47: -2.71 | T47: 0.35 | U47: 148.27 | V47: 140.41 | W47: 75.95 | X47: 76.23 | Y47: 104.03
G48: WB9 | H48: (Pbzwr+(Do-Wb)) / Wm+Rs | I48: Potencjał rozwojowy w relacji do wydatków majątkowych i spłat kapitału | J48: =+IF((J22+J27)<>0,ROUND((J25+J11-J19)/(J22+J27)*100,dokl_proc),"") -> 111.28 | K48: 129.48 | L48: 167.61 | M48: 147.06 | N48: 112.41 | O48: 123.05 | P48: 18.2 | Q48: 38.13 | R48: -20.55 | S48: -34.65 | T48: 10.64 | U48: 116.36 | V48: 129.45 | W48: 87.74 | X48: 76.44 | Y48: 109.47
G49: WB10 | H49: (Pbzwr+(Do-Wb-Rs)) / Wm | I49: Potencjał inwestycyjny w relacji do wydatków majątkowych | J49: =+IF((J22)<>0,ROUND((J25+(J11-J19-J27))/(J22)*100,dokl_proc),"") -> 113.5 | K49: 135.28 | L49: 180.4 | M49: 154.09 | N49: 113.6 | O49: 125.85 | P49: 21.78 | Q49: 45.12 | R49: -26.31 | S49: -40.49 | T49: 12.25 | U49: 119.19 | V49: 133.35 | W49: 85.42 | X49: 73.72 | Y49: 110.78
G50: WB11 | H50: Wm / (Pbzwr+(Do-Wb-Rs)) | I50: Wykorzystanie potencjału inwestycyjnego | J50: =+IF((J22)<>0,ROUND(J22/(J25+(J11-J19-J27))*100,dokl_proc),"") -> 88.1 | K50: 73.92 | L50: 55.43 | M50: 64.9 | N50: 88.02 | O50: 79.46 | P50: -14.18 | Q50: -18.49 | R50: 9.47 | S50: 23.12 | T50: -8.56 | U50: 83.9 | V50: 74.99 | W50: 117.08 | X50: 135.62 | Y50: 90.27
G51: WB12 | H51: ((Db-Dbe) - (Wb-Wbe-Wbd)+Sm)/ (Db-Dbd) | I51: Wskaźnik jednoroczny średniej z art. 243 ustawy o finansach publicznych (z uwzględnieniem dochodów ze sprzedaży majątku) | J51: =+IF((J12-J15)<>0,ROUND((J12-J30-(J19-J22-J31)+J17)/(J12-J15)*100,dokl_proc),"") -> 41.76 | K51: 37.86 | L51: 42.23 | M51: 41.01 | N51: 44.34 | O51: 38.33 | P51: -3.9 | Q51: 4.37 | R51: -1.22 | S51: 3.33 | T51: -6.01 | U51: 90.66 | V51: 111.54 | W51: 97.11 | X51: 108.12 | Y51: 86.45
G53: WL1 | H53: Tb/L | I53: Transfery bieżące na mieszkańca [w zł] | J53: =+IF(J$10<>0,ROUND((J13)/J$10*skaluj,dokl_proc),"") -> 3304.11 | K53: 3759.49 | L53: 4058.17 | M53: 4051.15 | N53: 3892.07 | O53: 4701.96 | P53: =+K53-J53 -> 455.38 | Q53: =+L53-K53 -> 298.68 | R53: -7.02 | S53: =+N53-M53 -> -159.08 | T53: =+O53-N53 -> 809.89 | U53: =+IF(J53<>0,ROUND(K53/J53*100,dokl_proc),"") -> 113.78 | V53: =+IF(K53<>0,ROUND(L53/K53*100,dokl_proc),"") -> 107.94 | W53: 99.83 | X53: 96.07 | Y53: 120.81
G54: WL2 | H54: No/L | I54: Nadwyżka operacyjna na mieszkańca [w zł] | J54: =+IF(J$10<>0,ROUND((J29)/J$10*skaluj,dokl_proc),"") -> 629.45 | K54: 557.55 | L54: 959.23 | M54: 708.49 | N54: 454.77 | O54: 868.64 | P54: -71.9 | Q54: 401.68 | R54: -250.74 | S54: -253.72 | T54: 413.87 | U54: 88.58 | V54: 172.04 | W54: 73.86 | X54: 64.19 | Y54: 191.01
G55: WL3 | H55: Zo/L | I55: Zobowiązania ogółem na mieszkańca [w zł] | J55: =+IF(J$10<>0,ROUND((J28)/J$10*skaluj,dokl_proc),"") -> 2138.14 | K55: 2342.51 | L55: 2387.78 | M55: 2401.06 | N55: 2724.89 | O55: 2956.54 | P55: 204.37 | Q55: 45.27 | R55: 13.28 | S55: 323.83 | T55: 231.65 | U55: 109.56 | V55: 101.93 | W55: 100.56 | X55: 113.49 | Y55: 108.5
G56: WL4 | H56: (Pbzwr+(Do-Wb))/L | I56: Potencjał rozwojowy na mieszkańca [w zł] | J56: =+IF(J$10<>0,ROUND((J34)/J$10*skaluj,dokl_proc),"") -> 1771.67 | K56: =+IF(K$10<>0,ROUND((K34)/K$10*skaluj,dokl_proc),"") -> 1969.59 | L56: 2707.6 | M56: 2900.46 | N56: 3044.74 | O56: 3178.7 | P56: 197.92 | Q56: 738.01 | R56: 192.86 | S56: 144.28 | T56: 133.96 | U56: 111.17 | V56: 137.47 | W56: 107.12 | X56: 104.97 | Y56: 104.4
G57: WL5 | H57: (Pbzwr+(Do-Wb-Rs))/L | I57: potencjał inwestycyjny na mieszkańca [w zł] | J57: =+IF(J$10<>0,ROUND((J35)/J$10*skaluj,dokl_proc),"") -> 1509.68 | K57: 1719.52 | L57: 2450.61 | M57: 2643.85 | N57: 2806.19 | O57: 2898.66 | P57: 209.84 | Q57: 731.09 | R57: 193.24 | S57: 162.34 | T57: 92.47 | U57: 113.9 | V57: 142.52 | W57: 107.89 | X57: 106.14 | Y57: 103.3
G59: WZ1 | H59: Zo/Do | I59: Udział zobowiązań ogółem w dochodach ogółem [%] | J59: =+IF(J11<>0,ROUND((J28)/J11*100,dokl_proc),"") -> 29.46 | K59: 29.46 | L59: 27.33 | M59: 26.28 | N59: 28.38 | O59: 25.74 | P59: =+K59-J59 -> 0 | Q59: =+L59-K59 -> -2.13 | R59: -1.05 | S59: =+N59-M59 -> 2.1 | T59: =+O59-N59 -> -2.64 | U59: =+IF(J59<>0,ROUND(K59/J59*100,dokl_proc),"") -> 100 | V59: =+IF(K59<>0,ROUND(L59/K59*100,dokl_proc),"") -> 92.77 | W59: 96.16 | X59: 107.99 | Y59: 90.7
G60: WZ2 | H60: Zo/No | I60: Relacja zadłużenia do nadwyżki operacyjnej | J60: =+IF(J11<>0,ROUND((J28)/J29,dokl_proc),"") -> 3.4 | K60: 4.2 | L60: 2.49 | M60: 3.39 | N60: 5.99 | O60: 3.4 | P60: 0.8 | Q60: =+L60-K60 -> -1.71 | R60: =+M60-L60 -> 0.9 | S60: =+N60-M60 -> 2.6 | T60: =+O60-N60 -> -2.59 | U60: 123.53 | V60: =+IF(K60<>0,ROUND(L60/K60*100,dokl_proc),"") -> 59.29 | W60: =+IF(L60<>0,ROUND(M60/L60*100,dokl_proc),"") -> 136.14 | X60: =+IF(M60<>0,ROUND(N60/M60*100,dokl_proc),"") -> 176.7 | Y60: =+IF(N60<>0,ROUND(O60/N60*100,dokl_proc),"") -> 56.76
G61: WZ3 | H61: (Rs+O)/Do | I61: Obciążenie dochodów ogółem obsługą zadłużenia [%] | J61: =+IF(J11<>0,ROUND((J21)/J11*100,dokl_proc),"") -> 0.73 | K61: 0.54 | L61: 0.36 | M61: 1.25 | N61: 1.69 | O61: 1.46 | P61: -0.19 | Q61: -0.18 | R61: 0.89 | S61: 0.44 | T61: -0.23 | U61: 73.97 | V61: 66.67 | W61: 347.22 | X61: 135.2 | Y61: 86.39
G62: WZ4 | H62: O/Zo | I62: Relacja wydatków na obsługę długu do kwoty długu [%] | J62: =+IF(J28<>0,ROUND((J21)/J28*100,dokl_proc),"") -> 2.48 | K62: 1.82 | L62: 1.3 | M62: 4.76 | N62: 5.97 | O62: 5.68 | P62: -0.66 | Q62: =+L62-K62 -> -0.52 | R62: =+M62-L62 -> 3.46 | S62: =+N62-M62 -> 1.21 | T62: =+O62-N62 -> -0.29 | U62: 73.39 | V62: =+IF(K62<>0,ROUND(L62/K62*100,dokl_proc),"") -> 71.43 | W62: =+IF(L62<>0,ROUND(M62/L62*100,dokl_proc),"") -> 366.15 | X62: =+IF(M62<>0,ROUND(N62/M62*100,dokl_proc),"") -> 125.42 | Y62: =+IF(N62<>0,ROUND(O62/N62*100,dokl_proc),"") -> 95.14
G63: WZ5 | H63: (Rs+O)/(Db-Dbd) | I63: Obciążenie dochodów bieżących obsługą zadłużenia [%] | J63: =+IF(J12<>0,ROUND((J21)/J12*100,dokl_proc),"") -> 0.8 | K63: 0.6 | L63: 0.39 | M63: 1.37 | N63: 1.98 | O63: 1.67 | P63: -0.2 | Q63: -0.21 | R63: 0.98 | S63: 0.61 | T63: -0.31 | U63: 75 | V63: 65 | W63: 351.28 | X63: 144.53 | Y63: 84.34
G64: WZ6 | H64: O/Rs | I64: Relacja wydatków na obsługę długu do rozchodów na spłatę długu [%] | J64: =+IF(J27<>0,ROUND((J21)/J27*100,dokl_proc),"") -> 20.24 | K64: 17.08 | L64: 12.1 | M64: 44.51 | N64: 68.2 | O64: 59.94 | P64: -3.16 | Q64: -4.98 | R64: 32.41 | S64: 23.69 | T64: -8.26 | U64: 84.39 | V64: 70.84 | W64: 367.85 | X64: 153.22 | Y64: 87.89
G65: WZ7 | H65: Zw/Zo | I65: Udział zobowiązań wymagalnych w zobowiązaniach ogółem [%] | J65: =+IF(J28<>0,ROUND((J33)/J28*100,dokl_proc),"") -> 0.07 | K65: 0.06 | L65: 0.06 | M65: 0.08 | N65: 0.1 | O65: 0.08 | P65: -0.01 | Q65: 0 | R65: 0.02 | S65: 0.02 | T65: -0.02 | U65: 85.71 | V65: 100 | W65: 133.33 | X65: 125 | Y65: 80

Sheet DaneRb_2024 (hidden)
A1: =+"Dane źródłowe do obliczenia wskaźników, według sprawozdań Rb za IV kwartały "&Rok&" r." -> Dane źródłowe do obliczenia wskaźników, według sprawozdań Rb za IV kwartały 2024 r.
A2: powrót do spisu tablic
M3: Liczba mieszkańców JST | N3: Dochody ogółem | O3: z tego: | U3: Wydatki ogółem | V3: z tego: | Z3: Przychody budżetu | AA3: z tego: | AC3: Rozchody budżetu | AD3: w tym: | AE3: Zobowiązania ogółem (kwota długu) | AF3: Wynik bieżący (Db-Wb) | AG3: Projekty lub zadania finansowane z udziałem środków, o których mowa w art. 5 ust. 1 pkt 2 ustawy o finansach publicznych | AI3: Spłaty zobowiązań dłużnych zaciągniętych po 1 stycznia 2019 r. dokonywane w formie wydatku bieżącego | AJ3: Zobowiązania wymagalne
O4: Dochody bieżące | P4: w tym: | S4: Dochody majątkowe | T4: w tym: | V4: Wydatki bieżące | W4: w tym: | Y4: Wydatki majątkowe | AA4: Przychody budżetu z tytułu kredytów, pożyczek, emisji papierów wartościowych | AB4: Przychody budżetu z wyłączeniem kredytów, pożyczek, emisji papierów wartościowych | AD4: Spłata rat kapitałowych od zaciągniętych kredytów i pożyczek
P5: Transfery bieżące (Dbs+Dbd) | Q5: z tego: | T5: Dochody ze sprzedaży majątku | W5: Wydatki na wynagrodzenia i pochodne od wynagrodzeń | X5: Wydatki na obsługę długu
Q6: Dochody bieżące z tytułu subwencji ogólnej | R6: Dochody bieżące z tytułu dotacji i środków przeznaczonych na cele bieżące | AG6: Dochody w formie dotacji i środków o charakterze bieżącym | AH6: Wydatki bieżące
A8: WK | B8: PK | C8: GK | D8: GT | E8: Typ | F8: WKTYP | G8: TYPS | H8: KodGUS6 | I8: KODGUS | J8: NazwaJST | K8: ID | L8: Rok | M8: L | N8: Do | O8: Db | P8: Tb | Q8: Dbs | R8: Dbd | S8: Dm | T8: Sm | U8: Wo | V8: Wb | W8: Ww | X8: O | Y8: Wm | Z8: P | AA8: Pd | AB8: Pbzwr | AC8: R | AD8: Rs | AE8: Zo | AF8: No | AG8: Dbe | AH8: Wbe | AI8: Wbd | AJ8: Zw
A9: 2 | B9: 1 | C9: 1 | D9: 1 | E9: G | F9: =+TEXT(DaneN0[[#This Row],[WK]],"00")&DaneN0[[#This Row],[TYPS]]&D9&TEXT(DaneN0[[#This Row],[PK]],"00") -> 02G101 | G9: =+IF(ISERROR(VLOOKUP(DaneN0[[#This Row],[KodGUS6]],LstMetropolie[],1,FALSE)),DaneN0[[#This Row],[Typ]],"T") -> G | H9: =+TEXT(A9,"00")&TEXT(B9,"00")&TEXT(C9,"00") -> 020101 | I9: 201011 | J9: BOLESŁAWIEC | L9: =+Rok -> 2024 | M9: 36864 | N9: 306078604.5 | O9: 253376103.7 | P9: =+DaneN0[[#This Row],[Dbs]]+DaneN0[[#This Row],[Dbd]] -> 90215003.56 | Q9: 52548353 | R9: 37666650.56 | S9: 52702500.79 | T9: 15108228.99 | U9: 327963417.7 | V9: 234692908.6 | W9: 92838155.52 | X9: 2380294.18 | Y9: 93270509.14 | Z9: 32889024.55 | AA9: 10100000 | AB9: =+DaneN0[[#This Row],[P]]-DaneN0[[#This Row],[Pd]] -> 22789024.55 | AC9: 5924073.75 | AD9: 5924073.75 | AE9: 40993496.6 | AF9: 18683195.12 | AG9: 1621815.31 | AH9: 3132471.62 | AI9: 0 | AJ9: 0
A10: 2 | B10: 1 | C10: 2 | D10: 2 | E10: G | F10: =+TEXT(DaneN0[[#This Row],[WK]],"00")&DaneN0[[#This Row],[TYPS]]&D10&TEXT(DaneN0[[#This Row],[PK]],"00") -> 02G201 | G10: =+IF(ISERROR(VLOOKUP(DaneN0[[#This Row],[KodGUS6]],LstMetropolie[],1,FALSE)),DaneN0[[#This Row],[Typ]],"T") -> G | H10: 020102 | I10: 201022 | J10: BOLESŁAWIEC | L10: 2024 | M10: 15338 | N10: 103759960.6 | O10: 97787980.64 | P10: =+DaneN0[[#This Row],[Dbs]]+DaneN0[[#This Row],[Dbd]] -> 41121421.45 | Q10: 23101491 | R10: 18019930.45 | S10: 5971979.97 | T10: 677234.39 | U10: 93663632.92 | V10: 78627591.51 | W10: 32086680.4 | X10: 0 | Y10: 15036041.41 | Z10: 52043410.28 | AA10: 0 | AB10: =+DaneN0[[#This Row],[P]]-DaneN0[[#This Row],[Pd]] -> 52043410.28 | AC10: 0 | AD10: 0 | AE10: 0 | AF10: 19160389.13 | AG10: 191910.88 | AH10: 256632.58 | AI10: 0 | AJ10: 0
A11: 2 | B11: 1 | C11: 3 | D11: 2 | E11: G | F11: =+TEXT(DaneN0[[#This Row],[WK]],"00")&DaneN0[[#This Row],[TYPS]]&D11&TEXT(DaneN0[[#This Row],[PK]],"00") -> 02G201 | G11: =+IF(ISERROR(VLOOKUP(DaneN0[[#This Row],[KodGUS6]],LstMetropolie[],1,FALSE)),DaneN0[[#This Row],[Typ]],"T") -> G | H11: 020103 | I11: 201032 | J11: GROMADKA | L11: 2024 | M11: 4997 | N11: 61694711.52 | O11: 47035586.17 | P11: =+DaneN0[[#This Row],[Dbs]]+DaneN0[[#This Row],[Dbd]] -> 14352795.38 | Q11: 7433006 | R11: 6919789.38 | S11: 14659125.35 | T11: 111437.6 | U11: 66515558.34 | V11: 40069270.96 | W11: 18054242.59 | X11: 2049.92 | Y11: 26446287.38 | Z11: 25647256.9 | AA11: 0 | AB11: =+DaneN0[[#This Row],[P]]-DaneN0[[#This Row],[Pd]] -> 25647256.9 | AC11: 51250 | AD11: 51250 | AE11: 0 | AF11: 6966315.21 | AG11: 39300 | AH11: 177091.63 | AI11: 0 | AJ11: 0
A12: 2 | B12: 1 | C12: 4 | D12: 3 | E12: G | F12: =+TEXT(DaneN0[[#This Row],[WK]],"00")&DaneN0[[#This Row],[TYPS]]&D12&TEXT(DaneN0[[#This Row],[PK]],"00") -> 02G301 | G12: =+IF(ISERROR(VLOOKUP(DaneN0[[#This Row],[KodGUS6]],LstMetropolie[],1,FALSE)),DaneN0[[#This Row],[Typ]],"T") -> G | H12: 020104 | I12: 201043 | J12: NOWOGRODZIEC | L12: 2024 | M12: 14591 | N12: 97906833.01 | O12: 91647497.51 | P12: =+DaneN0[[#This Row],[Dbs]]+DaneN0[[#This Row],[Dbd]] -> 40793842.36 | Q12: 27449475 | R12: 13344367.36 | S12: 6259335.5 | T12: 268250.02 | U12: 96242302.45 | V12: 82384897.64 | W12: 41448334.11 | X12: 1576276 | Y12: 13857404.81 | Z12: 15634873.96 | AA12: 0 | AB12: =+DaneN0[[#This Row],[P]]-DaneN0[[#This Row],[Pd]] -> 15634873.96 | AC12: 1800000 | AD12: 1800000 | AE12: 21693579.09 | AF12: 9262599.87 | AG12: 163474.99 | AH12: 194256.8 | AI12: 0 | AJ12: 93579.09
A13: 2 | B13: 1 | C13: 5 | D13: 2 | E13: G | F13: =+TEXT(DaneN0[[#This Row],[WK]],"00")&DaneN0[[#This Row],[TYPS]]&D13&TEXT(DaneN0[[#This Row],[PK]],"00") -> 02G201 | G13: =+IF(ISERROR(VLOOKUP(DaneN0[[#This Row],[KodGUS6]],LstMetropolie[],1,FALSE)),DaneN0[[#This Row],[Typ]],"T") -> G | H13: 020105 | I13: 201052 | J13: OSIECZNICA | L13: 2024 | M13: 7267 | N13: 66999285.7 | O13: 53341561.71 | P13: =+DaneN0[[#This Row],[Dbs]]+DaneN0[[#This Row],[Dbd]] -> 23389644.71 | Q13: 15297886 | R13: 8091758.71 | S13: 13657723.99 | T13: 149256.67 | U13: 68705208.52 | V13: 49797777.04 | W13: 22306710.18 | X13: 0 | Y13: 18907431.48 | Z13: 38643723.62 | AA13: 0 | AB13: =+DaneN0[[#This Row],[P]]-DaneN0[[#This Row],[Pd]] -> 38643723.62 | AC13: 0 | AD13: 0 | AE13: 0 | AF13: 3543784.67 | AG13: 131268.34 | AH13: 15750.1 | AI13: 0 | AJ13: 0
A14: 2 | B14: 1 | C14: 6 | D14: 2 | E14: G | F14: =+TEXT(DaneN0[[#This Row],[WK]],"00")&DaneN0[[#This Row],[TYPS]]&D14&TEXT(DaneN0[[#This Row],[PK]],"00") -> 02G201 | G14: =+IF(ISERROR(VLOOKUP(DaneN0[[#This Row],[KodGUS6]],LstMetropolie[],1,FALSE)),DaneN0[[#This Row],[Typ]],"T") -> G | H14: 020106 | I14: 201062 | J14: WARTA BOLESŁAWIECKA | L14: 2024 | M14: 8416 | N14: 66329738.93 | O14: 53547024.95 | P14: =+DaneN0[[#This Row],[Dbs]]+DaneN0[[#This Row],[Dbd]] -> 28034906.83 | Q14: 18814449 | R14: 9220457.83 | S14: 12782713.98 | T14: 27754.06 | U14: 66696544.17 | V14: 50598213.2 | W14: 22177376.29 | X14: 0 | Y14: 16098330.97 | Z14: 11849404.95 | AA14: 0 | AB14: =+DaneN0[[#This Row],[P]]-DaneN0[[#This Row],[Pd]] -> 11849404.95 | AC14: 0 | AD14: 0 | AE14: 0 | AF14: 2948811.75 | AG14: 0 | AH14: 5856.11 | AI14: 0 | AJ14: 0
A15: 2 | B15: 2 | C15: 1 | D15: 1 | E15: G | F15: =+TEXT(DaneN0[[#This Row],[WK]],"00")&DaneN0[[#This Row],[TYPS]]&D15&TEXT(DaneN0[[#This Row],[PK]],"00") -> 02G102 | G15: =+IF(ISERROR(VLOOKUP(DaneN0[[#This Row],[KodGUS6]],LstMetropolie[],1,FALSE)),DaneN0[[#This Row],[Typ]],"T") -> G | H15: 020201 | I15: 202011 | J15: BIELAWA | L15: 2024 | M15: 27874 | N15: 184780974.4 | O15: 155365807.7 | P15: =+DaneN0[[#This Row],[Dbs]]+DaneN0[[#This Row],[Dbd]] -> 83950535.43 | Q15: 59079764 | R15: 24870771.43 | S15: 29415166.7 | T15: 6812870.84 | U15: 199310486.1 | V15: 153064305.7 | W15: 58937151.68 | X15: 4068473.5 | Y15: 46246180.41 | Z15: 24007679.63 | AA15: 16564000 | AB15: =+DaneN0[[#This Row],[P]]-DaneN0[[#This Row],[Pd]] -> 7443679.63 | AC15: 4086971.71 | AD15: 4086971.71 | AE15: 69954068.42 | AF15: 2301502.01 | AG15: 194834.11 | AH15: 223328.39 | AI15: 0 | AJ15: 0
A16: 2 | B16: 2 | C16: 2 | D16: 1 | E16: G | F16: =+TEXT(DaneN0[[#This Row],[WK]],"00")&DaneN0[[#This Row],[TYPS]]&D16&TEXT(DaneN0[[#This Row],[PK]],"00") -> 02G102 | G16: =+IF(ISERROR(VLOOKUP(DaneN0[[#This Row],[KodGUS6]],LstMetropolie[],1,FALSE)),DaneN0[[#This Row],[Typ]],"T") -> G | H16: 020202 | I16: 202021 | J16: DZIERŻONIÓW | L16: 2024 | M16: 30443 | N16: 214253081 | O16: 184867415.2 | P16: =+DaneN0[[#This Row],[Dbs]]+DaneN0[[#This Row],[Dbd]] -> 82428877.56 | Q16: 48524356 | R16: 33904521.56 | S16: 29385665.76 | T16: 3675298.06 | U16: 206497619.2 | V16: 162991065.4 | W16: 69638847.21 | X16: 2992483 | Y16: 43506553.76 | Z16: 20803204.52 | AA16: 15000000 | AB16: =+DaneN0[[#This Row],[P]]-DaneN0[[#This Row],[Pd]] -> 5803204.52 | AC16: 6864423 | AD16: 6864423 | AE16: 54920960 | AF16: 21876349.81 | AG16: 592045.82 | AH16: 330244.92 | AI16: 0 | AJ16: 0
A17: 2 | B17: 2 | C17: 3 | D17: 3 | E17: G | F17: =+TEXT(DaneN0[[#This Row],[WK]],"00")&DaneN0[[#This Row],[TYPS]]&D17&TEXT(DaneN0[[#This Row],[PK]],"00") -> 02G302 | G17: =+IF(ISERROR(VLOOKUP(DaneN0[[#This Row],[KodGUS6]],LstMetropolie[],1,FALSE)),DaneN0[[#This Row],[Typ]],"T") -> G | H17: 020203 | I17: 202033 | J17: PIESZYCE | L17: 2024 | M17: 8888 | N17: 78067630.77 | O17: 50868828.41 | P17: =+DaneN0[[#This Row],[Dbs]]+DaneN0[[#This Row],[Dbd]] -> 29080715.15 | Q17: 18464910 | R17: 10615805.15 | S17: 27198802.36 | T17: 1525011.12 | U17: 64756152.21 | V17: 42757028.68 | W17: 17798695.71 | X17: 511428.61 | Y17: 21999123.53 | Z17: 9093029.12 | AA17: 1500000 | AB17: =+DaneN0[[#This Row],[P]]-DaneN0[[#This Row],[Pd]] -> 7593029.12 | AC17: 1466000 | AD17: 1466000 | AE17: 7939000 | AF17: 8111799.73 | AG17: 307097 | AH17: 0 | AI17: 0 | AJ17: 0
A18: 2 | B18: 2 | C18: 4 | D18: 1 | E18: G | F18: =+TEXT(DaneN0[[#This Row],[WK]],"00")&DaneN0[[#This Row],[TYPS]]&D18&TEXT(DaneN0[[#This Row],[PK]],"00") -> 02G102 | G18: =+IF(ISERROR(VLOOKUP(DaneN0[[#This Row],[KodGUS6]],LstMetropolie[],1,FALSE)),DaneN0[[#This Row],[Typ]],"T") -> G | H18: 020204 | I18: 202041 | J18: PIŁAWA GÓRNA | L18: 2024 | M18: 5864 | N18: 34765535.23 | O18: 30202569.45 | P18: =+DaneN0[[#This Row],[Dbs]]+DaneN0[[#This Row],[Dbd]] -> 16961651.85 | Q18: 11418626 | R18: 5543025.85 | S18: 4562965.78 | T18: 901275.32 | U18: 35393561.5 | V18: 29569930.92 | W18: 14527556.53 | X18: 306652.03 | Y18: 5823630.58 | Z18: 3694229.36 | AA18: 1000000 | AB18: =+DaneN0[[#This Row],[P]]-DaneN0[[#This Row],[Pd]] -> 2694229.36 | AC18: 918000 | AD18: 918000 | AE18: 4616000 | AF18: 632638.53 | AG18: 247810.59 | AH18: 151542.17 | AI18: 0 | AJ18: 0
A19: 2 | B19: 2 | C19: 5 | D19: 2 | E19: G | F19: =+TEXT(DaneN0[[#This Row],[WK]],"00")&DaneN0[[#This Row],[TYPS]]&D19&TEXT(DaneN0[[#This Row],[PK]],"00") -> 02G202 | G19: =+IF(ISERROR(VLOOKUP(DaneN0[[#This Row],[KodGUS6]],LstMetropolie[],1,FALSE)),DaneN0[[#This Row],[Typ]],"T") -> G | H19: 020205 | I19: 202052 | J19: DZIERŻONIÓW | L19: 2024 | M19: 9155 | N19: 77578091.16 | O19: 67006133.43 | P19: =+DaneN0[[#This Row],[Dbs]]+DaneN0[[#This Row],[Dbd]] -> 40965826.65 | Q19: 25490757 | R19: 15475069.65 | S19: 10571957.73 | T19: 1472763.24 | U19: 64345396.23 | V19: 52123741.52 | W19: 24173492.06 | X19: 693038.07 | Y19: 12221654.71 | Z19: 8034315.81 | AA19: 1500000 | AB19: =+DaneN0[[#This Row],[P]]-DaneN0[[#This Row],[Pd]] -> 6534315.81 | AC19: 1000000 | AD19: 1000000 | AE19: 11128229.8 | AF19: 14882391.91 | AG19: 37902 | AH19: 0 | AI19: 0 | AJ19: 10229.8
A20: 2 | B20: 2 | C20: 6 | D20: 2 | E20: G | F20: =+TEXT(DaneN0[[#This Row],[WK]],"00")&DaneN0[[#This Row],[TYPS]]&D20&TEXT(DaneN0[[#This Row],[PK]],"00") -> 02G202 | G20: =+IF(ISERROR(VLOOKUP(DaneN0[[#This Row],[KodGUS6]],LstMetropolie[],1,FALSE)),DaneN0[[#This Row],[Typ]],"T") -> G | H20: 020206 | I20: 202062 | J20: ŁAGIEWNIKI | L20: 2024 | M20: 7069 | N20: 54927440.97 | O20: 44352103.97 | P20: =+DaneN0[[#This Row],[Dbs]]+DaneN0[[#This Row],[Dbd]] -> 24605293.64 | Q20: 18687565 | R20: 5917728.64 | S20: 10575337 | T20: 0 | U20: 52125247.03 | V20: 38396648.32 | W20: 19691841.89 | X20: 182917.2 | Y20: 13728598.71 | Z20: 4858717.33 | AA20: 0 | AB20: =+DaneN0[[#This Row],[P]]-DaneN0[[#This Row],[Pd]] -> 4858717.33 | AC20: 794929.92 | AD20: 683576.92 | AE20: 2095973.45 | AF20: 5955455.65 | AG20: 112518.01 | AH20: 63800.08 | AI20: 0 | AJ20: 45242.65
A21: 2 | B21: 2 | C21: 7 | D21: 3 | E21: G | F21: =+TEXT(DaneN0[[#This Row],[WK]],"00")&DaneN0[[#This Row],[TYPS]]&D21&TEXT(DaneN0[[#This Row],[PK]],"00") -> 02G302 | G21: =+IF(ISERROR(VLOOKUP(DaneN0[[#This Row],[KodGUS6]],LstMetropolie[],1,FALSE)),DaneN0[[#This Row],[Typ]],"T") -> G | H21: 020207 | I21: 202073 | J21: NIEMCZA | L21: 2024 | M21: 5011 | N21: 48137196.07 | O21: 31688336.96 | P21: =+DaneN0[[#This Row],[Dbs]]+DaneN0[[#This Row],[Dbd]] -> 18514249.11 | Q21: 12831697 | R21: 5682552.11 | S21: 16448859.11 | T21: 507440.91 | U21: 45633800.36 | V21: 28527950.98 | W21: 11260515.97 | X21: 681623.78 | Y21: 17105849.38 | Z21: 4123204.94 | AA21: 2500000 | AB21: =+DaneN0[[#This Row],[P]]-DaneN0[[#This Row],[Pd]] -> 1623204.94 | AC21: 2680557.59 | AD21: 2505557.59 | AE21: 9919530 | AF21: 3160385.98 | AG21: 36692.49 | AH21: 23300.29 | AI21: 0 | AJ21: 0
A22: 2 | B22: 3 | C22: 1 | D22: 1 | E22: G | F22: =+TEXT(DaneN0[[#This Row],[WK]],"00")&DaneN0[[#This Row],[TYPS]]&D22&TEXT(DaneN0[[#This Row],[PK]],"00") -> 02G103 | G22: =+IF(ISERROR(VLOOKUP(DaneN0[[#This Row],[KodGUS6]],LstMetropolie[],1,FALSE)),DaneN0[[#This Row],[Typ]],"T") -> G | H22: 020301 | I22: 203011 | J22: GŁOGÓW | L22: 2024 | M22: 61675 | N22: 445705655 | O22: 422012920.5 | P22: =+DaneN0[[#This Row],[Dbs]]+DaneN0[[#This Row],[Dbd]] -> 128764554.2 | Q22: 80000578 | R22: 48763976.2 | S22: 23692734.5 | T22: 4162724.44 | U22: 511962987.1 | V22: 405647851.1 | W22: 184328511.5 | X22: 15384990.4 | Y22: 106315136 | Z22: 100457205.4 | AA22: 33943158.5 | AB22: =+DaneN0[[#This Row],[P]]-DaneN0[[#This Row],[Pd]] -> 66514046.91 | AC22: 24085806.64 | AD22: 17086664 | AE22: 246490144.5 | AF22: 16365069.44 | AG22: 2215064.4 | AH22: 535040 | AI22: 0 | AJ22: 0
A23: 2 | B23: 3 | C23: 2 | D23: 2 | E23: G | F23: =+TEXT(DaneN0[[#This Row],[WK]],"00")&DaneN0[[#This Row],[TYPS]]&D23&TEXT(DaneN0[[#This Row],[PK]],"00") -> 02G203 | G23: =+IF(ISERROR(VLOOKUP(DaneN0[[#This Row],[KodGUS6]],LstMetropolie[],1,FALSE)),DaneN0[[#This Row],[Typ]],"T") -> G | H23: 020302 | I23: 203022 | J23: GŁOGÓW | L23: 2024 | M23: 7228 | N23: 58234043.57 | O23: 46676760.1 | P23: =+DaneN0[[#This Row],[Dbs]]+DaneN0[[#This Row],[Dbd]] -> 19824191.81 | Q23: 14089453 | R23: 5734738.81 | S23: 11557283.47 | T23: 171657.03 | U23: 49404979.1 | V23: 39383410.33 | W23: 19633739.06 | X23: 859901.02 | Y23: 10021568.77 | Z23: 2503187.57 | AA23: 0 | AB23: =+DaneN0[[#This Row],[P]]-DaneN0[[#This Row],[Pd]] -> 2503187.57 | AC23: 7381300 | AD23: 1381300 | AE23: 12243576.49 | AF23: 7293349.77 | AG23: 0 | AH23: 0 | AI23: 0 | AJ23: 23576.49
A24: 2 | B24: 3 | C24: 3 | D24: 2 | E24: G | F24: =+TEXT(DaneN0[[#This Row],[WK]],"00")&DaneN0[[#This Row],[TYPS]]&D24&TEXT(DaneN0[[#This Row],[PK]],"00") -> 02G203 | G24: =+IF(ISERROR(VLOOKUP(DaneN0[[#This Row],[KodGUS6]],LstMetropolie[],1,FALSE)),DaneN0[[#This Row],[Typ]],"T") -> G | H24: 020303 | I24: 203032 | J24: JERZMANOWA | L24: 2024 | M24: 5920 | N24: 81580376.1 | O24: 71289405.23 | P24: =+DaneN0[[#This Row],[Dbs]]+DaneN0[[#This Row],[Dbd]] -> 12137721.91 | Q24: 7804960 | R24: 4332761.91 | S24: 10290970.87 | T24: 4395 | U24: 77651494.75 | V24: 65059992.76 | W24: 28553058.33 | X24: 1793510.14 | Y24: 12591501.99 | Z24: 4389418.85 | AA24: 0 | AB24: =+DaneN0[[#This Row],[P]]-DaneN0[[#This Row],[Pd]] -> 4389418.85 | AC24: 1500000 | AD24: 1500000 | AE24: 23821845 | AF24: 6229412.47 | AG24: 154660.94 | AH24: 1834.39 | AI24: 0 | AJ24: 21845
A25: 2 | B25: 3 | C25: 4 | D25: 2 | E25: G | F25: =+TEXT(DaneN0[[#This Row],[WK]],"00")&DaneN0[[#This Row],[TYPS]]&D25&TEXT(DaneN0[[#This Row],[PK]],"00") -> 02G203 | G25: =+IF(ISERROR(VLOOKUP(DaneN0[[#This Row],[KodGUS6]],LstMetropolie[],1,FALSE)),DaneN0[[#This Row],[Typ]],"T") -> G | H25: 020304 | I25: 203042 | J25: KOTLA | L25: 2024 | M25: 4420 | N25: 48681659.35 | O25: 31977634.63 | P25: =+DaneN0[[#This Row],[Dbs]]+DaneN0[[#This Row],[Dbd]] -> 16458339.05 | Q25: 11104038 | R25: 5354301.05 | S25: 16704024.72 | T25: 148429.97 | U25: 46672781.29 | V25: 28171160.2 | W25: 13830531.97 | X25: 611855.34 | Y25: 18501621.09 | Z25: 2583826.42 | AA25: 0 | AB25: =+DaneN0[[#This Row],[P]]-DaneN0[[#This Row],[Pd]] -> 2583826.42 | AC25: 271700 | AD25: 271700 | AE25: 8860000 | AF25: 3806474.43 | AG25: 488106 | AH25: 37681.58 | AI25: 0 | AJ25: 0
A26: 2 | B26: 3 | C26: 5 | D26: 2 | E26: G | F26: =+TEXT(DaneN0[[#This Row],[WK]],"00")&DaneN0[[#This Row],[TYPS]]&D26&TEXT(DaneN0[[#This Row],[PK]],"00") -> 02G203 | G26: =+IF(ISERROR(VLOOKUP(DaneN0[[#This Row],[KodGUS6]],LstMetropolie[],1,FALSE)),DaneN0[[#This Row],[Typ]],"T") -> G | H26: 020305 | I26: 203052 | J26: PĘCŁAW | L26: 2024 | M26: 2111 | N26: 22555980.95 | O26: 15676835.49 | P26: =+DaneN0[[#This Row],[Dbs]]+DaneN0[[#This Row],[Dbd]] -> 10260344.52 | Q26: 7253026 | R26: 3007318.52 | S26: 6879145.46 | T26: 95572.8 | U26: 20399402.78 | V26: 13036580.85 | W26: 6024614.43 | X26: 289564.07 | Y26: 7362821.93 | Z26: 10443.57 | AA26: 0 | AB26: =+DaneN0[[#This Row],[P]]-DaneN0[[#This Row],[Pd]] -> 10443.57 | AC26: 352070 | AD26: 352070 | AE26: 3215380 | AF26: 2640254.64 | AG26: 0 | AH26: 0 | AI26: 0 | AJ26: 0
A27: 2 | B27: 3 | C27: 6 | D27: 2 | E27: G | F27: =+TEXT(DaneN0[[#This Row],[WK]],"00")&DaneN0[[#This Row],[TYPS]]&D27&TEXT(DaneN0[[#This Row],[PK]],"00") -> 02G203 | G27: =+IF(ISERROR(VLOOKUP(DaneN0[[#This Row],[KodGUS6]],LstMetropolie[],1,FALSE)),DaneN0[[#This Row],[Typ]],"T") -> G | H27: 020306 | I27: 203062 | J27: ŻUKOWICE | L27: 2024 | M27: 3401 | N27: 42434674.43 | O27: 32241556.62 | P27: =+DaneN0[[#This Row],[Dbs]]+DaneN0[[#This Row],[Dbd]] -> 13494357.47 | Q27: 9500279 | R27: 3994078.47 | S27: 10193117.81 | T27: 145960.4 | U27: 37368138.37 | V27: 26650529.58 | W27: 11744850.71 | X27: 151459.05 | Y27: 10717608.79 | Z27: 3580413.15 | AA27: 0 | AB27: =+DaneN0[[#This Row],[P]]-DaneN0[[#This Row],[Pd]] -> 3580413.15 | AC27: 596500 | AD27: 596500 | AE27: 2235500 | AF27: 5591027.04 | AG27: 149253.35 | AH27: 48016.38 | AI27: 0 | AJ27: 0
A28: 2 | B28: 4 | C28: 1 | D28: 3 | E28: G | F28: =+TEXT(DaneN0[[#This Row],[WK]],"00")&DaneN0[[#This Row],[TYPS]]&D28&TEXT(DaneN0[[#This Row],[PK]],"00") -> 02G304 | G28: =+IF(ISERROR(VLOOKUP(DaneN0[[#This Row],[KodGUS6]],LstMetropolie[],1,FALSE)),DaneN0[[#This Row],[Typ]],"T") -> G | H28: 020401 | I28: 204013 | J28: GÓRA | L28: 2024 | M28: 18382 | N28: 124361822.3 | O28: 113268563.9 | P28: =+DaneN0[[#This Row],[Dbs]]+DaneN0[[#This Row],[Dbd]] -> 61902521.24 | Q28: 36068831 | R28: 25833690.24 | S28: 11093258.45 | T28: 4357323.81 | U28: 123642640.9 | V28: 110484352.4 | W28: 55287638.62 | X28: 3864672.45 | Y28: 13158288.52 | Z28: 9398896.07 | AA28: 5000000 | AB28: =+DaneN0[[#This Row],[P]]-DaneN0[[#This Row],[Pd]] -> 4398896.07 | AC28: 4155500 | AD28: 4155500 | AE28: 55667944.43 | AF28: 2784211.54 | AG28: 689989.08 | AH28: 97606.4 | AI28: 0 | AJ28: 7340.24
A29: 2 | B29: 4 | C29: 2 | D29: 2 | E29: G | F29: =+TEXT(DaneN0[[#This Row],[WK]],"00")&DaneN0[[#This Row],[TYPS]]&D29&TEXT(DaneN0[[#This Row],[PK]],"00") -> 02G204 | G29: =+IF(ISERROR(VLOOKUP(DaneN0[[#This Row],[KodGUS6]],LstMetropolie[],1,FALSE)),DaneN0[[#This Row],[Typ]],"T") -> G | H29: 020402 | I29: 204022 | J29: JEMIELNO | L29: 2024 | M29: 2680 | N29: 24489180.48 | O29: 20739878.73 | P29: =+DaneN0[[#This Row],[Dbs]]+DaneN0[[#This Row],[Dbd]] -> 14925296.71 | Q29: 9166819 | R29: 5758477.71 | S29: 3749301.75 | T29: 15800 | U29: 25251460.08 | V29: 20631117.65 | W29: 9072092.03 | X29: 125397.92 | Y29: 4620342.43 | Z29: 4094581.38 | AA29: 0 | AB29: =+DaneN0[[#This Row],[P]]-DaneN0[[#This Row],[Pd]] -> 4094581.38 | AC29: 460000 | AD29: 460000 | AE29: 1272000 | AF29: 108761.08 | AG29: 0 | AH29: 0 | AI29: 0 | AJ29: 0
A30: 2 | B30: 4 | C30: 3 | D30: 2 | E30: G | F30: =+TEXT(DaneN0[[#This Row],[WK]],"00")&DaneN0[[#This Row],[TYPS]]&D30&TEXT(DaneN0[[#This Row],[PK]],"00") -> 02G204 | G30: =+IF(ISERROR(VLOOKUP(DaneN0[[#This Row],[KodGUS6]],LstMetropolie[],1,FALSE)),DaneN0[[#This Row],[Typ]],"T") -> G | H30: 020403 | I30: 204032 | J30: NIECHLÓW | L30: 2024 | M30: 4485 | N30: 44978486.43 | O30: 29828740.53 | P30: =+DaneN0[[#This Row],[Dbs]]+DaneN0[[#This Row],[Dbd]] -> 19786980.11 | Q30: 12566018 | R30: 7220962.11 | S30: 15149745.9 | T30: 261475.33 | U30: 46243322.39 | V30: 28756384.61 | W30: 12936910.07 | X30: 266634.72 | Y30: 17486937.78 | Z30: 3075997.19 | AA30: 0 | AB30: =+DaneN0[[#This Row],[P]]-DaneN0[[#This Row],[Pd]] -> 3075997.19 | AC30: 575500 | AD30: 575500 | AE30: 3094500 | AF30: 1072355.92 | AG30: 113383.5 | AH30: 0 | AI30: 0 | AJ30: 0
A31: 2 | B31: 4 | C31: 4 | D31: 3 | E31: G | F31: =+TEXT(DaneN0[[#This Row],[WK]],"00")&DaneN0[[#This Row],[TYPS]]&D31&TEXT(DaneN0[[#This Row],[PK]],"00") -> 02G304 | G31: =+IF(ISERROR(VLOOKUP(DaneN0[[#This Row],[KodGUS6]],LstMetropolie[],1,FALSE)),DaneN0[[#This Row],[Typ]],"T") -> G | H31: 020404 | I31: 204043 | J31: WĄSOSZ | L31: 2024 | M31: 6703 | N31: 46055407.93 | O31: 41572333.42 | P31: =+DaneN0[[#This Row],[Dbs]]+DaneN0[[#This Row],[Dbd]] -> 21536024.28 | Q31: 13354157 | R31: 8181867.28 | S31: 4483074.51 | T31: 68153.3 | U31: 46901418.95 | V31: 41826675.22 | W31: 21418869.98 | X31: 547343.84 | Y31: 5074743.73 | Z31: 2846011.02 | AA31: 1000000 | AB31: =+DaneN0[[#This Row],[P]]-DaneN0[[#This Row],[Pd]] -> 1846011.02 | AC31: 1106310 | AD31: 1106310 | AE31: 8167479 | AF31: -254341.8 | AG31: 376790.14 | AH31: 219871.11 | AI31: 0 | AJ31: 0
A32: 2 | B32: 5 | C32: 1 | D32: 1 | E32: G | F32: =+TEXT(DaneN0[[#This Row],[WK]],"00")&DaneN0[[#This Row],[TYPS]]&D32&TEXT(DaneN0[[#This Row],[PK]],"00") -> 02G105 | G32: =+IF(ISERROR(VLOOKUP(DaneN0[[#This Row],[KodGUS6]],LstMetropolie[],1,FALSE)),DaneN0[[#This Row],[Typ]],"T") -> G | H32: 020501 | I32: 205011 | J32: JAWOR | L32: 2024 | M32: 20390 | N32: 161672766.8 | O32: 129860561.5 | P32: =+DaneN0[[#This Row],[Dbs]]+DaneN0[[#This Row],[Dbd]] -> 43841793.43 | Q32: 26676863 | R32: 17164930.43 | S32: 31812205.29 | T32: 1423882.78 | U32: 157989665.4 | V32: 118478761.2 | W32: 55746615.59 | X32: 3770949.47 | Y32: 39510904.17 | Z32: 9725851.34 | AA32: 1823841.18 | AB32: =+DaneN0[[#This Row],[P]]-DaneN0[[#This Row],[Pd]] -> 7902010.16 | AC32: 3448062.6 | AD32: 3448062.6 | AE32: 55409640.92 | AF32: 11381800.28 | AG32: 0 | AH32: 32554.52 | AI32: 0 | AJ32: 1112376.36
A33: 2 | B33: 5 | C33: 2 | D33: 3 | E33: G | F33: =+TEXT(DaneN0[[#This Row],[WK]],"00")&DaneN0[[#This Row],[TYPS]]&D33&TEXT(DaneN0[[#This Row],[PK]],"00") -> 02G305 | G33: =+IF(ISERROR(VLOOKUP(DaneN0[[#This Row],[KodGUS6]],LstMetropolie[],1,FALSE)),DaneN0[[#This Row],[Typ]],"T") -> G | H33: 020502 | I33: 205023 | J33: BOLKÓW | L33: 2024 | M33: 9550 | N33: 70796585.29 | O33: 61871695.66 | P33: =+DaneN0[[#This Row],[Dbs]]+DaneN0[[#This Row],[Dbd]] -> 36283543.13 | Q33: 25284151 | R33: 10999392.13 | S33: 8924889.63 | T33: 3328466.3 | U33: 72520167.03 | V33: 61775169.5 | W33: 30682492.45 | X33: 741594.96 | Y33: 10744997.53 | Z33: 10599192.81 | AA33: 0 | AB33: =+DaneN0[[#This Row],[P]]-DaneN0[[#This Row],[Pd]] -> 10599192.81 | AC33: 2006023.74 | AD33: 2006023.74 | AE33: 10012047.56 | AF33: 96526.16 | AG33: 65920.66 | AH33: 21608.64 | AI33: 0 | AJ33: 0
A34: 2 | B34: 5 | C34: 3 | D34: 2 | E34: G | F34: =+TEXT(DaneN0[[#This Row],[WK]],"00")&DaneN0[[#This Row],[TYPS]]&D34&TEXT(DaneN0[[#This Row],[PK]],"00") -> 02G205 | G34: =+IF(ISERROR(VLOOKUP(DaneN0[[#This Row],[KodGUS6]],LstMetropolie[],1,FALSE)),DaneN0[[#This Row],[Typ]],"T") -> G | H34: 020503 | I34: 205032 | J34: MĘCINKA | L34: 2024 | M34: 5232 | N34: 55578275.66 | O34: 33824548.26 | P34: =+DaneN0[[#This Row],[Dbs]]+DaneN0[[#This Row],[Dbd]] -> 13964234.03 | Q34: 8699495 | R34: 5264739.03 | S34: 21753727.4 | T34: 637330.74 | U34: 55137690.13 | V34: 32898486.7 | W34: 15477142.33 | X34: 1037448.68 | Y34: 22239203.43 | Z34: 4328809.17 | AA34: 3500000 | AB34: =+DaneN0[[#This Row],[P]]-DaneN0[[#This Row],[Pd]] -> 828809.17 | AC34: 1446491 | AD34: 1446491 | AE34: 17100000 | AF34: 926061.56 | AG34: 0 | AH34: 0 | AI34: 0 | AJ34: 0
A35: 2 | B35: 5 | C35: 4 | D35: 2 | E35: G | F35: =+TEXT(DaneN0[[#This Row],[WK]],"00")&DaneN0[[#This Row],[TYPS]]&D35&TEXT(DaneN0[[#This Row],[PK]],"00") -> 02G205 | G35: =+IF(ISERROR(VLOOKUP(DaneN0[[#This Row],[KodGUS6]],LstMetropolie[],1,FALSE)),DaneN0[[#This Row],[Typ]],"T") -> G | H35: 020504 | I35: 205042 | J35: MŚCIWOJÓW | L35: 2024 | M35: 3963 | N35: 36136972.63 | O35: 26633745.58 | P35: =+DaneN0[[#This Row],[Dbs]]+DaneN0[[#This Row],[Dbd]] -> 14332542.23 | Q35: 10441134 | R35: 3891408.23 | S35: 9503227.05 | T35: 347355 | U35: 31629829.08 | V35: 23408163.1 | W35: 11201733.06 | X35: 109062.31 | Y35: 8221665.98 | Z35: 2292835.24 | AA35: 641910 | AB35: =+DaneN0[[#This Row],[P]]-DaneN0[[#This Row],[Pd]] -> 1650925.24 | AC35: 4575191.28 | AD35: 4469708.01 | AE35: 1320261 | AF35: 3225582.48 | AG35: 73659.54 | AH35: 1062 | AI35: 0 | AJ35: 0
A36: 2 | B36: 5 | C36: 5 | D36: 2 | E36: G | F36: =+TEXT(DaneN0[[#This Row],[WK]],"00")&DaneN0[[#This Row],[TYPS]]&D36&TEXT(DaneN0[[#This Row],[PK]],"00") -> 02G205 | G36: =+IF(ISERROR(VLOOKUP(DaneN0[[#This Row],[KodGUS6]],LstMetropolie[],1,FALSE)),DaneN0[[#This Row],[Typ]],"T") -> G | H36: 020505 | I36: 205052 | J36: PASZOWICE | L36: 2024 | M36: 4207 | N36: 32097590.84 | O36: 27439371.87 | P36: =+DaneN0[[#This Row],[Dbs]]+DaneN0[[#This Row],[Dbd]] -> 14355883.34 | Q36: 10621079 | R36: 3734804.34 | S36: 4658218.97 | T36: 54600 | U36: 29095655.02 | V36: 24711996.23 | W36: 13078025.42 | X36: 143723.62 | Y36: 4383658.79 | Z36: 4844553.61 | AA36: 0 | AB36: =+DaneN0[[#This Row],[P]]-DaneN0[[#This Row],[Pd]] -> 4844553.61 | AC36: 273830 | AD36: 273830 | AE36: 2202450 | AF36: 2727375.64 | AG36: 61100.06 | AH36: 4793.31 | AI36: 0 | AJ36: 0
A37: 2 | B37: 5 | C37: 6 | D37: 2 | E37: G | F37: =+TEXT(DaneN0[[#This Row],[WK]],"00")&DaneN0[[#This Row],[TYPS]]&D37&TEXT(DaneN0[[#This Row],[PK]],"00") -> 02G205 | G37: =+IF(ISERROR(VLOOKUP(DaneN0[[#This Row],[KodGUS6]],LstMetropolie[],1,FALSE)),DaneN0[[#This Row],[Typ]],"T") -> G | H37: 020506 | I37: 205062 | J37: WĄDROŻE WIELKIE | L37: 2024 | M37: 3697 | N37: 45071511.07 | O37: 31747147.25 | P37: =+DaneN0[[#This Row],[Dbs]]+DaneN0[[#This Row],[Dbd]] -> 16076189.34 | Q37: 12065778 | R37: 4010411.34 | S37: 13324363.82 | T37: 14881.14 | U37: 42161876.51 | V37: 26515213.97 | W37: 12618891.05 | X37: 730259.74 | Y37: 15646662.54 | Z37: 2893284.76 | AA37: 0 | AB37: =+DaneN0[[#This Row],[P]]-DaneN0[[#This Row],[Pd]] -> 2893284.76 | AC37: 666344 | AD37: 666344 | AE37: 10349877 | AF37: 5231933.28 | AG37: 91657.62 | AH37: 43369.01 | AI37: 0 | AJ37: 0
A38: 2 | B38: 6 | C38: 1 | D38: 1 | E38: G | F38: =+TEXT(DaneN0[[#This Row],[WK]],"00")&DaneN0[[#This Row],[TYPS]]&D38&TEXT(DaneN0[[#This Row],[PK]],"00") -> 02G106 | G38: =+IF(ISERROR(VLOOKUP(DaneN0[[#This Row],[KodGUS6]],LstMetropolie[],1,FALSE)),DaneN0[[#This Row],[Typ]],"T") -> G | H38: 020601 | I38: 206011 | J38: KARPACZ | L38: 2024 | M38: 4175 | N38: 86336391.72 | O38: 62172301.36 | P38: =+DaneN0[[#This Row],[Dbs]]+DaneN0[[#This Row],[Dbd]] -> 11398071.66 | Q38: 7199391 | R38: 4198680.66 | S38: 24164090.36 | T38: 191431.56 | U38: 76925101.29 | V38: 48715843.88 | W38: 17594640.4 | X38: 409484.59 | Y38: 28209257.41 | Z38: 4806721.79 | AA38: 3000000 | AB38: =+DaneN0[[#This Row],[P]]-DaneN0[[#This Row],[Pd]] -> 1806721.79 | AC38: 4528604 | AD38: 4300000 | AE38: 8000000 | AF38: 13456457.48 | AG38: 107040.19 | AH38: 117401.13 | AI38: 0 | AJ38: 0
A39: 2 | B39: 6 | C39: 2 | D39: 1 | E39: G | F39: =+TEXT(DaneN0[[#This Row],[WK]],"00")&DaneN0[[#This Row],[TYPS]]&D39&TEXT(DaneN0[[#This Row],[PK]],"00") -> 02G106 | G39: =+IF(ISERROR(VLOOKUP(DaneN0[[#This Row],[KodGUS6]],LstMetropolie[],1,FALSE)),DaneN0[[#This Row],[Typ]],"T") -> G | H39: 020602 | I39: 206021 | J39: KOWARY | L39: 2024 | M39: 9616 | N39: 76840371.72 | O39: 64278539.41 | P39: =+DaneN0[[#This Row],[Dbs]]+DaneN0[[#This Row],[Dbd]] -> 35556951.25 | Q39: 18908527 | R39: 16648424.25 | S39: 12561832.31 | T39: 1956462.67 | U39: 73951826.05 | V39: 58626873.99 | W39: 23341625.31 | X39: 139530 | Y39: 15324952.06 | Z39: 2556765.3 | AA39: 0 | AB39: =+DaneN0[[#This Row],[P]]-DaneN0[[#This Row],[Pd]] -> 2556765.3 | AC39: 415586.6 | AD39: 0 | AE39: 3940249.41 | AF39: 5651665.42 | AG39: 4685462.89 | AH39: 2544891.54 | AI39: 0 | AJ39: 63048.54
A40: 2 | B40: 6 | C40: 3 | D40: 1 | E40: G | F40: =+TEXT(DaneN0[[#This Row],[WK]],"00")&DaneN0[[#This Row],[TYPS]]&D40&TEXT(DaneN0[[#This Row],[PK]],"00") -> 02G106 | G40: =+IF(ISERROR(VLOOKUP(DaneN0[[#This Row],[KodGUS6]],LstMetropolie[],1,FALSE)),DaneN0[[#This Row],[Typ]],"T") -> G | H40: 020603 | I40: 206031 | J40: PIECHOWICE | L40: 2024 | M40: 5725 | N40: 54113149.72 | O40: 38558835.58 | P40: =+DaneN0[[#This Row],[Dbs]]+DaneN0[[#This Row],[Dbd]] -> 12717856.72 | Q40: 5660801 | R40: 7057055.72 | S40: 15554314.14 | T40: 690470.58 | U40: 53350170.74 | V40: 37132459.26 | W40: 14752694.19 | X40: 269372.95 | Y40: 16217711.48 | Z40: 6027594.29 | AA40: 3000000 | AB40: =+DaneN0[[#This Row],[P]]-DaneN0[[#This Row],[Pd]] -> 3027594.29 | AC40: 827096.05 | AD40: 682300 | AE40: 8658400 | AF40: 1426376.32 | AG40: 74544.92 | AH40: 357051.44 | AI40: 0 | AJ40: 0
A41: 2 | B41: 6 | C41: 4 | D41: 1 | E41: G | F41: =+TEXT(DaneN0[[#This Row],[WK]],"00")&DaneN0[[#This Row],[TYPS]]&D41&TEXT(DaneN0[[#This Row],[PK]],"00") -> 02G106 | G41: =+IF(ISERROR(VLOOKUP(DaneN0[[#This Row],[KodGUS6]],LstMetropolie[],1,FALSE)),DaneN0[[#This Row],[Typ]],"T") -> G | H41: 020604 | I41: 206041 | J41: SZKLARSKA PORĘBA | L41: 2024 | M41: 5716 | N41: 76390842.59 | O41: 71742434.37 | P41: =+DaneN0[[#This Row],[Dbs]]+DaneN0[[#This Row],[Dbd]] -> 20127649 | Q41: 6732488 | R41: 13395161 | S41: 4648408.22 | T41: 3199907.15 | U41: 82530619.9 | V41: 64107736.39 | W41: 20998746.07 | X41: 827685.18 | Y41: 18422883.51 | Z41: 13611965.59 | AA41: 8000000 | AB41: =+DaneN0[[#This Row],[P]]-DaneN0[[#This Row],[Pd]] -> 5611965.59 | AC41: 2406191.46 | AD41: 2406191.46 | AE41: 13875000 | AF41: 7634697.98 | AG41: 643067.94 | AH41: 37335.57 | AI41: 0 | AJ41: 0
A42: 2 | B42: 6 | C42: 5 | D42: 2 | E42: G | F42: =+TEXT(DaneN0[[#This Row],[WK]],"00")&DaneN0[[#This Row],[TYPS]]&D42&TEXT(DaneN0[[#This Row],[PK]],"00") -> 02G206 | G42: =+IF(ISERROR(VLOOKUP(DaneN0[[#This Row],[KodGUS6]],LstMetropolie[],1,FALSE)),DaneN0[[#This Row],[Typ]],"T") -> G | H42: 020605 | I42: 206052 | J42: JANOWICE WIELKIE | L42: 2024 | M42: 4057 | N42: 38539929.73 | O42: 33918736.99 | P42: =+DaneN0[[#This Row],[Dbs]]+DaneN0[[#This Row],[Dbd]] -> 21614542.51 | Q42: 14356292 | R42: 7258250.51 | S42: 4621192.74 | T42: 644481.54 | U42: 33261893.84 | V42: 28089378.5 | W42: 13001545.97 | X42: 71763.86 | Y42: 5172515.34 | Z42: 520477.9 | AA42: 0 | AB42: =+DaneN0[[#This Row],[P]]-DaneN0[[#This Row],[Pd]] -> 520477.9 | AC42: 684000 | AD42: 684000 | AE42: 564000 | AF42: 5829358.49 | AG42: 0 | AH42: 0 | AI42: 0 | AJ42: 0
A43: 2 | B43: 6 | C43: 6 | D43: 2 | E43: G | F43: =+TEXT(DaneN0[[#This Row],[WK]],"00")&DaneN0[[#This Row],[TYPS]]&D43&TEXT(DaneN0[[#This Row],[PK]],"00") -> 02G206 | G43: =+IF(ISERROR(VLOOKUP(DaneN0[[#This Row],[KodGUS6]],LstMetropolie[],1,FALSE)),DaneN0[[#This Row],[Typ]],"T") -> G | H43: 020606 | I43: 206062 | J43: JEŻÓW SUDECKI | L43: 2024 | M43: 7943 | N43: 63444380.17 | O43: 51631931.55 | P43: =+DaneN0[[#This Row],[Dbs]]+DaneN0[[#This Row],[Dbd]] -> 20714133.86 | Q43: 13002053 | R43: 7712080.86 | S43: 11812448.62 | T43: 97901.98 | U43: 66519468.24 | V43: 38283502.63 | W43: 15250499.09 | X43: 13501.37 | Y43: 28235965.61 | Z43: 7309700.49 | AA43: 5000000 | AB43: =+DaneN0[[#This Row],[P]]-DaneN0[[#This Row],[Pd]] -> 2309700.49 | AC43: 0 | AD43: 0 | AE43: 5000000 | AF43: 13348428.92 | AG43: 62917.61 | AH43: 25082.25 | AI43: 0 | AJ43: 0
A44: 2 | B44: 6 | C44: 7 | D44: 2 | E44: G | F44: =+TEXT(DaneN0[[#This Row],[WK]],"00")&DaneN0[[#This Row],[TYPS]]&D44&TEXT(DaneN0[[#This Row],[PK]],"00") -> 02G206 | G44: =+IF(ISERROR(VLOOKUP(DaneN0[[#This Row],[KodGUS6]],LstMetropolie[],1,FALSE)),DaneN0[[#This Row],[Typ]],"T") -> G | H44: 020607 | I44: 206072 | J44: MYSŁAKOWICE | L44: 2024 | M44: 9600 | N44: 96681039.38 | O44: 83491458.75 | P44: =+DaneN0[[#This Row],[Dbs]]+DaneN0[[#This Row],[Dbd]] -> 52561726.91 | Q44: 32540129 | R44: 20021597.91 | S44: 13189580.63 | T44: 1551885.4 | U44: 84900436.94 | V44: 69403674.68 | W44: 24709864.13 | X44: 2882980.19 | Y44: 15496762.26 | Z44: 60522.78 | AA44: 0 | AB44: =+DaneN0[[#This Row],[P]]-DaneN0[[#This Row],[Pd]] -> 60522.78 | AC44: 0 | AD44: 0 | AE44: 40000000 | AF44: 14087784.07 | AG44: 291280.52 | AH44: 273251.51 | AI44: 0 | AJ44: 0
A45: 2 | B45: 6 | C45: 8 | D45: 2 | E45: G | F45: =+TEXT(DaneN0[[#This Row],[WK]],"00")&DaneN0[[#This Row],[TYPS]]&D45&TEXT(DaneN0[[#This Row],[PK]],"00") -> 02G206 | G45: =+IF(ISERROR(VLOOKUP(DaneN0[[#This Row],[KodGUS6]],LstMetropolie[],1,FALSE)),DaneN0[[#This Row],[Typ]],"T") -> G | H45: 020608 | I45: 206082 | J45: PODGÓRZYN | L45: 2024 | M45: 8137 | N45: 70999596.46 | O45: 62976990.58 | P45: =+DaneN0[[#This Row],[Dbs]]+DaneN0[[#This Row],[Dbd]] -> 28730600.49 | Q45: 18107761 | R45: 10622839.49 | S45: 8022605.88 | T45: 1872908.96 | U45: 78751879.13 | V45: 58519387.76 | W45: 25999429.99 | X45: 4144744.41 | Y45: 20232491.37 | Z45: 12232929.23 | AA45: 0 | AB45: =+DaneN0[[#This Row],[P]]-DaneN0[[#This Row],[Pd]] -> 12232929.23 | AC45: 1650000 | AD45: 1650000 | AE45: 44350000 | AF45: 4457602.82 | AG45: 0 | AH45: 70707.14 | AI45: 0 | AJ45: 0
A46: 2 | B46: 6 | C46: 9 | D46: 2 | E46: G | F46: =+TEXT(DaneN0[[#This Row],[WK]],"00")&DaneN0[[#This Row],[TYPS]]&D46&TEXT(DaneN0[[#This Row],[PK]],"00") -> 02G206 | G46: =+IF(ISERROR(VLOOKUP(DaneN0[[#This Row],[KodGUS6]],LstMetropolie[],1,FALSE)),DaneN0[[#This Row],[Typ]],"T") -> G | H46: 020609 | I46: 206092 | J46: STARA KAMIENICA | L46: 2024 | M46: 5263 | N46: 52617555.48 | O46: 41809288.49 | P46: =+DaneN0[[#This Row],[Dbs]]+DaneN0[[#This Row],[Dbd]] -> 23604110.74 | Q46: 13339862 | R46: 10264248.74 | S46: 10808266.99 | T46: 84673.13 | U46: 51320094.97 | V46: 36155236.49 | W46: 16466205.66 | X46: 1086140.61 | Y46: 15164858.48 | Z46: 6546992.12 | AA46: 2132520 | AB46: =+DaneN0[[#This Row],[P]]-DaneN0[[#This Row],[Pd]] -> 4414472.12 | AC46: 1518000 | AD46: 1518000 | AE46: 14624020 | AF46: 5654052 | AG46: 50038.46 | AH46: 81295.52 | AI46: 0 | AJ46: 0
A47: 2 | B47: 7 | C47: 1 | D47: 1 | E47: G | F47: =+TEXT(DaneN0[[#This Row],[WK]],"00")&DaneN0[[#This Row],[TYPS]]&D47&TEXT(DaneN0[[#This Row],[PK]],"00") -> 02G107 | G47: =+IF(ISERROR(VLOOKUP(DaneN0[[#This Row],[KodGUS6]],LstMetropolie[],1,FALSE)),DaneN0[[#This Row],[Typ]],"T") -> G | H47: 020701 | I47: 207011 | J47: KAMIENNA GÓRA | L47: 2024 | M47: 16942 | N47: 218844982.1 | O47: 110517924.1 | P47: =+DaneN0[[#This Row],[Dbs]]+DaneN0[[#This Row],[Dbd]] -> 59564578.8 | Q47: 36186232 | R47: 23378346.8 | S47: 108327057.9 | T47: 1609761.85 | U47: 143267977.3 | V47: 110165142.4 | W47: 46988845.59 | X47: 3698816.56 | Y47: 33102834.88 | Z47: 20275928.01 | AA47: 2820000 | AB47: =+DaneN0[[#This Row],[P]]-DaneN0[[#This Row],[Pd]] -> 17455928.01 | AC47: 5220600 | AD47: 5220600 | AE47: 49014527.61 | AF47: 352781.75 | AG47: 285201.24 | AH47: 536834.89 | AI47: 0 | AJ47: 234047.34
A48: 2 | B48: 7 | C48: 2 | D48: 2 | E48: G | F48: =+TEXT(DaneN0[[#This Row],[WK]],"00")&DaneN0[[#This Row],[TYPS]]&D48&TEXT(DaneN0[[#This Row],[PK]],"00") -> 02G207 | G48: =+IF(ISERROR(VLOOKUP(DaneN0[[#This Row],[KodGUS6]],LstMetropolie[],1,FALSE)),DaneN0[[#This Row],[Typ]],"T") -> G | H48: 020702 | I48: 207022 | J48: KAMIENNA GÓRA | L48: 2024 | M48: 8810 | N48: 76269681.83 | O48: 65176197.58 | P48: =+DaneN0[[#This Row],[Dbs]]+DaneN0[[#This Row],[Dbd]] -> 36475214.49 | Q48: 24678202 | R48: 11797012.49 | S48: 11093484.25 | T48: 1277381 | U48: 77660819.61 | V48: 56616988.43 | W48: 26549509.09 | X48: 374515.45 | Y48: 21043831.18 | Z48: 14933191.34 | AA48: 7000000 | AB48: =+DaneN0[[#This Row],[P]]-DaneN0[[#This Row],[Pd]] -> 7933191.34 | AC48: 1212558.1 | AD48: 1212558.1 | AE48: 12200232.4 | AF48: 8559209.15 | AG48: 173200 | AH48: 44205.57 | AI48: 0 | AJ48: 0
A49: 2 | B49: 7 | C49: 3 | D49: 3 | E49: G | F49: =+TEXT(DaneN0[[#This Row],[WK]],"00")&DaneN0[[#This Row],[TYPS]]&D49&TEXT(DaneN0[[#This Row],[PK]],"00") -> 02G307 | G49: =+IF(ISERROR(VLOOKUP(DaneN0[[#This Row],[KodGUS6]],LstMetropolie[],1,FALSE)),DaneN0[[#This Row],[Typ]],"T") -> G | H49: 020703 | I49: 207033 | J49: LUBAWKA | L49: 2024 | M49: 10072 | N49: 60234093.14 | O49: 55108689.51 | P49: =+DaneN0[[#This Row],[Dbs]]+DaneN0[[#This Row],[Dbd]] -> 31819374.74 | Q49: 23187629 | R49: 8631745.74 | S49: 5125403.63 | T49: 513225.8 | U49: 63477451.34 | V49: 51434186.87 | W49: 25929480.99 | X49: 528519.72 | Y49: 12043264.47 | Z49: 16249281.34 | AA49: 0 | AB49: =+DaneN0[[#This Row],[P]]-DaneN0[[#This Row],[Pd]] -> 16249281.34 | AC49: 1190000 | AD49: 1190000 | AE49: 6773440.19 | AF49: 3674502.64 | AG49: 306681.79 | AH49: 115989.82 | AI49: 0 | AJ49: 0
A50: 2 | B50: 7 | C50: 4 | D50: 2 | E50: G | F50: =+TEXT(DaneN0[[#This Row],[WK]],"00")&DaneN0[[#This Row],[TYPS]]&D50&TEXT(DaneN0[[#This Row],[PK]],"00") -> 02G207 | G50: =+IF(ISERROR(VLOOKUP(DaneN0[[#This Row],[KodGUS6]],LstMetropolie[],1,FALSE)),DaneN0[[#This Row],[Typ]],"T") -> G | H50: 020704 | I50: 207042 | J50: MARCISZÓW | L50: 2024 | M50: 4216 | N50: 36655276.47 | O50: 34218705.81 | P50: =+DaneN0[[#This Row],[Dbs]]+DaneN0[[#This Row],[Dbd]] -> 22492021.99 | Q50: 12336097 | R50: 10155924.99 | S50: 2436570.66 | T50: 245500 | U50: 33931492.85 | V50: 29845301.96 | W50: 12796984.1 | X50: 480002.68 | Y50: 4086190.89 | Z50: 4208998.02 | AA50: 0 | AB50: =+DaneN0[[#This Row],[P]]-DaneN0[[#This Row],[Pd]] -> 4208998.02 | AC50: 1244576.16 | AD50: 1244576.16 | AE50: 6531983.68 | AF50: 4373403.85 | AG50: 0 | AH50: 0 | AI50: 0 | AJ50: 0
A51: 2 | B51: 8 | C51: 1 | D51: 1 | E51: G | F51: =+TEXT(DaneN0[[#This Row],[WK]],"00")&DaneN0[[#This Row],[TYPS]]&D51&TEXT(DaneN0[[#This Row],[PK]],"00") -> 02G108 | G51: =+IF(ISERROR(VLOOKUP(DaneN0[[#This Row],[KodGUS6]],LstMetropolie[],1,FALSE)),DaneN0[[#This Row],[Typ]],"T") -> G | H51: 020801 | I51: 208011 | J51: DUSZNIKI-ZDRÓJ | L51: 2024 | M51: 3946 | N51: 44785414.34 | O51: 38000131.8 | P51: =+DaneN0[[#This Row],[Dbs]]+DaneN0[[#This Row],[Dbd]] -> 15840718.72 | Q51: 8704784 | R51: 7135934.72 | S51: 6785282.54 | T51: 546008.52 | U51: 44935880.84 | V51: 35554147.9 | W51: 16245414.42 | X51: 15725.05 | Y51: 9381732.94 | Z51: 24964953.43 | AA51: 0 | AB51: =+DaneN0[[#This Row],[P]]-DaneN0[[#This Row],[Pd]] -> 24964953.43 | AC51: 0 | AD51: 0 | AE51: 0 | AF51: 2445983.9 | AG51: 147974.94 | AH51: 132687.63 | AI51: 0 | AJ51: 0
A52: 2 | B52: 8 | C52: 2 | D52: 1 | E52: G | F52: =+TEXT(DaneN0[[#This Row],[WK]],"00")&DaneN0[[#This Row],[TYPS]]&D52&TEXT(DaneN0[[#This Row],[PK]],"00") -> 02G108 | G52: =+IF(ISERROR(VLOOKUP(DaneN0[[#This Row],[KodGUS6]],LstMetropolie[],1,FALSE)),DaneN0[[#This Row],[Typ]],"T") -> G | H52: 020802 | I52: 208021 | J52: KŁODZKO | L52: 2024 | M52: 24672 | N52: 264114676.4 | O52: 242354449.4 | P52: =+DaneN0[[#This Row],[Dbs]]+DaneN0[[#This Row],[Dbd]] -> 149405446.8 | Q52: 69106606 | R52: 80298840.77 | S52: 21760227.03 | T52: 2537688.86 | U52: 222641217.2 | V52: 199246265.4 | W52: 61833331.08 | X52: 2911091.34 | Y52: 23394951.86 | Z52: 13347567.89 | AA52: 7799124.44 | AB52: =+DaneN0[[#This Row],[P]]-DaneN0[[#This Row],[Pd]] -> 5548443.45 | AC52: 7706228 | AD52: 7706228 | AE52: 48944849.49 | AF52: 43108184.02 | AG52: 786037.53 | AH52: 105487.21 | AI52: 0 | AJ52: 0
A53: 2 | B53: 8 | C53: 3 | D53: 1 | E53: G | F53: =+TEXT(DaneN0[[#This Row],[WK]],"00")&DaneN0[[#This Row],[TYPS]]&D53&TEXT(DaneN0[[#This Row],[PK]],"00") -> 02G108 | G53: =+IF(ISERROR(VLOOKUP(DaneN0[[#This Row],[KodGUS6]],LstMetropolie[],1,FALSE)),DaneN0[[#This Row],[Typ]],"T") -> G | H53: 020803 | I53: 208031 | J53: KUDOWA-ZDRÓJ | L53: 2024 | M53: 9198 | N53: 81995290.53 | O53: 63763807.69 | P53: =+DaneN0[[#This Row],[Dbs]]+DaneN0[[#This Row],[Dbd]] -> 31320694.18 | Q53: 20963392 | R53: 10357302.18 | S53: 18231482.84 | T53: 2045004.94 | U53: 82406256.91 | V53: 58310773.51 | W53: 25987524.25 | X53: 1171385.59 | Y53: 24095483.4 | Z53: 5661976.41 | AA53: 0 | AB53: =+DaneN0[[#This Row],[P]]-DaneN0[[#This Row],[Pd]] -> 5661976.41 | AC53: 3042405.22 | AD53: 2842405.22 | AE53: 14340119.54 | AF53: 5453034.18 | AG53: 164481.98 | AH53: 22184.4 | AI53: 0 | AJ53: 27671.95
A54: 2 | B54: 8 | C54: 4 | D54: 1 | E54: G | F54: =+TEXT(DaneN0[[#This Row],[WK]],"00")&DaneN0[[#This Row],[TYPS]]&D54&TEXT(DaneN0[[#This Row],[PK]],"00") -> 02G108 | G54: =+IF(ISERROR(VLOOKUP(DaneN0[[#This Row],[KodGUS6]],LstMetropolie[],1,FALSE)),DaneN0[[#This Row],[Typ]],"T") -> G | H54: 020804 | I54: 208041 | J54: NOWA RUDA | L54: 2024 | M54: 20217 | N54: 138261886.2 | O54: 112719513.5 | P54: =+DaneN0[[#This Row],[Dbs]]+DaneN0[[#This Row],[Dbd]] -> 50301500.19 | Q54: 32926153 | R54: 17375347.19 | S54: 25542372.72 | T54: 2084755.54 | U54: 143432943.7 | V54: 114865968.1 | W54: 36290289.63 | X54: 3746344.78 | Y54: 28566975.55 | Z54: 15915592.9 | AA54: 14950000 | AB54: =+DaneN0[[#This Row],[P]]-DaneN0[[#This Row],[Pd]] -> 965592.9 | AC54: 680878.83 | AD54: 680878.83 | AE54: 60229615.84 | AF54: -2146454.68 | AG54: 376185.04 | AH54: 1285884.24 | AI54: 0 | AJ54: 1030284.75
A55: 2 | B55: 8 | C55: 5 | D55: 1 | E55: G | F55: =+TEXT(DaneN0[[#This Row],[WK]],"00")&DaneN0[[#This Row],[TYPS]]&D55&TEXT(DaneN0[[#This Row],[PK]],"00") -> 02G108 | G55: =+IF(ISERROR(VLOOKUP(DaneN0[[#This Row],[KodGUS6]],LstMetropolie[],1,FALSE)),DaneN0[[#This Row],[Typ]],"T") -> G | H55: 020805 | I55: 208051 | J55: POLANICA-ZDRÓJ | L55: 2024 | M55: 5884 | N55: 97524926.71 | O55: 49187033.89 | P55: =+DaneN0[[#This Row],[Dbs]]+DaneN0[[#This Row],[Dbd]] -> 18944675.88 | Q55: 10639547 | R55: 8305128.88 | S55: 48337892.82 | T55: 2409413.06 | U55: 89511874.09 | V55: 43700963.33 | W55: 14282928.69 | X55: 1678246.94 | Y55: 45810910.76 | Z55: 2507538.36 | AA55: 0 | AB55: =+DaneN0[[#This Row],[P]]-DaneN0[[#This Row],[Pd]] -> 2507538.36 | AC55: 8620929.5 | AD55: 8620929.5 | AE55: 21977157.94 | AF55: 5486070.56 | AG55: 599732.36 | AH55: 460505.98 | AI55: 0 | AJ55: 0
A56: 2 | B56: 8 | C56: 6 | D56: 3 | E56: G | F56: =+TEXT(DaneN0[[#This Row],[WK]],"00")&DaneN0[[#This Row],[TYPS]]&D56&TEXT(DaneN0[[#This Row],[PK]],"00") -> 02G308 | G56: =+IF(ISERROR(VLOOKUP(DaneN0[[#This Row],[KodGUS6]],LstMetropolie[],1,FALSE)),DaneN0[[#This Row],[Typ]],"T") -> G | H56: 020806 | I56: 208063 | J56: BYSTRZYCA KŁODZKA | L56: 2024 | M56: 17116 | N56: 173822610.4 | O56: 149890774.1 | P56: =+DaneN0[[#This Row],[Dbs]]+DaneN0[[#This Row],[Dbd]] -> 99154792.79 | Q56: 50320091 | R56: 48834701.79 | S56: 23931836.34 | T56: 706531.56 | U56: 167188106.9 | V56: 135365265.2 | W56: 35249874.72 | X56: 2042576.35 | Y56: 31822841.62 | Z56: 13459445.95 | AA56: 3000000 | AB56: =+DaneN0[[#This Row],[P]]-DaneN0[[#This Row],[Pd]] -> 10459445.95 | AC56: 6397000 | AD56: 6397000 | AE56: 29840000 | AF56: 14525508.8 | AG56: 89136.57 | AH56: 358307.67 | AI56: 0 | AJ56: 0
A57: 2 | B57: 8 | C57: 7 | D57: 2 | E57: G | F57: =+TEXT(DaneN0[[#This Row],[WK]],"00")&DaneN0[[#This Row],[TYPS]]&D57&TEXT(DaneN0[[#This Row],[PK]],"00") -> 02G208 | G57: =+IF(ISERROR(VLOOKUP(DaneN0[[#This Row],[KodGUS6]],LstMetropolie[],1,FALSE)),DaneN0[[#This Row],[Typ]],"T") -> G | H57: 020807 | I57: 208072 | J57: KŁODZKO | L57: 2024 | M57: 16429 | N57: 231980137.4 | O57: 210880869.2 | P57: =+DaneN0[[#This Row],[Dbs]]+DaneN0[[#This Row],[Dbd]] -> 155604285.4 | Q57: 50681833 | R57: 104922452.4 | S57: 21099268.16 | T57: 552499.93 | U57: 216644649.4 | V57: 186174017.1 | W57: 45296408.02 | X57: 2573673.65 | Y57: 30470632.31 | Z57: 9039102.46 | AA57: 8000000 | AB57: =+DaneN0[[#This Row],[P]]-DaneN0[[#This Row],[Pd]] -> 1039102.46 | AC57: 4544163.08 | AD57: 4544163.08 | AE57: 45495103.27 | AF57: 24706852.15 | AG57: 188628.52 | AH57: 173324.24 | AI57: 0 | AJ57: 0
A58: 2 | B58: 8 | C58: 8 | D58: 3 | E58: G | F58: =+TEXT(DaneN0[[#This Row],[WK]],"00")&DaneN0[[#This Row],[TYPS]]&D58&TEXT(DaneN0[[#This Row],[PK]],"00") -> 02G308 | G58: =+IF(ISERROR(VLOOKUP(DaneN0[[#This Row],[KodGUS6]],LstMetropolie[],1,FALSE)),DaneN0[[#This Row],[Typ]],"T") -> G | H58: 020808 | I58: 208083 | J58: LĄDEK-ZDRÓJ | L58: 2024 | M58: 7434 | N58: 242038132.7 | O58: 222830842.7 | P58: =+DaneN0[[#This Row],[Dbs]]+DaneN0[[#This Row],[Dbd]] -> 192439276.3 | Q58: 83021469 | R58: 109417807.3 | S58: 19207289.98 | T58: 3188558.66 | U58: 164998869.2 | V58: 146795181.6 | W58: 20339181.6 | X58: 1081705.23 | Y58: 18203687.61 | Z58: 3093795.97 | AA58: 0 | AB58: =+DaneN0[[#This Row],[P]]-DaneN0[[#This Row],[Pd]] -> 3093795.97 | AC58: 2253505.89 | AD58: 2253505.89 | AE58: 17341114.11 | AF58: 76035661.11 | AG58: 154769.93 | AH58: 0 | AI58: 0 | AJ58: 0
A59: 2 | B59: 8 | C59: 9 | D59: 2 | E59: G | F59: =+TEXT(DaneN0[[#This Row],[WK]],"00")&DaneN0[[#This Row],[TYPS]]&D59&TEXT(DaneN0[[#This Row],[PK]],"00") -> 02G208 | G59: =+IF(ISERROR(VLOOKUP(DaneN0[[#This Row],[KodGUS6]],LstMetropolie[],1,FALSE)),DaneN0[[#This Row],[Typ]],"T") -> G | H59: 020809 | I59: 208092 | J59: LEWIN KŁODZKI | L59: 2024 | M59: 1962 | N59: 29039734.47 | O59: 16734963.03 | P59: =+DaneN0[[#This Row],[Dbs]]+DaneN0[[#This Row],[Dbd]] -> 10869472.08 | Q59: 6628328 | R59: 4241144.08 | S59: 12304771.44 | T59: 197928.6 | U59: 29721721.88 | V59: 14150659.49 | W59: 6297300.57 | X59: 24111.68 | Y59: 15571062.39 | Z59: 3673795 | AA59: 2348331.29 | AB59: =+DaneN0[[#This Row],[P]]-DaneN0[[#This Row],[Pd]] -> 1325463.71 | AC59: 283516 | AD59: 283516 | AE59: 2528331.29 | AF59: 2584303.54 | AG59: 178104 | AH59: 27200 | AI59: 0 | AJ59: 0
A60: 2 | B60: 8 | C60: 10 | D60: 3 | E60: G | F60: =+TEXT(DaneN0[[#This Row],[WK]],"00")&DaneN0[[#This Row],[TYPS]]&D60&TEXT(DaneN0[[#This Row],[PK]],"00") -> 02G308 | G60: =+IF(ISERROR(VLOOKUP(DaneN0[[#This Row],[KodGUS6]],LstMetropolie[],1,FALSE)),DaneN0[[#This Row],[Typ]],"T") -> G | H60: 020810 | I60: 208103 | J60: MIĘDZYLESIE | L60: 2024 | M60: 6740 | N60: 64208299.26 | O60: 50131678.15 | P60: =+DaneN0[[#This Row],[Dbs]]+DaneN0[[#This Row],[Dbd]] -> 35017951.22 | Q60: 21457621 | R60: 13560330.22 | S60: 14076621.11 | T60: 99532.43 | U60: 71708650.6 | V60: 50179917.18 | W60: 19985819 | X60: 63322.51 | Y60: 21528733.42 | Z60: 13766933.86 | AA60: 4700000 | AB60: =+DaneN0[[#This Row],[P]]-DaneN0[[#This Row],[Pd]] -> 9066933.86 | AC60: 0 | AD60: 0 | AE60: 4700000 | AF60: -48239.03 | AG60: 423050.71 | AH60: 44146.55 | AI60: 0 | AJ60: 0
A61: 2 | B61: 8 | C61: 11 | D61: 2 | E61: G | F61: =+TEXT(DaneN0[[#This Row],[WK]],"00")&DaneN0[[#This Row],[TYPS]]&D61&TEXT(DaneN0[[#This Row],[PK]],"00") -> 02G208 | G61: =+IF(ISERROR(VLOOKUP(DaneN0[[#This Row],[KodGUS6]],LstMetropolie[],1,FALSE)),DaneN0[[#This Row],[Typ]],"T") -> G | H61: 020811 | I61: 208112 | J61: NOWA RUDA | L61: 2024 | M61: 10523 | N61: 90938445.95 | O61: 75870866.28 | P61: =+DaneN0[[#This Row],[Dbs]]+DaneN0[[#This Row],[Dbd]] -> 46878875.19 | Q61: 36315793 | R61: 10563082.19 | S61: 15067579.67 | T61: 1919517.01 | U61: 98750588.8 | V61: 70512526.59 | W61: 28020690.94 | X61: 1595847.2 | Y61: 28238062.21 | Z61: 15171761.1 | AA61: 8900000 | AB61: =+DaneN0[[#This Row],[P]]-DaneN0[[#This Row],[Pd]] -> 6271761.1 | AC61: 4247883.92 | AD61: 13982.92 | AE61: 27506331.97 | AF61: 5358339.69 | AG61: 836141.98 | AH61: 1293574.78 | AI61: 0 | AJ61: 3516.25
A62: 2 | B62: 8 | C62: 12 | D62: 3 | E62: G | F62: =+TEXT(DaneN0[[#This Row],[WK]],"00")&DaneN0[[#This Row],[TYPS]]&D62&TEXT(DaneN0[[#This Row],[PK]],"00") -> 02G308 | G62: =+IF(ISERROR(VLOOKUP(DaneN0[[#This Row],[KodGUS6]],LstMetropolie[],1,FALSE)),DaneN0[[#This Row],[Typ]],"T") -> G | H62: 020812 | I62: 208123 | J62: RADKÓW | L62: 2024 | M62: 8360 | N62: 99601064.38 | O62: 80274644.59 | P62: =+DaneN0[[#This Row],[Dbs]]+DaneN0[[#This Row],[Dbd]] -> 46303461.47 | Q62: 21726995 | R62: 24576466.47 | S62: 19326419.79 | T62: 1898851.87 | U62: 106736714.2 | V62: 75502606.86 | W62: 30396455.57 | X62: 1740326.95 | Y62: 31234107.32 | Z62: 15743049.16 | AA62: 13239603 | AB62: =+DaneN0[[#This Row],[P]]-DaneN0[[#This Row],[Pd]] -> 2503446.16 | AC62: 2112949.07 | AD62: 2072728 | AE62: 31555634.57 | AF62: 4772037.73 | AG62: 1506568.68 | AH62: 792276.1 | AI62: 0 | AJ62: 0
A63: 2 | B63: 8 | C63: 13 | D63: 3 | E63: G | F63: =+TEXT(DaneN0[[#This Row],[WK]],"00")&DaneN0[[#This Row],[TYPS]]&D63&TEXT(DaneN0[[#This Row],[PK]],"00") -> 02G308 | G63: =+IF(ISERROR(VLOOKUP(DaneN0[[#This Row],[KodGUS6]],LstMetropolie[],1,FALSE)),DaneN0[[#This Row],[Typ]],"T") -> G | H63: 020813 | I63: 208133 | J63: STRONIE ŚLĄSKIE | L63: 2024 | M63: 6721 | N63: 170244913.5 | O63: 156645469.8 | P63: =+DaneN0[[#This Row],[Dbs]]+DaneN0[[#This Row],[Dbd]] -> 131248597 | Q63: 45030332 | R63: 86218265.04 | S63: 13599443.71 | T63: 141472.37 | U63: 144833980.2 | V63: 119112326.9 | W63: 17254708.95 | X63: 487925.76 | Y63: 25721653.35 | Z63: 4628391.2 | AA63: 0 | AB63: =+DaneN0[[#This Row],[P]]-DaneN0[[#This Row],[Pd]] -> 4628391.2 | AC63: 1044253.2 | AD63: 1044253.2 | AE63: 7001171.92 | AF63: 37533142.95 | AG63: 230229.72 | AH63: 0 | AI63: 0 | AJ63: 0
A64: 2 | B64: 8 | C64: 14 | D64: 3 | E64: G | F64: =+TEXT(DaneN0[[#This Row],[WK]],"00")&DaneN0[[#This Row],[TYPS]]&D64&TEXT(DaneN0[[#This Row],[PK]],"00") -> 02G308 | G64: =+IF(ISERROR(VLOOKUP(DaneN0[[#This Row],[KodGUS6]],LstMetropolie[],1,FALSE)),DaneN0[[#This Row],[Typ]],"T") -> G | H64: 020814 | I64: 208143 | J64: SZCZYTNA | L64: 2024 | M64: 6839 | N64: 54795998.17 | O64: 41228615.03 | P64: =+DaneN0[[#This Row],[Dbs]]+DaneN0[[#This Row],[Dbd]] -> 24831489.49 | Q64: 16745032 | R64: 8086457.49 | S64: 13567383.14 | T64: 1242505.51 | U64: 55977461.08 | V64: 40890559.71 | W64: 17005895.2 | X64: 818427.11 | Y64: 15086901.37 | Z64: 6920103.1 | AA64: 5687734.89 | AB64: =+DaneN0[[#This Row],[P]]-DaneN0[[#This Row],[Pd]] -> 1232368.21 | AC64: 1601061.35 | AD64: 1601061.35 | AE64: 14836042.61 | AF64: 338055.32 | AG64: 529113.12 | AH64: 5375.48 | AI64: 0 | AJ64: 0
A65: 2 | B65: 9 | C65: 1 | D65: 1 | E65: G | F65: =+TEXT(DaneN0[[#This Row],[WK]],"00")&DaneN0[[#This Row],[TYPS]]&D65&TEXT(DaneN0[[#This Row],[PK]],"00") -> 02G109 | G65: =+IF(ISERROR(VLOOKUP(DaneN0[[#This Row],[KodGUS6]],LstMetropolie[],1,FALSE)),DaneN0[[#This Row],[Typ]],"T") -> G | H65: 020901 | I65: 209011 | J65: CHOJNÓW | L65: 2024 | M65: 12289 | N65: 71481924.15 | O65: 66379835.83 | P65: =+DaneN0[[#This Row],[Dbs]]+DaneN0[[#This Row],[Dbd]] -> 30018358.67 | Q65: 20304608 | R65: 9713750.67 | S65: 5102088.32 | T65: 2813314.07 | U65: 79306640.7 | V65: 71829293.5 | W65: 32129644.98 | X65: 150947.44 | Y65: 7477347.2 | Z65: 16664462.23 | AA65: 0 | AB65: =+DaneN0[[#This Row],[P]]-DaneN0[[#This Row],[Pd]] -> 16664462.23 | AC65: 270948 | AD65: 270948 | AE65: 2507412.43 | AF65: -5449457.67 | AG65: 0 | AH65: 0 | AI65: 0 | AJ65: 358625.7
A66: 2 | B66: 9 | C66: 2 | D66: 2 | E66: G | F66: =+TEXT(DaneN0[[#This Row],[WK]],"00")&DaneN0[[#This Row],[TYPS]]&D66&TEXT(DaneN0[[#This Row],[PK]],"00") -> 02G209 | G66: =+IF(ISERROR(VLOOKUP(DaneN0[[#This Row],[KodGUS6]],LstMetropolie[],1,FALSE)),DaneN0[[#This Row],[Typ]],"T") -> G | H66: 020902 | I66: 209022 | J66: CHOJNÓW | L66: 2024 | M66: 9456 | N66: 66219515.77 | O66: 57422576.77 | P66: =+DaneN0[[#This Row],[Dbs]]+DaneN0[[#This Row],[Dbd]] -> 25648169.38 | Q66: 16556878 | R66: 9091291.38 | S66: 8796939 | T66: 376270.85 | U66: 85700932.97 | V66: 61453505.25 | W66: 30881271.52 | X66: 1064562.93 | Y66: 24247427.72 | Z66: 24964769.41 | AA66: 21370140.87 | AB66: =+DaneN0[[#This Row],[P]]-DaneN0[[#This Row],[Pd]] -> 3594628.54 | AC66: 3003301.9 | AD66: 2954301.9 | AE66: 29312816.79 | AF66: -4030928.48 | AG66: 56816.6 | AH66: 179901.74 | AI66: 0 | AJ66: 0
A67: 2 | B67: 9 | C67: 3 | D67: 2 | E67: G | F67: =+TEXT(DaneN0[[#This Row],[WK]],"00")&DaneN0[[#This Row],[TYPS]]&D67&TEXT(DaneN0[[#This Row],[PK]],"00") -> 02G209 | G67: =+IF(ISERROR(VLOOKUP(DaneN0[[#This Row],[KodGUS6]],LstMetropolie[],1,FALSE)),DaneN0[[#This Row],[Typ]],"T") -> G | H67: 020903 | I67: 209032 | J67: KROTOSZYCE | L67: 2024 | M67: 3340 | N67: 30119189.18 | O67: 23644959.66 | P67: =+DaneN0[[#This Row],[Dbs]]+DaneN0[[#This Row],[Dbd]] -> 9680614.16 | Q67: 6150762 | R67: 3529852.16 | S67: 6474229.52 | T67: 113450.47 | U67: 30119159.46 | V67: 22294153.24 | W67: 9961123.24 | X67: 408674.22 | Y67: 7825006.22 | Z67: 1955718.73 | AA67: 0 | AB67: =+DaneN0[[#This Row],[P]]-DaneN0[[#This Row],[Pd]] -> 1955718.73 | AC67: 300000.55 | AD67: 300000.55 | AE67: 5392654.63 | AF67: 1350806.42 | AG67: 280363.07 | AH67: 439323.31 | AI67: 0 | AJ67: 0
A68: 2 | B68: 9 | C68: 4 | D68: 2 | E68: G | F68: =+TEXT(DaneN0[[#This Row],[WK]],"00")&DaneN0[[#This Row],[TYPS]]&D68&TEXT(DaneN0[[#This Row],[PK]],"00") -> 02G209 | G68: =+IF(ISERROR(VLOOKUP(DaneN0[[#This Row],[KodGUS6]],LstMetropolie[],1,FALSE)),DaneN0[[#This Row],[Typ]],"T") -> G | H68: 020904 | I68: 209042 | J68: KUNICE | L68: 2024 | M68: 7797 | N68: 60247155.3 | O68: 53156721.28 | P68: =+DaneN0[[#This Row],[Dbs]]+DaneN0[[#This Row],[Dbd]] -> 18810454.44 | Q68: 12701936 | R68: 6108518.44 | S68: 7090434.02 | T68: 432100 | U68: 59419017.02 | V68: 49164374.1 | W68: 23595931.75 | X68: 779207.72 | Y68: 10254642.92 | Z68: 7807101.5 | AA68: 6500000 | AB68: =+DaneN0[[#This Row],[P]]-DaneN0[[#This Row],[Pd]] -> 1307101.5 | AC68: 2100000 | AD68: 2100000 | AE68: 16225700 | AF68: 3992347.18 | AG68: 11463.77 | AH68: 14000 | AI68: 0 | AJ68: 0
A69: 2 | B69: 9 | C69: 5 | D69: 2 | E69: G | F69: =+TEXT(DaneN0[[#This Row],[WK]],"00")&DaneN0[[#This Row],[TYPS]]&D69&TEXT(DaneN0[[#This Row],[PK]],"00") -> 02G209 | G69: =+IF(ISERROR(VLOOKUP(DaneN0[[#This Row],[KodGUS6]],LstMetropolie[],1,FALSE)),DaneN0[[#This Row],[Typ]],"T") -> G | H69: 020905 | I69: 209052 | J69: LEGNICKIE POLE | L69: 2024 | M69: 5345 | N69: 61492432.9 | O69: 50092008.98 | P69: =+DaneN0[[#This Row],[Dbs]]+DaneN0[[#This Row],[Dbd]] -> 16798152.67 | Q69: 11168649 | R69: 5629503.67 | S69: 11400423.92 | T69: 64885 | U69: 66281756.1 | V69: 46408774.75 | W69: 18350299.28 | X69: 789083.29 | Y69: 19872981.35 | Z69: 10722517.51 | AA69: 9000000 | AB69: =+DaneN0[[#This Row],[P]]-DaneN0[[#This Row],[Pd]] -> 1722517.51 | AC69: 1343577.13 | AD69: 1343577.13 | AE69: 15729450.15 | AF69: 3683234.23 | AG69: 340533 | AH69: 11884.32 | AI69: 0 | AJ69: 0
A70: 2 | B70: 9 | C70: 6 | D70: 2 | E70: G | F70: =+TEXT(DaneN0[[#This Row],[WK]],"00")&DaneN0[[#This Row],[TYPS]]&D70&TEXT(DaneN0[[#This Row],[PK]],"00") -> 02G209 | G70: =+IF(ISERROR(VLOOKUP(DaneN0[[#This Row],[KodGUS6]],LstMetropolie[],1,FALSE)),DaneN0[[#This Row],[Typ]],"T") -> G | H70: 020906 | I70: 209062 | J70: MIŁKOWICE | L70: 2024 | M70: 7340 | N70: 55580894.56 | O70: 49226334.69 | P70: =+DaneN0[[#This Row],[Dbs]]+DaneN0[[#This Row],[Dbd]] -> 18517844.34 | Q70: 11903282 | R70: 6614562.34 | S70: 6354559.87 | T70: 373117.25 | U70: 56354411.19 | V70: 42351000.95 | W70: 15624038.96 | X70: 535296.18 | Y70: 14003410.24 | Z70: 16074633.75 | AA70: 2800000 | AB70: =+DaneN0[[#This Row],[P]]-DaneN0[[#This Row],[Pd]] -> 13274633.75 | AC70: 2442000 | AD70: 2442000 | AE70: 9510000 | AF70: 6875333.74 | AG70: 165441.01 | AH70: 118824.84 | AI70: 0 | AJ70: 0
A71: 2 | B71: 9 | C71: 7 | D71: 3 | E71: G | F71: =+TEXT(DaneN0[[#This Row],[WK]],"00")&DaneN0[[#This Row],[TYPS]]&D71&TEXT(DaneN0[[#This Row],[PK]],"00") -> 02G309 | G71: =+IF(ISERROR(VLOOKUP(DaneN0[[#This Row],[KodGUS6]],LstMetropolie[],1,FALSE)),DaneN0[[#This Row],[Typ]],"T") -> G | H71: 020907 | I71: 209073 | J71: PROCHOWICE | L71: 2024 | M71: 7100 | N71: 63381435.96 | O71: 46832819.54 | P71: =+DaneN0[[#This Row],[Dbs]]+DaneN0[[#This Row],[Dbd]] -> 20036034.82 | Q71: 12942076 | R71: 7093958.82 | S71: 16548616.42 | T71: 1312001.4 | U71: 69966616.1 | V71: 46774289.69 | W71: 20475099.99 | X71: 1665525.15 | Y71: 23192326.41 | Z71: 13253741.05 | AA71: 7900000 | AB71: =+DaneN0[[#This Row],[P]]-DaneN0[[#This Row],[Pd]] -> 5353741.05 | AC71: 2150484 | AD71: 2150484 | AE71: 29213213.18 | AF71: 58529.85 | AG71: 616438.58 | AH71: 227016.98 | AI71: 0 | AJ71: 2939.18
A72: 2 | B72: 9 | C72: 8 | D72: 2 | E72: G | F72: =+TEXT(DaneN0[[#This Row],[WK]],"00")&DaneN0[[#This Row],[TYPS]]&D72&TEXT(DaneN0[[#This Row],[PK]],"00") -> 02G209 | G72: =+IF(ISERROR(VLOOKUP(DaneN0[[#This Row],[KodGUS6]],LstMetropolie[],1,FALSE)),DaneN0[[#This Row],[Typ]],"T") -> G | H72: 020908 | I72: 209082 | J72: RUJA | L72: 2024 | M72: 2401 | N72: 29304384.72 | O72: 15904675.79 | P72: =+DaneN0[[#This Row],[Dbs]]+DaneN0[[#This Row],[Dbd]] -> 8592816.44 | Q72: 5336839 | R72: 3255977.44 | S72: 13399708.93 | T72: 140156.1 | U72: 30275428.03 | V72: 15226185.4 | W72: 5591412.37 | X72: 52046.96 | Y72: 15049242.63 | Z72: 3262032.79 | AA72: 0 | AB72: =+DaneN0[[#This Row],[P]]-DaneN0[[#This Row],[Pd]] -> 3262032.79 | AC72: 397371 | AD72: 397371 | AE72: 914129 | AF72: 678490.39 | AG72: 60074.4 | AH72: 73830 | AI72: 0 | AJ72: 0
A73: 2 | B73: 10 | C73: 1 | D73: 1 | E73: G | F73: =+TEXT(DaneN0[[#This Row],[WK]],"00")&DaneN0[[#This Row],[TYPS]]&D73&TEXT(DaneN0[[#This Row],[PK]],"00") -> 02G110 | G73: =+IF(ISERROR(VLOOKUP(DaneN0[[#This Row],[KodGUS6]],LstMetropolie[],1,FALSE)),DaneN0[[#This Row],[Typ]],"T") -> G | H73: =+TEXT(A73,"00")&TEXT(B73,"00")&TEXT(C73,"00") -> 021001 | I73: 210011 | J73: LUBAŃ | L73: =+Rok -> 2024 | M73: 19407 | N73: 139221785.9 | O73: 117841634.8 | P73: =+DaneN0[[#This Row],[Dbs]]+DaneN0[[#This Row],[Dbd]] -> 52113558.63 | Q73: 32246614 | R73: 19866944.63 | S73: 21380151.13 | T73: 958867.58 | U73: 139879718.2 | V73: 109952801.3 | W73: 49682640.85 | X73: 2337414.44 | Y73: 29926916.85 | Z73: 14062734.48 | AA73: 10000000 | AB73: =+DaneN0[[#This Row],[P]]-DaneN0[[#This Row],[Pd]] -> 4062734.48 | AC73: 1914168 | AD73: 1914168 | AE73: 41212248.58 | AF73: 7888833.47 | AG73: 654833.06 | AH73: 91812.42 | AI73: 0 | AJ73: 11248.58
A74: 2 | B74: 10 | C74: 2 | D74: 1 | E74: G | F74: =+TEXT(DaneN0[[#This Row],[WK]],"00")&DaneN0[[#This Row],[TYPS]]&D74&TEXT(DaneN0[[#This Row],[PK]],"00") -> 02G110 | G74: =+IF(ISERROR(VLOOKUP(DaneN0[[#This Row],[KodGUS6]],LstMetropolie[],1,FALSE)),DaneN0[[#This Row],[Typ]],"T") -> G | H74: 021002 | I74: 210021 | J74: ŚWIERADÓW-ZDRÓJ | L74: 2024 | M74: 3936 | N74: 61847772.03 | O74: 47044437.46 | P74: =+DaneN0[[#This Row],[Dbs]]+DaneN0[[#This Row],[Dbd]] -> 18961667.4 | Q74: 10271494 | R74: 8690173.4 | S74: 14803334.57 | T74: 929666.32 | U74: 59917131.52 | V74: 44521014.8 | W74: 18258714.93 | X74: 1605590.82 | Y74: 15396116.72 | Z74: 5865358.88 | AA74: 4500000 | AB74: =+DaneN0[[#This Row],[P]]-DaneN0[[#This Row],[Pd]] -> 1365358.88 | AC74: 3700000 | AD74: 3700000 | AE74: 24160000 | AF74: 2523422.66 | AG74: 0 | AH74: 0 | AI74: 0 | AJ74: 0
A75: 2 | B75: 10 | C75: 3 | D75: 3 | E75: G | F75: =+TEXT(DaneN0[[#This Row],[WK]],"00")&DaneN0[[#This Row],[TYPS]]&D75&TEXT(DaneN0[[#This Row],[PK]],"00") -> 02G310 | G75: =+IF(ISERROR(VLOOKUP(DaneN0[[#This Row],[KodGUS6]],LstMetropolie[],1,FALSE)),DaneN0[[#This Row],[Typ]],"T") -> G | H75: 021003 | I75: 210033 | J75: LEŚNA | L75: 2024 | M75: 9214 | N75: 71325627.35 | O75: 57591976.95 | P75: =+DaneN0[[#This Row],[Dbs]]+DaneN0[[#This Row],[Dbd]] -> 36766913.92 | Q75: 25692793 | R75: 11074120.92 | S75: 13733650.4 | T75: 503755.08 | U75: 74317378.48 | V75: 56464792.2 | W75: 24787260.38 | X75: 1178866.37 | Y75: 17852586.28 | Z75: 10529375.47 | AA75: 8147624.34 | AB75: =+DaneN0[[#This Row],[P]]-DaneN0[[#This Row],[Pd]] -> 2381751.13 | AC75: 7370000 | AD75: 7370000 | AE75: 16522290.23 | AF75: 1127184.75 | AG75: 9847.63 | AH75: 2890 | AI75: 0 | AJ75: 4665.89
A76: 2 | B76: 10 | C76: 4 | D76: 2 | E76: G | F76: =+TEXT(DaneN0[[#This Row],[WK]],"00")&DaneN0[[#This Row],[TYPS]]&D76&TEXT(DaneN0[[#This Row],[PK]],"00") -> 02G210 | G76: =+IF(ISERROR(VLOOKUP(DaneN0[[#This Row],[KodGUS6]],LstMetropolie[],1,FALSE)),DaneN0[[#This Row],[Typ]],"T") -> G | H76: 021004 | I76: 210042 | J76: LUBAŃ | L76: 2024 | M76: 6462 | N76: 46915091.47 | O76: 42295911.92 | P76: =+DaneN0[[#This Row],[Dbs]]+DaneN0[[#This Row],[Dbd]] -> 22890319.54 | Q76: 15401859 | R76: 7488460.54 | S76: 4619179.55 | T76: 548188.93 | U76: 48301722.38 | V76: 39408052.16 | W76: 19700810.56 | X76: 299882.12 | Y76: 8893670.22 | Z76: 7313677.38 | AA76: 0 | AB76: =+DaneN0[[#This Row],[P]]-DaneN0[[#This Row],[Pd]] -> 7313677.38 | AC76: 869301 | AD76: 869301 | AE76: 4030956.39 | AF76: 2887859.76 | AG76: 28102.52 | AH76: 0 | AI76: 0 | AJ76: 7168.39
A77: 2 | B77: 10 | C77: 5 | D77: 3 | E77: G | F77: =+TEXT(DaneN0[[#This Row],[WK]],"00")&DaneN0[[#This Row],[TYPS]]&D77&TEXT(DaneN0[[#This Row],[PK]],"00") -> 02G310 | G77: =+IF(ISERROR(VLOOKUP(DaneN0[[#This Row],[KodGUS6]],LstMetropolie[],1,FALSE)),DaneN0[[#This Row],[Typ]],"T") -> G | H77: 021005 | I77: 210053 | J77: OLSZYNA | L77: 2024 | M77: 6257 | N77: 44095845.36 | O77: 39299641.79 | P77: =+DaneN0[[#This Row],[Dbs]]+DaneN0[[#This Row],[Dbd]] -> 22578073.28 | Q77: 13363400 | R77: 9214673.28 | S77: 4796203.57 | T77: 810615.89 | U77: 42697538.94 | V77: 34898984.93 | W77: 16461946.83 | X77: 66302.24 | Y77: 7798554.01 | Z77: 7815642.09 | AA77: 2590000 | AB77: =+DaneN0[[#This Row],[P]]-DaneN0[[#This Row],[Pd]] -> 5225642.09 | AC77: 1190887 | AD77: 443887 | AE77: 4824022.88 | AF77: 4400656.86 | AG77: 1215692.1 | AH77: 291701.08 | AI77: 1271.52 | AJ77: 0
A78: 2 | B78: 10 | C78: 6 | D78: 2 | E78: G | F78: =+TEXT(DaneN0[[#This Row],[WK]],"00")&DaneN0[[#This Row],[TYPS]]&D78&TEXT(DaneN0[[#This Row],[PK]],"00") -> 02G210 | G78: =+IF(ISERROR(VLOOKUP(DaneN0[[#This Row],[KodGUS6]],LstMetropolie[],1,FALSE)),DaneN0[[#This Row],[Typ]],"T") -> G | H78: 021006 | I78: 210062 | J78: PLATERÓWKA | L78: 2024 | M78: 1507 | N78: 17754885.54 | O78: 10733341.12 | P78: =+DaneN0[[#This Row],[Dbs]]+DaneN0[[#This Row],[Dbd]] -> 5365853.06 | Q78: 3799532 | R78: 1566321.06 | S78: 7021544.42 | T78: 41194.45 | U78: 18232103.05 | V78: 9691396.05 | W78: 5517161.59 | X78: 6867.6 | Y78: 8540707 | Z78: 1348381.24 | AA78: 0 | AB78: =+DaneN0[[#This Row],[P]]-DaneN0[[#This Row],[Pd]] -> 1348381.24 | AC78: 50000 | AD78: 50000 | AE78: 60000 | AF78: 1041945.07 | AG78: 54341.55 | AH78: 50292.44 | AI78: 0 | AJ78: 0
A79: 2 | B79: 10 | C79: 7 | D79: 2 | E79: G | F79: =+TEXT(DaneN0[[#This Row],[WK]],"00")&DaneN0[[#This Row],[TYPS]]&D79&TEXT(DaneN0[[#This Row],[PK]],"00") -> 02G210 | G79: =+IF(ISERROR(VLOOKUP(DaneN0[[#This Row],[KodGUS6]],LstMetropolie[],1,FALSE)),DaneN0[[#This Row],[Typ]],"T") -> G | H79: 021007 | I79: 210072 | J79: SIEKIERCZYN | L79: 2024 | M79: 4388 | N79: 32818280.49 | O79: 28485664.1 | P79: =+DaneN0[[#This Row],[Dbs]]+DaneN0[[#This Row],[Dbd]] -> 15526488.6 | Q79: 10439202 | R79: 5087286.6 | S79: 4332616.39 | T79: 492779.32 | U79: 34426475.3 | V79: 26416410.39 | W79: 12810683.01 | X79: 135316.93 | Y79: 8010064.91 | Z79: 3549586.74 | AA79: 1322108 | AB79: =+DaneN0[[#This Row],[P]]-DaneN0[[#This Row],[Pd]] -> 2227478.74 | AC79: 514000 | AD79: 514000 | AE79: 2982508 | AF79: 2069253.71 | AG79: 87330 | AH79: 8000 | AI79: 0 | AJ79: 0
A80: 2 | B80: 11 | C80: 1 | D80: 1 | E80: G | F80: =+TEXT(DaneN0[[#This Row],[WK]],"00")&DaneN0[[#This Row],[TYPS]]&D80&TEXT(DaneN0[[#This Row],[PK]],"00") -> 02G111 | G80: =+IF(ISERROR(VLOOKUP(DaneN0[[#This Row],[KodGUS6]],LstMetropolie[],1,FALSE)),DaneN0[[#This Row],[Typ]],"T") -> G | H80: 021101 | I80: 211011 | J80: LUBIN | L80: 2024 | M80: 67155 | N80: 597055697.6 | O80: 544088314.3 | P80: =+DaneN0[[#This Row],[Dbs]]+DaneN0[[#This Row],[Dbd]] -> 159644784.9 | Q80: 94724833 | R80: 64919951.87 | S80: 52967383.37 | T80: 3353406.89 | U80: 566991319.5 | V80: 454219476.7 | W80: 166756081.9 | X80: 12663239.09 | Y80: 112771842.8 | Z80: 36465854.09 | AA80: 0 | AB80: =+DaneN0[[#This Row],[P]]-DaneN0[[#This Row],[Pd]] -> 36465854.09 | AC80: 14499999.88 | AD80: 14499999.88 | AE80: 178000001.8 | AF80: 89868837.53 | AG80: 1868614.73 | AH80: 2108741.77 | AI80: 228422.18 | AJ80: 0
A81: 2 | B81: 11 | C81: 2 | D81: 2 | E81: G | F81: =+TEXT(DaneN0[[#This Row],[WK]],"00")&DaneN0[[#This Row],[TYPS]]&D81&TEXT(DaneN0[[#This Row],[PK]],"00") -> 02G211 | G81: =+IF(ISERROR(VLOOKUP(DaneN0[[#This Row],[KodGUS6]],LstMetropolie[],1,FALSE)),DaneN0[[#This Row],[Typ]],"T") -> G | H81: 021102 | I81: 211022 | J81: LUBIN | L81: 2024 | M81: 18674 | N81: 166397118.1 | O81: 139215354.8 | P81: =+DaneN0[[#This Row],[Dbs]]+DaneN0[[#This Row],[Dbd]] -> 29647088.77 | Q81: 17116710 | R81: 12530378.77 | S81: 27181763.26 | T81: 2148178.85 | U81: 161395612.5 | V81: 122804041.5 | W81: 39293952.26 | X81: 2572556.47 | Y81: 38591570.94 | Z81: 9357525.62 | AA81: 0 | AB81: =+DaneN0[[#This Row],[P]]-DaneN0[[#This Row],[Pd]] -> 9357525.62 | AC81: 3409161.6 | AD81: 3409161.6 | AE81: 34928132.61 | AF81: 16411313.26 | AG81: 502323.04 | AH81: 276043.45 | AI81: 0 | AJ81: 1486.21
A82: 2 | B82: 11 | C82: 3 | D82: 2 | E82: G | F82: =+TEXT(DaneN0[[#This Row],[WK]],"00")&DaneN0[[#This Row],[TYPS]]&D82&TEXT(DaneN0[[#This Row],[PK]],"00") -> 02G211 | G82: =+IF(ISERROR(VLOOKUP(DaneN0[[#This Row],[KodGUS6]],LstMetropolie[],1,FALSE)),DaneN0[[#This Row],[Typ]],"T") -> G | H82: 021103 | I82: 211032 | J82: RUDNA | L82: 2024 | M82: 7404 | N82: 117538865.9 | O82: 99688526.38 | P82: =+DaneN0[[#This Row],[Dbs]]+DaneN0[[#This Row],[Dbd]] -> 20327127.77 | Q82: 11566534 | R82: 8760593.77 | S82: 17850339.53 | T82: 1048393.63 | U82: 121042707.1 | V82: 88199949.35 | W82: 33387749.1 | X82: 0 | Y82: 32842757.76 | Z82: 44108717.81 | AA82: 0 | AB82: =+DaneN0[[#This Row],[P]]-DaneN0[[#This Row],[Pd]] -> 44108717.81 | AC82: 0 | AD82: 0 | AE82: 0 | AF82: 11488577.03 | AG82: 335260.57 | AH82: 60024.34 | AI82: 0 | AJ82: 0
A83: 2 | B83: 11 | C83: 4 | D83: 3 | E83: G | F83: =+TEXT(DaneN0[[#This Row],[WK]],"00")&DaneN0[[#This Row],[TYPS]]&D83&TEXT(DaneN0[[#This Row],[PK]],"00") -> 02G311 | G83: =+IF(ISERROR(VLOOKUP(DaneN0[[#This Row],[KodGUS6]],LstMetropolie[],1,FALSE)),DaneN0[[#This Row],[Typ]],"T") -> G | H83: 021104 | I83: 211043 | J83: ŚCINAWA | L83: 2024 | M83: 9345 | N83: 79552487.4 | O83: 61474269.97 | P83: =+DaneN0[[#This Row],[Dbs]]+DaneN0[[#This Row],[Dbd]] -> 28550167.22 | Q83: 17355968 | R83: 11194199.22 | S83: 18078217.43 | T83: 557140.77 | U83: 77827383.43 | V83: 63357120.96 | W83: 22988162.71 | X83: 6050408.02 | Y83: 14470262.47 | Z83: 24303133.09 | AA83: 12032299.77 | AB83: =+DaneN0[[#This Row],[P]]-DaneN0[[#This Row],[Pd]] -> 12270833.32 | AC83: 21032810 | AD83: 21032810 | AE83: 84539159.6 | AF83: -1882850.99 | AG83: 301811.29 | AH83: 154950.5 | AI83: 0 | AJ83: 1469.1
A84: 2 | B84: 12 | C84: 1 | D84: 3 | E84: G | F84: =+TEXT(DaneN0[[#This Row],[WK]],"00")&DaneN0[[#This Row],[TYPS]]&D84&TEXT(DaneN0[[#This Row],[PK]],"00") -> 02G312 | G84: =+IF(ISERROR(VLOOKUP(DaneN0[[#This Row],[KodGUS6]],LstMetropolie[],1,FALSE)),DaneN0[[#This Row],[Typ]],"T") -> G | H84: 021201 | I84: 212013 | J84: GRYFÓW ŚLĄSKI | L84: 2024 | M84: 9034 | N84: 65548029.96 | O84: 51353400.7 | P84: =+DaneN0[[#This Row],[Dbs]]+DaneN0[[#This Row],[Dbd]] -> 28558782.1 | Q84: 16364947 | R84: 12193835.1 | S84: 14194629.26 | T84: 393301.4 | U84: 64755275.03 | V84: 46429208.74 | W84: 19596822.58 | X84: 517013.51 | Y84: 18326066.29 | Z84: 9778365.14 | AA84: 4300000 | AB84: =+DaneN0[[#This Row],[P]]-DaneN0[[#This Row],[Pd]] -> 5478365.14 | AC84: 700000 | AD84: 700000 | AE84: 11050562.14 | AF84: 4924191.96 | AG84: 774500 | AH84: 248208.15 | AI84: 0 | AJ84: 270562.14
A85: 2 | B85: 12 | C85: 2 | D85: 3 | E85: G | F85: =+TEXT(DaneN0[[#This Row],[WK]],"00")&DaneN0[[#This Row],[TYPS]]&D85&TEXT(DaneN0[[#This Row],[PK]],"00") -> 02G312 | G85: =+IF(ISERROR(VLOOKUP(DaneN0[[#This Row],[KodGUS6]],LstMetropolie[],1,FALSE)),DaneN0[[#This Row],[Typ]],"T") -> G | H85: 021202 | I85: 212023 | J85: LUBOMIERZ | L85: 2024 | M85: 5609 | N85: 59648560.9 | O85: 45926488.89 | P85: =+DaneN0[[#This Row],[Dbs]]+DaneN0[[#This Row],[Dbd]] -> 35264384.92 | Q85: 27158821 | R85: 8105563.92 | S85: 13722072.01 | T85: 25285.8 | U85: 58791602.46 | V85: 39013035.87 | W85: 19887068.55 | X85: 885687.65 | Y85: 19778566.59 | Z85: 8457193.52 | AA85: 6278970 | AB85: =+DaneN0[[#This Row],[P]]-DaneN0[[#This Row],[Pd]] -> 2178223.52 | AC85: 938692 | AD85: 938692 | AE85: 16779708 | AF85: 6913453.02 | AG85: 403780.51 | AH85: 0 | AI85: 0 | AJ85: 0
A86: 2 | B86: 12 | C86: 3 | D86: 3 | E86: G | F86: =+TEXT(DaneN0[[#This Row],[WK]],"00")&DaneN0[[#This Row],[TYPS]]&D86&TEXT(DaneN0[[#This Row],[PK]],"00") -> 02G312 | G86: =+IF(ISERROR(VLOOKUP(DaneN0[[#This Row],[KodGUS6]],LstMetropolie[],1,FALSE)),DaneN0[[#This Row],[Typ]],"T") -> G | H86: 021203 | I86: 212033 | J86: LWÓWEK ŚLĄSKI | L86: 2024 | M86: 15968 | N86: 109376047.2 | O86: 96154240.74 | P86: =+DaneN0[[#This Row],[Dbs]]+DaneN0[[#This Row],[Dbd]] -> 48687358.46 | Q86: 30138802 | R86: 18548556.46 | S86: 13221806.45 | T86: 802869.09 | U86: 102614191.9 | V86: 87471508.21 | W86: 38206551.45 | X86: 1158430.29 | Y86: 15142683.71 | Z86: 4090605.37 | AA86: 0 | AB86: =+DaneN0[[#This Row],[P]]-DaneN0[[#This Row],[Pd]] -> 4090605.37 | AC86: 3380000 | AD86: 3380000 | AE86: 17005000 | AF86: 8682732.53 | AG86: 199623.86 | AH86: 326321.22 | AI86: 0 | AJ86: 0
A87: 2 | B87: 12 | C87: 4 | D87: 3 | E87: G | F87: =+TEXT(DaneN0[[#This Row],[WK]],"00")&DaneN0[[#This Row],[TYPS]]&D87&TEXT(DaneN0[[#This Row],[PK]],"00") -> 02G312 | G87: =+IF(ISERROR(VLOOKUP(DaneN0[[#This Row],[KodGUS6]],LstMetropolie[],1,FALSE)),DaneN0[[#This Row],[Typ]],"T") -> G | H87: 021204 | I87: 212043 | J87: MIRSK | L87: 2024 | M87: 8113 | N87: 62163871.56 | O87: 51393737.06 | P87: =+DaneN0[[#This Row],[Dbs]]+DaneN0[[#This Row],[Dbd]] -> 32050618.1 | Q87: 21021033 | R87: 11029585.1 | S87: 10770134.5 | T87: 716721.7 | U87: 59500552.6 | V87: 44258521.56 | W87: 16335242.64 | X87: 504789.56 | Y87: 15242031.04 | Z87: 6870375.82 | AA87: 0 | AB87: =+DaneN0[[#This Row],[P]]-DaneN0[[#This Row],[Pd]] -> 6870375.82 | AC87: 1540724.96 | AD87: 1540724.96 | AE87: 8813981.15 | AF87: 7135215.5 | AG87: 710463.06 | AH87: 121919.25 | AI87: 0 | AJ87: 41452.99
A88: 2 | B88: 12 | C88: 5 | D88: 3 | E88: G | F88: =+TEXT(DaneN0[[#This Row],[WK]],"00")&DaneN0[[#This Row],[TYPS]]&D88&TEXT(DaneN0[[#This Row],[PK]],"00") -> 02G312 | G88: =+IF(ISERROR(VLOOKUP(DaneN0[[#This Row],[KodGUS6]],LstMetropolie[],1,FALSE)),DaneN0[[#This Row],[Typ]],"T") -> G | H88: 021205 | I88: 212053 | J88: WLEŃ | L88: 2024 | M88: 3898 | N88: 78303150.37 | O88: 64474365.77 | P88: =+DaneN0[[#This Row],[Dbs]]+DaneN0[[#This Row],[Dbd]] -> 52996096.35 | Q88: 28627969 | R88: 24368127.35 | S88: 13828784.6 | T88: 77276.52 | U88: 54733433.87 | V88: 37536064.66 | W88: 11404957.49 | X88: 528378.21 | Y88: 17197369.21 | Z88: 6243313.59 | AA88: 2453454.14 | AB88: =+DaneN0[[#This Row],[P]]-DaneN0[[#This Row],[Pd]] -> 3789859.45 | AC88: 18740000 | AD88: 440000 | AE88: 10382638.37 | AF88: 26938301.11 | AG88: 100800 | AH88: 0 | AI88: 0 | AJ88: 0
A89: 2 | B89: 13 | C89: 1 | D89: 2 | E89: G | F89: =+TEXT(DaneN0[[#This Row],[WK]],"00")&DaneN0[[#This Row],[TYPS]]&D89&TEXT(DaneN0[[#This Row],[PK]],"00") -> 02G213 | G89: =+IF(ISERROR(VLOOKUP(DaneN0[[#This Row],[KodGUS6]],LstMetropolie[],1,FALSE)),DaneN0[[#This Row],[Typ]],"T") -> G | H89: 021301 | I89: 213012 | J89: CIESZKÓW | L89: 2024 | M89: 4557 | N89: 34181467.13 | O89: 29157634.99 | P89: =+DaneN0[[#This Row],[Dbs]]+DaneN0[[#This Row],[Dbd]] -> 19491885.18 | Q89: 11838737 | R89: 7653148.18 | S89: 5023832.14 | T89: 249838.29 | U89: 31997475.44 | V89: 25783273.61 | W89: 12435826.49 | X89: 405312.51 | Y89: 6214201.83 | Z89: 1573549.34 | AA89: 0 | AB89: =+DaneN0[[#This Row],[P]]-DaneN0[[#This Row],[Pd]] -> 1573549.34 | AC89: 655000 | AD89: 655000 | AE89: 5210000 | AF89: 3374361.38 | AG89: 1463500 | AH89: 391264.4 | AI89: 0 | AJ89: 0
A90: 2 | B90: 13 | C90: 2 | D90: 2 | E90: G | F90: =+TEXT(DaneN0[[#This Row],[WK]],"00")&DaneN0[[#This Row],[TYPS]]&D90&TEXT(DaneN0[[#This Row],[PK]],"00") -> 02G213 | G90: =+IF(ISERROR(VLOOKUP(DaneN0[[#This Row],[KodGUS6]],LstMetropolie[],1,FALSE)),DaneN0[[#This Row],[Typ]],"T") -> G | H90: 021302 | I90: 213022 | J90: KROŚNICE | L90: 2024 | M90: 7963 | N90: 67280547.09 | O90: 52873033.61 | P90: =+DaneN0[[#This Row],[Dbs]]+DaneN0[[#This Row],[Dbd]] -> 22361656.93 | Q90: 13225435 | R90: 9136221.93 | S90: 14407513.48 | T90: 2332994.6 | U90: 71444750.24 | V90: 51968002.91 | W90: 23877111 | X90: 2231503.24 | Y90: 19476747.33 | Z90: 8248127.7 | AA90: 7775693.5 | AB90: =+DaneN0[[#This Row],[P]]-DaneN0[[#This Row],[Pd]] -> 472434.2 | AC90: 3958443.74 | AD90: 3900426 | AE90: 35847450 | AF90: 905030.7 | AG90: 105336 | AH90: 105336 | AI90: 0 | AJ90: 0
A91: 2 | B91: 13 | C91: 3 | D91: 3 | E91: G | F91: =+TEXT(DaneN0[[#This Row],[WK]],"00")&DaneN0[[#This Row],[TYPS]]&D91&TEXT(DaneN0[[#This Row],[PK]],"00") -> 02G313 | G91: =+IF(ISERROR(VLOOKUP(DaneN0[[#This Row],[KodGUS6]],LstMetropolie[],1,FALSE)),DaneN0[[#This Row],[Typ]],"T") -> G | H91: 021303 | I91: 213033 | J91: MILICZ | L91: 2024 | M91: 22934 | N91: 167228467.6 | O91: 157409918 | P91: =+DaneN0[[#This Row],[Dbs]]+DaneN0[[#This Row],[Dbd]] -> 79430888.15 | Q91: 51503222 | R91: 27927666.15 | S91: 9818549.6 | T91: 3227263 | U91: 163795463.1 | V91: 145108059.1 | W91: 56484266.45 | X91: 3536778.33 | Y91: 18687404.04 | Z91: 3988003.93 | AA91: 0 | AB91: =+DaneN0[[#This Row],[P]]-DaneN0[[#This Row],[Pd]] -> 3988003.93 | AC91: 3680000 | AD91: 3680000 | AE91: 42885000 | AF91: 12301858.97 | AG91: 311036.8 | AH91: 49387.53 | AI91: 5549.22 | AJ91: 0
A92: 2 | B92: 14 | C92: 1 | D92: 1 | E92: G | F92: =+TEXT(DaneN0[[#This Row],[WK]],"00")&DaneN0[[#This Row],[TYPS]]&D92&TEXT(DaneN0[[#This Row],[PK]],"00") -> 02G114 | G92: =+IF(ISERROR(VLOOKUP(DaneN0[[#This Row],[KodGUS6]],LstMetropolie[],1,FALSE)),DaneN0[[#This Row],[Typ]],"T") -> G | H92: 021401 | I92: 214011 | J92: OLEŚNICA | L92: 2024 | M92: 35002 | N92: 264262947 | O92: 217903860.2 | P92: =+DaneN0[[#This Row],[Dbs]]+DaneN0[[#This Row],[Dbd]] -> 90401242.71 | Q92: 49994882 | R92: 40406360.71 | S92: 46359086.86 | T92: 9365885.16 | U92: 261041747.1 | V92: 214893605.4 | W92: 92729175.31 | X92: 1747608 | Y92: 46148141.77 | Z92: 10978761.07 | AA92: 0 | AB92: =+DaneN0[[#This Row],[P]]-DaneN0[[#This Row],[Pd]] -> 10978761.07 | AC92: 4000000 | AD92: 4000000 | AE92: 18001546.32 | AF92: 3010254.8 | AG92: 744175.75 | AH92: 480166.16 | AI92: 0 | AJ92: 1546.32
A93: 2 | B93: 14 | C93: 2 | D93: 3 | E93: G | F93: =+TEXT(DaneN0[[#This Row],[WK]],"00")&DaneN0[[#This Row],[TYPS]]&D93&TEXT(DaneN0[[#This Row],[PK]],"00") -> 02G314 | G93: =+IF(ISERROR(VLOOKUP(DaneN0[[#This Row],[KodGUS6]],LstMetropolie[],1,FALSE)),DaneN0[[#This Row],[Typ]],"T") -> G | H93: 021402 | I93: 214023 | J93: BIERUTÓW | L93: 2024 | M93: 9226 | N93: 66184145.62 | O93: 56487533.62 | P93: =+DaneN0[[#This Row],[Dbs]]+DaneN0[[#This Row],[Dbd]] -> 32233713.08 | Q93: 22483407 | R93: 9750306.08 | S93: 9696612 | T93: 5188474.67 | U93: 66168430.36 | V93: 56883847.7 | W93: 23825612.97 | X93: 2863487.51 | Y93: 9284582.66 | Z93: 3800000 | AA93: 3800000 | AB93: =+DaneN0[[#This Row],[P]]-DaneN0[[#This Row],[Pd]] -> 0 | AC93: 2409332 | AD93: 2409332 | AE93: 40063339.58 | AF93: -396314.08 | AG93: 35123.79 | AH93: 98659.79 | AI93: 0 | AJ93: 106987.58
A94: 2 | B94: 14 | C94: 3 | D94: 2 | E94: G | F94: =+TEXT(DaneN0[[#This Row],[WK]],"00")&DaneN0[[#This Row],[TYPS]]&D94&TEXT(DaneN0[[#This Row],[PK]],"00") -> 02G214 | G94: =+IF(ISERROR(VLOOKUP(DaneN0[[#This Row],[KodGUS6]],LstMetropolie[],1,FALSE)),DaneN0[[#This Row],[Typ]],"T") -> G | H94: 021403 | I94: 214032 | J94: DOBROSZYCE | L94: 2024 | M94: 7336 | N94: 60738466.32 | O94: 51051663.19 | P94: =+DaneN0[[#This Row],[Dbs]]+DaneN0[[#This Row],[Dbd]] -> 22298670.37 | Q94: 14669036 | R94: 7629634.37 | S94: 9686803.13 | T94: 286156.59 | U94: 66175646.59 | V94: 49200412.24 | W94: 24999350.4 | X94: 1382363.45 | Y94: 16975234.35 | Z94: 10297176.56 | AA94: 8000000 | AB94: =+DaneN0[[#This Row],[P]]-DaneN0[[#This Row],[Pd]] -> 2297176.56 | AC94: 1500000 | AD94: 1500000 | AE94: 22800000 | AF94: 1851250.95 | AG94: 820955 | AH94: 385706.03 | AI94: 0 | AJ94: 0
A95: 2 | B95: 14 | C95: 4 | D95: 2 | E95: G | F95: =+TEXT(DaneN0[[#This Row],[WK]],"00")&DaneN0[[#This Row],[TYPS]]&D95&TEXT(DaneN0[[#This Row],[PK]],"00") -> 02G214 | G95: =+IF(ISERROR(VLOOKUP(DaneN0[[#This Row],[KodGUS6]],LstMetropolie[],1,FALSE)),DaneN0[[#This Row],[Typ]],"T") -> G | H95: 021404 | I95: 214042 | J95: DZIADOWA KŁODA | L95: 2024 | M95: 4558 | N95: 42526115.09 | O95: 31080333.88 | P95: =+DaneN0[[#This Row],[Dbs]]+DaneN0[[#This Row],[Dbd]] -> 18670644.45 | Q95: 13324007 | R95: 5346637.45 | S95: 11445781.21 | T95: 0 | U95: 42527356.54 | V95: 27953004.67 | W95: 13398835.41 | X95: 492815.44 | Y95: 14574351.87 | Z95: 3921266.08 | AA95: 2000000 | AB95: =+DaneN0[[#This Row],[P]]-DaneN0[[#This Row],[Pd]] -> 1921266.08 | AC95: 900000 | AD95: 900000 | AE95: 5650000 | AF95: 3127329.21 | AG95: 452644.52 | AH95: 210520.84 | AI95: 0 | AJ95: 0
A96: 2 | B96: 14 | C96: 5 | D96: 3 | E96: G | F96: =+TEXT(DaneN0[[#This Row],[WK]],"00")&DaneN0[[#This Row],[TYPS]]&D96&TEXT(DaneN0[[#This Row],[PK]],"00") -> 02G314 | G96: =+IF(ISERROR(VLOOKUP(DaneN0[[#This Row],[KodGUS6]],LstMetropolie[],1,FALSE)),DaneN0[[#This Row],[Typ]],"T") -> G | H96: 021405 | I96: 214053 | J96: MIEDZYBÓRZ | L96: 2024 | M96: 4996 | N96: 43094055.88 | O96: 33136030.75 | P96: =+DaneN0[[#This Row],[Dbs]]+DaneN0[[#This Row],[Dbd]] -> 18898285.2 | Q96: 13134465 | R96: 5763820.2 | S96: 9958025.13 | T96: 133410.76 | U96: 45391556.37 | V96: 31829767.43 | W96: 15792499.21 | X96: 916382.13 | Y96: 13561788.94 | Z96: 4579107.25 | AA96: 3300000 | AB96: =+DaneN0[[#This Row],[P]]-DaneN0[[#This Row],[Pd]] -> 1279107.25 | AC96: 1366085 | AD96: 1366085 | AE96: 14333255.01 | AF96: 1306263.32 | AG96: 96403.01 | AH96: 59610.39 | AI96: 0 | AJ96: 0.01
A97: 2 | B97: 14 | C97: 6 | D97: 2 | E97: G | F97: =+TEXT(DaneN0[[#This Row],[WK]],"00")&DaneN0[[#This Row],[TYPS]]&D97&TEXT(DaneN0[[#This Row],[PK]],"00") -> 02G214 | G97: =+IF(ISERROR(VLOOKUP(DaneN0[[#This Row],[KodGUS6]],LstMetropolie[],1,FALSE)),DaneN0[[#This Row],[Typ]],"T") -> G | H97: 021406 | I97: 214062 | J97: OLEŚNICA | L97: 2024 | M97: 16467 | N97: 101987226.9 | O97: 89667796.76 | P97: =+DaneN0[[#This Row],[Dbs]]+DaneN0[[#This Row],[Dbd]] -> 37016968.49 | Q97: 21952810 | R97: 15064158.49 | S97: 12319430.17 | T97: 831659 | U97: 104766253.8 | V97: 82816856.51 | W97: 35276199.64 | X97: 2555352.1 | Y97: 21949397.24 | Z97: 8627938.01 | AA97: 4500000 | AB97: =+DaneN0[[#This Row],[P]]-DaneN0[[#This Row],[Pd]] -> 4127938.01 | AC97: 1700000 | AD97: 1700000 | AE97: 37673000 | AF97: 6850940.25 | AG97: 705263.85 | AH97: 364770.13 | AI97: 0 | AJ97: 0
A98: 2 | B98: 14 | C98: 7 | D98: 3 | E98: G | F98: =+TEXT(DaneN0[[#This Row],[WK]],"00")&DaneN0[[#This Row],[TYPS]]&D98&TEXT(DaneN0[[#This Row],[PK]],"00") -> 02G314 | G98: =+IF(ISERROR(VLOOKUP(DaneN0[[#This Row],[KodGUS6]],LstMetropolie[],1,FALSE)),DaneN0[[#This Row],[Typ]],"T") -> G | H98: 021407 | I98: 214073 | J98: SYCÓW | L98: 2024 | M98: 16487 | N98: 104365308.4 | O98: 96307999.39 | P98: =+DaneN0[[#This Row],[Dbs]]+DaneN0[[#This Row],[Dbd]] -> 44323220.91 | Q98: 27586880 | R98: 16736340.91 | S98: 8057309.03 | T98: 2077067.63 | U98: 106197955.9 | V98: 93436756.22 | W98: 45807673.5 | X98: 2308415.05 | Y98: 12761199.64 | Z98: 14722758.89 | AA98: 12000000 | AB98: =+DaneN0[[#This Row],[P]]-DaneN0[[#This Row],[Pd]] -> 2722758.89 | AC98: 9217000 | AD98: 2400000 | AE98: 41100000 | AF98: 2871243.17 | AG98: 1468288.46 | AH98: 843870.66 | AI98: 0 | AJ98: 0
A99: 2 | B99: 14 | C99: 8 | D99: 3 | E99: G | F99: =+TEXT(DaneN0[[#This Row],[WK]],"00")&DaneN0[[#This Row],[TYPS]]&D99&TEXT(DaneN0[[#This Row],[PK]],"00") -> 02G314 | G99: =+IF(ISERROR(VLOOKUP(DaneN0[[#This Row],[KodGUS6]],LstMetropolie[],1,FALSE)),DaneN0[[#This Row],[Typ]],"T") -> G | H99: 021408 | I99: 214083 | J99: TWARDOGÓRA | L99: 2024 | M99: 12491 | N99: 97408570.43 | O99: 74790735.55 | P99: =+DaneN0[[#This Row],[Dbs]]+DaneN0[[#This Row],[Dbd]] -> 27686163.64 | Q99: 16968280 | R99: 10717883.64 | S99: 22617834.88 | T99: 1033878.48 | U99: 99447552.23 | V99: 66637149.63 | W99: 33394154.71 | X99: 1535301.95 | Y99: 32810402.6 | Z99: 12367319.9 | AA99: 8000000 | AB99: =+DaneN0[[#This Row],[P]]-DaneN0[[#This Row],[Pd]] -> 4367319.9 | AC99: 4069025 | AD99: 4069025 | AE99: 27300324.38 | AF99: 8153585.92 | AG99: 0 | AH99: 0 | AI99: 0 | AJ99: 0
A100: 2 | B100: 15 | C100: 1 | D100: 1 | E100: G | F100: =+TEXT(DaneN0[[#This Row],[WK]],"00")&DaneN0[[#This Row],[TYPS]]&D100&TEXT(DaneN0[[#This Row],[PK]],"00") -> 02G115 | G100: =+IF(ISERROR(VLOOKUP(DaneN0[[#This Row],[KodGUS6]],LstMetropolie[],1,FALSE)),DaneN0[[#This Row],[Typ]],"T") -> G | H100: 021501 | I100: 215011 | J100: OŁAWA | L100: 2024 | M100: 33100 | N100: 232827950.1 | O100: 192602474.7 | P100: =+DaneN0[[#This Row],[Dbs]]+DaneN0[[#This Row],[Dbd]] -> 71739329.16 | Q100: 41188615 | R100: 30550714.16 | S100: 40225475.46 | T100: 7675427.32 | U100: 217220401.3 | V100: 182051016.6 | W100: 91296420.74 | X100: 3462997.59 | Y100: 35169384.72 | Z100: 19223416.24 | AA100: 10694720 | AB100: =+DaneN0[[#This Row],[P]]-DaneN0[[#This Row],[Pd]] -> 8528696.24 | AC100: 8194720 | AD100: 8194720 | AE100: 58893081 | AF100: 10551458.09 | AG100: 0 | AH100: 1377.85 | AI100: 0 | AJ100: 0
A101: 2 | B101: 15 | C101: 2 | D101: 2 | E101: G | F101: =+TEXT(DaneN0[[#This Row],[WK]],"00")&DaneN0[[#This Row],[TYPS]]&D101&TEXT(DaneN0[[#This Row],[PK]],"00") -> 02G215 | G101: =+IF(ISERROR(VLOOKUP(DaneN0[[#This Row],[KodGUS6]],LstMetropolie[],1,FALSE)),DaneN0[[#This Row],[Typ]],"T") -> G | H101: 021502 | I101: 215022 | J101: DOMANIÓW | L101: 2024 | M101: 4893 | N101: 52415125.61 | O101: 36825202.44 | P101: =+DaneN0[[#This Row],[Dbs]]+DaneN0[[#This Row],[Dbd]] -> 21656359.33 | Q101: 15615936 | R101: 6040423.33 | S101: 15589923.17 | T101: 18700 | U101: 49228658.62 | V101: 33534712.79 | W101: 16995843.1 | X101: 1005962.14 | Y101: 15693945.83 | Z101: 847416.62 | AA101: 0 | AB101: =+DaneN0[[#This Row],[P]]-DaneN0[[#This Row],[Pd]] -> 847416.62 | AC101: 1231398 | AD101: 1100000 | AE101: 13554085 | AF101: 3290489.65 | AG101: 141556.5 | AH101: 24650.23 | AI101: 0 | AJ101: 0
A102: 2 | B102: 15 | C102: 3 | D102: 3 | E102: G | F102: =+TEXT(DaneN0[[#This Row],[WK]],"00")&DaneN0[[#This Row],[TYPS]]&D102&TEXT(DaneN0[[#This Row],[PK]],"00") -> 02G315 | G102: =+IF(ISERROR(VLOOKUP(DaneN0[[#This Row],[KodGUS6]],LstMetropolie[],1,FALSE)),DaneN0[[#This Row],[Typ]],"T") -> G | H102: 021503 | I102: 215033 | J102: JELCZ-LASKOWICE | L102: 2024 | M102: 23752 | N102: 179142989.8 | O102: 164022849.2 | P102: =+DaneN0[[#This Row],[Dbs]]+DaneN0[[#This Row],[Dbd]] -> 58808288.52 | Q102: 34419917 | R102: 24388371.52 | S102: 15120140.58 | T102: 1572139.21 | U102: 186309803.1 | V102: 140098093.5 | W102: 63290654.4 | X102: 0 | Y102: 46211709.6 | Z102: 36154731.94 | AA102: 0 | AB102: =+DaneN0[[#This Row],[P]]-DaneN0[[#This Row],[Pd]] -> 36154731.94 | AC102: 0 | AD102: 0 | AE102: 0 | AF102: 23924755.66 | AG102: 999243.09 | AH102: 532734 | AI102: 0 | AJ102: 0
A103: 2 | B103: 15 | C103: 4 | D103: 2 | E103: G | F103: =+TEXT(DaneN0[[#This Row],[WK]],"00")&DaneN0[[#This Row],[TYPS]]&D103&TEXT(DaneN0[[#This Row],[PK]],"00") -> 02G215 | G103: =+IF(ISERROR(VLOOKUP(DaneN0[[#This Row],[KodGUS6]],LstMetropolie[],1,FALSE)),DaneN0[[#This Row],[Typ]],"T") -> G | H103: 021504 | I103: 215042 | J103: OŁAWA | L103: 2024 | M103: 15684 | N103: 143190191.5 | O103: 133866869.1 | P103: =+DaneN0[[#This Row],[Dbs]]+DaneN0[[#This Row],[Dbd]] -> 45602671.56 | Q103: 28062366 | R103: 17540305.56 | S103: 9323322.41 | T103: 2104504.72 | U103: 131150569.6 | V103: 107784883.9 | W103: 43449591.29 | X103: 216542.9 | Y103: 23365685.75 | Z103: 9900228.17 | AA103: 0 | AB103: =+DaneN0[[#This Row],[P]]-DaneN0[[#This Row],[Pd]] -> 9900228.17 | AC103: 7885000 | AD103: 7885000 | AE103: 0 | AF103: 26081985.19 | AG103: 542127.69 | AH103: 0 | AI103: 0 | AJ103: 0
A104: 2 | B104: 16 | C104: 1 | D104: 3 | E104: G | F104: =+TEXT(DaneN0[[#This Row],[WK]],"00")&DaneN0[[#This Row],[TYPS]]&D104&TEXT(DaneN0[[#This Row],[PK]],"00") -> 02G316 | G104: =+IF(ISERROR(VLOOKUP(DaneN0[[#This Row],[KodGUS6]],LstMetropolie[],1,FALSE)),DaneN0[[#This Row],[Typ]],"T") -> G | H104: 021601 | I104: 216013 | J104: CHOCIANÓW | L104: 2024 | M104: 12351 | N104: 81746799.77 | O104: 62556685.19 | P104: =+DaneN0[[#This Row],[Dbs]]+DaneN0[[#This Row],[Dbd]] -> 29033773.91 | Q104: 18594265 | R104: 10439508.91 | S104: 19190114.58 | T104: 1254394.08 | U104: 84243406.88 | V104: 60524440.43 | W104: 34324687.72 | X104: 2369701.38 | Y104: 23718966.45 | Z104: 5480447.72 | AA104: 4800000 | AB104: =+DaneN0[[#This Row],[P]]-DaneN0[[#This Row],[Pd]] -> 680447.72 | AC104: 100000 | AD104: 100000 | AE104: 33204331.57 | AF104: 2032244.76 | AG104: 1649786.46 | AH104: 249112.89 | AI104: 0 | AJ104: 92331.57
A105: 2 | B105: 16 | C105: 2 | D105: 2 | E105: G | F105: =+TEXT(DaneN0[[#This Row],[WK]],"00")&DaneN0[[#This Row],[TYPS]]&D105&TEXT(DaneN0[[#This Row],[PK]],"00") -> 02G216 | G105: =+IF(ISERROR(VLOOKUP(DaneN0[[#This Row],[KodGUS6]],LstMetropolie[],1,FALSE)),DaneN0[[#This Row],[Typ]],"T") -> G | H105: 021602 | I105: 216022 | J105: GAWORZYCE | L105: 2024 | M105: 3741 | N105: 38896220.62 | O105: 27531460.72 | P105: =+DaneN0[[#This Row],[Dbs]]+DaneN0[[#This Row],[Dbd]] -> 12977268.53 | Q105: 8698738 | R105: 4278530.53 | S105: 11364759.9 | T105: 110766.76 | U105: 34811058.77 | V105: 22387063.61 | W105: 11392773.66 | X105: 519550.51 | Y105: 12423995.16 | Z105: 1894185.66 | AA105: 1000000 | AB105: =+DaneN0[[#This Row],[P]]-DaneN0[[#This Row],[Pd]] -> 894185.66 | AC105: 2404902 | AD105: 2365482 | AE105: 9208418.5 | AF105: 5144397.11 | AG105: 287846 | AH105: 196038.94 | AI105: 0 | AJ105: 0
A106: 2 | B106: 16 | C106: 3 | D106: 2 | E106: G | F106: =+TEXT(DaneN0[[#This Row],[WK]],"00")&DaneN0[[#This Row],[TYPS]]&D106&TEXT(DaneN0[[#This Row],[PK]],"00") -> 02G216 | G106: =+IF(ISERROR(VLOOKUP(DaneN0[[#This Row],[KodGUS6]],LstMetropolie[],1,FALSE)),DaneN0[[#This Row],[Typ]],"T") -> G | H106: 021603 | I106: 216032 | J106: GRĘBOCICE | L106: 2024 | M106: 5305 | N106: 98414837.61 | O106: 80551981.75 | P106: =+DaneN0[[#This Row],[Dbs]]+DaneN0[[#This Row],[Dbd]] -> 13144002.67 | Q106: 7886709 | R106: 5257293.67 | S106: 17862855.86 | T106: 171464.22 | U106: 97047046.72 | V106: 55620317.51 | W106: 23403738.08 | X106: 69864.76 | Y106: 41426729.21 | Z106: 21527848.65 | AA106: 0 | AB106: =+DaneN0[[#This Row],[P]]-DaneN0[[#This Row],[Pd]] -> 21527848.65 | AC106: 381800 | AD106: 381800 | AE106: 2304500 | AF106: 24931664.24 | AG106: 51303.61 | AH106: 0 | AI106: 0 | AJ106: 0
A107: 2 | B107: 16 | C107: 4 | D107: 3 | E107: G | F107: =+TEXT(DaneN0[[#This Row],[WK]],"00")&DaneN0[[#This Row],[TYPS]]&D107&TEXT(DaneN0[[#This Row],[PK]],"00") -> 02G316 | G107: =+IF(ISERROR(VLOOKUP(DaneN0[[#This Row],[KodGUS6]],LstMetropolie[],1,FALSE)),DaneN0[[#This Row],[Typ]],"T") -> G | H107: 021604 | I107: 216043 | J107: POLKOWICE | L107: 2024 | M107: 26786 | N107: 375851314.5 | O107: 338729725.3 | P107: =+DaneN0[[#This Row],[Dbs]]+DaneN0[[#This Row],[Dbd]] -> 65257966.51 | Q107: 36597616 | R107: 28660350.51 | S107: 37121589.13 | T107: 2217502.45 | U107: 433428664 | V107: 328647925.4 | W107: 135736924.8 | X107: 11607576.57 | Y107: 104780738.5 | Z107: 80597615.88 | AA107: 49900000 | AB107: =+DaneN0[[#This Row],[P]]-DaneN0[[#This Row],[Pd]] -> 30697615.88 | AC107: 7500000 | AD107: 7500000 | AE107: 211380066.1 | AF107: 10081799.91 | AG107: 487085.77 | AH107: 55537.35 | AI107: 0 | AJ107: 418.11
A108: 2 | B108: 16 | C108: 5 | D108: 3 | E108: G | F108: =+TEXT(DaneN0[[#This Row],[WK]],"00")&DaneN0[[#This Row],[TYPS]]&D108&TEXT(DaneN0[[#This Row],[PK]],"00") -> 02G316 | G108: =+IF(ISERROR(VLOOKUP(DaneN0[[#This Row],[KodGUS6]],LstMetropolie[],1,FALSE)),DaneN0[[#This Row],[Typ]],"T") -> G | H108: 021605 | I108: 216053 | J108: PRZEMKÓW | L108: 2024 | M108: 7771 | N108: 63421968.13 | O108: 41649094.76 | P108: =+DaneN0[[#This Row],[Dbs]]+DaneN0[[#This Row],[Dbd]] -> 24378978.39 | Q108: 18375573 | R108: 6003405.39 | S108: 21772873.37 | T108: 612561.3 | U108: 63530758.79 | V108: 37742426.3 | W108: 20429630.74 | X108: 2096939.36 | Y108: 25788332.49 | Z108: 8466725.98 | AA108: 0 | AB108: =+DaneN0[[#This Row],[P]]-DaneN0[[#This Row],[Pd]] -> 8466725.98 | AC108: 1917549 | AD108: 1917549 | AE108: 25321133.62 | AF108: 3906668.46 | AG108: 0 | AH108: 0 | AI108: 0 | AJ108: 818133.62
A109: 2 | B109: 16 | C109: 6 | D109: 2 | E109: G | F109: =+TEXT(DaneN0[[#This Row],[WK]],"00")&DaneN0[[#This Row],[TYPS]]&D109&TEXT(DaneN0[[#This Row],[PK]],"00") -> 02G216 | G109: =+IF(ISERROR(VLOOKUP(DaneN0[[#This Row],[KodGUS6]],LstMetropolie[],1,FALSE)),DaneN0[[#This Row],[Typ]],"T") -> G | H109: 021606 | I109: 216062 | J109: RADWANICE | L109: 2024 | M109: 5101 | N109: 52021229.06 | O109: 40673314.02 | P109: =+DaneN0[[#This Row],[Dbs]]+DaneN0[[#This Row],[Dbd]] -> 14969197.26 | Q109: 10091611 | R109: 4877586.26 | S109: 11347915.04 | T109: 564863.8 | U109: 52930503.77 | V109: 28658716.5 | W109: 13647903.95 | X109: 40190.2 | Y109: 24271787.27 | Z109: 5909550.04 | AA109: 4374814.28 | AB109: =+DaneN0[[#This Row],[P]]-DaneN0[[#This Row],[Pd]] -> 1534735.76 | AC109: 1400000 | AD109: 0 | AE109: 4379506.53 | AF109: 12014597.52 | AG109: 755177.63 | AH109: 30115.6 | AI109: 0 | AJ109: 4692.25
A110: 2 | B110: 17 | C110: 1 | D110: 2 | E110: G | F110: =+TEXT(DaneN0[[#This Row],[WK]],"00")&DaneN0[[#This Row],[TYPS]]&D110&TEXT(DaneN0[[#This Row],[PK]],"00") -> 02G217 | G110: =+IF(ISERROR(VLOOKUP(DaneN0[[#This Row],[KodGUS6]],LstMetropolie[],1,FALSE)),DaneN0[[#This Row],[Typ]],"T") -> G | H110: 021701 | I110: 217012 | J110: BORÓW | L110: 2024 | M110: 4975 | N110: 33356619.25 | O110: 30226149.21 | P110: =+DaneN0[[#This Row],[Dbs]]+DaneN0[[#This Row],[Dbd]] -> 17696012.18 | Q110: 11864483 | R110: 5831529.18 | S110: 3130470.04 | T110: 110957.2 | U110: 35820707.49 | V110: 27304734.42 | W110: 13901112.93 | X110: 244551.13 | Y110: 8515973.07 | Z110: 5703380.59 | AA110: 600000 | AB110: =+DaneN0[[#This Row],[P]]-DaneN0[[#This Row],[Pd]] -> 5103380.59 | AC110: 690695 | AD110: 495540 | AE110: 4365540 | AF110: 2921414.79 | AG110: 321493.33 | AH110: 135820.73 | AI110: 0 | AJ110: 0
A111: 2 | B111: 17 | C111: 2 | D111: 2 | E111: G | F111: =+TEXT(DaneN0[[#This Row],[WK]],"00")&DaneN0[[#This Row],[TYPS]]&D111&TEXT(DaneN0[[#This Row],[PK]],"00") -> 02G217 | G111: =+IF(ISERROR(VLOOKUP(DaneN0[[#This Row],[KodGUS6]],LstMetropolie[],1,FALSE)),DaneN0[[#This Row],[Typ]],"T") -> G | H111: 021702 | I111: 217022 | J111: KONDRATOWICE | L111: 2024 | M111: 3951 | N111: 37556703.31 | O111: 28683652.06 | P111: =+DaneN0[[#This Row],[Dbs]]+DaneN0[[#This Row],[Dbd]] -> 16166580.63 | Q111: 9491856 | R111: 6674724.63 | S111: 8873051.25 | T111: 391813.16 | U111: 36649199.69 | V111: 26086979.45 | W111: 11164576.98 | X111: 93629.72 | Y111: 10562220.24 | Z111: 1059149.44 | AA111: 0 | AB111: =+DaneN0[[#This Row],[P]]-DaneN0[[#This Row],[Pd]] -> 1059149.44 | AC111: 840203 | AD111: 496696 | AE111: 2072570.66 | AF111: 2596672.61 | AG111: 1346464.2 | AH111: 480128.65 | AI111: 0 | AJ111: 114649.66
A112: 2 | B112: 17 | C112: 3 | D112: 2 | E112: G | F112: =+TEXT(DaneN0[[#This Row],[WK]],"00")&DaneN0[[#This Row],[TYPS]]&D112&TEXT(DaneN0[[#This Row],[PK]],"00") -> 02G217 | G112: =+IF(ISERROR(VLOOKUP(DaneN0[[#This Row],[KodGUS6]],LstMetropolie[],1,FALSE)),DaneN0[[#This Row],[Typ]],"T") -> G | H112: 021703 | I112: 217032 | J112: PRZEWORNO | L112: 2024 | M112: 4467 | N112: 25105071.75 | O112: 23826153.01 | P112: =+DaneN0[[#This Row],[Dbs]]+DaneN0[[#This Row],[Dbd]] -> 15520426.13 | Q112: 10771331 | R112: 4749095.13 | S112: 1278918.74 | T112: 437322.44 | U112: 25343934.36 | V112: 24037126.02 | W112: 11490298.16 | X112: 257841.66 | Y112: 1306808.34 | Z112: 6652266.56 | AA112: 1400000 | AB112: =+DaneN0[[#This Row],[P]]-DaneN0[[#This Row],[Pd]] -> 5252266.56 | AC112: 653631.64 | AD112: 544975 | AE112: 5008044.92 | AF112: -210973.01 | AG112: 0 | AH112: 0 | AI112: 0 | AJ112: 450.42
A113: 2 | B113: 17 | C113: 4 | D113: 3 | E113: G | F113: =+TEXT(DaneN0[[#This Row],[WK]],"00")&DaneN0[[#This Row],[TYPS]]&D113&TEXT(DaneN0[[#This Row],[PK]],"00") -> 02G317 | G113: =+IF(ISERROR(VLOOKUP(DaneN0[[#This Row],[KodGUS6]],LstMetropolie[],1,FALSE)),DaneN0[[#This Row],[Typ]],"T") -> G | H113: 021704 | I113: 217043 | J113: STRZELIN | L113: 2024 | M113: 21411 | N113: 157870804.7 | O113: 143558330 | P113: =+DaneN0[[#This Row],[Dbs]]+DaneN0[[#This Row],[Dbd]] -> 58825065.68 | Q113: 33146777 | R113: 25678288.68 | S113: 14312474.68 | T113: 1598757.09 | U113: 166025675.8 | V113: 133113012.6 | W113: 58390369.39 | X113: 4914417.53 | Y113: 32912663.28 | Z113: 16193536.37 | AA113: 16105218 | AB113: =+DaneN0[[#This Row],[P]]-DaneN0[[#This Row],[Pd]] -> 88318.37 | AC113: 6213434 | AD113: 6213434 | AE113: 84320599 | AF113: 10445317.4 | AG113: 764757.39 | AH113: 1032791.22 | AI113: 0 | AJ113: 0
A114: 2 | B114: 17 | C114: 5 | D114: 3 | E114: G | F114: =+TEXT(DaneN0[[#This Row],[WK]],"00")&DaneN0[[#This Row],[TYPS]]&D114&TEXT(DaneN0[[#This Row],[PK]],"00") -> 02G317 | G114: =+IF(ISERROR(VLOOKUP(DaneN0[[#This Row],[KodGUS6]],LstMetropolie[],1,FALSE)),DaneN0[[#This Row],[Typ]],"T") -> G | H114: 021705 | I114: 217053 | J114: WIĄZÓW | L114: 2024 | M114: 6778 | N114: 60548446.25 | O114: 51301594.89 | P114: =+DaneN0[[#This Row],[Dbs]]+DaneN0[[#This Row],[Dbd]] -> 27790220.55 | Q114: 18417863 | R114: 9372357.55 | S114: 9246851.36 | T114: 789875.37 | U114: 62983102.75 | V114: 42217594.78 | W114: 20754301.37 | X114: 221766.5 | Y114: 20765507.97 | Z114: 14725448.27 | AA114: 5711474 | AB114: =+DaneN0[[#This Row],[P]]-DaneN0[[#This Row],[Pd]] -> 9013974.27 | AC114: 883705 | AD114: 883705 | AE114: 7911654 | AF114: 9084000.11 | AG114: 422163.35 | AH114: 461740.69 | AI114: 0 | AJ114: 0
A115: 2 | B115: 18 | C115: 1 | D115: 2 | E115: G | F115: =+TEXT(DaneN0[[#This Row],[WK]],"00")&DaneN0[[#This Row],[TYPS]]&D115&TEXT(DaneN0[[#This Row],[PK]],"00") -> 02G218 | G115: =+IF(ISERROR(VLOOKUP(DaneN0[[#This Row],[KodGUS6]],LstMetropolie[],1,FALSE)),DaneN0[[#This Row],[Typ]],"T") -> G | H115: 021801 | I115: 218012 | J115: KOSTOMŁOTY | L115: 2024 | M115: 7170 | N115: 56514476 | O115: 48562991.32 | P115: =+DaneN0[[#This Row],[Dbs]]+DaneN0[[#This Row],[Dbd]] -> 26312125.1 | Q115: 17990482 | R115: 8321643.1 | S115: 7951484.68 | T115: 28819.96 | U115: 52388253.93 | V115: 40149925.05 | W115: 19527020.52 | X115: 62369.04 | Y115: 12238328.88 | Z115: 4544778.57 | AA115: 0 | AB115: =+DaneN0[[#This Row],[P]]-DaneN0[[#This Row],[Pd]] -> 4544778.57 | AC115: 800605 | AD115: 800605 | AE115: 1636200 | AF115: 8413066.27 | AG115: 14930.9 | AH115: 0 | AI115: 0 | AJ115: 0
A116: 2 | B116: 18 | C116: 2 | D116: 2 | E116: G | F116: =+TEXT(DaneN0[[#This Row],[WK]],"00")&DaneN0[[#This Row],[TYPS]]&D116&TEXT(DaneN0[[#This Row],[PK]],"00") -> 02G218 | G116: =+IF(ISERROR(VLOOKUP(DaneN0[[#This Row],[KodGUS6]],LstMetropolie[],1,FALSE)),DaneN0[[#This Row],[Typ]],"T") -> G | H116: 021802 | I116: 218022 | J116: MALCZYCE | L116: 2024 | M116: 5662 | N116: 44061010.38 | O116: 32840462.2 | P116: =+DaneN0[[#This Row],[Dbs]]+DaneN0[[#This Row],[Dbd]] -> 17435856.8 | Q116: 10819349 | R116: 6616507.8 | S116: 11220548.18 | T116: 307544.45 | U116: 44070138.58 | V116: 31760159.5 | W116: 15387285.15 | X116: 406103.76 | Y116: 12309979.08 | Z116: 3296940.32 | AA116: 3100000 | AB116: =+DaneN0[[#This Row],[P]]-DaneN0[[#This Row],[Pd]] -> 196940.32 | AC116: 51534.16 | AD116: 51534.16 | AE116: 7203068.38 | AF116: 1080302.7 | AG116: 805263.21 | AH116: 114095.75 | AI116: 0 | AJ116: 0
A117: 2 | B117: 18 | C117: 3 | D117: 3 | E117: G | F117: =+TEXT(DaneN0[[#This Row],[WK]],"00")&DaneN0[[#This Row],[TYPS]]&D117&TEXT(DaneN0[[#This Row],[PK]],"00") -> 02G318 | G117: =+IF(ISERROR(VLOOKUP(DaneN0[[#This Row],[KodGUS6]],LstMetropolie[],1,FALSE)),DaneN0[[#This Row],[Typ]],"T") -> G | H117: 021803 | I117: 218033 | J117: MIĘKINIA | L117: 2024 | M117: 22082 | N117: 184258303.3 | O117: 159166565.2 | P117: =+DaneN0[[#This Row],[Dbs]]+DaneN0[[#This Row],[Dbd]] -> 52924600.35 | Q117: 37194697 | R117: 15729903.35 | S117: 25091738.15 | T117: 1920428.97 | U117: 190569734 | V117: 140787812.5 | W117: 60925109.53 | X117: 3046769.72 | Y117: 49781921.51 | Z117: 27319232.76 | AA117: 9000000 | AB117: =+DaneN0[[#This Row],[P]]-DaneN0[[#This Row],[Pd]] -> 18319232.76 | AC117: 2000000 | AD117: 2000000 | AE117: 53000000 | AF117: 18378752.65 | AG117: 329020.47 | AH117: 277880.52 | AI117: 0 | AJ117: 0
A118: 2 | B118: 18 | C118: 4 | D118: 3 | E118: G | F118: =+TEXT(DaneN0[[#This Row],[WK]],"00")&DaneN0[[#This Row],[TYPS]]&D118&TEXT(DaneN0[[#This Row],[PK]],"00") -> 02G318 | G118: =+IF(ISERROR(VLOOKUP(DaneN0[[#This Row],[KodGUS6]],LstMetropolie[],1,FALSE)),DaneN0[[#This Row],[Typ]],"T") -> G | H118: 021804 | I118: 218043 | J118: ŚRODA ŚLĄSKA | L118: 2024 | M118: 19785 | N118: 156563832 | O118: 145687200.3 | P118: =+DaneN0[[#This Row],[Dbs]]+DaneN0[[#This Row],[Dbd]] -> 50169263.43 | Q118: 29635243 | R118: 20534020.43 | S118: 10876631.74 | T118: 1891869.62 | U118: 161233608.5 | V118: 131493361.8 | W118: 59107752.56 | X118: 4556520.63 | Y118: 29740246.7 | Z118: 12879863.71 | AA118: 1000000 | AB118: =+DaneN0[[#This Row],[P]]-DaneN0[[#This Row],[Pd]] -> 11879863.71 | AC118: 5335000 | AD118: 5303000 | AE118: 58754000 | AF118: 14193838.44 | AG118: 1003.68 | AH118: 86213.09 | AI118: 0 | AJ118: 0
A119: 2 | B119: 18 | C119: 5 | D119: 2 | E119: G | F119: =+TEXT(DaneN0[[#This Row],[WK]],"00")&DaneN0[[#This Row],[TYPS]]&D119&TEXT(DaneN0[[#This Row],[PK]],"00") -> 02G218 | G119: =+IF(ISERROR(VLOOKUP(DaneN0[[#This Row],[KodGUS6]],LstMetropolie[],1,FALSE)),DaneN0[[#This Row],[Typ]],"T") -> G | H119: 021805 | I119: 218052 | J119: UDANIN | L119: 2024 | M119: 4783 | N119: 55866293.99 | O119: 34990020.67 | P119: =+DaneN0[[#This Row],[Dbs]]+DaneN0[[#This Row],[Dbd]] -> 17525157.53 | Q119: 10678546 | R119: 6846611.53 | S119: 20876273.32 | T119: 748136.47 | U119: 55898181.02 | V119: 34803025.13 | W119: 16204106.74 | X119: 1214027.95 | Y119: 21095155.89 | Z119: 3057336.5 | AA119: 1100000 | AB119: =+DaneN0[[#This Row],[P]]-DaneN0[[#This Row],[Pd]] -> 1957336.5 | AC119: 1372245.04 | AD119: 1372245.04 | AE119: 18744315 | AF119: 186995.54 | AG119: 741884.58 | AH119: 447625.94 | AI119: 0 | AJ119: 0
A120: 2 | B120: 19 | C120: 1 | D120: 1 | E120: G | F120: =+TEXT(DaneN0[[#This Row],[WK]],"00")&DaneN0[[#This Row],[TYPS]]&D120&TEXT(DaneN0[[#This Row],[PK]],"00") -> 02G119 | G120: =+IF(ISERROR(VLOOKUP(DaneN0[[#This Row],[KodGUS6]],LstMetropolie[],1,FALSE)),DaneN0[[#This Row],[Typ]],"T") -> G | H120: 021901 | I120: 219011 | J120: ŚWIDNICA | L120: 2024 | M120: 52417 | N120: 377412335.2 | O120: 353572956.2 | P120: =+DaneN0[[#This Row],[Dbs]]+DaneN0[[#This Row],[Dbd]] -> 132089264.2 | Q120: 77832980 | R120: 54256284.15 | S120: 23839379 | T120: 5973609.29 | U120: 388935837 | V120: 339667569 | W120: 144100709.4 | X120: 6882123.98 | Y120: 49268268 | Z120: 58935411.7 | AA120: 0 | AB120: =+DaneN0[[#This Row],[P]]-DaneN0[[#This Row],[Pd]] -> 58935411.7 | AC120: 8943865.4 | AD120: 8943865.4 | AE120: 98949305.82 | AF120: 13905387.27 | AG120: 894689.28 | AH120: 636228.92 | AI120: 0 | AJ120: 2427.63
A121: 2 | B121: 19 | C121: 2 | D121: 1 | E121: G | F121: =+TEXT(DaneN0[[#This Row],[WK]],"00")&DaneN0[[#This Row],[TYPS]]&D121&TEXT(DaneN0[[#This Row],[PK]],"00") -> 02G119 | G121: =+IF(ISERROR(VLOOKUP(DaneN0[[#This Row],[KodGUS6]],LstMetropolie[],1,FALSE)),DaneN0[[#This Row],[Typ]],"T") -> G | H121: 021902 | I121: 219021 | J121: ŚWIEBODZICE | L121: 2024 | M121: 21760 | N121: 144544773.3 | O121: 128381845.8 | P121: =+DaneN0[[#This Row],[Dbs]]+DaneN0[[#This Row],[Dbd]] -> 54270446.73 | Q121: 34396578 | R121: 19873868.73 | S121: 16162927.54 | T121: 4648505.48 | U121: 148344835.7 | V121: 122733339.6 | W121: 56617065.15 | X121: 503006.42 | Y121: 25611496.11 | Z121: 12096449.29 | AA121: 10200000 | AB121: =+DaneN0[[#This Row],[P]]-DaneN0[[#This Row],[Pd]] -> 1896449.29 | AC121: 2283330 | AD121: 2283330 | AE121: 12650000 | AF121: 5648506.14 | AG121: 262087.53 | AH121: 358598.04 | AI121: 0 | AJ121: 0
A122: 2 | B122: 19 | C122: 3 | D122: 2 | E122: G | F122: =+TEXT(DaneN0[[#This Row],[WK]],"00")&DaneN0[[#This Row],[TYPS]]&D122&TEXT(DaneN0[[#This Row],[PK]],"00") -> 02G219 | G122: =+IF(ISERROR(VLOOKUP(DaneN0[[#This Row],[KodGUS6]],LstMetropolie[],1,FALSE)),DaneN0[[#This Row],[Typ]],"T") -> G | H122: 021903 | I122: 219032 | J122: DOBROMIERZ | L122: 2024 | M122: 4887 | N122: 48989972.18 | O122: 38276612.03 | P122: =+DaneN0[[#This Row],[Dbs]]+DaneN0[[#This Row],[Dbd]] -> 21126703.66 | Q122: 14069334 | R122: 7057369.66 | S122: 10713360.15 | T122: 735064.4 | U122: 49875848 | V122: 35605310.34 | W122: 14700689.42 | X122: 1625810.81 | Y122: 14270537.66 | Z122: 5834860.9 | AA122: 2700000 | AB122: =+DaneN0[[#This Row],[P]]-DaneN0[[#This Row],[Pd]] -> 3134860.9 | AC122: 280220.5 | AD122: 280220.5 | AE122: 25870297.5 | AF122: 2671301.69 | AG122: 34235.59 | AH122: 54957.18 | AI122: 0 | AJ122: 0
A123: 2 | B123: 19 | C123: 4 | D123: 3 | E123: G | F123: =+TEXT(DaneN0[[#This Row],[WK]],"00")&DaneN0[[#This Row],[TYPS]]&D123&TEXT(DaneN0[[#This Row],[PK]],"00") -> 02G319 | G123: =+IF(ISERROR(VLOOKUP(DaneN0[[#This Row],[KodGUS6]],LstMetropolie[],1,FALSE)),DaneN0[[#This Row],[Typ]],"T") -> G | H123: 021904 | I123: 219043 | J123: JAWORZYNA ŚLĄSKA | L123: 2024 | M123: 10229 | N123: 80188183.5 | O123: 56146628.75 | P123: =+DaneN0[[#This Row],[Dbs]]+DaneN0[[#This Row],[Dbd]] -> 29288769.7 | Q123: 20841322 | R123: 8447447.7 | S123: 24041554.75 | T123: 717496.12 | U123: 88352189.64 | V123: 60151283.58 | W123: 27419357.98 | X123: 2880898.73 | Y123: 28200906.06 | Z123: 12859795.77 | AA123: 12000000 | AB123: =+DaneN0[[#This Row],[P]]-DaneN0[[#This Row],[Pd]] -> 859795.77 | AC123: 350000 | AD123: 350000 | AE123: 47789369.32 | AF123: -4004654.83 | AG123: 229480.12 | AH123: 750330.5 | AI123: 0 | AJ123: 230369.32
A124: 2 | B124: 19 | C124: 5 | D124: 2 | E124: G | F124: =+TEXT(DaneN0[[#This Row],[WK]],"00")&DaneN0[[#This Row],[TYPS]]&D124&TEXT(DaneN0[[#This Row],[PK]],"00") -> 02G219 | G124: =+IF(ISERROR(VLOOKUP(DaneN0[[#This Row],[KodGUS6]],LstMetropolie[],1,FALSE)),DaneN0[[#This Row],[Typ]],"T") -> G | H124: 021905 | I124: 219052 | J124: MARCINOWICE | L124: 2024 | M124: 6365 | N124: 62198254.79 | O124: 43929692.22 | P124: =+DaneN0[[#This Row],[Dbs]]+DaneN0[[#This Row],[Dbd]] -> 25506785.91 | Q124: 16031926 | R124: 9474859.91 | S124: 18268562.57 | T124: 92857 | U124: 59118746.9 | V124: 37417340.07 | W124: 16084687.06 | X124: 495137.74 | Y124: 21701406.83 | Z124: 9109227.46 | AA124: 1340000 | AB124: =+DaneN0[[#This Row],[P]]-DaneN0[[#This Row],[Pd]] -> 7769227.46 | AC124: 1340000 | AD124: 1340000 | AE124: 6883000 | AF124: 6512352.15 | AG124: 11540 | AH124: 42959.67 | AI124: 0 | AJ124: 0
A125: 2 | B125: 19 | C125: 6 | D125: 3 | E125: G | F125: =+TEXT(DaneN0[[#This Row],[WK]],"00")&DaneN0[[#This Row],[TYPS]]&D125&TEXT(DaneN0[[#This Row],[PK]],"00") -> 02G319 | G125: =+IF(ISERROR(VLOOKUP(DaneN0[[#This Row],[KodGUS6]],LstMetropolie[],1,FALSE)),DaneN0[[#This Row],[Typ]],"T") -> G | H125: 021906 | I125: 219063 | J125: STRZEGOM | L125: 2024 | M125: 24065 | N125: 190652323.4 | O125: 173947770.3 | P125: =+DaneN0[[#This Row],[Dbs]]+DaneN0[[#This Row],[Dbd]] -> 62489591.26 | Q125: 33851912 | R125: 28637679.26 | S125: 16704553.06 | T125: 447436.35 | U125: 190637527.8 | V125: 160277197.6 | W125: 66568867.77 | X125: 2697976.66 | Y125: 30360330.2 | Z125: 14790206.31 | AA125: 9500000 | AB125: =+DaneN0[[#This Row],[P]]-DaneN0[[#This Row],[Pd]] -> 5290206.31 | AC125: 7137945.56 | AD125: 7137945.56 | AE125: 41882775.35 | AF125: 13670572.71 | AG125: 130092.08 | AH125: 260654.35 | AI125: 0 | AJ125: 3224.94
A126: 2 | B126: 19 | C126: 7 | D126: 2 | E126: G | F126: =+TEXT(DaneN0[[#This Row],[WK]],"00")&DaneN0[[#This Row],[TYPS]]&D126&TEXT(DaneN0[[#This Row],[PK]],"00") -> 02G219 | G126: =+IF(ISERROR(VLOOKUP(DaneN0[[#This Row],[KodGUS6]],LstMetropolie[],1,FALSE)),DaneN0[[#This Row],[Typ]],"T") -> G | H126: 021907 | I126: 219072 | J126: ŚWIDNICA | L126: 2024 | M126: 18066 | N126: 150340380.7 | O126: 134071807 | P126: =+DaneN0[[#This Row],[Dbs]]+DaneN0[[#This Row],[Dbd]] -> 65623322.47 | Q126: 37375074 | R126: 28248248.47 | S126: 16268573.62 | T126: 651753.24 | U126: 158023843.9 | V126: 122184625 | W126: 46475204.53 | X126: 5029811 | Y126: 35839218.88 | Z126: 25165595.2 | AA126: 9500000 | AB126: =+DaneN0[[#This Row],[P]]-DaneN0[[#This Row],[Pd]] -> 15665595.2 | AC126: 4000000 | AD126: 4000000 | AE126: 72200000 | AF126: 11887182 | AG126: 307595.92 | AH126: 326304.9 | AI126: 0 | AJ126: 0
A127: 2 | B127: 19 | C127: 8 | D127: 3 | E127: G | F127: =+TEXT(DaneN0[[#This Row],[WK]],"00")&DaneN0[[#This Row],[TYPS]]&D127&TEXT(DaneN0[[#This Row],[PK]],"00") -> 02G319 | G127: =+IF(ISERROR(VLOOKUP(DaneN0[[#This Row],[KodGUS6]],LstMetropolie[],1,FALSE)),DaneN0[[#This Row],[Typ]],"T") -> G | H127: 021908 | I127: 219083 | J127: ŻARÓW | L127: 2024 | M127: 12068 | N127: 95691110.76 | O127: 79976047.78 | P127: =+DaneN0[[#This Row],[Dbs]]+DaneN0[[#This Row],[Dbd]] -> 29386221.29 | Q127: 18523823 | R127: 10862398.29 | S127: 15715062.98 | T127: 2005387.76 | U127: 93089610.37 | V127: 73904022.38 | W127: 29352529.23 | X127: 2808946.62 | Y127: 19185587.99 | Z127: 12130141.35 | AA127: 8500000 | AB127: =+DaneN0[[#This Row],[P]]-DaneN0[[#This Row],[Pd]] -> 3630141.35 | AC127: 3701848 | AD127: 3701848 | AE127: 44576318.96 | AF127: 6072025.4 | AG127: 28174.89 | AH127: 74670.69 | AI127: 0 | AJ127: 0
A128: 2 | B128: 20 | C128: 1 | D128: 3 | E128: G | F128: =+TEXT(DaneN0[[#This Row],[WK]],"00")&DaneN0[[#This Row],[TYPS]]&D128&TEXT(DaneN0[[#This Row],[PK]],"00") -> 02G320 | G128: =+IF(ISERROR(VLOOKUP(DaneN0[[#This Row],[KodGUS6]],LstMetropolie[],1,FALSE)),DaneN0[[#This Row],[Typ]],"T") -> G | H128: 022001 | I128: 220013 | J128: OBORNIKI ŚLĄSKIE | L128: 2024 | M128: 21145 | N128: 135013628.4 | O128: 122893776.5 | P128: =+DaneN0[[#This Row],[Dbs]]+DaneN0[[#This Row],[Dbd]] -> 45006625.7 | Q128: 27396727 | R128: 17609898.7 | S128: 12119851.89 | T128: 1355516.81 | U128: 142127470.6 | V128: 123100229.5 | W128: 61567356.52 | X128: 3952420.1 | Y128: 19027241.04 | Z128: 18601539.8 | AA128: 17000000 | AB128: =+DaneN0[[#This Row],[P]]-DaneN0[[#This Row],[Pd]] -> 1601539.8 | AC128: 4100000 | AD128: 4100000 | AE128: 65004657.48 | AF128: -206453.02 | AG128: 1069950.43 | AH128: 271273.26 | AI128: 48203.48 | AJ128: 0
A129: 2 | B129: 20 | C129: 2 | D129: 3 | E129: G | F129: =+TEXT(DaneN0[[#This Row],[WK]],"00")&DaneN0[[#This Row],[TYPS]]&D129&TEXT(DaneN0[[#This Row],[PK]],"00") -> 02G320 | G129: =+IF(ISERROR(VLOOKUP(DaneN0[[#This Row],[KodGUS6]],LstMetropolie[],1,FALSE)),DaneN0[[#This Row],[Typ]],"T") -> G | H129: 022002 | I129: 220023 | J129: PRUSICE | L129: 2024 | M129: 9287 | N129: 74603779.19 | O129: 56849067.47 | P129: =+DaneN0[[#This Row],[Dbs]]+DaneN0[[#This Row],[Dbd]] -> 28808306 | Q129: 15023164 | R129: 13785142 | S129: 17754711.72 | T129: 2094741.99 | U129: 87295270.54 | V129: 60783225.77 | W129: 24572892.42 | X129: 3980606.37 | Y129: 26512044.77 | Z129: 15693473.79 | AA129: 15693473.79 | AB129: =+DaneN0[[#This Row],[P]]-DaneN0[[#This Row],[Pd]] -> 0 | AC129: 2128161.21 | AD129: 1728161.21 | AE129: 61150279.28 | AF129: -3934158.3 | AG129: 2556773.35 | AH129: 169195.39 | AI129: 0 | AJ129: 0
A130: 2 | B130: 20 | C130: 3 | D130: 3 | E130: G | F130: =+TEXT(DaneN0[[#This Row],[WK]],"00")&DaneN0[[#This Row],[TYPS]]&D130&TEXT(DaneN0[[#This Row],[PK]],"00") -> 02G320 | G130: =+IF(ISERROR(VLOOKUP(DaneN0[[#This Row],[KodGUS6]],LstMetropolie[],1,FALSE)),DaneN0[[#This Row],[Typ]],"T") -> G | H130: 022003 | I130: 220033 | J130: TRZEBNICA | L130: 2024 | M130: 25068 | N130: 187034808.4 | O130: 157553858.1 | P130: =+DaneN0[[#This Row],[Dbs]]+DaneN0[[#This Row],[Dbd]] -> 60590200.33 | Q130: 37428599 | R130: 23161601.33 | S130: 29480950.3 | T130: 11375654.68 | U130: 194634546.9 | V130: 156947756.3 | W130: 79848922.66 | X130: 7985931.02 | Y130: 37686790.59 | Z130: 17325617.42 | AA130: 12600000 | AB130: =+DaneN0[[#This Row],[P]]-DaneN0[[#This Row],[Pd]] -> 4725617.42 | AC130: 4321569.45 | AD130: 4321569.45 | AE130: 107366373.5 | AF130: 606101.78 | AG130: 326089.01 | AH130: 366718.24 | AI130: 0 | AJ130: 47109.57
A131: 2 | B131: 20 | C131: 4 | D131: 2 | E131: G | F131: =+TEXT(DaneN0[[#This Row],[WK]],"00")&DaneN0[[#This Row],[TYPS]]&D131&TEXT(DaneN0[[#This Row],[PK]],"00") -> 02G220 | G131: =+IF(ISERROR(VLOOKUP(DaneN0[[#This Row],[KodGUS6]],LstMetropolie[],1,FALSE)),DaneN0[[#This Row],[Typ]],"T") -> G | H131: 022004 | I131: 220042 | J131: WISZNIA MAŁA | L131: 2024 | M131: 12218 | N131: 103314188.8 | O131: 93091122.02 | P131: =+DaneN0[[#This Row],[Dbs]]+DaneN0[[#This Row],[Dbd]] -> 29220899.63 | Q131: 18389284 | R131: 10831615.63 | S131: 10223066.76 | T131: 138554.75 | U131: 102678532.5 | V131: 79157916.06 | W131: 32764893.3 | X131: 2676788.21 | Y131: 23520616.45 | Z131: 15023947.34 | AA131: 9300000 | AB131: =+DaneN0[[#This Row],[P]]-DaneN0[[#This Row],[Pd]] -> 5723947.34 | AC131: 2900000 | AD131: 2900000 | AE131: 44421632.98 | AF131: 13933205.96 | AG131: 1363986.03 | AH131: 416516.87 | AI131: 0 | AJ131: 0
A132: 2 | B132: 20 | C132: 5 | D132: 2 | E132: G | F132: =+TEXT(DaneN0[[#This Row],[WK]],"00")&DaneN0[[#This Row],[TYPS]]&D132&TEXT(DaneN0[[#This Row],[PK]],"00") -> 02G220 | G132: =+IF(ISERROR(VLOOKUP(DaneN0[[#This Row],[KodGUS6]],LstMetropolie[],1,FALSE)),DaneN0[[#This Row],[Typ]],"T") -> G | H132: 022005 | I132: 220052 | J132: ZAWONIA | L132: 2024 | M132: 5892 | N132: 61726557.41 | O132: 43647031.64 | P132: =+DaneN0[[#This Row],[Dbs]]+DaneN0[[#This Row],[Dbd]] -> 15784291.43 | Q132: 9930808 | R132: 5853483.43 | S132: 18079525.77 | T132: 10881.81 | U132: 53470494.76 | V132: 33663312.28 | W132: 14417933.97 | X132: 26975.44 | Y132: 19807182.48 | Z132: 20172815.58 | AA132: 0 | AB132: =+DaneN0[[#This Row],[P]]-DaneN0[[#This Row],[Pd]] -> 20172815.58 | AC132: 127735 | AD132: 127735 | AE132: 898115 | AF132: 9983719.36 | AG132: 12600 | AH132: 0 | AI132: 0 | AJ132: 0
A133: 2 | B133: 20 | C133: 6 | D133: 3 | E133: G | F133: =+TEXT(DaneN0[[#This Row],[WK]],"00")&DaneN0[[#This Row],[TYPS]]&D133&TEXT(DaneN0[[#This Row],[PK]],"00") -> 02G320 | G133: =+IF(ISERROR(VLOOKUP(DaneN0[[#This Row],[KodGUS6]],LstMetropolie[],1,FALSE)),DaneN0[[#This Row],[Typ]],"T") -> G | H133: 022006 | I133: 220063 | J133: ŻMIGRÓD | L133: 2024 | M133: 14128 | N133: 106190075.2 | O133: 91167359.76 | P133: =+DaneN0[[#This Row],[Dbs]]+DaneN0[[#This Row],[Dbd]] -> 47802382.72 | Q133: 28152919 | R133: 19649463.72 | S133: 15022715.46 | T133: 1869481.95 | U133: 106673605.2 | V133: 90323815.14 | W133: 37327420.31 | X133: 4469163.88 | Y133: 16349790.11 | Z133: 7134235.8 | AA133: 0 | AB133: =+DaneN0[[#This Row],[P]]-DaneN0[[#This Row],[Pd]] -> 7134235.8 | AC133: 2394356 | AD133: 2394356 | AE133: 56186349.5 | AF133: 843544.62 | AG133: 1694586.76 | AH133: 923533.6 | AI133: 0 | AJ133: 166993.5
A134: 2 | B134: 21 | C134: 1 | D134: 1 | E134: G | F134: =+TEXT(DaneN0[[#This Row],[WK]],"00")&DaneN0[[#This Row],[TYPS]]&D134&TEXT(DaneN0[[#This Row],[PK]],"00") -> 02G121 | G134: =+IF(ISERROR(VLOOKUP(DaneN0[[#This Row],[KodGUS6]],LstMetropolie[],1,FALSE)),DaneN0[[#This Row],[Typ]],"T") -> G | H134: 022101 | I134: 221011 | J134: BOGUSZÓW-GORCE | L134: 2024 | M134: 14129 | N134: 96298156.96 | O134: 80566099.72 | P134: =+DaneN0[[#This Row],[Dbs]]+DaneN0[[#This Row],[Dbd]] -> 45192471.94 | Q134: 28780043 | R134: 16412428.94 | S134: 15732057.24 | T134: 1999261.43 | U134: 101279107.2 | V134: 78610562.79 | W134: 27647104.21 | X134: 954092.44 | Y134: 22668544.4 | Z134: 21448556.87 | AA134: 10000000 | AB134: =+DaneN0[[#This Row],[P]]-DaneN0[[#This Row],[Pd]] -> 11448556.87 | AC134: 2500000 | AD134: 2500000 | AE134: 17612644.75 | AF134: 1955536.93 | AG134: 17800 | AH134: 86379.36 | AI134: 0 | AJ134: 112644.75
A135: 2 | B135: 21 | C135: 2 | D135: 1 | E135: G | F135: =+TEXT(DaneN0[[#This Row],[WK]],"00")&DaneN0[[#This Row],[TYPS]]&D135&TEXT(DaneN0[[#This Row],[PK]],"00") -> 02G121 | G135: =+IF(ISERROR(VLOOKUP(DaneN0[[#This Row],[KodGUS6]],LstMetropolie[],1,FALSE)),DaneN0[[#This Row],[Typ]],"T") -> G | H135: 022102 | I135: 221021 | J135: JEDLINA-ZDRÓJ | L135: 2024 | M135: 4617 | N135: 46842953.22 | O135: 30381943.3 | P135: =+DaneN0[[#This Row],[Dbs]]+DaneN0[[#This Row],[Dbd]] -> 16483165.61 | Q135: 9329324 | R135: 7153841.61 | S135: 16461009.92 | T135: 1209835.21 | U135: 48759155.96 | V135: 30698967.53 | W135: 11769117.84 | X135: 1537070.03 | Y135: 18060188.43 | Z135: 6379968.08 | AA135: 6000000 | AB135: =+DaneN0[[#This Row],[P]]-DaneN0[[#This Row],[Pd]] -> 379968.08 | AC135: 1321964 | AD135: 1321964 | AE135: 22655409 | AF135: -317024.23 | AG135: 616155.99 | AH135: 321276.93 | AI135: 0 | AJ135: 2850.5
A136: 2 | B136: 21 | C136: 3 | D136: 1 | E136: G | F136: =+TEXT(DaneN0[[#This Row],[WK]],"00")&DaneN0[[#This Row],[TYPS]]&D136&TEXT(DaneN0[[#This Row],[PK]],"00") -> 02G121 | G136: =+IF(ISERROR(VLOOKUP(DaneN0[[#This Row],[KodGUS6]],LstMetropolie[],1,FALSE)),DaneN0[[#This Row],[Typ]],"T") -> G | H136: 022103 | I136: 221031 | J136: SZCZAWNO-ZDRÓJ | L136: 2024 | M136: 5241 | N136: 51845441.44 | O136: 39805354.67 | P136: =+DaneN0[[#This Row],[Dbs]]+DaneN0[[#This Row],[Dbd]] -> 12007711.43 | Q136: 6072028 | R136: 5935683.43 | S136: 12040086.77 | T136: 3936172.91 | U136: 54139202.84 | V136: 39187218.93 | W136: 17203217.68 | X136: 1551358.44 | Y136: 14951983.91 | Z136: 9415414.41 | AA136: 6000000 | AB136: =+DaneN0[[#This Row],[P]]-DaneN0[[#This Row],[Pd]] -> 3415414.41 | AC136: 1148112 | AD136: 1148112 | AE136: 26218259.4 | AF136: 618135.74 | AG136: 0 | AH136: 25773.62 | AI136: 0 | AJ136: 12665
A137: 2 | B137: 21 | C137: 4 | D137: 2 | E137: G | F137: =+TEXT(DaneN0[[#This Row],[WK]],"00")&DaneN0[[#This Row],[TYPS]]&D137&TEXT(DaneN0[[#This Row],[PK]],"00") -> 02G221 | G137: =+IF(ISERROR(VLOOKUP(DaneN0[[#This Row],[KodGUS6]],LstMetropolie[],1,FALSE)),DaneN0[[#This Row],[Typ]],"T") -> G | H137: =+TEXT(A137,"00")&TEXT(B137,"00")&TEXT(C137,"00") -> 022104 | I137: 221042 | J137: CZARNY BÓR | L137: =+Rok -> 2024 | M137: 4740 | N137: 47875168.24 | O137: 34586950.69 | P137: =+DaneN0[[#This Row],[Dbs]]+DaneN0[[#This Row],[Dbd]] -> 18598346.7 | Q137: 12226581 | R137: 6371765.7 | S137: 13288217.55 | T137: 660279.02 | U137: 46252787.52 | V137: 27634839.29 | W137: 12219051.62 | X137: 447390.2 | Y137: 18617948.23 | Z137: 9941434.97 | AA137: 0 | AB137: =+DaneN0[[#This Row],[P]]-DaneN0[[#This Row],[Pd]] -> 9941434.97 | AC137: 3300000 | AD137: 3300000 | AE137: 4700000 | AF137: 6952111.4 | AG137: 0 | AH137: 81645.69 | AI137: 0 | AJ137: 0
A138: 2 | B138: 21 | C138: 5 | D138: 3 | E138: G | F138: =+TEXT(DaneN0[[#This Row],[WK]],"00")&DaneN0[[#This Row],[TYPS]]&D138&TEXT(DaneN0[[#This Row],[PK]],"00") -> 02G321 | G138: =+IF(ISERROR(VLOOKUP(DaneN0[[#This Row],[KodGUS6]],LstMetropolie[],1,FALSE)),DaneN0[[#This Row],[Typ]],"T") -> G | H138: 022105 | I138: 221053 | J138: GŁUSZYCA | L138: 2024 | M138: 8011 | N138: 67705943.54 | O138: 47042558.19 | P138: =+DaneN0[[#This Row],[Dbs]]+DaneN0[[#This Row],[Dbd]] -> 27897441.93 | Q138: 18376103 | R138: 9521338.93 | S138: 20663385.35 | T138: 1982361.55 | U138: 75071028.96 | V138: 49515057.21 | W138: 18250758.29 | X138: 1442846.46 | Y138: 25555971.75 | Z138: 14486457.61 | AA138: 8130000 | AB138: =+DaneN0[[#This Row],[P]]-DaneN0[[#This Row],[Pd]] -> 6356457.61 | AC138: 1122360 | AD138: 1122360 | AE138: 25542000 | AF138: -2472499.02 | AG138: 639436.43 | AH138: 281582.04 | AI138: 0 | AJ138: 0
A139: 2 | B139: 21 | C139: 6 | D139: 3 | E139: G | F139: =+TEXT(DaneN0[[#This Row],[WK]],"00")&DaneN0[[#This Row],[TYPS]]&D139&TEXT(DaneN0[[#This Row],[PK]],"00") -> 02G321 | G139: =+IF(ISERROR(VLOOKUP(DaneN0[[#This Row],[KodGUS6]],LstMetropolie[],1,FALSE)),DaneN0[[#This Row],[Typ]],"T") -> G | H139: 022106 | I139: 221063 | J139: MIEROSZÓW | L139: 2024 | M139: 6164 | N139: 65275389.83 | O139: 43019298.81 | P139: =+DaneN0[[#This Row],[Dbs]]+DaneN0[[#This Row],[Dbd]] -> 21843768.91 | Q139: 14495622 | R139: 7348146.91 | S139: 22256091.02 | T139: 1601824.31 | U139: 66153753.24 | V139: 40065510.54 | W139: 17511155.85 | X139: 940622.84 | Y139: 26088242.7 | Z139: 9689389.07 | AA139: 8600000 | AB139: =+DaneN0[[#This Row],[P]]-DaneN0[[#This Row],[Pd]] -> 1089389.07 | AC139: 3001419.32 | AD139: 3001419.32 | AE139: 17475440.8 | AF139: 2953788.27 | AG139: 14869.62 | AH139: 50643.43 | AI139: 0 | AJ139: 0
A140: 2 | B140: 21 | C140: 7 | D140: 2 | E140: G | F140: =+TEXT(DaneN0[[#This Row],[WK]],"00")&DaneN0[[#This Row],[TYPS]]&D140&TEXT(DaneN0[[#This Row],[PK]],"00") -> 02G221 | G140: =+IF(ISERROR(VLOOKUP(DaneN0[[#This Row],[KodGUS6]],LstMetropolie[],1,FALSE)),DaneN0[[#This Row],[Typ]],"T") -> G | H140: 022107 | I140: 221072 | J140: STARE BOGACZOWICE | L140: 2024 | M140: 4339 | N140: 30878546.41 | O140: 25380520.27 | P140: =+DaneN0[[#This Row],[Dbs]]+DaneN0[[#This Row],[Dbd]] -> 12937606.1 | Q140: 8812385 | R140: 4125221.1 | S140: 5498026.14 | T140: 280590 | U140: 27572526.2 | V140: 21532583.18 | W140: 9199054.57 | X140: 0 | Y140: 6039943.02 | Z140: 9031242.02 | AA140: 0 | AB140: =+DaneN0[[#This Row],[P]]-DaneN0[[#This Row],[Pd]] -> 9031242.02 | AC140: 0 | AD140: 0 | AE140: 0 | AF140: 3847937.09 | AG140: 0 | AH140: 0 | AI140: 0 | AJ140: 0
A141: 2 | B141: 21 | C141: 8 | D141: 2 | E141: G | F141: =+TEXT(DaneN0[[#This Row],[WK]],"00")&DaneN0[[#This Row],[TYPS]]&D141&TEXT(DaneN0[[#This Row],[PK]],"00") -> 02G221 | G141: =+IF(ISERROR(VLOOKUP(DaneN0[[#This Row],[KodGUS6]],LstMetropolie[],1,FALSE)),DaneN0[[#This Row],[Typ]],"T") -> G | H141: 022108 | I141: 221082 | J141: WALIM | L141: 2024 | M141: 5283 | N141: 48344287.75 | O141: 40170385.61 | P141: =+DaneN0[[#This Row],[Dbs]]+DaneN0[[#This Row],[Dbd]] -> 23103357.27 | Q141: 13039029 | R141: 10064328.27 | S141: 8173902.14 | T141: 516189 | U141: 54894638.17 | V141: 36960465.51 | W141: 14719001.44 | X141: 1302447.87 | Y141: 17934172.66 | Z141: 11703566.89 | AA141: 7500000 | AB141: =+DaneN0[[#This Row],[P]]-DaneN0[[#This Row],[Pd]] -> 4203566.89 | AC141: 400000 | AD141: 400000 | AE141: 25663778.61 | AF141: 3209920.1 | AG141: 306982.44 | AH141: 233881 | AI141: 0 | AJ141: 1778.61
A142: 2 | B142: 22 | C142: 1 | D142: 3 | E142: G | F142: =+TEXT(DaneN0[[#This Row],[WK]],"00")&DaneN0[[#This Row],[TYPS]]&D142&TEXT(DaneN0[[#This Row],[PK]],"00") -> 02G322 | G142: =+IF(ISERROR(VLOOKUP(DaneN0[[#This Row],[KodGUS6]],LstMetropolie[],1,FALSE)),DaneN0[[#This Row],[Typ]],"T") -> G | H142: 022201 | I142: 222013 | J142: BRZEG DOLNY | L142: 2024 | M142: 16050 | N142: 125810821.6 | O142: 118482193.4 | P142: =+DaneN0[[#This Row],[Dbs]]+DaneN0[[#This Row],[Dbd]] -> 34301387.32 | Q142: 20100141 | R142: 14201246.32 | S142: 7328628.23 | T142: 3626556.29 | U142: 123616866.8 | V142: 109685649.5 | W142: 52482288.76 | X142: 2350514.72 | Y142: 13931217.35 | Z142: 8852852.6 | AA142: 6500000 | AB142: =+DaneN0[[#This Row],[P]]-DaneN0[[#This Row],[Pd]] -> 2352852.6 | AC142: 3300000 | AD142: 2500000 | AE142: 36114103.91 | AF142: 8796543.92 | AG142: 186881.18 | AH142: 208484.25 | AI142: 0 | AJ142: 14103.91
A143: 2 | B143: 22 | C143: 2 | D143: 2 | E143: G | F143: =+TEXT(DaneN0[[#This Row],[WK]],"00")&DaneN0[[#This Row],[TYPS]]&D143&TEXT(DaneN0[[#This Row],[PK]],"00") -> 02G222 | G143: =+IF(ISERROR(VLOOKUP(DaneN0[[#This Row],[KodGUS6]],LstMetropolie[],1,FALSE)),DaneN0[[#This Row],[Typ]],"T") -> G | H143: 022202 | I143: 222022 | J143: WIŃSKO | L143: 2024 | M143: 7851 | N143: 62697200 | O143: 50282239.18 | P143: =+DaneN0[[#This Row],[Dbs]]+DaneN0[[#This Row],[Dbd]] -> 31544713.94 | Q143: 21323811 | R143: 10220902.94 | S143: 12414960.82 | T143: 1463728.78 | U143: 64630491.9 | V143: 47491558.93 | W143: 23624491 | X143: 1496082.49 | Y143: 17138932.97 | Z143: 6846148.67 | AA143: 2500000 | AB143: =+DaneN0[[#This Row],[P]]-DaneN0[[#This Row],[Pd]] -> 4346148.67 | AC143: 1100000 | AD143: 1100000 | AE143: 22000000 | AF143: 2790680.25 | AG143: 692550.57 | AH143: 422034.49 | AI143: 0 | AJ143: 0
A144: 2 | B144: 22 | C144: 3 | D144: 3 | E144: G | F144: =+TEXT(DaneN0[[#This Row],[WK]],"00")&DaneN0[[#This Row],[TYPS]]&D144&TEXT(DaneN0[[#This Row],[PK]],"00") -> 02G322 | G144: =+IF(ISERROR(VLOOKUP(DaneN0[[#This Row],[KodGUS6]],LstMetropolie[],1,FALSE)),DaneN0[[#This Row],[Typ]],"T") -> G | H144: 022203 | I144: 222033 | J144: WOŁÓW | L144: 2024 | M144: 21380 | N144: 168112148.8 | O144: 132646119.1 | P144: =+DaneN0[[#This Row],[Dbs]]+DaneN0[[#This Row],[Dbd]] -> 65379579.53 | Q144: 44318674 | R144: 21060905.53 | S144: 35466029.66 | T144: 1458852.12 | U144: 193946676.1 | V144: 128480585.2 | W144: 48647112.63 | X144: 7962042 | Y144: 65466090.88 | Z144: 37581971.88 | AA144: 19000000 | AB144: =+DaneN0[[#This Row],[P]]-DaneN0[[#This Row],[Pd]] -> 18581971.88 | AC144: 7800000 | AD144: 7725000 | AE144: 111896667.7 | AF144: 4165533.89 | AG144: 226595.88 | AH144: 386821.29 | AI144: 31552.95 | AJ144: 33492.03
A145: 2 | B145: 23 | C145: 1 | D145: 2 | E145: G | F145: =+TEXT(DaneN0[[#This Row],[WK]],"00")&DaneN0[[#This Row],[TYPS]]&D145&TEXT(DaneN0[[#This Row],[PK]],"00") -> 02G223 | G145: =+IF(ISERROR(VLOOKUP(DaneN0[[#This Row],[KodGUS6]],LstMetropolie[],1,FALSE)),DaneN0[[#This Row],[Typ]],"T") -> G | H145: 022301 | I145: 223012 | J145: CZERNICA | L145: 2024 | M145: 24544 | N145: 160829952.7 | O145: 146665038.3 | P145: =+DaneN0[[#This Row],[Dbs]]+DaneN0[[#This Row],[Dbd]] -> 56800900.09 | Q145: 42725937 | R145: 14074963.09 | S145: 14164914.36 | T145: 4054715.45 | U145: 151445041 | V145: 126096769.5 | W145: 62198720.05 | X145: 934433.39 | Y145: 25348271.58 | Z145: 24447715.44 | AA145: 0 | AB145: =+DaneN0[[#This Row],[P]]-DaneN0[[#This Row],[Pd]] -> 24447715.44 | AC145: 1594532 | AD145: 1594532 | AE145: 14078560 | AF145: 20568268.9 | AG145: 40137.02 | AH145: 13250.6 | AI145: 0 | AJ145: 0
A146: 2 | B146: 23 | C146: 2 | D146: 2 | E146: G | F146: =+TEXT(DaneN0[[#This Row],[WK]],"00")&DaneN0[[#This Row],[TYPS]]&D146&TEXT(DaneN0[[#This Row],[PK]],"00") -> 02G223 | G146: =+IF(ISERROR(VLOOKUP(DaneN0[[#This Row],[KodGUS6]],LstMetropolie[],1,FALSE)),DaneN0[[#This Row],[Typ]],"T") -> G | H146: 022302 | I146: 223022 | J146: DŁUGOŁĘKA | L146: 2024 | M146: 44486 | N146: 333504751.5 | O146: 319272122.2 | P146: =+DaneN0[[#This Row],[Dbs]]+DaneN0[[#This Row],[Dbd]] -> 109518572 | Q146: 85424083 | R146: 24094489.03 | S146: 14232629.29 | T146: 35591.06 | U146: 372530264.9 | V146: 279944863.1 | W146: 124104828 | X146: 7684507.86 | Y146: 92585401.78 | Z146: 73478369.89 | AA146: 52000000 | AB146: =+DaneN0[[#This Row],[P]]-DaneN0[[#This Row],[Pd]] -> 21478369.89 | AC146: 9108900 | AD146: 9108900 | AE146: 161516269 | AF146: 39327259.04 | AG146: 352028.63 | AH146: 379326.76 | AI146: 0 | AJ146: 0
A147: 2 | B147: 23 | C147: 3 | D147: 2 | E147: G | F147: =+TEXT(DaneN0[[#This Row],[WK]],"00")&DaneN0[[#This Row],[TYPS]]&D147&TEXT(DaneN0[[#This Row],[PK]],"00") -> 02G223 | G147: =+IF(ISERROR(VLOOKUP(DaneN0[[#This Row],[KodGUS6]],LstMetropolie[],1,FALSE)),DaneN0[[#This Row],[Typ]],"T") -> G | H147: 022303 | I147: 223032 | J147: JORDANÓW ŚLĄSKI | L147: 2024 | M147: 3282 | N147: 23110800.12 | O147: 22925705.28 | P147: =+DaneN0[[#This Row],[Dbs]]+DaneN0[[#This Row],[Dbd]] -> 11341073.75 | Q147: 8186315 | R147: 3154758.75 | S147: 185094.84 | T147: 31000 | U147: 22309499.8 | V147: 20434713.1 | W147: 10600411.39 | X147: 18025.35 | Y147: 1874786.7 | Z147: 5758020.98 | AA147: 0 | AB147: =+DaneN0[[#This Row],[P]]-DaneN0[[#This Row],[Pd]] -> 5758020.98 | AC147: 311671.6 | AD147: 311671.6 | AE147: 480218.05 | AF147: 2490992.18 | AG147: 560418.4 | AH147: 602612.93 | AI147: 0 | AJ147: 0
A148: 2 | B148: 23 | C148: 4 | D148: 3 | E148: G | F148: =+TEXT(DaneN0[[#This Row],[WK]],"00")&DaneN0[[#This Row],[TYPS]]&D148&TEXT(DaneN0[[#This Row],[PK]],"00") -> 02G323 | G148: =+IF(ISERROR(VLOOKUP(DaneN0[[#This Row],[KodGUS6]],LstMetropolie[],1,FALSE)),DaneN0[[#This Row],[Typ]],"T") -> G | H148: 022304 | I148: 223043 | J148: KĄTY WROCŁAWSKIE | L148: 2024 | M148: 30478 | N148: 301727812.6 | O148: 271541763.6 | P148: =+DaneN0[[#This Row],[Dbs]]+DaneN0[[#This Row],[Dbd]] -> 72284058.44 | Q148: 47781330 | R148: 24502728.44 | S148: 30186049.04 | T148: 935946 | U148: 284241868.7 | V148: 207504812.4 | W148: 88658942.42 | X148: 5625414.46 | Y148: 76737056.25 | Z148: 72624868.92 | AA148: 21611763.87 | AB148: =+DaneN0[[#This Row],[P]]-DaneN0[[#This Row],[Pd]] -> 51013105.05 | AC148: 12384800 | AD148: 12384800 | AE148: 97086590.87 | AF148: 64036951.2 | AG148: 1230146.83 | AH148: 659003.54 | AI148: 0 | AJ148: 0
A149: 2 | B149: 23 | C149: 5 | D149: 2 | E149: G | F149: =+TEXT(DaneN0[[#This Row],[WK]],"00")&DaneN0[[#This Row],[TYPS]]&D149&TEXT(DaneN0[[#This Row],[PK]],"00") -> 02G223 | G149: =+IF(ISERROR(VLOOKUP(DaneN0[[#This Row],[KodGUS6]],LstMetropolie[],1,FALSE)),DaneN0[[#This Row],[Typ]],"T") -> G | H149: 022305 | I149: 223052 | J149: KOBIERZYCE | L149: 2024 | M149: 25285 | N149: 457060602.6 | O149: 446277624.9 | P149: =+DaneN0[[#This Row],[Dbs]]+DaneN0[[#This Row],[Dbd]] -> 68417228.14 | Q149: 50643904 | R149: 17773324.14 | S149: 10782977.71 | T149: 98227.75 | U149: 378813777.4 | V149: 294681042.1 | W149: 124432423.1 | X149: 892534.34 | Y149: 84132735.24 | Z149: 227049887.1 | AA149: 0 | AB149: =+DaneN0[[#This Row],[P]]-DaneN0[[#This Row],[Pd]] -> 227049887.1 | AC149: 5614240 | AD149: 5564240 | AE149: 28995767 | AF149: 151596582.7 | AG149: 0 | AH149: 0 | AI149: 0 | AJ149: 0
A150: 2 | B150: 23 | C150: 6 | D150: 2 | E150: G | F150: =+TEXT(DaneN0[[#This Row],[WK]],"00")&DaneN0[[#This Row],[TYPS]]&D150&TEXT(DaneN0[[#This Row],[PK]],"00") -> 02G223 | G150: =+IF(ISERROR(VLOOKUP(DaneN0[[#This Row],[KodGUS6]],LstMetropolie[],1,FALSE)),DaneN0[[#This Row],[Typ]],"T") -> G | H150: 022306 | I150: 223062 | J150: MIETKÓW | L150: 2024 | M150: 3785 | N150: 27183245.59 | O150: 25244570.44 | P150: =+DaneN0[[#This Row],[Dbs]]+DaneN0[[#This Row],[Dbd]] -> 11623810.57 | Q150: 7038999 | R150: 4584811.57 | S150: 1938675.15 | T150: 272025.32 | U150: 26737335.11 | V150: 24414886.62 | W150: 12109448.85 | X150: 318982 | Y150: 2322448.49 | Z150: 2581853.77 | AA150: 0 | AB150: =+DaneN0[[#This Row],[P]]-DaneN0[[#This Row],[Pd]] -> 2581853.77 | AC150: 770000 | AD150: 770000 | AE150: 4490000 | AF150: 829683.82 | AG150: 23184 | AH150: 0 | AI150: 0 | AJ150: 0
A151: 2 | B151: 23 | C151: 7 | D151: 3 | E151: G | F151: =+TEXT(DaneN0[[#This Row],[WK]],"00")&DaneN0[[#This Row],[TYPS]]&D151&TEXT(DaneN0[[#This Row],[PK]],"00") -> 02G323 | G151: =+IF(ISERROR(VLOOKUP(DaneN0[[#This Row],[KodGUS6]],LstMetropolie[],1,FALSE)),DaneN0[[#This Row],[Typ]],"T") -> G | H151: 022307 | I151: 223073 | J151: SOBÓTKA | L151: 2024 | M151: 13043 | N151: 107760901.6 | O151: 87786552.97 | P151: =+DaneN0[[#This Row],[Dbs]]+DaneN0[[#This Row],[Dbd]] -> 39747730.1 | Q151: 27369462 | R151: 12378268.1 | S151: 19974348.64 | T151: 2717836.71 | U151: 107852343.9 | V151: 78747856.23 | W151: 32610971.94 | X151: 1378090.36 | Y151: 29104487.65 | Z151: 15361788.13 | AA151: 5827973.92 | AB151: =+DaneN0[[#This Row],[P]]-DaneN0[[#This Row],[Pd]] -> 9533814.21 | AC151: 2356000 | AD151: 2356000 | AE151: 26146189 | AF151: 9038696.74 | AG151: 86125.55 | AH151: 84678.14 | AI151: 0 | AJ151: 0
A152: 2 | B152: 23 | C152: 8 | D152: 3 | E152: G | F152: =+TEXT(DaneN0[[#This Row],[WK]],"00")&DaneN0[[#This Row],[TYPS]]&D152&TEXT(DaneN0[[#This Row],[PK]],"00") -> 02G323 | G152: =+IF(ISERROR(VLOOKUP(DaneN0[[#This Row],[KodGUS6]],LstMetropolie[],1,FALSE)),DaneN0[[#This Row],[Typ]],"T") -> G | H152: 022308 | I152: 223083 | J152: SIECHNICE | L152: 2024 | M152: 30737 | N152: 262600060.9 | O152: 230219073.6 | P152: =+DaneN0[[#This Row],[Dbs]]+DaneN0[[#This Row],[Dbd]] -> 76233786.17 | Q152: 55631931 | R152: 20601855.17 | S152: 32380987.35 | T152: 799485.76 | U152: 280111856.8 | V152: 206332181.9 | W152: 90060304.3 | X152: 7586421.54 | Y152: 73779674.84 | Z152: 59465693.76 | AA152: 27500000 | AB152: =+DaneN0[[#This Row],[P]]-DaneN0[[#This Row],[Pd]] -> 31965693.76 | AC152: 10782000 | AD152: 10782000 | AE152: 128271563.3 | AF152: 23886891.61 | AG152: 298265.65 | AH152: 20525.55 | AI152: 22481.54 | AJ152: 12750
A153: 2 | B153: 23 | C153: 9 | D153: 2 | E153: G | F153: =+TEXT(DaneN0[[#This Row],[WK]],"00")&DaneN0[[#This Row],[TYPS]]&D153&TEXT(DaneN0[[#This Row],[PK]],"00") -> 02G223 | G153: =+IF(ISERROR(VLOOKUP(DaneN0[[#This Row],[KodGUS6]],LstMetropolie[],1,FALSE)),DaneN0[[#This Row],[Typ]],"T") -> G | H153: 022309 | I153: 223092 | J153: ŻÓRAWINA | L153: 2024 | M153: 13931 | N153: 98501950.58 | O153: 93008392.68 | P153: =+DaneN0[[#This Row],[Dbs]]+DaneN0[[#This Row],[Dbd]] -> 32470289.8 | Q153: 23168224 | R153: 9302065.8 | S153: 5493557.9 | T153: 325012 | U153: 110318639.3 | V153: 80292582.86 | W153: 44157852.53 | X153: 327941.57 | Y153: 30026056.44 | Z153: 13211228.24 | AA153: 10000000 | AB153: =+DaneN0[[#This Row],[P]]-DaneN0[[#This Row],[Pd]] -> 3211228.24 | AC153: 1000000 | AD153: 1000000 | AE153: 14000000 | AF153: 12715809.82 | AG153: 0 | AH153: 0 | AI153: 0 | AJ153: 0
A154: 2 | B154: 24 | C154: 1 | D154: 3 | E154: G | F154: =+TEXT(DaneN0[[#This Row],[WK]],"00")&DaneN0[[#This Row],[TYPS]]&D154&TEXT(DaneN0[[#This Row],[PK]],"00") -> 02G324 | G154: =+IF(ISERROR(VLOOKUP(DaneN0[[#This Row],[KodGUS6]],LstMetropolie[],1,FALSE)),DaneN0[[#This Row],[Typ]],"T") -> G | H154: 022401 | I154: 224013 | J154: BARDO | L154: 2024 | M154: 4910 | N154: 82665525.6 | O154: 75130113.55 | P154: =+DaneN0[[#This Row],[Dbs]]+DaneN0[[#This Row],[Dbd]] -> 53596061.28 | Q154: 26999473 | R154: 26596588.28 | S154: 7535412.05 | T154: 346392 | U154: 60815011.89 | V154: 51012206.63 | W154: 14774385.57 | X154: 1336189.25 | Y154: 9802805.26 | Z154: 5781437.08 | AA154: 3300000 | AB154: =+DaneN0[[#This Row],[P]]-DaneN0[[#This Row],[Pd]] -> 2481437.08 | AC154: 873440 | AD154: 873440 | AE154: 21398858 | AF154: 24117906.92 | AG154: 771201.78 | AH154: 139052.79 | AI154: 18999.49 | AJ154: 0
A155: 2 | B155: 24 | C155: 2 | D155: 2 | E155: G | F155: =+TEXT(DaneN0[[#This Row],[WK]],"00")&DaneN0[[#This Row],[TYPS]]&D155&TEXT(DaneN0[[#This Row],[PK]],"00") -> 02G224 | G155: =+IF(ISERROR(VLOOKUP(DaneN0[[#This Row],[KodGUS6]],LstMetropolie[],1,FALSE)),DaneN0[[#This Row],[Typ]],"T") -> G | H155: 022402 | I155: 224022 | J155: CIEPŁOWODY | L155: 2024 | M155: 2808 | N155: 26026019.69 | O155: 21943752.69 | P155: =+DaneN0[[#This Row],[Dbs]]+DaneN0[[#This Row],[Dbd]] -> 12052051.8 | Q155: 7577887 | R155: 4474164.8 | S155: 4082267 | T155: 8130.08 | U155: 25805752.66 | V155: 16998526.34 | W155: 8442167.61 | X155: 13625.44 | Y155: 8807226.32 | Z155: 3334592.72 | AA155: 0 | AB155: =+DaneN0[[#This Row],[P]]-DaneN0[[#This Row],[Pd]] -> 3334592.72 | AC155: 100000 | AD155: 100000 | AE155: 200000 | AF155: 4945226.35 | AG155: 260016.48 | AH155: 100855.19 | AI155: 0 | AJ155: 0
A156: 2 | B156: 24 | C156: 3 | D156: 3 | E156: G | F156: =+TEXT(DaneN0[[#This Row],[WK]],"00")&DaneN0[[#This Row],[TYPS]]&D156&TEXT(DaneN0[[#This Row],[PK]],"00") -> 02G324 | G156: =+IF(ISERROR(VLOOKUP(DaneN0[[#This Row],[KodGUS6]],LstMetropolie[],1,FALSE)),DaneN0[[#This Row],[Typ]],"T") -> G | H156: 022403 | I156: 224033 | J156: KAMIENIEC ZĄBKOWICKI | L156: 2024 | M156: 7405 | N156: 95021146.8 | O156: 80875759.4 | P156: =+DaneN0[[#This Row],[Dbs]]+DaneN0[[#This Row],[Dbd]] -> 58033090.88 | Q156: 28514239 | R156: 29518851.88 | S156: 14145387.4 | T156: 2920602.95 | U156: 77937517.3 | V156: 62615615.34 | W156: 17059444.93 | X156: 1564141.28 | Y156: 15321901.96 | Z156: 4438663.15 | AA156: 100000 | AB156: =+DaneN0[[#This Row],[P]]-DaneN0[[#This Row],[Pd]] -> 4338663.15 | AC156: 883700 | AD156: 883700 | AE156: 22346462.7 | AF156: 18260144.06 | AG156: 506613.23 | AH156: 651138.27 | AI156: 0 | AJ156: 125660.77
A157: 2 | B157: 24 | C157: 4 | D157: 2 | E157: G | F157: =+TEXT(DaneN0[[#This Row],[WK]],"00")&DaneN0[[#This Row],[TYPS]]&D157&TEXT(DaneN0[[#This Row],[PK]],"00") -> 02G224 | G157: =+IF(ISERROR(VLOOKUP(DaneN0[[#This Row],[KodGUS6]],LstMetropolie[],1,FALSE)),DaneN0[[#This Row],[Typ]],"T") -> G | H157: 022404 | I157: 224042 | J157: STOSZOWICE | L157: 2024 | M157: 5115 | N157: 60086068.93 | O157: 51377115.25 | P157: =+DaneN0[[#This Row],[Dbs]]+DaneN0[[#This Row],[Dbd]] -> 38493269.4 | Q157: 27126940 | R157: 11366329.4 | S157: 8708953.68 | T157: 235608.51 | U157: 42255382.48 | V157: 35623447.04 | W157: 11615227.61 | X157: 1550134.42 | Y157: 6631935.44 | Z157: 9168611.66 | AA157: 5300000 | AB157: =+DaneN0[[#This Row],[P]]-DaneN0[[#This Row],[Pd]] -> 3868611.66 | AC157: 4488000 | AD157: 4488000 | AE157: 26895000 | AF157: 15753668.21 | AG157: 718318.32 | AH157: 26544.16 | AI157: 0 | AJ157: 0
A158: 2 | B158: 24 | C158: 5 | D158: 3 | E158: G | F158: =+TEXT(DaneN0[[#This Row],[WK]],"00")&DaneN0[[#This Row],[TYPS]]&D158&TEXT(DaneN0[[#This Row],[PK]],"00") -> 02G324 | G158: =+IF(ISERROR(VLOOKUP(DaneN0[[#This Row],[KodGUS6]],LstMetropolie[],1,FALSE)),DaneN0[[#This Row],[Typ]],"T") -> G | H158: 022405 | I158: 224053 | J158: ZĄBKOWICE ŚLĄSKIE | L158: 2024 | M158: 20592 | N158: 162748028.9 | O158: 133649890.1 | P158: =+DaneN0[[#This Row],[Dbs]]+DaneN0[[#This Row],[Dbd]] -> 59379154.24 | Q158: 31051451 | R158: 28327703.24 | S158: 29098138.82 | T158: 1653689.46 | U158: 169463071.7 | V158: 137788472.9 | W158: 56069400.91 | X158: 7164716.43 | Y158: 31674598.75 | Z158: 11492200.18 | AA158: 10000000 | AB158: =+DaneN0[[#This Row],[P]]-DaneN0[[#This Row],[Pd]] -> 1492200.18 | AC158: 2273058.77 | AD158: 2273058.77 | AE158: 98993860.53 | AF158: -4138582.78 | AG158: 1094857.91 | AH158: 620896.78 | AI158: 0 | AJ158: 0
A159: 2 | B159: 24 | C159: 6 | D159: 3 | E159: G | F159: =+TEXT(DaneN0[[#This Row],[WK]],"00")&DaneN0[[#This Row],[TYPS]]&D159&TEXT(DaneN0[[#This Row],[PK]],"00") -> 02G324 | G159: =+IF(ISERROR(VLOOKUP(DaneN0[[#This Row],[KodGUS6]],LstMetropolie[],1,FALSE)),DaneN0[[#This Row],[Typ]],"T") -> G | H159: 022406 | I159: 224063 | J159: ZIĘBICE | L159: 2024 | M159: 15455 | N159: 122260470.4 | O159: 92344709.61 | P159: =+DaneN0[[#This Row],[Dbs]]+DaneN0[[#This Row],[Dbd]] -> 51932342.63 | Q159: 34213184 | R159: 17719158.63 | S159: 29915760.8 | T159: 2354149.17 | U159: 132075595.4 | V159: 92082653.96 | W159: 38703298.93 | X159: 3637049 | Y159: 39992941.4 | Z159: 18024124.29 | AA159: 15000000 | AB159: =+DaneN0[[#This Row],[P]]-DaneN0[[#This Row],[Pd]] -> 3024124.29 | AC159: 2382478.28 | AD159: 2382478.28 | AE159: 60775622.73 | AF159: 262055.65 | AG159: 116681.64 | AH159: 14400 | AI159: 0 | AJ159: 40.76
A160: 2 | B160: 24 | C160: 7 | D160: 3 | E160: G | F160: =+TEXT(DaneN0[[#This Row],[WK]],"00")&DaneN0[[#This Row],[TYPS]]&D160&TEXT(DaneN0[[#This Row],[PK]],"00") -> 02G324 | G160: =+IF(ISERROR(VLOOKUP(DaneN0[[#This Row],[KodGUS6]],LstMetropolie[],1,FALSE)),DaneN0[[#This Row],[Typ]],"T") -> G | H160: 022407 | I160: 224073 | J160: ZŁOTY STOK | L160: 2024 | M160: 3979 | N160: 48820738.81 | O160: 27131114.62 | P160: =+DaneN0[[#This Row],[Dbs]]+DaneN0[[#This Row],[Dbd]] -> 16426370.86 | Q160: 10995808 | R160: 5430562.86 | S160: 21689624.19 | T160: 486143.1 | U160: 47488775.42 | V160: 25559627.83 | W160: 10336877.03 | X160: 1386501.76 | Y160: 21929147.59 | Z160: 6429444.5 | AA160: 2831000 | AB160: =+DaneN0[[#This Row],[P]]-DaneN0[[#This Row],[Pd]] -> 3598444.5 | AC160: 1590500 | AD160: 1590500 | AE160: 21812725 | AF160: 1571486.79 | AG160: 443215.22 | AH160: 251376.64 | AI160: 0 | AJ160: 0
A161: 2 | B161: 25 | C161: 1 | D161: 1 | E161: G | F161: =+TEXT(DaneN0[[#This Row],[WK]],"00")&DaneN0[[#This Row],[TYPS]]&D161&TEXT(DaneN0[[#This Row],[PK]],"00") -> 02G125 | G161: =+IF(ISERROR(VLOOKUP(DaneN0[[#This Row],[KodGUS6]],LstMetropolie[],1,FALSE)),DaneN0[[#This Row],[Typ]],"T") -> G | H161: 022501 | I161: 225011 | J161: ZAWIDÓW | L161: 2024 | M161: 3738 | N161: 31514989.08 | O161: 20942747.76 | P161: =+DaneN0[[#This Row],[Dbs]]+DaneN0[[#This Row],[Dbd]] -> 9836419.66 | Q161: 7000867 | R161: 2835552.66 | S161: 10572241.32 | T161: 0 | U161: 35433439.24 | V161: 19777830.03 | W161: 10598558.04 | X161: 74.74 | Y161: 15655609.21 | Z161: 4670196.06 | AA161: 400000 | AB161: =+DaneN0[[#This Row],[P]]-DaneN0[[#This Row],[Pd]] -> 4270196.06 | AC161: 0 | AD161: 0 | AE161: 400000 | AF161: 1164917.73 | AG161: 95420.1 | AH161: 19946.79 | AI161: 0 | AJ161: 0
A162: 2 | B162: 25 | C162: 2 | D162: 1 | E162: G | F162: =+TEXT(DaneN0[[#This Row],[WK]],"00")&DaneN0[[#This Row],[TYPS]]&D162&TEXT(DaneN0[[#This Row],[PK]],"00") -> 02G125 | G162: =+IF(ISERROR(VLOOKUP(DaneN0[[#This Row],[KodGUS6]],LstMetropolie[],1,FALSE)),DaneN0[[#This Row],[Typ]],"T") -> G | H162: 022502 | I162: 225021 | J162: ZGORZELEC | L162: 2024 | M162: 28706 | N162: 175879910.2 | O162: 160144800 | P162: =+DaneN0[[#This Row],[Dbs]]+DaneN0[[#This Row],[Dbd]] -> 62305381.08 | Q162: 38761062 | R162: 23544319.08 | S162: 15735110.16 | T162: 2432222.89 | U162: 188284829.2 | V162: 151937953.9 | W162: 60703905.89 | X162: 5337320.97 | Y162: 36346875.32 | Z162: 19762919.03 | AA162: 17740000 | AB162: =+DaneN0[[#This Row],[P]]-DaneN0[[#This Row],[Pd]] -> 2022919.03 | AC162: 7358000 | AD162: 7000000 | AE162: 82185444.3 | AF162: 8206846.13 | AG162: 849508.61 | AH162: 1688674.7 | AI162: 0 | AJ162: 535444.3
A163: 2 | B163: 25 | C163: 3 | D163: 3 | E163: G | F163: =+TEXT(DaneN0[[#This Row],[WK]],"00")&DaneN0[[#This Row],[TYPS]]&D163&TEXT(DaneN0[[#This Row],[PK]],"00") -> 02G325 | G163: =+IF(ISERROR(VLOOKUP(DaneN0[[#This Row],[KodGUS6]],LstMetropolie[],1,FALSE)),DaneN0[[#This Row],[Typ]],"T") -> G | H163: 022503 | I163: 225033 | J163: BOGATYNIA | L163: 2024 | M163: 21120 | N163: 237923734.6 | O163: 223430988 | P163: =+DaneN0[[#This Row],[Dbs]]+DaneN0[[#This Row],[Dbd]] -> 46132820.33 | Q163: 26701174 | R163: 19431646.33 | S163: 14492746.62 | T163: 802535.76 | U163: 235665201.6 | V163: 207089456.1 | W163: 84611367.58 | X163: 974202.28 | Y163: 28575745.57 | Z163: 14261514.71 | AA163: 0 | AB163: =+DaneN0[[#This Row],[P]]-DaneN0[[#This Row],[Pd]] -> 14261514.71 | AC163: 5424478.62 | AD163: 5024478.62 | AE163: 14948834.79 | AF163: 16341531.92 | AG163: 1888757.04 | AH163: 1410618.26 | AI163: 0 | AJ163: 4890908.86
A164: 2 | B164: 25 | C164: 4 | D164: 3 | E164: G | F164: =+TEXT(DaneN0[[#This Row],[WK]],"00")&DaneN0[[#This Row],[TYPS]]&D164&TEXT(DaneN0[[#This Row],[PK]],"00") -> 02G325 | G164: =+IF(ISERROR(VLOOKUP(DaneN0[[#This Row],[KodGUS6]],LstMetropolie[],1,FALSE)),DaneN0[[#This Row],[Typ]],"T") -> G | H164: 022504 | I164: 225043 | J164: PIEŃSK | L164: 2024 | M164: 8683 | N164: 50639766.55 | O164: 45641767.94 | P164: =+DaneN0[[#This Row],[Dbs]]+DaneN0[[#This Row],[Dbd]] -> 24677688.52 | Q164: 16867197 | R164: 7810491.52 | S164: 4997998.61 | T164: 1375688.07 | U164: 50232401.56 | V164: 43807685.41 | W164: 20002228.39 | X164: 827037.71 | Y164: 6424716.15 | Z164: 4374849.19 | AA164: 3200000 | AB164: =+DaneN0[[#This Row],[P]]-DaneN0[[#This Row],[Pd]] -> 1174849.19 | AC164: 1379997.86 | AD164: 1379997.86 | AE164: 13257414.26 | AF164: 1834082.53 | AG164: 577616.78 | AH164: 73189.99 | AI164: 0 | AJ164: 0
A165: 2 | B165: 25 | C165: 5 | D165: 2 | E165: G | F165: =+TEXT(DaneN0[[#This Row],[WK]],"00")&DaneN0[[#This Row],[TYPS]]&D165&TEXT(DaneN0[[#This Row],[PK]],"00") -> 02G225 | G165: =+IF(ISERROR(VLOOKUP(DaneN0[[#This Row],[KodGUS6]],LstMetropolie[],1,FALSE)),DaneN0[[#This Row],[Typ]],"T") -> G | H165: 022505 | I165: 225052 | J165: SULIKÓW | L165: 2024 | M165: 5811 | N165: 45529202.41 | O165: 35568880.39 | P165: =+DaneN0[[#This Row],[Dbs]]+DaneN0[[#This Row],[Dbd]] -> 15638296.87 | Q165: 10890190 | R165: 4748106.87 | S165: 9960322.02 | T165: 275771.51 | U165: 46842216.59 | V165: 32628163.15 | W165: 15920792.51 | X165: 322508.13 | Y165: 14214053.44 | Z165: 5272032.29 | AA165: 2500000 | AB165: =+DaneN0[[#This Row],[P]]-DaneN0[[#This Row],[Pd]] -> 2772032.29 | AC165: 1370758 | AD165: 1370758 | AE165: 6733041.7 | AF165: 2940717.24 | AG165: 0 | AH165: 35849.98 | AI165: 0 | AJ165: 0
A166: 2 | B166: 25 | C166: 6 | D166: 3 | E166: G | F166: =+TEXT(DaneN0[[#This Row],[WK]],"00")&DaneN0[[#This Row],[TYPS]]&D166&TEXT(DaneN0[[#This Row],[PK]],"00") -> 02G325 | G166: =+IF(ISERROR(VLOOKUP(DaneN0[[#This Row],[KodGUS6]],LstMetropolie[],1,FALSE)),DaneN0[[#This Row],[Typ]],"T") -> G | H166: 022506 | I166: 225063 | J166: WĘGLINIEC | L166: 2024 | M166: 7725 | N166: 61566526.58 | O166: 49028260.75 | P166: =+DaneN0[[#This Row],[Dbs]]+DaneN0[[#This Row],[Dbd]] -> 26836539.97 | Q166: 19589847 | R166: 7246692.97 | S166: 12538265.83 | T166: 713762.56 | U166: 60527244.22 | V166: 41311048.41 | W166: 19111809.6 | X166: 576813.3 | Y166: 19216195.81 | Z166: 5746360.03 | AA166: 2000000 | AB166: =+DaneN0[[#This Row],[P]]-DaneN0[[#This Row],[Pd]] -> 3746360.03 | AC166: 1458400 | AD166: 1458400 | AE166: 11285441 | AF166: 7717212.34 | AG166: 800897.15 | AH166: 137028.11 | AI166: 0 | AJ166: 51812
A167: 2 | B167: 25 | C167: 7 | D167: 2 | E167: G | F167: =+TEXT(DaneN0[[#This Row],[WK]],"00")&DaneN0[[#This Row],[TYPS]]&D167&TEXT(DaneN0[[#This Row],[PK]],"00") -> 02G225 | G167: =+IF(ISERROR(VLOOKUP(DaneN0[[#This Row],[KodGUS6]],LstMetropolie[],1,FALSE)),DaneN0[[#This Row],[Typ]],"T") -> G | H167: 022507 | I167: 225072 | J167: ZGORZELEC | L167: 2024 | M167: 8940 | N167: 66243344.08 | O167: 63348296.24 | P167: =+DaneN0[[#This Row],[Dbs]]+DaneN0[[#This Row],[Dbd]] -> 22640136.81 | Q167: 13633595 | R167: 9006541.81 | S167: 2895047.84 | T167: 24944.39 | U167: 69746117.17 | V167: 57839351.11 | W167: 28516114.43 | X167: 1386344 | Y167: 11906766.06 | Z167: 31021463.16 | AA167: 30000000 | AB167: =+DaneN0[[#This Row],[P]]-DaneN0[[#This Row],[Pd]] -> 1021463.16 | AC167: 27349900 | AD167: 27349900 | AE167: 25783192.62 | AF167: 5508945.13 | AG167: 286274.9 | AH167: 264213.45 | AI167: 67585.28 | AJ167: 0
A168: 2 | B168: 26 | C168: 1 | D168: 1 | E168: G | F168: =+TEXT(DaneN0[[#This Row],[WK]],"00")&DaneN0[[#This Row],[TYPS]]&D168&TEXT(DaneN0[[#This Row],[PK]],"00") -> 02G126 | G168: =+IF(ISERROR(VLOOKUP(DaneN0[[#This Row],[KodGUS6]],LstMetropolie[],1,FALSE)),DaneN0[[#This Row],[Typ]],"T") -> G | H168: 022601 | I168: 226011 | J168: WOJCIESZÓW | L168: 2024 | M168: 3423 | N168: 27698648.01 | O168: 24810689.85 | P168: =+DaneN0[[#This Row],[Dbs]]+DaneN0[[#This Row],[Dbd]] -> 14407965.77 | Q168: 10630164 | R168: 3777801.77 | S168: 2887958.16 | T168: 390953 | U168: 25041589.57 | V168: 21237255.27 | W168: 10869374.67 | X168: 240877.14 | Y168: 3804334.3 | Z168: 292939.87 | AA168: 0 | AB168: =+DaneN0[[#This Row],[P]]-DaneN0[[#This Row],[Pd]] -> 292939.87 | AC168: 833000 | AD168: 833000 | AE168: 5287064.57 | AF168: 3573434.58 | AG168: 107023.48 | AH168: 13630.56 | AI168: 0 | AJ168: 0
A169: 2 | B169: 26 | C169: 2 | D169: 1 | E169: G | F169: =+TEXT(DaneN0[[#This Row],[WK]],"00")&DaneN0[[#This Row],[TYPS]]&D169&TEXT(DaneN0[[#This Row],[PK]],"00") -> 02G126 | G169: =+IF(ISERROR(VLOOKUP(DaneN0[[#This Row],[KodGUS6]],LstMetropolie[],1,FALSE)),DaneN0[[#This Row],[Typ]],"T") -> G | H169: 022602 | I169: 226021 | J169: ZŁOTORYJA | L169: 2024 | M169: 14071 | N169: 110674623.7 | O169: 86489626.11 | P169: =+DaneN0[[#This Row],[Dbs]]+DaneN0[[#This Row],[Dbd]] -> 33246022.9 | Q169: 18870891 | R169: 14375131.9 | S169: 24184997.62 | T169: 1805548.76 | U169: 118456229.3 | V169: 89445678.75 | W169: 39178985.05 | X169: 1657300 | Y169: 29010550.51 | Z169: 19562389.78 | AA169: 4000000 | AB169: =+DaneN0[[#This Row],[P]]-DaneN0[[#This Row],[Pd]] -> 15562389.78 | AC169: 1209525.45 | AD169: 1209525.45 | AE169: 28491662.04 | AF169: -2956052.64 | AG169: 66036.84 | AH169: 60440.3 | AI169: 0 | AJ169: 0
A170: 2 | B170: 26 | C170: 3 | D170: 2 | E170: G | F170: =+TEXT(DaneN0[[#This Row],[WK]],"00")&DaneN0[[#This Row],[TYPS]]&D170&TEXT(DaneN0[[#This Row],[PK]],"00") -> 02G226 | G170: =+IF(ISERROR(VLOOKUP(DaneN0[[#This Row],[KodGUS6]],LstMetropolie[],1,FALSE)),DaneN0[[#This Row],[Typ]],"T") -> G | H170: 022603 | I170: 226032 | J170: PIELGRZYMKA | L170: 2024 | M170: 4193 | N170: 45873605.23 | O170: 32851443.44 | P170: =+DaneN0[[#This Row],[Dbs]]+DaneN0[[#This Row],[Dbd]] -> 18744627.77 | Q170: 11226320 | R170: 7518307.77 | S170: 13022161.79 | T170: 249395.46 | U170: 45987024.03 | V170: 31909271.43 | W170: 13283625.81 | X170: 744032.26 | Y170: 14077752.6 | Z170: 939484.48 | AA170: 0 | AB170: =+DaneN0[[#This Row],[P]]-DaneN0[[#This Row],[Pd]] -> 939484.48 | AC170: 671620 | AD170: 671620 | AE170: 9653860 | AF170: 942172.01 | AG170: 543266.48 | AH170: 247098.43 | AI170: 0 | AJ170: 0
A171: 2 | B171: 26 | C171: 4 | D171: 3 | E171: G | F171: =+TEXT(DaneN0[[#This Row],[WK]],"00")&DaneN0[[#This Row],[TYPS]]&D171&TEXT(DaneN0[[#This Row],[PK]],"00") -> 02G326 | G171: =+IF(ISERROR(VLOOKUP(DaneN0[[#This Row],[KodGUS6]],LstMetropolie[],1,FALSE)),DaneN0[[#This Row],[Typ]],"T") -> G | H171: 022604 | I171: 226043 | J171: ŚWIERZAWA | L171: 2024 | M171: 6971 | N171: 67611691.88 | O171: 54110521.11 | P171: =+DaneN0[[#This Row],[Dbs]]+DaneN0[[#This Row],[Dbd]] -> 39890432.32 | Q171: 28513565 | R171: 11376867.32 | S171: 13501170.77 | T171: 150344.52 | U171: 56889117.9 | V171: 41232116.62 | W171: 18492731.7 | X171: 561851.1 | Y171: 15657001.28 | Z171: 6286964.28 | AA171: 0 | AB171: =+DaneN0[[#This Row],[P]]-DaneN0[[#This Row],[Pd]] -> 6286964.28 | AC171: 1100000 | AD171: 1100000 | AE171: 6865000 | AF171: 12878404.49 | AG171: 120197.72 | AH171: 76464.02 | AI171: 0 | AJ171: 0
A172: 2 | B172: 26 | C172: 5 | D172: 2 | E172: G | F172: =+TEXT(DaneN0[[#This Row],[WK]],"00")&DaneN0[[#This Row],[TYPS]]&D172&TEXT(DaneN0[[#This Row],[PK]],"00") -> 02G226 | G172: =+IF(ISERROR(VLOOKUP(DaneN0[[#This Row],[KodGUS6]],LstMetropolie[],1,FALSE)),DaneN0[[#This Row],[Typ]],"T") -> G | H172: 022605 | I172: 226052 | J172: ZAGRODNO | L172: 2024 | M172: 4808 | N172: 37036786.95 | O172: 28911603.5 | P172: =+DaneN0[[#This Row],[Dbs]]+DaneN0[[#This Row],[Dbd]] -> 12081232.33 | Q172: 7104904 | R172: 4976328.33 | S172: 8125183.45 | T172: 26232.85 | U172: 32857813.05 | V172: 24825798.77 | W172: 10961501.97 | X172: 51757.99 | Y172: 8032014.28 | Z172: 5056744.89 | AA172: 0 | AB172: =+DaneN0[[#This Row],[P]]-DaneN0[[#This Row],[Pd]] -> 5056744.89 | AC172: 574187.76 | AD172: 574187.76 | AE172: 293395.07 | AF172: 4085804.73 | AG172: 0 | AH172: 0 | AI172: 0 | AJ172: 0
A173: 2 | B173: 26 | C173: 6 | D173: 2 | E173: G | F173: =+TEXT(DaneN0[[#This Row],[WK]],"00")&DaneN0[[#This Row],[TYPS]]&D173&TEXT(DaneN0[[#This Row],[PK]],"00") -> 02G226 | G173: =+IF(ISERROR(VLOOKUP(DaneN0[[#This Row],[KodGUS6]],LstMetropolie[],1,FALSE)),DaneN0[[#This Row],[Typ]],"T") -> G | H173: 022606 | I173: 226062 | J173: ZŁOTORYJA | L173: 2024 | M173: 6969 | N173: 54778922.23 | O173: 43514450.15 | P173: =+DaneN0[[#This Row],[Dbs]]+DaneN0[[#This Row],[Dbd]] -> 22340165.2 | Q173: 14401351 | R173: 7938814.2 | S173: 11264472.08 | T173: 5373203.01 | U173: 52443777.27 | V173: 39451160.36 | W173: 18424998.18 | X173: 468866.55 | Y173: 12992616.91 | Z173: 3681940.92 | AA173: 2514987.31 | AB173: =+DaneN0[[#This Row],[P]]-DaneN0[[#This Row],[Pd]] -> 1166953.61 | AC173: 875475.52 | AD173: 875475.52 | AE173: 10343702.6 | AF173: 4063289.79 | AG173: 61992 | AH173: 159681.58 | AI173: 0 | AJ173: 896472.66
A174: 4 | B174: 1 | C174: 1 | D174: 1 | E174: G | F174: =+TEXT(DaneN0[[#This Row],[WK]],"00")&DaneN0[[#This Row],[TYPS]]&D174&TEXT(DaneN0[[#This Row],[PK]],"00") -> 04G101 | G174: =+IF(ISERROR(VLOOKUP(DaneN0[[#This Row],[KodGUS6]],LstMetropolie[],1,FALSE)),DaneN0[[#This Row],[Typ]],"T") -> G | H174: 040101 | I174: 401011 | J174: ALEKSANDRÓW KUJAWSKI | L174: 2024 | M174: 11475 | N174: 77028506.18 | O174: 72358144.93 | P174: =+DaneN0[[#This Row],[Dbs]]+DaneN0[[#This Row],[Dbd]] -> 41685239.87 | Q174: 24716482 | R174: 16968757.87 | S174: 4670361.25 | T174: 193180.67 | U174: 81881315.15 | V174: 73077756.94 | W174: 27399201.45 | X174: 771538.93 | Y174: 8803558.21 | Z174: 9524606.21 | AA174: 0 | AB174: =+DaneN0[[#This Row],[P]]-DaneN0[[#This Row],[Pd]] -> 9524606.21 | AC174: 610000 | AD174: 610000 | AE174: 11034104.13 | AF174: -719612.01 | AG174: 334472.23 | AH174: 79472.23 | AI174: 0 | AJ174: 0
A175: 4 | B175: 1 | C175: 2 | D175: 1 | E175: G | F175: =+TEXT(DaneN0[[#This Row],[WK]],"00")&DaneN0[[#This Row],[TYPS]]&D175&TEXT(DaneN0[[#This Row],[PK]],"00") -> 04G101 | G175: =+IF(ISERROR(VLOOKUP(DaneN0[[#This Row],[KodGUS6]],LstMetropolie[],1,FALSE)),DaneN0[[#This Row],[Typ]],"T") -> G | H175: 040102 | I175: 401021 | J175: CIECHOCINEK | L175: 2024 | M175: 10113 | N175: 86459980.26 | O175: 80052071.28 | P175: =+DaneN0[[#This Row],[Dbs]]+DaneN0[[#This Row],[Dbd]] -> 31192299.22 | Q175: 11170652 | R175: 20021647.22 | S175: 6407908.98 | T175: 116100 | U175: 86909785.33 | V175: 75500403.48 | W175: 30538158.58 | X175: 1804314.6 | Y175: 11409381.85 | Z175: 19024014.4 | AA175: 2700000 | AB175: =+DaneN0[[#This Row],[P]]-DaneN0[[#This Row],[Pd]] -> 16324014.4 | AC175: 2700000 | AD175: 2700000 | AE175: 27640000 | AF175: 4551667.8 | AG175: 239335.48 | AH175: 15399 | AI175: 0 | AJ175: 0
A176: 4 | B176: 1 | C176: 3 | D176: 1 | E176: G | F176: =+TEXT(DaneN0[[#This Row],[WK]],"00")&DaneN0[[#This Row],[TYPS]]&D176&TEXT(DaneN0[[#This Row],[PK]],"00") -> 04G101 | G176: =+IF(ISERROR(VLOOKUP(DaneN0[[#This Row],[KodGUS6]],LstMetropolie[],1,FALSE)),DaneN0[[#This Row],[Typ]],"T") -> G | H176: 040103 | I176: 401031 | J176: NIESZAWA | L176: 2024 | M176: 1748 | N176: 21921952.52 | O176: 13527612.84 | P176: =+DaneN0[[#This Row],[Dbs]]+DaneN0[[#This Row],[Dbd]] -> 5735315.02 | Q176: 3236666 | R176: 2498649.02 | S176: 8394339.68 | T176: 28990 | U176: 20903270.7 | V176: 13387032.93 | W176: 7777370.65 | X176: 165184.33 | Y176: 7516237.77 | Z176: 4054093.96 | AA176: 0 | AB176: =+DaneN0[[#This Row],[P]]-DaneN0[[#This Row],[Pd]] -> 4054093.96 | AC176: 259248.95 | AD176: 259248.95 | AE176: 1729668.43 | AF176: 140579.91 | AG176: 178563.12 | AH176: 32454.4 | AI176: 0 | AJ176: 0
A177: 4 | B177: 1 | C177: 4 | D177: 2 | E177: G | F177: =+TEXT(DaneN0[[#This Row],[WK]],"00")&DaneN0[[#This Row],[TYPS]]&D177&TEXT(DaneN0[[#This Row],[PK]],"00") -> 04G201 | G177: =+IF(ISERROR(VLOOKUP(DaneN0[[#This Row],[KodGUS6]],LstMetropolie[],1,FALSE)),DaneN0[[#This Row],[Typ]],"T") -> G | H177: 040104 | I177: 401042 | J177: ALEKSANDRÓW KUJAWSKI | L177: 2024 | M177: 12014 | N177: 92093677.01 | O177: 72854328.04 | P177: =+DaneN0[[#This Row],[Dbs]]+DaneN0[[#This Row],[Dbd]] -> 44206346.8 | Q177: 26415740 | R177: 17790606.8 | S177: 19239348.97 | T177: 171591.79 | U177: 96151447.63 | V177: 68102624.42 | W177: 27506881.92 | X177: 1805447.35 | Y177: 28048823.21 | Z177: 7641458.56 | AA177: 0 | AB177: =+DaneN0[[#This Row],[P]]-DaneN0[[#This Row],[Pd]] -> 7641458.56 | AC177: 4225111 | AD177: 4225111 | AE177: 40095999 | AF177: 4751703.62 | AG177: 1171255.37 | AH177: 804985.19 | AI177: 0 | AJ177: 0
A178: 4 | B178: 1 | C178: 5 | D178: 2 | E178: G | F178: =+TEXT(DaneN0[[#This Row],[WK]],"00")&DaneN0[[#This Row],[TYPS]]&D178&TEXT(DaneN0[[#This Row],[PK]],"00") -> 04G201 | G178: =+IF(ISERROR(VLOOKUP(DaneN0[[#This Row],[KodGUS6]],LstMetropolie[],1,FALSE)),DaneN0[[#This Row],[Typ]],"T") -> G | H178: 040105 | I178: 401052 | J178: BĄDKOWO | L178: 2024 | M178: 4014 | N178: 34565287.95 | O178: 25863294.41 | P178: =+DaneN0[[#This Row],[Dbs]]+DaneN0[[#This Row],[Dbd]] -> 15929090.37 | Q178: 10203382 | R178: 5725708.37 | S178: 8701993.54 | T178: 348106.26 | U178: 34718451.06 | V178: 24827982.15 | W178: 13035693.07 | X178: 72372.53 | Y178: 9890468.91 | Z178: 2781377.4 | AA178: 0 | AB178: =+DaneN0[[#This Row],[P]]-DaneN0[[#This Row],[Pd]] -> 2781377.4 | AC178: 160000 | AD178: 160000 | AE178: 960000 | AF178: 1035312.26 | AG178: 18896.7 | AH178: 0 | AI178: 0 | AJ178: 0
A179: 4 | B179: 1 | C179: 6 | D179: 2 | E179: G | F179: =+TEXT(DaneN0[[#This Row],[WK]],"00")&DaneN0[[#This Row],[TYPS]]&D179&TEXT(DaneN0[[#This Row],[PK]],"00") -> 04G201 | G179: =+IF(ISERROR(VLOOKUP(DaneN0[[#This Row],[KodGUS6]],LstMetropolie[],1,FALSE)),DaneN0[[#This Row],[Typ]],"T") -> G | H179: 040106 | I179: 401062 | J179: KONECK | L179: 2024 | M179: 3084 | N179: 28042943.15 | O179: 22489738.15 | P179: =+DaneN0[[#This Row],[Dbs]]+DaneN0[[#This Row],[Dbd]] -> 14562071.4 | Q179: 10046250 | R179: 4515821.4 | S179: 5553205 | T179: 0 | U179: 24166976.13 | V179: 18802966.17 | W179: 7961530.94 | X179: 17352.93 | Y179: 5364009.96 | Z179: 5037349.18 | AA179: 0 | AB179: =+DaneN0[[#This Row],[P]]-DaneN0[[#This Row],[Pd]] -> 5037349.18 | AC179: 123291.96 | AD179: 123291.96 | AE179: 359601.55 | AF179: 3686771.98 | AG179: 77333.7 | AH179: 36859.99 | AI179: 0 | AJ179: 0
A180: 4 | B180: 1 | C180: 7 | D180: 2 | E180: G | F180: =+TEXT(DaneN0[[#This Row],[WK]],"00")&DaneN0[[#This Row],[TYPS]]&D180&TEXT(DaneN0[[#This Row],[PK]],"00") -> 04G201 | G180: =+IF(ISERROR(VLOOKUP(DaneN0[[#This Row],[KodGUS6]],LstMetropolie[],1,FALSE)),DaneN0[[#This Row],[Typ]],"T") -> G | H180: 040107 | I180: 401072 | J180: RACIĄŻEK | L180: 2024 | M180: 3151 | N180: 23822417.62 | O180: 20186007.01 | P180: =+DaneN0[[#This Row],[Dbs]]+DaneN0[[#This Row],[Dbd]] -> 12738909.39 | Q180: 8306048 | R180: 4432861.39 | S180: 3636410.61 | T180: 0 | U180: 24887431.75 | V180: 19140211.6 | W180: 9304817.89 | X180: 168974.42 | Y180: 5747220.15 | Z180: 1668440.19 | AA180: 0 | AB180: =+DaneN0[[#This Row],[P]]-DaneN0[[#This Row],[Pd]] -> 1668440.19 | AC180: 414080 | AD180: 414080 | AE180: 2741285.83 | AF180: 1045795.41 | AG180: 83185.2 | AH180: 0 | AI180: 0 | AJ180: 0
A181: 4 | B181: 1 | C181: 8 | D181: 2 | E181: G | F181: =+TEXT(DaneN0[[#This Row],[WK]],"00")&DaneN0[[#This Row],[TYPS]]&D181&TEXT(DaneN0[[#This Row],[PK]],"00") -> 04G201 | G181: =+IF(ISERROR(VLOOKUP(DaneN0[[#This Row],[KodGUS6]],LstMetropolie[],1,FALSE)),DaneN0[[#This Row],[Typ]],"T") -> G | H181: 040108 | I181: 401082 | J181: WAGANIEC | L181: 2024 | M181: 4404 | N181: 42543443.83 | O181: 29105194.52 | P181: =+DaneN0[[#This Row],[Dbs]]+DaneN0[[#This Row],[Dbd]] -> 17520061.01 | Q181: 12029741 | R181: 5490320.01 | S181: 13438249.31 | T181: 103520 | U181: 45047906.72 | V181: 29087102.39 | W181: 15213299.28 | X181: 880070.35 | Y181: 15960804.33 | Z181: 3795162.56 | AA181: 1650000 | AB181: =+DaneN0[[#This Row],[P]]-DaneN0[[#This Row],[Pd]] -> 2145162.56 | AC181: 650000 | AD181: 650000 | AE181: 14696115.76 | AF181: 18092.13 | AG181: 161674.9 | AH181: 90636.9 | AI181: 0 | AJ181: 0
A182: 4 | B182: 1 | C182: 9 | D182: 2 | E182: G | F182: =+TEXT(DaneN0[[#This Row],[WK]],"00")&DaneN0[[#This Row],[TYPS]]&D182&TEXT(DaneN0[[#This Row],[PK]],"00") -> 04G201 | G182: =+IF(ISERROR(VLOOKUP(DaneN0[[#This Row],[KodGUS6]],LstMetropolie[],1,FALSE)),DaneN0[[#This Row],[Typ]],"T") -> G | H182: 040109 | I182: 401092 | J182: ZAKRZEWO | L182: 2024 | M182: 3322 | N182: 38078995.34 | O182: 25229828.06 | P182: =+DaneN0[[#This Row],[Dbs]]+DaneN0[[#This Row],[Dbd]] -> 15549604.29 | Q182: 10229267 | R182: 5320337.29 | S182: 12849167.28 | T182: 12941.58 | U182: 40332440.91 | V182: 24687348.25 | W182: 10943940.54 | X182: 37679.72 | Y182: 15645092.66 | Z182: 5646818.58 | AA182: 0 | AB182: =+DaneN0[[#This Row],[P]]-DaneN0[[#This Row],[Pd]] -> 5646818.58 | AC182: 373446.8 | AD182: 373446.8 | AE182: 646304.7 | AF182: 542479.81 | AG182: 83600.1 | AH182: 14760 | AI182: 0 | AJ182: 0
A183: 4 | B183: 2 | C183: 1 | D183: 1 | E183: G | F183: =+TEXT(DaneN0[[#This Row],[WK]],"00")&DaneN0[[#This Row],[TYPS]]&D183&TEXT(DaneN0[[#This Row],[PK]],"00") -> 04G102 | G183: =+IF(ISERROR(VLOOKUP(DaneN0[[#This Row],[KodGUS6]],LstMetropolie[],1,FALSE)),DaneN0[[#This Row],[Typ]],"T") -> G | H183: 040201 | I183: 402011 | J183: BRODNICA | L183: 2024 | M183: 28104 | N183: 209841965.3 | O183: 185159523.7 | P183: =+DaneN0[[#This Row],[Dbs]]+DaneN0[[#This Row],[Dbd]] -> 85823129.48 | Q183: 52342456 | R183: 33480673.48 | S183: 24682441.63 | T183: 2105497.29 | U183: 221553713.8 | V183: 181728785.7 | W183: 79799387.32 | X183: 3299582.1 | Y183: 39824928.17 | Z183: 30765654.8 | AA183: 20407000 | AB183: =+DaneN0[[#This Row],[P]]-DaneN0[[#This Row],[Pd]] -> 10358654.8 | AC183: 3442000 | AD183: 3442000 | AE183: 63012000 | AF183: 3430738.02 | AG183: 2069993.51 | AH183: 1555229.61 | AI183: 0 | AJ183: 0
A184: 4 | B184: 2 | C184: 2 | D184: 2 | E184: G | F184: =+TEXT(DaneN0[[#This Row],[WK]],"00")&DaneN0[[#This Row],[TYPS]]&D184&TEXT(DaneN0[[#This Row],[PK]],"00") -> 04G202 | G184: =+IF(ISERROR(VLOOKUP(DaneN0[[#This Row],[KodGUS6]],LstMetropolie[],1,FALSE)),DaneN0[[#This Row],[Typ]],"T") -> G | H184: 040202 | I184: 402022 | J184: BOBROWO | L184: 2024 | M184: 6014 | N184: 52237247.95 | O184: 43513713.41 | P184: =+DaneN0[[#This Row],[Dbs]]+DaneN0[[#This Row],[Dbd]] -> 31215747.33 | Q184: 21721683 | R184: 9494064.33 | S184: 8723534.54 | T184: 195100 | U184: 50684163.62 | V184: 39847322.18 | W184: 18559903.26 | X184: 518647.3 | Y184: 10836841.44 | Z184: 7841116.96 | AA184: 0 | AB184: =+DaneN0[[#This Row],[P]]-DaneN0[[#This Row],[Pd]] -> 7841116.96 | AC184: 1024000 | AD184: 1024000 | AE184: 8024000 | AF184: 3666391.23 | AG184: 180908.1 | AH184: 169295.49 | AI184: 0 | AJ184: 0
A185: 4 | B185: 2 | C185: 3 | D185: 2 | E185: G | F185: =+TEXT(DaneN0[[#This Row],[WK]],"00")&DaneN0[[#This Row],[TYPS]]&D185&TEXT(DaneN0[[#This Row],[PK]],"00") -> 04G202 | G185: =+IF(ISERROR(VLOOKUP(DaneN0[[#This Row],[KodGUS6]],LstMetropolie[],1,FALSE)),DaneN0[[#This Row],[Typ]],"T") -> G | H185: 040203 | I185: 402032 | J185: BRODNICA | L185: 2024 | M185: 9551 | N185: 70565603.53 | O185: 60123100.47 | P185: =+DaneN0[[#This Row],[Dbs]]+DaneN0[[#This Row],[Dbd]] -> 28128377.18 | Q185: 17419885 | R185: 10708492.18 | S185: 10442503.06 | T185: 93400 | U185: 72524571.91 | V185: 52452627.47 | W185: 18999144.17 | X185: 543302.22 | Y185: 20071944.44 | Z185: 13305610.12 | AA185: 0 | AB185: =+DaneN0[[#This Row],[P]]-DaneN0[[#This Row],[Pd]] -> 13305610.12 | AC185: 2003000 | AD185: 2003000 | AE185: 6298000 | AF185: 7670473 | AG185: 0 | AH185: 62510.14 | AI185: 0 | AJ185: 0
A186: 4 | B186: 2 | C186: 4 | D186: 2 | E186: G | F186: =+TEXT(DaneN0[[#This Row],[WK]],"00")&DaneN0[[#This Row],[TYPS]]&D186&TEXT(DaneN0[[#This Row],[PK]],"00") -> 04G202 | G186: =+IF(ISERROR(VLOOKUP(DaneN0[[#This Row],[KodGUS6]],LstMetropolie[],1,FALSE)),DaneN0[[#This Row],[Typ]],"T") -> G | H186: 040204 | I186: 402042 | J186: BRZOZIE | L186: 2024 | M186: 3704 | N186: 35911613.99 | O186: 25995778.63 | P186: =+DaneN0[[#This Row],[Dbs]]+DaneN0[[#This Row],[Dbd]] -> 18094233.64 | Q186: 12604168 | R186: 5490065.64 | S186: 9915835.36 | T186: 0 | U186: 34853400.92 | V186: 23190492.98 | W186: 12169037.81 | X186: 121854.97 | Y186: 11662907.94 | Z186: 8535780.37 | AA186: 0 | AB186: =+DaneN0[[#This Row],[P]]-DaneN0[[#This Row],[Pd]] -> 8535780.37 | AC186: 328000 | AD186: 328000 | AE186: 1621000 | AF186: 2805285.65 | AG186: 1772.14 | AH186: 13896.33 | AI186: 0 | AJ186: 0
A187: 4 | B187: 2 | C187: 5 | D187: 3 | E187: G | F187: =+TEXT(DaneN0[[#This Row],[WK]],"00")&DaneN0[[#This Row],[TYPS]]&D187&TEXT(DaneN0[[#This Row],[PK]],"00") -> 04G302 | G187: =+IF(ISERROR(VLOOKUP(DaneN0[[#This Row],[KodGUS6]],LstMetropolie[],1,FALSE)),DaneN0[[#This Row],[Typ]],"T") -> G | H187: 040205 | I187: 402053 | J187: GÓRZNO | L187: 2024 | M187: 3718 | N187: 29919467.59 | O187: 28227792.1 | P187: =+DaneN0[[#This Row],[Dbs]]+DaneN0[[#This Row],[Dbd]] -> 19232761.12 | Q187: 13437684 | R187: 5795077.12 | S187: 1691675.49 | T187: 443600 | U187: 29595583.49 | V187: 26628361.14 | W187: 9933461.23 | X187: 269981.95 | Y187: 2967222.35 | Z187: 8098495.06 | AA187: 1780000 | AB187: =+DaneN0[[#This Row],[P]]-DaneN0[[#This Row],[Pd]] -> 6318495.06 | AC187: 574142.84 | AD187: 574142.84 | AE187: 5429301.01 | AF187: 1599430.96 | AG187: 216879.99 | AH187: 71799.9 | AI187: 0 | AJ187: 0
A188: 4 | B188: 2 | C188: 6 | D188: 2 | E188: G | F188: =+TEXT(DaneN0[[#This Row],[WK]],"00")&DaneN0[[#This Row],[TYPS]]&D188&TEXT(DaneN0[[#This Row],[PK]],"00") -> 04G202 | G188: =+IF(ISERROR(VLOOKUP(DaneN0[[#This Row],[KodGUS6]],LstMetropolie[],1,FALSE)),DaneN0[[#This Row],[Typ]],"T") -> G | H188: 040206 | I188: 402062 | J188: BARTNICZKA | L188: 2024 | M188: 4552 | N188: 33684526.03 | O188: 28918461.13 | P188: =+DaneN0[[#This Row],[Dbs]]+DaneN0[[#This Row],[Dbd]] -> 16859108.89 | Q188: 11355435 | R188: 5503673.89 | S188: 4766064.9 | T188: 10118 | U188: 32155096.47 | V188: 25543019.59 | W188: 12533136.93 | X188: 7304.96 | Y188: 6612076.88 | Z188: 2553483.14 | AA188: 0 | AB188: =+DaneN0[[#This Row],[P]]-DaneN0[[#This Row],[Pd]] -> 2553483.14 | AC188: 742764 | AD188: 742764 | AE188: 0 | AF188: 3375441.54 | AG188: 0 | AH188: 0 | AI188: 0 | AJ188: 0
A189: 4 | B189: 2 | C189: 7 | D189: 3 | E189: G | F189: =+TEXT(DaneN0[[#This Row],[WK]],"00")&DaneN0[[#This Row],[TYPS]]&D189&TEXT(DaneN0[[#This Row],[PK]],"00") -> 04G302 | G189: =+IF(ISERROR(VLOOKUP(DaneN0[[#This Row],[KodGUS6]],LstMetropolie[],1,FALSE)),DaneN0[[#This Row],[Typ]],"T") -> G | H189: 040207 | I189: 402073 | J189: JABŁONOWO POMORSKIE | L189: 2024 | M189: 8387 | N189: 79876049.66 | O189: 56243562.47 | P189: =+DaneN0[[#This Row],[Dbs]]+DaneN0[[#This Row],[Dbd]] -> 38306255.13 | Q189: 24504530 | R189: 13801725.13 | S189: 23632487.19 | T189: 409061.8 | U189: 94323644.46 | V189: 56018894.22 | W189: 24860637.09 | X189: 2186569.53 | Y189: 38304750.24 | Z189: 22696132.01 | AA189: 8500000 | AB189: =+DaneN0[[#This Row],[P]]-DaneN0[[#This Row],[Pd]] -> 14196132.01 | AC189: 1161622.4 | AD189: 1161622.4 | AE189: 38187229.42 | AF189: 224668.25 | AG189: 153438.34 | AH189: 89638.34 | AI189: 0 | AJ189: 404390.2
A190: 4 | B190: 2 | C190: 8 | D190: 2 | E190: G | F190: =+TEXT(DaneN0[[#This Row],[WK]],"00")&DaneN0[[#This Row],[TYPS]]&D190&TEXT(DaneN0[[#This Row],[PK]],"00") -> 04G202 | G190: =+IF(ISERROR(VLOOKUP(DaneN0[[#This Row],[KodGUS6]],LstMetropolie[],1,FALSE)),DaneN0[[#This Row],[Typ]],"T") -> G | H190: 040208 | I190: 402082 | J190: OSIEK | L190: 2024 | M190: 3765 | N190: 37364158.05 | O190: 25341751.49 | P190: =+DaneN0[[#This Row],[Dbs]]+DaneN0[[#This Row],[Dbd]] -> 14984545.62 | Q190: 9774123 | R190: 5210422.62 | S190: 12022406.56 | T190: 14418 | U190: 38956444.77 | V190: 24194362.33 | W190: 12687341.47 | X190: 599842.05 | Y190: 14762082.44 | Z190: 5577237.6 | AA190: 3010000 | AB190: =+DaneN0[[#This Row],[P]]-DaneN0[[#This Row],[Pd]] -> 2567237.6 | AC190: 1027000.24 | AD190: 1027000.24 | AE190: 11402249.76 | AF190: 1147389.16 | AG190: 123895.38 | AH190: 3293.38 | AI190: 0 | AJ190: 0
A191: 4 | B191: 2 | C191: 9 | D191: 2 | E191: G | F191: =+TEXT(DaneN0[[#This Row],[WK]],"00")&DaneN0[[#This Row],[TYPS]]&D191&TEXT(DaneN0[[#This Row],[PK]],"00") -> 04G202 | G191: =+IF(ISERROR(VLOOKUP(DaneN0[[#This Row],[KodGUS6]],LstMetropolie[],1,FALSE)),DaneN0[[#This Row],[Typ]],"T") -> G | H191: 040209 | I191: 402092 | J191: ŚWIEDZIEBNIA | L191: 2024 | M191: 4848 | N191: 37926967.62 | O191: 32562247.94 | P191: =+DaneN0[[#This Row],[Dbs]]+DaneN0[[#This Row],[Dbd]] -> 22045624.77 | Q191: 14287150 | R191: 7758474.77 | S191: 5364719.68 | T191: 0 | U191: 32298656.24 | V191: 29075597.78 | W191: 14099301.29 | X191: 375600.87 | Y191: 3223058.46 | Z191: 7331955.34 | AA191: 0 | AB191: =+DaneN0[[#This Row],[P]]-DaneN0[[#This Row],[Pd]] -> 7331955.34 | AC191: 4890650.41 | AD191: 4890650.41 | AE191: 4210000 | AF191: 3486650.16 | AG191: 81137.18 | AH191: 37921 | AI191: 0 | AJ191: 0
A192: 4 | B192: 2 | C192: 10 | D192: 2 | E192: G | F192: =+TEXT(DaneN0[[#This Row],[WK]],"00")&DaneN0[[#This Row],[TYPS]]&D192&TEXT(DaneN0[[#This Row],[PK]],"00") -> 04G202 | G192: =+IF(ISERROR(VLOOKUP(DaneN0[[#This Row],[KodGUS6]],LstMetropolie[],1,FALSE)),DaneN0[[#This Row],[Typ]],"T") -> G | H192: 040210 | I192: 402102 | J192: ZBICZNO | L192: 2024 | M192: 4950 | N192: 34059754.67 | O192: 31227177.83 | P192: =+DaneN0[[#This Row],[Dbs]]+DaneN0[[#This Row],[Dbd]] -> 19943448.83 | Q192: 13632961 | R192: 6310487.83 | S192: 2832576.84 | T192: 580397.24 | U192: 32548507.72 | V192: 27099550.04 | W192: 13081676.46 | X192: 364200.49 | Y192: 5448957.68 | Z192: 7014401.33 | AA192: 0 | AB192: =+DaneN0[[#This Row],[P]]-DaneN0[[#This Row],[Pd]] -> 7014401.33 | AC192: 3421480 | AD192: 921480 | AE192: 4345088.61 | AF192: 4127627.79 | AG192: 11049.24 | AH192: 254519.12 | AI192: 0 | AJ192: 0
A193: 4 | B193: 3 | C193: 1 | D193: 2 | E193: G | F193: =+TEXT(DaneN0[[#This Row],[WK]],"00")&DaneN0[[#This Row],[TYPS]]&D193&TEXT(DaneN0[[#This Row],[PK]],"00") -> 04G203 | G193: =+IF(ISERROR(VLOOKUP(DaneN0[[#This Row],[KodGUS6]],LstMetropolie[],1,FALSE)),DaneN0[[#This Row],[Typ]],"T") -> G | H193: 040301 | I193: 403012 | J193: BIAŁE BŁOTA | L193: 2024 | M193: 26354 | N193: 221564678.3 | O193: 202118071.1 | P193: =+DaneN0[[#This Row],[Dbs]]+DaneN0[[#This Row],[Dbd]] -> 78167301.05 | Q193: 53165992 | R193: 25001309.05 | S193: 19446607.26 | T193: 738861.3 | U193: 228209798.2 | V193: 183875057.4 | W193: 82875211.74 | X193: 6335692.83 | Y193: 44334740.76 | Z193: 29528767.73 | AA193: 23000000 | AB193: =+DaneN0[[#This Row],[P]]-DaneN0[[#This Row],[Pd]] -> 6528767.73 | AC193: 6025532.04 | AD193: 6025532.04 | AE193: 110665000 | AF193: 18243013.65 | AG193: 741777.18 | AH193: 606650.54 | AI193: 0 | AJ193: 0
A194: 4 | B194: 3 | C194: 2 | D194: 2 | E194: G | F194: =+TEXT(DaneN0[[#This Row],[WK]],"00")&DaneN0[[#This Row],[TYPS]]&D194&TEXT(DaneN0[[#This Row],[PK]],"00") -> 04G203 | G194: =+IF(ISERROR(VLOOKUP(DaneN0[[#This Row],[KodGUS6]],LstMetropolie[],1,FALSE)),DaneN0[[#This Row],[Typ]],"T") -> G | H194: 040302 | I194: 403022 | J194: DĄBROWA CHEŁMIŃSKA | L194: 2024 | M194: 8635 | N194: 62667641.69 | O194: 57799672.48 | P194: =+DaneN0[[#This Row],[Dbs]]+DaneN0[[#This Row],[Dbd]] -> 30858703.62 | Q194: 20560894 | R194: 10297809.62 | S194: 4867969.21 | T194: 781122.01 | U194: 61501348.24 | V194: 53809375.16 | W194: 27390169.75 | X194: 393106.74 | Y194: 7691973.08 | Z194: 10363554.03 | AA194: 1538581.5 | AB194: =+DaneN0[[#This Row],[P]]-DaneN0[[#This Row],[Pd]] -> 8824972.53 | AC194: 1090819.51 | AD194: 1090819.51 | AE194: 7142444.74 | AF194: 3990297.32 | AG194: 204329.07 | AH194: 80827.2 | AI194: 0 | AJ194: 0
A195: 4 | B195: 3 | C195: 3 | D195: 2 | E195: G | F195: =+TEXT(DaneN0[[#This Row],[WK]],"00")&DaneN0[[#This Row],[TYPS]]&D195&TEXT(DaneN0[[#This Row],[PK]],"00") -> 04G203 | G195: =+IF(ISERROR(VLOOKUP(DaneN0[[#This Row],[KodGUS6]],LstMetropolie[],1,FALSE)),DaneN0[[#This Row],[Typ]],"T") -> G | H195: 040303 | I195: 403032 | J195: DOBRCZ | L195: 2024 | M195: 12857 | N195: 101999678.3 | O195: 84218180.18 | P195: =+DaneN0[[#This Row],[Dbs]]+DaneN0[[#This Row],[Dbd]] -> 46732410.54 | Q195: 30517067 | R195: 16215343.54 | S195: 17781498.17 | T195: 154915.1 | U195: 104748139.4 | V195: 78839563.92 | W195: 36153262.11 | X195: 719771.97 | Y195: 25908575.5 | Z195: 7449215.24 | AA195: 4893750 | AB195: =+DaneN0[[#This Row],[P]]-DaneN0[[#This Row],[Pd]] -> 2555465.24 | AC195: 1593750 | AD195: 1593750 | AE195: 14219256.28 | AF195: 5378616.26 | AG195: 775198.23 | AH195: 173399.1 | AI195: 0 | AJ195: 0
A196: 4 | B196: 3 | C196: 4 | D196: 3 | E196: G | F196: =+TEXT(DaneN0[[#This Row],[WK]],"00")&DaneN0[[#This Row],[TYPS]]&D196&TEXT(DaneN0[[#This Row],[PK]],"00") -> 04G303 | G196: =+IF(ISERROR(VLOOKUP(DaneN0[[#This Row],[KodGUS6]],LstMetropolie[],1,FALSE)),DaneN0[[#This Row],[Typ]],"T") -> G | H196: 040304 | I196: 403043 | J196: KORONOWO | L196: 2024 | M196: 23218 | N196: 162474917.2 | O196: 152355399 | P196: =+DaneN0[[#This Row],[Dbs]]+DaneN0[[#This Row],[Dbd]] -> 81953018.02 | Q196: 50525014 | R196: 31428004.02 | S196: 10119518.21 | T196: 683926.79 | U196: 164326298.1 | V196: 132869398.3 | W196: 58636001.92 | X196: 0 | Y196: 31456899.78 | Z196: 20827808.42 | AA196: 0 | AB196: =+DaneN0[[#This Row],[P]]-DaneN0[[#This Row],[Pd]] -> 20827808.42 | AC196: 0 | AD196: 0 | AE196: 0 | AF196: 19486000.67 | AG196: 275283.28 | AH196: 62017.83 | AI196: 0 | AJ196: 0
A197: 4 | B197: 3 | C197: 5 | D197: 2 | E197: G | F197: =+TEXT(DaneN0[[#This Row],[WK]],"00")&DaneN0[[#This Row],[TYPS]]&D197&TEXT(DaneN0[[#This Row],[PK]],"00") -> 04G203 | G197: =+IF(ISERROR(VLOOKUP(DaneN0[[#This Row],[KodGUS6]],LstMetropolie[],1,FALSE)),DaneN0[[#This Row],[Typ]],"T") -> G | H197: 040305 | I197: 403052 | J197: NOWA WIEŚ WIELKA | L197: 2024 | M197: 10382 | N197: 92195302.46 | O197: 80968868.73 | P197: =+DaneN0[[#This Row],[Dbs]]+DaneN0[[#This Row],[Dbd]] -> 33615974.22 | Q197: 19760905 | R197: 13855069.22 | S197: 11226433.73 | T197: 1234813.01 | U197: 90799655.22 | V197: 70797346.33 | W197: 38938798.69 | X197: 495663.41 | Y197: 20002308.89 | Z197: 4959848.87 | AA197: 3312845.53 | AB197: =+DaneN0[[#This Row],[P]]-DaneN0[[#This Row],[Pd]] -> 1647003.34 | AC197: 3748097.72 | AD197: 3748097.72 | AE197: 12004656.75 | AF197: 10171522.4 | AG197: 154985.78 | AH197: 154343.15 | AI197: 0 | AJ197: 0
A198: 4 | B198: 3 | C198: 6 | D198: 2 | E198: G | F198: =+TEXT(DaneN0[[#This Row],[WK]],"00")&DaneN0[[#This Row],[TYPS]]&D198&TEXT(DaneN0[[#This Row],[PK]],"00") -> 04G203 | G198: =+IF(ISERROR(VLOOKUP(DaneN0[[#This Row],[KodGUS6]],LstMetropolie[],1,FALSE)),DaneN0[[#This Row],[Typ]],"T") -> G | H198: 040306 | I198: 403062 | J198: OSIELSKO | L198: 2024 | M198: 18835 | N198: 165569156.2 | O198: 156482692.7 | P198: =+DaneN0[[#This Row],[Dbs]]+DaneN0[[#This Row],[Dbd]] -> 45822784.38 | Q198: 32022547 | R198: 13800237.38 | S198: 9086463.5 | T198: 905188.32 | U198: 159229495.8 | V198: 120754250.5 | W198: 52116711.52 | X198: 1948263.8 | Y198: 38475245.32 | Z198: 42706521.43 | AA198: 21600000 | AB198: =+DaneN0[[#This Row],[P]]-DaneN0[[#This Row],[Pd]] -> 21106521.43 | AC198: 11550000 | AD198: 11550000 | AE198: 51353450 | AF198: 35728442.23 | AG198: 99421.2 | AH198: 16779.72 | AI198: 0 | AJ198: 0
A199: 4 | B199: 3 | C199: 7 | D199: 2 | E199: G | F199: =+TEXT(DaneN0[[#This Row],[WK]],"00")&DaneN0[[#This Row],[TYPS]]&D199&TEXT(DaneN0[[#This Row],[PK]],"00") -> 04G203 | G199: =+IF(ISERROR(VLOOKUP(DaneN0[[#This Row],[KodGUS6]],LstMetropolie[],1,FALSE)),DaneN0[[#This Row],[Typ]],"T") -> G | H199: 040307 | I199: 403072 | J199: SICIENKO | L199: 2024 | M199: 11000 | N199: 99335508.49 | O199: 70404538.88 | P199: =+DaneN0[[#This Row],[Dbs]]+DaneN0[[#This Row],[Dbd]] -> 35885611.85 | Q199: 22575992 | R199: 13309619.85 | S199: 28930969.61 | T199: 1892197.5 | U199: 100878640.7 | V199: 61863030.49 | W199: 26188312.84 | X199: 1286336.83 | Y199: 39015610.19 | Z199: 20848658.97 | AA199: 6297991 | AB199: =+DaneN0[[#This Row],[P]]-DaneN0[[#This Row],[Pd]] -> 14550667.97 | AC199: 2231346 | AD199: 2231346 | AE199: 26318585.45 | AF199: 8541508.39 | AG199: 768911.07 | AH199: 558784.5 | AI199: 0 | AJ199: 10999.45
A200: 4 | B200: 3 | C200: 8 | D200: 3 | E200: G | F200: =+TEXT(DaneN0[[#This Row],[WK]],"00")&DaneN0[[#This Row],[TYPS]]&D200&TEXT(DaneN0[[#This Row],[PK]],"00") -> 04G303 | G200: =+IF(ISERROR(VLOOKUP(DaneN0[[#This Row],[KodGUS6]],LstMetropolie[],1,FALSE)),DaneN0[[#This Row],[Typ]],"T") -> G | H200: 040308 | I200: 403083 | J200: SOLEC KUJAWSKI | L200: 2024 | M200: 16304 | N200: 123348122 | O200: 112536886.8 | P200: =+DaneN0[[#This Row],[Dbs]]+DaneN0[[#This Row],[Dbd]] -> 40310891.4 | Q200: 23982078 | R200: 16328813.4 | S200: 10811235.22 | T200: 5732819.82 | U200: 110889021.6 | V200: 104040761.6 | W200: 48237103.92 | X200: 388166.03 | Y200: 6848260.01 | Z200: 3142114.81 | AA200: 0 | AB200: =+DaneN0[[#This Row],[P]]-DaneN0[[#This Row],[Pd]] -> 3142114.81 | AC200: 6149080 | AD200: 6149080 | AE200: 3000000 | AF200: 8496125.22 | AG200: 1140660.95 | AH200: 683602.29 | AI200: 0 | AJ200: 0
A201: 4 | B201: 4 | C201: 1 | D201: 1 | E201: G | F201: =+TEXT(DaneN0[[#This Row],[WK]],"00")&DaneN0[[#This Row],[TYPS]]&D201&TEXT(DaneN0[[#This Row],[PK]],"00") -> 04G104 | G201: =+IF(ISERROR(VLOOKUP(DaneN0[[#This Row],[KodGUS6]],LstMetropolie[],1,FALSE)),DaneN0[[#This Row],[Typ]],"T") -> G | H201: =+TEXT(A201,"00")&TEXT(B201,"00")&TEXT(C201,"00") -> 040401 | I201: 404011 | J201: CHEŁMNO | L201: =+Rok -> 2024 | M201: 17952 | N201: 108213247.8 | O201: 98401607.95 | P201: =+DaneN0[[#This Row],[Dbs]]+DaneN0[[#This Row],[Dbd]] -> 51307454.5 | Q201: 31102744 | R201: 20204710.5 | S201: 9811639.83 | T201: 1721268.97 | U201: 110826621.1 | V201: 98466144.82 | W201: 41853189.02 | X201: 0 | Y201: 12360476.29 | Z201: 5640052.59 | AA201: 0 | AB201: =+DaneN0[[#This Row],[P]]-DaneN0[[#This Row],[Pd]] -> 5640052.59 | AC201: 28250 | AD201: 0 | AE201: 0 | AF201: -64536.87 | AG201: 325340.84 | AH201: 364031.16 | AI201: 0 | AJ201: 0
... 2049 more rows

Sheet DaneRb_2023 (hidden)
A1: =+"Dane źródłowe do obliczenia wskaźników, według sprawozdań Rb za IV kwartały "&Rok-1&" r." -> Dane źródłowe do obliczenia wskaźników, według sprawozdań Rb za IV kwartały 2023 r.
A2: powrót do spisu tablic
M3: Liczba mieszkańców JST | N3: Dochody ogółem | O3: z tego: | U3: Wydatki ogółem | V3: z tego: | Z3: Przychody budżetu | AA3: z tego: | AC3: Rozchody budżetu | AD3: w tym: | AE3: Zobowiązania ogółem (kwota długu) | AF3: Wynik bieżący (Db-Wb) | AG3: Projekty lub zadania finansowane z udziałem środków, o których mowa w art. 5 ust. 1 pkt 2 ustawy o finansach publicznych | AI3: Spłaty zobowiązań dłużnych zaciągniętych po 1 stycznia 2019 r. dokonywane w formie wydatku bieżącego | AJ3: Zobowiązania wymagalne
O4: Dochody bieżące | P4: w tym: | S4: Dochody majątkowe | T4: w tym: | V4: Wydatki bieżące | W4: w tym: | Y4: Wydatki majątkowe | AA4: Przychody budżetu z tytułu kredytów, pożyczek, emisji papierów wartościowych | AB4: Przychody budżetu z wyłączeniem kredytów, pożyczek, emisji papierów wartościowych | AD4: Spłata rat kapitałowych od zaciągniętych kredytów i pożyczek
P5: Transfery bieżące (Dbs+Dbd) | Q5: z tego: | T5: Dochody ze sprzedaży majątku | W5: Wydatki na wynagrodzenia i pochodne od wynagrodzeń | X5: Wydatki na obsługę długu
Q6: Dochody bieżące z tytułu subwencji ogólnej | R6: Dochody bieżące z tytułu dotacji i środków przeznaczonych na cele bieżące | AG6: Dochody w formie dotacji i środków o charakterze bieżącym | AH6: Wydatki bieżące
A8: WK | B8: PK | C8: GK | D8: GT | E8: Typ | F8: WKTYP | G8: TYPS | H8: KodGUS6 | I8: KODGUS | J8: NazwaJST | K8: ID | L8: Rok | M8: L | N8: Do | O8: Db | P8: Tb | Q8: Dbs | R8: Dbd | S8: Dm | T8: Sm | U8: Wo | V8: Wb | W8: Ww | X8: O | Y8: Wm | Z8: P | AA8: Pd | AB8: Pbzwr | AC8: R | AD8: Rs | AE8: Zo | AF8: No | AG8: Dbe | AH8: Wbe | AI8: Wbd | AJ8: Zw
A9: 2 | B9: 1 | C9: 1 | D9: 1 | E9: G | F9: =+TEXT(DaneN1[[#This Row],[WK]],"00")&DaneN1[[#This Row],[TYPS]]&D9&TEXT(DaneN1[[#This Row],[PK]],"00") -> 02G101 | G9: =+IF(ISERROR(VLOOKUP(DaneN1[[#This Row],[KodGUS6]],LstMetropolie[],1,FALSE)),DaneN1[[#This Row],[Typ]],"T") -> G | H9: =+TEXT(A9,"00")&TEXT(B9,"00")&TEXT(C9,"00") -> 020101 | I9: 201011 | J9: BOLESŁAWIEC | L9: =+Rok-1 -> 2023 | M9: 37160 | N9: 270477285.2 | O9: 227253529.4 | P9: =+DaneN1[[#This Row],[Dbs]]+DaneN1[[#This Row],[Dbd]] -> 74288877.53 | Q9: 40691992.2 | R9: 33596885.33 | S9: 43223755.71 | T9: 9882007.98 | U9: 282940104 | V9: 206769708.8 | W9: 75165200.55 | X9: 3186569.07 | Y9: 76170395.19 | Z9: 41102911.85 | AA9: 0 | AB9: =+DaneN1[[#This Row],[P]]-DaneN1[[#This Row],[Pd]] -> 41102911.85 | AC9: 5922568.42 | AD9: 5922568.42 | AE9: 37426064.57 | AF9: 20483820.6 | AG9: 2634163.75 | AH9: 2122696.48 | AI9: 0 | AJ9: 0
A10: 2 | B10: 1 | C10: 2 | D10: 2 | E10: G | F10: =+TEXT(DaneN1[[#This Row],[WK]],"00")&DaneN1[[#This Row],[TYPS]]&D10&TEXT(DaneN1[[#This Row],[PK]],"00") -> 02G201 | G10: =+IF(ISERROR(VLOOKUP(DaneN1[[#This Row],[KodGUS6]],LstMetropolie[],1,FALSE)),DaneN1[[#This Row],[Typ]],"T") -> G | H10: 020102 | I10: 201022 | J10: BOLESŁAWIEC | L10: 2023 | M10: 15214 | N10: 89877664.14 | O10: 79435174.23 | P10: =+DaneN1[[#This Row],[Dbs]]+DaneN1[[#This Row],[Dbd]] -> 31132365.84 | Q10: 20063361.55 | R10: 11069004.29 | S10: 10442489.91 | T10: 830889.18 | U10: 78060100.22 | V10: 63356384.7 | W10: 24784428.65 | X10: 53.41 | Y10: 14703715.52 | Z10: 40285381.36 | AA10: 0 | AB10: =+DaneN1[[#This Row],[P]]-DaneN1[[#This Row],[Pd]] -> 40285381.36 | AC10: 29535 | AD10: 29535 | AE10: 0 | AF10: 16078789.53 | AG10: 7529.2 | AH10: 58490.2 | AI10: 0 | AJ10: 0
A11: 2 | B11: 1 | C11: 3 | D11: 2 | E11: G | F11: =+TEXT(DaneN1[[#This Row],[WK]],"00")&DaneN1[[#This Row],[TYPS]]&D11&TEXT(DaneN1[[#This Row],[PK]],"00") -> 02G201 | G11: =+IF(ISERROR(VLOOKUP(DaneN1[[#This Row],[KodGUS6]],LstMetropolie[],1,FALSE)),DaneN1[[#This Row],[Typ]],"T") -> G | H11: 020103 | I11: 201032 | J11: GROMADKA | L11: 2023 | M11: 5034 | N11: 43620243.86 | O11: 37520948.85 | P11: =+DaneN1[[#This Row],[Dbs]]+DaneN1[[#This Row],[Dbd]] -> 11804652.76 | Q11: 6381661.4 | R11: 5422991.36 | S11: 6099295.01 | T11: 1710883.5 | U11: 53786158.98 | V11: 39370421.76 | W11: 15243764.05 | X11: 17461.49 | Y11: 14415737.22 | Z11: 36179869.8 | AA11: 0 | AB11: =+DaneN1[[#This Row],[P]]-DaneN1[[#This Row],[Pd]] -> 36179869.8 | AC11: 301250 | AD11: 301250 | AE11: 51250 | AF11: -1849472.91 | AG11: 0 | AH11: 6125.4 | AI11: 0 | AJ11: 0
A12: 2 | B12: 1 | C12: 4 | D12: 3 | E12: G | F12: =+TEXT(DaneN1[[#This Row],[WK]],"00")&DaneN1[[#This Row],[TYPS]]&D12&TEXT(DaneN1[[#This Row],[PK]],"00") -> 02G301 | G12: =+IF(ISERROR(VLOOKUP(DaneN1[[#This Row],[KodGUS6]],LstMetropolie[],1,FALSE)),DaneN1[[#This Row],[Typ]],"T") -> G | H12: 020104 | I12: 201043 | J12: NOWOGRODZIEC | L12: 2023 | M12: 14649 | N12: 103442005.5 | O12: 78699739.85 | P12: =+DaneN1[[#This Row],[Dbs]]+DaneN1[[#This Row],[Dbd]] -> 32459926.89 | Q12: 21358459.35 | R12: 11101467.54 | S12: 24742265.69 | T12: 8257456.61 | U12: 96980991.97 | V12: 75815595.73 | W12: 34092187.89 | X12: 2016455 | Y12: 21165396.24 | Z12: 10973860.39 | AA12: 0 | AB12: =+DaneN1[[#This Row],[P]]-DaneN1[[#This Row],[Pd]] -> 10973860.39 | AC12: 1800000 | AD12: 1800000 | AE12: 23496412.19 | AF12: 2884144.12 | AG12: 0 | AH12: 75877.85 | AI12: 0 | AJ12: 96412.19
A13: 2 | B13: 1 | C13: 5 | D13: 2 | E13: G | F13: =+TEXT(DaneN1[[#This Row],[WK]],"00")&DaneN1[[#This Row],[TYPS]]&D13&TEXT(DaneN1[[#This Row],[PK]],"00") -> 02G201 | G13: =+IF(ISERROR(VLOOKUP(DaneN1[[#This Row],[KodGUS6]],LstMetropolie[],1,FALSE)),DaneN1[[#This Row],[Typ]],"T") -> G | H13: 020105 | I13: 201052 | J13: OSIECZNICA | L13: 2023 | M13: 7299 | N13: 52929680.53 | O13: 45991889.03 | P13: =+DaneN1[[#This Row],[Dbs]]+DaneN1[[#This Row],[Dbd]] -> 18622353.47 | Q13: 12613695.05 | R13: 6008658.42 | S13: 6937791.5 | T13: 375885.02 | U13: 58390413.78 | V13: 36169890.87 | W13: 17168959 | X13: 0 | Y13: 22220522.91 | Z13: 44104456.87 | AA13: 0 | AB13: =+DaneN1[[#This Row],[P]]-DaneN1[[#This Row],[Pd]] -> 44104456.87 | AC13: 0 | AD13: 0 | AE13: 0 | AF13: 9821998.16 | AG13: 0 | AH13: 39481.28 | AI13: 0 | AJ13: 0
A14: 2 | B14: 1 | C14: 6 | D14: 2 | E14: G | F14: =+TEXT(DaneN1[[#This Row],[WK]],"00")&DaneN1[[#This Row],[TYPS]]&D14&TEXT(DaneN1[[#This Row],[PK]],"00") -> 02G201 | G14: =+IF(ISERROR(VLOOKUP(DaneN1[[#This Row],[KodGUS6]],LstMetropolie[],1,FALSE)),DaneN1[[#This Row],[Typ]],"T") -> G | H14: 020106 | I14: 201062 | J14: WARTA BOLESŁAWIECKA | L14: 2023 | M14: 8392 | N14: 55096587.11 | O14: 48104242.4 | P14: =+DaneN1[[#This Row],[Dbs]]+DaneN1[[#This Row],[Dbd]] -> 23456145.39 | Q14: 14911464.3 | R14: 8544681.09 | S14: 6992344.71 | T14: 57215.93 | U14: 54799230.52 | V14: 44734915.65 | W14: 17657930.77 | X14: 0 | Y14: 10064314.87 | Z14: 11477955.36 | AA14: 0 | AB14: =+DaneN1[[#This Row],[P]]-DaneN1[[#This Row],[Pd]] -> 11477955.36 | AC14: 58000 | AD14: 0 | AE14: 52286.39 | AF14: 3369326.75 | AG14: 0 | AH14: 34800.57 | AI14: 0 | AJ14: 350
A15: 2 | B15: 2 | C15: 1 | D15: 1 | E15: G | F15: =+TEXT(DaneN1[[#This Row],[WK]],"00")&DaneN1[[#This Row],[TYPS]]&D15&TEXT(DaneN1[[#This Row],[PK]],"00") -> 02G102 | G15: =+IF(ISERROR(VLOOKUP(DaneN1[[#This Row],[KodGUS6]],LstMetropolie[],1,FALSE)),DaneN1[[#This Row],[Typ]],"T") -> G | H15: 020201 | I15: 202011 | J15: BIELAWA | L15: 2023 | M15: 28181 | N15: 177749757.3 | O15: 146407296.9 | P15: =+DaneN1[[#This Row],[Dbs]]+DaneN1[[#This Row],[Dbd]] -> 83343745.51 | Q15: 50716330.55 | R15: 32627414.96 | S15: 31342460.44 | T15: 6403212.49 | U15: 193615767 | V15: 140955909.4 | W15: 47938770.03 | X15: 3702352.65 | Y15: 52659857.57 | Z15: 27219511.96 | AA15: 20162000 | AB15: =+DaneN1[[#This Row],[P]]-DaneN1[[#This Row],[Pd]] -> 7057511.96 | AC15: 3924194 | AD15: 3924194 | AE15: 57491620.13 | AF15: 5451387.49 | AG15: 215249.57 | AH15: 169140.5 | AI15: 0 | AJ15: 0
A16: 2 | B16: 2 | C16: 2 | D16: 1 | E16: G | F16: =+TEXT(DaneN1[[#This Row],[WK]],"00")&DaneN1[[#This Row],[TYPS]]&D16&TEXT(DaneN1[[#This Row],[PK]],"00") -> 02G102 | G16: =+IF(ISERROR(VLOOKUP(DaneN1[[#This Row],[KodGUS6]],LstMetropolie[],1,FALSE)),DaneN1[[#This Row],[Typ]],"T") -> G | H16: 020202 | I16: 202021 | J16: DZIERŻONIÓW | L16: 2023 | M16: 30822 | N16: 184911746.2 | O16: 153165539.3 | P16: =+DaneN1[[#This Row],[Dbs]]+DaneN1[[#This Row],[Dbd]] -> 70517467.22 | Q16: 41499396.6 | R16: 29018070.62 | S16: 31746206.92 | T16: 2995632.66 | U16: 196732228.1 | V16: 143669396.8 | W16: 57096012.43 | X16: 3220153.92 | Y16: 53062831.28 | Z16: 25756472.43 | AA16: 10000000 | AB16: =+DaneN1[[#This Row],[P]]-DaneN1[[#This Row],[Pd]] -> 15756472.43 | AC16: 8229786 | AD16: 8229786 | AE16: 46911383 | AF16: 9496142.45 | AG16: 680000.29 | AH16: 596569.86 | AI16: 0 | AJ16: 0
A17: 2 | B17: 2 | C17: 3 | D17: 3 | E17: G | F17: =+TEXT(DaneN1[[#This Row],[WK]],"00")&DaneN1[[#This Row],[TYPS]]&D17&TEXT(DaneN1[[#This Row],[PK]],"00") -> 02G302 | G17: =+IF(ISERROR(VLOOKUP(DaneN1[[#This Row],[KodGUS6]],LstMetropolie[],1,FALSE)),DaneN1[[#This Row],[Typ]],"T") -> G | H17: 020203 | I17: 202033 | J17: PIESZYCE | L17: 2023 | M17: 8932 | N17: 47412316.25 | O17: 37071062.92 | P17: =+DaneN1[[#This Row],[Dbs]]+DaneN1[[#This Row],[Dbd]] -> 20522620.19 | Q17: 13775614.65 | R17: 6747005.54 | S17: 10341253.33 | T17: 1498944.19 | U17: 49512475.84 | V17: 35301695.71 | W17: 14568134.86 | X17: 597515.85 | Y17: 14210780.13 | Z17: 10996188.71 | AA17: 1000000 | AB17: =+DaneN1[[#This Row],[P]]-DaneN1[[#This Row],[Pd]] -> 9996188.71 | AC17: 1400000 | AD17: 1400000 | AE17: 7905000 | AF17: 1769367.21 | AG17: 132477.1 | AH17: 210661.66 | AI17: 0 | AJ17: 0
A18: 2 | B18: 2 | C18: 4 | D18: 1 | E18: G | F18: =+TEXT(DaneN1[[#This Row],[WK]],"00")&DaneN1[[#This Row],[TYPS]]&D18&TEXT(DaneN1[[#This Row],[PK]],"00") -> 02G102 | G18: =+IF(ISERROR(VLOOKUP(DaneN1[[#This Row],[KodGUS6]],LstMetropolie[],1,FALSE)),DaneN1[[#This Row],[Typ]],"T") -> G | H18: 020204 | I18: 202041 | J18: PIŁAWA GÓRNA | L18: 2023 | M18: 5929 | N18: 30995898.37 | O18: 24757166.46 | P18: =+DaneN1[[#This Row],[Dbs]]+DaneN1[[#This Row],[Dbd]] -> 13409414.88 | Q18: 9335492.25 | R18: 4073922.63 | S18: 6238731.91 | T18: 295911.43 | U18: 34590948.6 | V18: 24870634.99 | W18: 11508530.47 | X18: 284407.48 | Y18: 9720313.61 | Z18: 7057276.97 | AA18: 2000000 | AB18: =+DaneN1[[#This Row],[P]]-DaneN1[[#This Row],[Pd]] -> 5057276.97 | AC18: 768000 | AD18: 768000 | AE18: 4534000 | AF18: -113468.53 | AG18: 27586.02 | AH18: 0 | AI18: 0 | AJ18: 0
A19: 2 | B19: 2 | C19: 5 | D19: 2 | E19: G | F19: =+TEXT(DaneN1[[#This Row],[WK]],"00")&DaneN1[[#This Row],[TYPS]]&D19&TEXT(DaneN1[[#This Row],[PK]],"00") -> 02G202 | G19: =+IF(ISERROR(VLOOKUP(DaneN1[[#This Row],[KodGUS6]],LstMetropolie[],1,FALSE)),DaneN1[[#This Row],[Typ]],"T") -> G | H19: 020205 | I19: 202052 | J19: DZIERŻONIÓW | L19: 2023 | M19: 9153 | N19: 51348770.94 | O19: 41842257.22 | P19: =+DaneN1[[#This Row],[Dbs]]+DaneN1[[#This Row],[Dbd]] -> 21897458.31 | Q19: 15011185.25 | R19: 6886273.06 | S19: 9506513.72 | T19: 445743 | U19: 59438891.13 | V19: 39657524.15 | W19: 20119044.78 | X19: 734270.76 | Y19: 19781366.98 | Z19: 15406286 | AA19: 1900000 | AB19: =+DaneN1[[#This Row],[P]]-DaneN1[[#This Row],[Pd]] -> 13506286 | AC19: 900000 | AD19: 900000 | AE19: 10618000 | AF19: 2184733.07 | AG19: 260773.88 | AH19: 123903.71 | AI19: 0 | AJ19: 0
A20: 2 | B20: 2 | C20: 6 | D20: 2 | E20: G | F20: =+TEXT(DaneN1[[#This Row],[WK]],"00")&DaneN1[[#This Row],[TYPS]]&D20&TEXT(DaneN1[[#This Row],[PK]],"00") -> 02G202 | G20: =+IF(ISERROR(VLOOKUP(DaneN1[[#This Row],[KodGUS6]],LstMetropolie[],1,FALSE)),DaneN1[[#This Row],[Typ]],"T") -> G | H20: 020206 | I20: 202062 | J20: ŁAGIEWNIKI | L20: 2023 | M20: 7161 | N20: 42509134.98 | O20: 36090931.64 | P20: =+DaneN1[[#This Row],[Dbs]]+DaneN1[[#This Row],[Dbd]] -> 20226859.11 | Q20: 14856449 | R20: 5370410.11 | S20: 6418203.34 | T20: 40800.83 | U20: 49627911.03 | V20: 31700435.98 | W20: 15281396.81 | X20: 267630.81 | Y20: 17927475.05 | Z20: 12539897.45 | AA20: 0 | AB20: =+DaneN1[[#This Row],[P]]-DaneN1[[#This Row],[Pd]] -> 12539897.45 | AC20: 683576.92 | AD20: 683576.92 | AE20: 2734307.72 | AF20: 4390495.66 | AG20: 38379.34 | AH20: 35059.14 | AI20: 0 | AJ20: 0
A21: 2 | B21: 2 | C21: 7 | D21: 3 | E21: G | F21: =+TEXT(DaneN1[[#This Row],[WK]],"00")&DaneN1[[#This Row],[TYPS]]&D21&TEXT(DaneN1[[#This Row],[PK]],"00") -> 02G302 | G21: =+IF(ISERROR(VLOOKUP(DaneN1[[#This Row],[KodGUS6]],LstMetropolie[],1,FALSE)),DaneN1[[#This Row],[Typ]],"T") -> G | H21: 020207 | I21: 202073 | J21: NIEMCZA | L21: 2023 | M21: 5077 | N21: 33419136.39 | O21: 25242590.33 | P21: =+DaneN1[[#This Row],[Dbs]]+DaneN1[[#This Row],[Dbd]] -> 13936091.28 | Q21: 8981661.5 | R21: 4954429.78 | S21: 8176546.06 | T21: 122780 | U21: 39337525.26 | V21: 24117110.58 | W21: 9476324.88 | X21: 545982.02 | Y21: 15220414.68 | Z21: 7781008.63 | AA21: 3548287.59 | AB21: =+DaneN1[[#This Row],[P]]-DaneN1[[#This Row],[Pd]] -> 4232721.04 | AC21: 492414.82 | AD21: 492414.82 | AE21: 9925087.59 | AF21: 1125479.75 | AG21: 58026.65 | AH21: 0 | AI21: 0 | AJ21: 0
A22: 2 | B22: 3 | C22: 1 | D22: 1 | E22: G | F22: =+TEXT(DaneN1[[#This Row],[WK]],"00")&DaneN1[[#This Row],[TYPS]]&D22&TEXT(DaneN1[[#This Row],[PK]],"00") -> 02G103 | G22: =+IF(ISERROR(VLOOKUP(DaneN1[[#This Row],[KodGUS6]],LstMetropolie[],1,FALSE)),DaneN1[[#This Row],[Typ]],"T") -> G | H22: 020301 | I22: 203011 | J22: GŁOGÓW | L22: 2023 | M22: 62533 | N22: 459297383.6 | O22: 355851073.2 | P22: =+DaneN1[[#This Row],[Dbs]]+DaneN1[[#This Row],[Dbd]] -> 114754429.4 | Q22: 76460028.35 | R22: 38294401.08 | S22: 103446310.4 | T22: 18818760.06 | U22: 458916863.9 | V22: 347546548.5 | W22: 151883086.4 | X22: 14881852.87 | Y22: 111370315.4 | Z22: 77098786.98 | AA22: 43031250 | AB22: =+DaneN1[[#This Row],[P]]-DaneN1[[#This Row],[Pd]] -> 34067536.98 | AC22: 63111623.54 | AD22: 14935100 | AE22: 229333650 | AF22: 8304524.68 | AG22: 394287.03 | AH22: 479260.4 | AI22: 0 | AJ22: 0
A23: 2 | B23: 3 | C23: 2 | D23: 2 | E23: G | F23: =+TEXT(DaneN1[[#This Row],[WK]],"00")&DaneN1[[#This Row],[TYPS]]&D23&TEXT(DaneN1[[#This Row],[PK]],"00") -> 02G203 | G23: =+IF(ISERROR(VLOOKUP(DaneN1[[#This Row],[KodGUS6]],LstMetropolie[],1,FALSE)),DaneN1[[#This Row],[Typ]],"T") -> G | H23: 020302 | I23: 203022 | J23: GŁOGÓW | L23: 2023 | M23: 7153 | N23: 49604493.51 | O23: 34958094.11 | P23: =+DaneN1[[#This Row],[Dbs]]+DaneN1[[#This Row],[Dbd]] -> 12605348.07 | Q23: 8606822.05 | R23: 3998526.02 | S23: 14646399.4 | T23: 792460 | U23: 56461712.43 | V23: 34755950.61 | W23: 16211945.72 | X23: 807716.93 | Y23: 21705761.82 | Z23: 10641706.49 | AA23: 3500000 | AB23: =+DaneN1[[#This Row],[P]]-DaneN1[[#This Row],[Pd]] -> 7141706.49 | AC23: 1281300 | AD23: 1281300 | AE23: 13602222.67 | AF23: 202143.5 | AG23: 177363.49 | AH23: 230313.05 | AI23: 0 | AJ23: 922.67
A24: 2 | B24: 3 | C24: 3 | D24: 2 | E24: G | F24: =+TEXT(DaneN1[[#This Row],[WK]],"00")&DaneN1[[#This Row],[TYPS]]&D24&TEXT(DaneN1[[#This Row],[PK]],"00") -> 02G203 | G24: =+IF(ISERROR(VLOOKUP(DaneN1[[#This Row],[KodGUS6]],LstMetropolie[],1,FALSE)),DaneN1[[#This Row],[Typ]],"T") -> G | H24: 020303 | I24: 203032 | J24: JERZMANOWA | L24: 2023 | M24: 5796 | N24: 68616648.62 | O24: 58993459.81 | P24: =+DaneN1[[#This Row],[Dbs]]+DaneN1[[#This Row],[Dbd]] -> 10977942.87 | Q24: 7539403.5 | R24: 3438539.37 | S24: 9623188.81 | T24: 5374 | U24: 74618638.88 | V24: 56329745.08 | W24: 22113792.19 | X24: 1708143.01 | Y24: 18288893.8 | Z24: 12391409.11 | AA24: 5450000 | AB24: =+DaneN1[[#This Row],[P]]-DaneN1[[#This Row],[Pd]] -> 6941409.11 | AC24: 2000000 | AD24: 2000000 | AE24: 25321845 | AF24: 2663714.73 | AG24: 97777.05 | AH24: 131455.56 | AI24: 0 | AJ24: 21845
A25: 2 | B25: 3 | C25: 4 | D25: 2 | E25: G | F25: =+TEXT(DaneN1[[#This Row],[WK]],"00")&DaneN1[[#This Row],[TYPS]]&D25&TEXT(DaneN1[[#This Row],[PK]],"00") -> 02G203 | G25: =+IF(ISERROR(VLOOKUP(DaneN1[[#This Row],[KodGUS6]],LstMetropolie[],1,FALSE)),DaneN1[[#This Row],[Typ]],"T") -> G | H25: 020304 | I25: 203042 | J25: KOTLA | L25: 2023 | M25: 4390 | N25: 41456002.79 | O25: 31911265.15 | P25: =+DaneN1[[#This Row],[Dbs]]+DaneN1[[#This Row],[Dbd]] -> 17023644.45 | Q25: 8712901.6 | R25: 8310742.85 | S25: 9544737.64 | T25: 240906.83 | U25: 44151225.75 | V25: 31328409.7 | W25: 11248729 | X25: 458996.13 | Y25: 12822816.05 | Z25: 7294403.52 | AA25: 5000000 | AB25: =+DaneN1[[#This Row],[P]]-DaneN1[[#This Row],[Pd]] -> 2294403.52 | AC25: 2221600 | AD25: 1871600 | AE25: 9131700 | AF25: 582855.45 | AG25: 48858 | AH25: 310247.98 | AI25: 0 | AJ25: 0
A26: 2 | B26: 3 | C26: 5 | D26: 2 | E26: G | F26: =+TEXT(DaneN1[[#This Row],[WK]],"00")&DaneN1[[#This Row],[TYPS]]&D26&TEXT(DaneN1[[#This Row],[PK]],"00") -> 02G203 | G26: =+IF(ISERROR(VLOOKUP(DaneN1[[#This Row],[KodGUS6]],LstMetropolie[],1,FALSE)),DaneN1[[#This Row],[Typ]],"T") -> G | H26: 020305 | I26: 203052 | J26: PĘCŁAW | L26: 2023 | M26: 2096 | N26: 19085995.12 | O26: 12320368.44 | P26: =+DaneN1[[#This Row],[Dbs]]+DaneN1[[#This Row],[Dbd]] -> 7923327.79 | Q26: 5308667.1 | R26: 2614660.69 | S26: 6765626.68 | T26: 26790 | U26: 22845758.39 | V26: 11558637.86 | W26: 4718073.24 | X26: 339487.68 | Y26: 11287120.53 | Z26: 4126846.84 | AA26: 0 | AB26: =+DaneN1[[#This Row],[P]]-DaneN1[[#This Row],[Pd]] -> 4126846.84 | AC26: 356640 | AD26: 356640 | AE26: 3567450 | AF26: 761730.58 | AG26: 42532.65 | AH26: 249269.45 | AI26: 0 | AJ26: 0
A27: 2 | B27: 3 | C27: 6 | D27: 2 | E27: G | F27: =+TEXT(DaneN1[[#This Row],[WK]],"00")&DaneN1[[#This Row],[TYPS]]&D27&TEXT(DaneN1[[#This Row],[PK]],"00") -> 02G203 | G27: =+IF(ISERROR(VLOOKUP(DaneN1[[#This Row],[KodGUS6]],LstMetropolie[],1,FALSE)),DaneN1[[#This Row],[Typ]],"T") -> G | H27: 020306 | I27: 203062 | J27: ŻUKOWICE | L27: 2023 | M27: 3418 | N27: 50286901.61 | O27: 28717696.82 | P27: =+DaneN1[[#This Row],[Dbs]]+DaneN1[[#This Row],[Dbd]] -> 9954869.56 | Q27: 6034557.4 | R27: 3920312.16 | S27: 21569204.79 | T27: 60110.99 | U27: 53616754.68 | V27: 25330057.79 | W27: 9689793.1 | X27: 211069.58 | Y27: 28286696.89 | Z27: 7635266.22 | AA27: 93000 | AB27: =+DaneN1[[#This Row],[P]]-DaneN1[[#This Row],[Pd]] -> 7542266.22 | AC27: 725000 | AD27: 725000 | AE27: 2932000 | AF27: 3387639.03 | AG27: 207264 | AH27: 333373.17 | AI27: 0 | AJ27: 0
A28: 2 | B28: 4 | C28: 1 | D28: 3 | E28: G | F28: =+TEXT(DaneN1[[#This Row],[WK]],"00")&DaneN1[[#This Row],[TYPS]]&D28&TEXT(DaneN1[[#This Row],[PK]],"00") -> 02G304 | G28: =+IF(ISERROR(VLOOKUP(DaneN1[[#This Row],[KodGUS6]],LstMetropolie[],1,FALSE)),DaneN1[[#This Row],[Typ]],"T") -> G | H28: 020401 | I28: 204013 | J28: GÓRA | L28: 2023 | M28: 18512 | N28: 118016659.8 | O28: 96466505.87 | P28: =+DaneN1[[#This Row],[Dbs]]+DaneN1[[#This Row],[Dbd]] -> 52005689.41 | Q28: 31405234.9 | R28: 20600454.51 | S28: 21550153.9 | T28: 3310111.73 | U28: 118098496.2 | V28: 95727586.09 | W28: 43432448.41 | X28: 4443603.48 | Y28: 22370910.09 | Z28: 8016732.48 | AA28: 4000000 | AB28: =+DaneN1[[#This Row],[P]]-DaneN1[[#This Row],[Pd]] -> 4016732.48 | AC28: 3536000 | AD28: 3536000 | AE28: 54823444.43 | AF28: 738919.78 | AG28: 0 | AH28: 325039.21 | AI28: 0 | AJ28: 7340.24
A29: 2 | B29: 4 | C29: 2 | D29: 2 | E29: G | F29: =+TEXT(DaneN1[[#This Row],[WK]],"00")&DaneN1[[#This Row],[TYPS]]&D29&TEXT(DaneN1[[#This Row],[PK]],"00") -> 02G204 | G29: =+IF(ISERROR(VLOOKUP(DaneN1[[#This Row],[KodGUS6]],LstMetropolie[],1,FALSE)),DaneN1[[#This Row],[Typ]],"T") -> G | H29: 020402 | I29: 204022 | J29: JEMIELNO | L29: 2023 | M29: 2739 | N29: 20152504.68 | O29: 17082841.15 | P29: =+DaneN1[[#This Row],[Dbs]]+DaneN1[[#This Row],[Dbd]] -> 12066040.99 | Q29: 8108311.15 | R29: 3957729.84 | S29: 3069663.53 | T29: 3392.22 | U29: 21934077.16 | V29: 17452372.29 | W29: 7099318.49 | X29: 190252.6 | Y29: 4481704.87 | Z29: 6555876.52 | AA29: 0 | AB29: =+DaneN1[[#This Row],[P]]-DaneN1[[#This Row],[Pd]] -> 6555876.52 | AC29: 710000 | AD29: 710000 | AE29: 1732000 | AF29: -369531.14 | AG29: 27569.23 | AH29: 312454.23 | AI29: 0 | AJ29: 0
A30: 2 | B30: 4 | C30: 3 | D30: 2 | E30: G | F30: =+TEXT(DaneN1[[#This Row],[WK]],"00")&DaneN1[[#This Row],[TYPS]]&D30&TEXT(DaneN1[[#This Row],[PK]],"00") -> 02G204 | G30: =+IF(ISERROR(VLOOKUP(DaneN1[[#This Row],[KodGUS6]],LstMetropolie[],1,FALSE)),DaneN1[[#This Row],[Typ]],"T") -> G | H30: 020403 | I30: 204032 | J30: NIECHLÓW | L30: 2023 | M30: 4522 | N30: 28980226 | O30: 24520870.4 | P30: =+DaneN1[[#This Row],[Dbs]]+DaneN1[[#This Row],[Dbd]] -> 15758003.77 | Q30: 9803923.7 | R30: 5954080.07 | S30: 4459355.6 | T30: 219576.28 | U30: 32479215.87 | V30: 26083224.62 | W30: 10559926.2 | X30: 335745.18 | Y30: 6395991.25 | Z30: 7869439.02 | AA30: 0 | AB30: =+DaneN1[[#This Row],[P]]-DaneN1[[#This Row],[Pd]] -> 7869439.02 | AC30: 425000 | AD30: 425000 | AE30: 3670000 | AF30: -1562354.22 | AG30: 191095 | AH30: 435308.48 | AI30: 0 | AJ30: 0
A31: 2 | B31: 4 | C31: 4 | D31: 3 | E31: G | F31: =+TEXT(DaneN1[[#This Row],[WK]],"00")&DaneN1[[#This Row],[TYPS]]&D31&TEXT(DaneN1[[#This Row],[PK]],"00") -> 02G304 | G31: =+IF(ISERROR(VLOOKUP(DaneN1[[#This Row],[KodGUS6]],LstMetropolie[],1,FALSE)),DaneN1[[#This Row],[Typ]],"T") -> G | H31: 020404 | I31: 204043 | J31: WĄSOSZ | L31: 2023 | M31: 6785 | N31: 51939130.18 | O31: 38945845.03 | P31: =+DaneN1[[#This Row],[Dbs]]+DaneN1[[#This Row],[Dbd]] -> 18691955.32 | Q31: 11952183.35 | R31: 6739771.97 | S31: 12993285.15 | T31: 181778.06 | U31: 53216626.59 | V31: 37624392.91 | W31: 17963149.8 | X31: 607578.8 | Y31: 15592233.68 | Z31: 3335015.17 | AA31: 0 | AB31: =+DaneN1[[#This Row],[P]]-DaneN1[[#This Row],[Pd]] -> 3335015.17 | AC31: 1265000 | AD31: 1265000 | AE31: 8273789 | AF31: 1321452.12 | AG31: 247701.69 | AH31: 390848.75 | AI31: 0 | AJ31: 0
A32: 2 | B32: 5 | C32: 1 | D32: 1 | E32: G | F32: =+TEXT(DaneN1[[#This Row],[WK]],"00")&DaneN1[[#This Row],[TYPS]]&D32&TEXT(DaneN1[[#This Row],[PK]],"00") -> 02G105 | G32: =+IF(ISERROR(VLOOKUP(DaneN1[[#This Row],[KodGUS6]],LstMetropolie[],1,FALSE)),DaneN1[[#This Row],[Typ]],"T") -> G | H32: 020501 | I32: 205011 | J32: JAWOR | L32: 2023 | M32: 20713 | N32: 129519853 | O32: 111354207.7 | P32: =+DaneN1[[#This Row],[Dbs]]+DaneN1[[#This Row],[Dbd]] -> 35256389.95 | Q32: 21170231 | R32: 14086158.95 | S32: 18165645.32 | T32: 3461177.47 | U32: 154422474.1 | V32: 101829843.1 | W32: 45323273.62 | X32: 3631686.86 | Y32: 52592630.93 | Z32: 36892694.44 | AA32: 17757222.41 | AB32: =+DaneN1[[#This Row],[P]]-DaneN1[[#This Row],[Pd]] -> 19135472.03 | AC32: 4088062.6 | AD32: 3088062.6 | AE32: 57117389.09 | AF32: 9524364.54 | AG32: 530957.03 | AH32: 523053.23 | AI32: 0 | AJ32: 1457338.53
A33: 2 | B33: 5 | C33: 2 | D33: 3 | E33: G | F33: =+TEXT(DaneN1[[#This Row],[WK]],"00")&DaneN1[[#This Row],[TYPS]]&D33&TEXT(DaneN1[[#This Row],[PK]],"00") -> 02G305 | G33: =+IF(ISERROR(VLOOKUP(DaneN1[[#This Row],[KodGUS6]],LstMetropolie[],1,FALSE)),DaneN1[[#This Row],[Typ]],"T") -> G | H33: 020502 | I33: 205023 | J33: BOLKÓW | L33: 2023 | M33: 9605 | N33: 57094440.31 | O33: 56191294.59 | P33: =+DaneN1[[#This Row],[Dbs]]+DaneN1[[#This Row],[Dbd]] -> 28423398.12 | Q33: 20411872.65 | R33: 8011525.47 | S33: 903145.72 | T33: 685284.02 | U33: 62852852.11 | V33: 50806654.07 | W33: 24020966.27 | X33: 849497.32 | Y33: 12046198.04 | Z33: 18163628.35 | AA33: 2000000 | AB33: =+DaneN1[[#This Row],[P]]-DaneN1[[#This Row],[Pd]] -> 16163628.35 | AC33: 1806023.74 | AD33: 1806023.74 | AE33: 12018071.3 | AF33: 5384640.52 | AG33: 151371.8 | AH33: 219685.71 | AI33: 0 | AJ33: 0
A34: 2 | B34: 5 | C34: 3 | D34: 2 | E34: G | F34: =+TEXT(DaneN1[[#This Row],[WK]],"00")&DaneN1[[#This Row],[TYPS]]&D34&TEXT(DaneN1[[#This Row],[PK]],"00") -> 02G205 | G34: =+IF(ISERROR(VLOOKUP(DaneN1[[#This Row],[KodGUS6]],LstMetropolie[],1,FALSE)),DaneN1[[#This Row],[Typ]],"T") -> G | H34: 020503 | I34: 205032 | J34: MĘCINKA | L34: 2023 | M34: 5188 | N34: 36574061.38 | O34: 30758337.76 | P34: =+DaneN1[[#This Row],[Dbs]]+DaneN1[[#This Row],[Dbd]] -> 11912057.28 | Q34: 7517989.4 | R34: 4394067.88 | S34: 5815723.62 | T34: 559335.71 | U34: 49458806.55 | V34: 29976940.33 | W34: 12604406.1 | X34: 914369.91 | Y34: 19481866.22 | Z34: 15156479.34 | AA34: 7500000 | AB34: =+DaneN1[[#This Row],[P]]-DaneN1[[#This Row],[Pd]] -> 7656479.34 | AC34: 1442925 | AD34: 1442925 | AE34: 15046491 | AF34: 781397.43 | AG34: 382395.8 | AH34: 182530.98 | AI34: 0 | AJ34: 0
A35: 2 | B35: 5 | C35: 4 | D35: 2 | E35: G | F35: =+TEXT(DaneN1[[#This Row],[WK]],"00")&DaneN1[[#This Row],[TYPS]]&D35&TEXT(DaneN1[[#This Row],[PK]],"00") -> 02G205 | G35: =+IF(ISERROR(VLOOKUP(DaneN1[[#This Row],[KodGUS6]],LstMetropolie[],1,FALSE)),DaneN1[[#This Row],[Typ]],"T") -> G | H35: 020504 | I35: 205042 | J35: MŚCIWOJÓW | L35: 2023 | M35: 3970 | N35: 34284911.7 | O35: 23276099.62 | P35: =+DaneN1[[#This Row],[Dbs]]+DaneN1[[#This Row],[Dbd]] -> 10343971.02 | Q35: 6953760.1 | R35: 3390210.92 | S35: 11008812.08 | T35: 14177.35 | U35: 42833937.27 | V35: 21797861.19 | W35: 9196019.38 | X35: 195751.93 | Y35: 21036076.08 | Z35: 10915178.86 | AA35: 3690186.01 | AB35: =+DaneN1[[#This Row],[P]]-DaneN1[[#This Row],[Pd]] -> 7224992.85 | AC35: 940600.42 | AD35: 901132 | AE35: 5148059.01 | AF35: 1478238.43 | AG35: 28224 | AH35: 152454.78 | AI35: 0 | AJ35: 0
A36: 2 | B36: 5 | C36: 5 | D36: 2 | E36: G | F36: =+TEXT(DaneN1[[#This Row],[WK]],"00")&DaneN1[[#This Row],[TYPS]]&D36&TEXT(DaneN1[[#This Row],[PK]],"00") -> 02G205 | G36: =+IF(ISERROR(VLOOKUP(DaneN1[[#This Row],[KodGUS6]],LstMetropolie[],1,FALSE)),DaneN1[[#This Row],[Typ]],"T") -> G | H36: 020505 | I36: 205052 | J36: PASZOWICE | L36: 2023 | M36: 4152 | N36: 31930971.06 | O36: 22114083.24 | P36: =+DaneN1[[#This Row],[Dbs]]+DaneN1[[#This Row],[Dbd]] -> 11074409.65 | Q36: 8417808.6 | R36: 2656601.05 | S36: 9816887.82 | T36: 128994 | U36: 32787642.15 | V36: 20925905.21 | W36: 10279023.27 | X36: 253338.88 | Y36: 11861736.94 | Z36: 8241425.7 | AA36: 0 | AB36: =+DaneN1[[#This Row],[P]]-DaneN1[[#This Row],[Pd]] -> 8241425.7 | AC36: 2398850 | AD36: 2398850 | AE36: 2476280 | AF36: 1188178.03 | AG36: 55078.92 | AH36: 70490.31 | AI36: 0 | AJ36: 0
A37: 2 | B37: 5 | C37: 6 | D37: 2 | E37: G | F37: =+TEXT(DaneN1[[#This Row],[WK]],"00")&DaneN1[[#This Row],[TYPS]]&D37&TEXT(DaneN1[[#This Row],[PK]],"00") -> 02G205 | G37: =+IF(ISERROR(VLOOKUP(DaneN1[[#This Row],[KodGUS6]],LstMetropolie[],1,FALSE)),DaneN1[[#This Row],[Typ]],"T") -> G | H37: 020506 | I37: 205062 | J37: WĄDROŻE WIELKIE | L37: 2023 | M37: 3735 | N37: 30051791.82 | O37: 25207735.02 | P37: =+DaneN1[[#This Row],[Dbs]]+DaneN1[[#This Row],[Dbd]] -> 11600693.83 | Q37: 8029220.05 | R37: 3571473.78 | S37: 4844056.8 | T37: 18422.3 | U37: 32251725.45 | V37: 24625463.48 | W37: 10555901.8 | X37: 898755.6 | Y37: 7626261.97 | Z37: 5759562.39 | AA37: 0 | AB37: =+DaneN1[[#This Row],[P]]-DaneN1[[#This Row],[Pd]] -> 5759562.39 | AC37: 666344 | AD37: 666344 | AE37: 11016221 | AF37: 582271.54 | AG37: 162400 | AH37: 165282.16 | AI37: 0 | AJ37: 0
A38: 2 | B38: 6 | C38: 1 | D38: 1 | E38: G | F38: =+TEXT(DaneN1[[#This Row],[WK]],"00")&DaneN1[[#This Row],[TYPS]]&D38&TEXT(DaneN1[[#This Row],[PK]],"00") -> 02G106 | G38: =+IF(ISERROR(VLOOKUP(DaneN1[[#This Row],[KodGUS6]],LstMetropolie[],1,FALSE)),DaneN1[[#This Row],[Typ]],"T") -> G | H38: 020601 | I38: 206011 | J38: KARPACZ | L38: 2023 | M38: 4278 | N38: 54925361.11 | O38: 53160723 | P38: =+DaneN1[[#This Row],[Dbs]]+DaneN1[[#This Row],[Dbd]] -> 11263697.57 | Q38: 6710296.85 | R38: 4553400.72 | S38: 1764638.11 | T38: 153299.62 | U38: 60436762.11 | V38: 44216341.96 | W38: 14605058.28 | X38: 435411.62 | Y38: 16220420.15 | Z38: 11713567.79 | AA38: 5000000 | AB38: =+DaneN1[[#This Row],[P]]-DaneN1[[#This Row],[Pd]] -> 6713567.79 | AC38: 4395445 | AD38: 4300000 | AE38: 9300000 | AF38: 8944381.04 | AG38: 0 | AH38: 2681.63 | AI38: 0 | AJ38: 0
A39: 2 | B39: 6 | C39: 2 | D39: 1 | E39: G | F39: =+TEXT(DaneN1[[#This Row],[WK]],"00")&DaneN1[[#This Row],[TYPS]]&D39&TEXT(DaneN1[[#This Row],[PK]],"00") -> 02G106 | G39: =+IF(ISERROR(VLOOKUP(DaneN1[[#This Row],[KodGUS6]],LstMetropolie[],1,FALSE)),DaneN1[[#This Row],[Typ]],"T") -> G | H39: 020602 | I39: 206021 | J39: KOWARY | L39: 2023 | M39: 9806 | N39: 68260101.56 | O39: 50287588.58 | P39: =+DaneN1[[#This Row],[Dbs]]+DaneN1[[#This Row],[Dbd]] -> 25870978.04 | Q39: 12942765.3 | R39: 12928212.74 | S39: 17972512.98 | T39: 2324528.5 | U39: 74504993.25 | V39: 53276009.78 | W39: 19532229.94 | X39: 163640 | Y39: 21228983.47 | Z39: 8796270.78 | AA39: 0 | AB39: =+DaneN1[[#This Row],[P]]-DaneN1[[#This Row],[Pd]] -> 8796270.78 | AC39: 71500 | AD39: 0 | AE39: 4166261.85 | AF39: -2988421.2 | AG39: 3936004.52 | AH39: 4912170.57 | AI39: 0 | AJ39: 54410.82
A40: 2 | B40: 6 | C40: 3 | D40: 1 | E40: G | F40: =+TEXT(DaneN1[[#This Row],[WK]],"00")&DaneN1[[#This Row],[TYPS]]&D40&TEXT(DaneN1[[#This Row],[PK]],"00") -> 02G106 | G40: =+IF(ISERROR(VLOOKUP(DaneN1[[#This Row],[KodGUS6]],LstMetropolie[],1,FALSE)),DaneN1[[#This Row],[Typ]],"T") -> G | H40: 020603 | I40: 206031 | J40: PIECHOWICE | L40: 2023 | M40: 5774 | N40: 44918241.22 | O40: 35344181.29 | P40: =+DaneN1[[#This Row],[Dbs]]+DaneN1[[#This Row],[Dbd]] -> 11641826.37 | Q40: 5046453.6 | R40: 6595372.77 | S40: 9574059.93 | T40: 2228875.41 | U40: 50644914.73 | V40: 32667768.38 | W40: 11957238.77 | X40: 140138.54 | Y40: 17977146.35 | Z40: 9111567.8 | AA40: 4168000 | AB40: =+DaneN1[[#This Row],[P]]-DaneN1[[#This Row],[Pd]] -> 4943567.8 | AC40: 482300 | AD40: 482300 | AE40: 6340700 | AF40: 2676412.91 | AG40: 71535 | AH40: 77916.96 | AI40: 0 | AJ40: 0
A41: 2 | B41: 6 | C41: 4 | D41: 1 | E41: G | F41: =+TEXT(DaneN1[[#This Row],[WK]],"00")&DaneN1[[#This Row],[TYPS]]&D41&TEXT(DaneN1[[#This Row],[PK]],"00") -> 02G106 | G41: =+IF(ISERROR(VLOOKUP(DaneN1[[#This Row],[KodGUS6]],LstMetropolie[],1,FALSE)),DaneN1[[#This Row],[Typ]],"T") -> G | H41: 020604 | I41: 206041 | J41: SZKLARSKA PORĘBA | L41: 2023 | M41: 5832 | N41: 78401720.9 | O41: 65046756.89 | P41: =+DaneN1[[#This Row],[Dbs]]+DaneN1[[#This Row],[Dbd]] -> 22903050.79 | Q41: 5903677 | R41: 16999373.79 | S41: 13354964.01 | T41: 1838691.71 | U41: 83323469.04 | V41: 64943919.32 | W41: 19020988.49 | X41: 560986.57 | Y41: 18379549.72 | Z41: 12507400.27 | AA41: 0 | AB41: =+DaneN1[[#This Row],[P]]-DaneN1[[#This Row],[Pd]] -> 12507400.27 | AC41: 1974686.54 | AD41: 1974686.54 | AE41: 8281481.56 | AF41: 102837.57 | AG41: 754176.45 | AH41: 744428.16 | AI41: 0 | AJ41: 290.1
A42: 2 | B42: 6 | C42: 5 | D42: 2 | E42: G | F42: =+TEXT(DaneN1[[#This Row],[WK]],"00")&DaneN1[[#This Row],[TYPS]]&D42&TEXT(DaneN1[[#This Row],[PK]],"00") -> 02G206 | G42: =+IF(ISERROR(VLOOKUP(DaneN1[[#This Row],[KodGUS6]],LstMetropolie[],1,FALSE)),DaneN1[[#This Row],[Typ]],"T") -> G | H42: 020605 | I42: 206052 | J42: JANOWICE WIELKIE | L42: 2023 | M42: 4071 | N42: 24343862.56 | O42: 21675497.68 | P42: =+DaneN1[[#This Row],[Dbs]]+DaneN1[[#This Row],[Dbd]] -> 11585469.25 | Q42: 8012519 | R42: 3572950.25 | S42: 2668364.88 | T42: 341658.41 | U42: 25835547 | V42: 20904614.01 | W42: 10073382.22 | X42: 138494.7 | Y42: 4930932.99 | Z42: 2696162.34 | AA42: 0 | AB42: =+DaneN1[[#This Row],[P]]-DaneN1[[#This Row],[Pd]] -> 2696162.34 | AC42: 684000 | AD42: 684000 | AE42: 1248000 | AF42: 770883.67 | AG42: 29873.68 | AH42: 45697.46 | AI42: 0 | AJ42: 0
A43: 2 | B43: 6 | C43: 6 | D43: 2 | E43: G | F43: =+TEXT(DaneN1[[#This Row],[WK]],"00")&DaneN1[[#This Row],[TYPS]]&D43&TEXT(DaneN1[[#This Row],[PK]],"00") -> 02G206 | G43: =+IF(ISERROR(VLOOKUP(DaneN1[[#This Row],[KodGUS6]],LstMetropolie[],1,FALSE)),DaneN1[[#This Row],[Typ]],"T") -> G | H43: 020606 | I43: 206062 | J43: JEŻÓW SUDECKI | L43: 2023 | M43: 7847 | N43: 47816298.86 | O43: 37938854.69 | P43: =+DaneN1[[#This Row],[Dbs]]+DaneN1[[#This Row],[Dbd]] -> 15156740.53 | Q43: 10167802.15 | R43: 4988938.38 | S43: 9877444.17 | T43: 236319.77 | U43: 55675795.18 | V43: 34200396.82 | W43: 12453438.87 | X43: 1858.13 | Y43: 21475398.36 | Z43: 10284174.51 | AA43: 0 | AB43: =+DaneN1[[#This Row],[P]]-DaneN1[[#This Row],[Pd]] -> 10284174.51 | AC43: 114977 | AD43: 114977 | AE43: 0 | AF43: 3738457.87 | AG43: 55572.73 | AH43: 179873.88 | AI43: 0 | AJ43: 0
A44: 2 | B44: 6 | C44: 7 | D44: 2 | E44: G | F44: =+TEXT(DaneN1[[#This Row],[WK]],"00")&DaneN1[[#This Row],[TYPS]]&D44&TEXT(DaneN1[[#This Row],[PK]],"00") -> 02G206 | G44: =+IF(ISERROR(VLOOKUP(DaneN1[[#This Row],[KodGUS6]],LstMetropolie[],1,FALSE)),DaneN1[[#This Row],[Typ]],"T") -> G | H44: 020607 | I44: 206072 | J44: MYSŁAKOWICE | L44: 2023 | M44: 9722 | N44: 82673143.54 | O44: 50386274.71 | P44: =+DaneN1[[#This Row],[Dbs]]+DaneN1[[#This Row],[Dbd]] -> 22532654.51 | Q44: 14648277.9 | R44: 7884376.61 | S44: 32286868.83 | T44: 1263517.26 | U44: 111000565.7 | V44: 49985649.79 | W44: 20018397.76 | X44: 2426400.29 | Y44: 61014915.87 | Z44: 29587944.9 | AA44: 24900000 | AB44: =+DaneN1[[#This Row],[P]]-DaneN1[[#This Row],[Pd]] -> 4687944.9 | AC44: 1200000 | AD44: 1200000 | AE44: 40000000 | AF44: 400624.92 | AG44: 81210.07 | AH44: 192923.97 | AI44: 0 | AJ44: 0
A45: 2 | B45: 6 | C45: 8 | D45: 2 | E45: G | F45: =+TEXT(DaneN1[[#This Row],[WK]],"00")&DaneN1[[#This Row],[TYPS]]&D45&TEXT(DaneN1[[#This Row],[PK]],"00") -> 02G206 | G45: =+IF(ISERROR(VLOOKUP(DaneN1[[#This Row],[KodGUS6]],LstMetropolie[],1,FALSE)),DaneN1[[#This Row],[Typ]],"T") -> G | H45: 020608 | I45: 206082 | J45: PODGÓRZYN | L45: 2023 | M45: 8128 | N45: 60092326.74 | O45: 49536968.06 | P45: =+DaneN1[[#This Row],[Dbs]]+DaneN1[[#This Row],[Dbd]] -> 20586426.63 | Q45: 12901855.15 | R45: 7684571.48 | S45: 10555358.68 | T45: 582976.81 | U45: 76064251.64 | V45: 49762065.88 | W45: 20821772.36 | X45: 2503315.57 | Y45: 26302185.76 | Z45: 29884373.86 | AA45: 18500000 | AB45: =+DaneN1[[#This Row],[P]]-DaneN1[[#This Row],[Pd]] -> 11384373.86 | AC45: 1550000 | AD45: 1550000 | AE45: 47000000 | AF45: -225097.82 | AG45: 53088.9 | AH45: 425526.38 | AI45: 0 | AJ45: 0
A46: 2 | B46: 6 | C46: 9 | D46: 2 | E46: G | F46: =+TEXT(DaneN1[[#This Row],[WK]],"00")&DaneN1[[#This Row],[TYPS]]&D46&TEXT(DaneN1[[#This Row],[PK]],"00") -> 02G206 | G46: =+IF(ISERROR(VLOOKUP(DaneN1[[#This Row],[KodGUS6]],LstMetropolie[],1,FALSE)),DaneN1[[#This Row],[Typ]],"T") -> G | H46: 020609 | I46: 206092 | J46: STARA KAMIENICA | L46: 2023 | M46: 5286 | N46: 43794357.91 | O46: 32496744.54 | P46: =+DaneN1[[#This Row],[Dbs]]+DaneN1[[#This Row],[Dbd]] -> 17112630.73 | Q46: 9745645.35 | R46: 7366985.38 | S46: 11297613.37 | T46: 431894.3 | U46: 40957649.95 | V46: 30327658.28 | W46: 13328038.4 | X46: 1245429.36 | Y46: 10629991.67 | Z46: 2360764.16 | AA46: 0 | AB46: =+DaneN1[[#This Row],[P]]-DaneN1[[#This Row],[Pd]] -> 2360764.16 | AC46: 848000 | AD46: 848000 | AE46: 14009500 | AF46: 2169086.26 | AG46: 1691590.54 | AH46: 590194.32 | AI46: 0 | AJ46: 0
A47: 2 | B47: 7 | C47: 1 | D47: 1 | E47: G | F47: =+TEXT(DaneN1[[#This Row],[WK]],"00")&DaneN1[[#This Row],[TYPS]]&D47&TEXT(DaneN1[[#This Row],[PK]],"00") -> 02G107 | G47: =+IF(ISERROR(VLOOKUP(DaneN1[[#This Row],[KodGUS6]],LstMetropolie[],1,FALSE)),DaneN1[[#This Row],[Typ]],"T") -> G | H47: 020701 | I47: 207011 | J47: KAMIENNA GÓRA | L47: 2023 | M47: 17243 | N47: 111986161.5 | O47: 83981647.04 | P47: =+DaneN1[[#This Row],[Dbs]]+DaneN1[[#This Row],[Dbd]] -> 42798230.49 | Q47: 27737944.6 | R47: 15060285.89 | S47: 28004514.44 | T47: 3775812 | U47: 105653399.7 | V47: 87587141.53 | W47: 40958967.45 | X47: 4147918.48 | Y47: 18066258.17 | Z47: 14652243.28 | AA47: 5724114.62 | AB47: =+DaneN1[[#This Row],[P]]-DaneN1[[#This Row],[Pd]] -> 8928128.66 | AC47: 2428600 | AD47: 2428600 | AE47: 52349790.14 | AF47: -3605494.49 | AG47: 83634.53 | AH47: 345274.7 | AI47: 0 | AJ47: 1168709.87
A48: 2 | B48: 7 | C48: 2 | D48: 2 | E48: G | F48: =+TEXT(DaneN1[[#This Row],[WK]],"00")&DaneN1[[#This Row],[TYPS]]&D48&TEXT(DaneN1[[#This Row],[PK]],"00") -> 02G207 | G48: =+IF(ISERROR(VLOOKUP(DaneN1[[#This Row],[KodGUS6]],LstMetropolie[],1,FALSE)),DaneN1[[#This Row],[Typ]],"T") -> G | H48: 020702 | I48: 207022 | J48: KAMIENNA GÓRA | L48: 2023 | M48: 8862 | N48: 56068243.41 | O48: 48602748.69 | P48: =+DaneN1[[#This Row],[Dbs]]+DaneN1[[#This Row],[Dbd]] -> 25858060.37 | Q48: 17787312.7 | R48: 8070747.67 | S48: 7465494.72 | T48: 762325.37 | U48: 60105134.5 | V48: 46103426.92 | W48: 21539769.31 | X48: 370728.13 | Y48: 14001707.58 | Z48: 13107640.53 | AA48: 1800000 | AB48: =+DaneN1[[#This Row],[P]]-DaneN1[[#This Row],[Pd]] -> 11307640.53 | AC48: 1137558.1 | AD48: 1137558.1 | AE48: 6412790.5 | AF48: 2499321.77 | AG48: 1743910.29 | AH48: 1359512.35 | AI48: 0 | AJ48: 0
A49: 2 | B49: 7 | C49: 3 | D49: 3 | E49: G | F49: =+TEXT(DaneN1[[#This Row],[WK]],"00")&DaneN1[[#This Row],[TYPS]]&D49&TEXT(DaneN1[[#This Row],[PK]],"00") -> 02G307 | G49: =+IF(ISERROR(VLOOKUP(DaneN1[[#This Row],[KodGUS6]],LstMetropolie[],1,FALSE)),DaneN1[[#This Row],[Typ]],"T") -> G | H49: 020703 | I49: 207033 | J49: LUBAWKA | L49: 2023 | M49: 10186 | N49: 50638481.15 | O49: 46683906.76 | P49: =+DaneN1[[#This Row],[Dbs]]+DaneN1[[#This Row],[Dbd]] -> 26152861.2 | Q49: 18569753.45 | R49: 7583107.75 | S49: 3954574.39 | T49: 1056715 | U49: 47880329.94 | V49: 46143109.43 | W49: 20936959.59 | X49: 694127.82 | Y49: 1737220.51 | Z49: 14361311.21 | AA49: 0 | AB49: =+DaneN1[[#This Row],[P]]-DaneN1[[#This Row],[Pd]] -> 14361311.21 | AC49: 870000 | AD49: 870000 | AE49: 7963440.19 | AF49: 540797.33 | AG49: 216479.44 | AH49: 621222.54 | AI49: 0 | AJ49: 0
A50: 2 | B50: 7 | C50: 4 | D50: 2 | E50: G | F50: =+TEXT(DaneN1[[#This Row],[WK]],"00")&DaneN1[[#This Row],[TYPS]]&D50&TEXT(DaneN1[[#This Row],[PK]],"00") -> 02G207 | G50: =+IF(ISERROR(VLOOKUP(DaneN1[[#This Row],[KodGUS6]],LstMetropolie[],1,FALSE)),DaneN1[[#This Row],[Typ]],"T") -> G | H50: 020704 | I50: 207042 | J50: MARCISZÓW | L50: 2023 | M50: 4259 | N50: 24659183.57 | O50: 23042347.72 | P50: =+DaneN1[[#This Row],[Dbs]]+DaneN1[[#This Row],[Dbd]] -> 15100243.54 | Q50: 10937069.1 | R50: 4163174.44 | S50: 1616835.85 | T50: 92830 | U50: 26565755.69 | V50: 21335259.08 | W50: 10581361.02 | X50: 429159.93 | Y50: 5230496.61 | Z50: 7110146.7 | AA50: 2500000 | AB50: =+DaneN1[[#This Row],[P]]-DaneN1[[#This Row],[Pd]] -> 4610146.7 | AC50: 994576.56 | AD50: 994576.56 | AE50: 7776559.84 | AF50: 1707088.64 | AG50: 0 | AH50: 30660.53 | AI50: 0 | AJ50: 0
A51: 2 | B51: 8 | C51: 1 | D51: 1 | E51: G | F51: =+TEXT(DaneN1[[#This Row],[WK]],"00")&DaneN1[[#This Row],[TYPS]]&D51&TEXT(DaneN1[[#This Row],[PK]],"00") -> 02G108 | G51: =+IF(ISERROR(VLOOKUP(DaneN1[[#This Row],[KodGUS6]],LstMetropolie[],1,FALSE)),DaneN1[[#This Row],[Typ]],"T") -> G | H51: 020801 | I51: 208011 | J51: DUSZNIKI-ZDRÓJ | L51: 2023 | M51: 4051 | N51: 41642026.3 | O51: 34656129.76 | P51: =+DaneN1[[#This Row],[Dbs]]+DaneN1[[#This Row],[Dbd]] -> 15784783.59 | Q51: 7082994.75 | R51: 8701788.84 | S51: 6985896.54 | T51: 581618.86 | U51: 54381816.93 | V51: 34879977.6 | W51: 13635354.65 | X51: 0 | Y51: 19501839.33 | Z51: 37704744.06 | AA51: 0 | AB51: =+DaneN1[[#This Row],[P]]-DaneN1[[#This Row],[Pd]] -> 37704744.06 | AC51: 0 | AD51: 0 | AE51: 0 | AF51: -223847.84 | AG51: 69710.98 | AH51: 13569.74 | AI51: 0 | AJ51: 0
A52: 2 | B52: 8 | C52: 2 | D52: 1 | E52: G | F52: =+TEXT(DaneN1[[#This Row],[WK]],"00")&DaneN1[[#This Row],[TYPS]]&D52&TEXT(DaneN1[[#This Row],[PK]],"00") -> 02G108 | G52: =+IF(ISERROR(VLOOKUP(DaneN1[[#This Row],[KodGUS6]],LstMetropolie[],1,FALSE)),DaneN1[[#This Row],[Typ]],"T") -> G | H52: 020802 | I52: 208021 | J52: KŁODZKO | L52: 2023 | M52: 24933 | N52: 153217344.7 | O52: 122705242.4 | P52: =+DaneN1[[#This Row],[Dbs]]+DaneN1[[#This Row],[Dbd]] -> 56579704.32 | Q52: 37772282.85 | R52: 18807421.47 | S52: 30512102.32 | T52: 2903702.52 | U52: 190345344.8 | V52: 122092829.7 | W52: 50065952.41 | X52: 2487562.49 | Y52: 68252515.15 | Z52: 48390799.55 | AA52: 19995127.47 | AB52: =+DaneN1[[#This Row],[P]]-DaneN1[[#This Row],[Pd]] -> 28395672.08 | AC52: 5714356 | AD52: 5714356 | AE52: 49789464.5 | AF52: 612412.73 | AG52: 741056.9 | AH52: 850190.42 | AI52: 0 | AJ52: 0
A53: 2 | B53: 8 | C53: 3 | D53: 1 | E53: G | F53: =+TEXT(DaneN1[[#This Row],[WK]],"00")&DaneN1[[#This Row],[TYPS]]&D53&TEXT(DaneN1[[#This Row],[PK]],"00") -> 02G108 | G53: =+IF(ISERROR(VLOOKUP(DaneN1[[#This Row],[KodGUS6]],LstMetropolie[],1,FALSE)),DaneN1[[#This Row],[Typ]],"T") -> G | H53: 020803 | I53: 208031 | J53: KUDOWA-ZDRÓJ | L53: 2023 | M53: 9324 | N53: 73310182.08 | O53: 55171800.66 | P53: =+DaneN1[[#This Row],[Dbs]]+DaneN1[[#This Row],[Dbd]] -> 26685809.46 | Q53: 17253375.45 | R53: 9432434.01 | S53: 18138381.42 | T53: 4204980.51 | U53: 73213945.57 | V53: 52407094.71 | W53: 20787592.1 | X53: 1542533.29 | Y53: 20806850.86 | Z53: 9001281.62 | AA53: 0 | AB53: =+DaneN1[[#This Row],[P]]-DaneN1[[#This Row],[Pd]] -> 9001281.62 | AC53: 3435541.72 | AD53: 2635541.72 | AE53: 17634447.75 | AF53: 2764705.95 | AG53: 463675.01 | AH53: 558728.15 | AI53: 0 | AJ53: 150342.51
A54: 2 | B54: 8 | C54: 4 | D54: 1 | E54: G | F54: =+TEXT(DaneN1[[#This Row],[WK]],"00")&DaneN1[[#This Row],[TYPS]]&D54&TEXT(DaneN1[[#This Row],[PK]],"00") -> 02G108 | G54: =+IF(ISERROR(VLOOKUP(DaneN1[[#This Row],[KodGUS6]],LstMetropolie[],1,FALSE)),DaneN1[[#This Row],[Typ]],"T") -> G | H54: 020804 | I54: 208041 | J54: NOWA RUDA | L54: 2023 | M54: 20543 | N54: 109893654.5 | O54: 93027672.52 | P54: =+DaneN1[[#This Row],[Dbs]]+DaneN1[[#This Row],[Dbd]] -> 41635189.67 | Q54: 25953088.35 | R54: 15682101.32 | S54: 16865981.99 | T54: 4541128.35 | U54: 118892520.7 | V54: 97940698.6 | W54: 31959982.81 | X54: 3938850.7 | Y54: 20951822.08 | Z54: 13201635.15 | AA54: 4115000 | AB54: =+DaneN1[[#This Row],[P]]-DaneN1[[#This Row],[Pd]] -> 9086635.15 | AC54: 3323649.08 | AD54: 3213649.08 | AE54: 47969156.21 | AF54: -4913026.08 | AG54: 860326.94 | AH54: 870959.33 | AI54: 0 | AJ54: 3038946.29
A55: 2 | B55: 8 | C55: 5 | D55: 1 | E55: G | F55: =+TEXT(DaneN1[[#This Row],[WK]],"00")&DaneN1[[#This Row],[TYPS]]&D55&TEXT(DaneN1[[#This Row],[PK]],"00") -> 02G108 | G55: =+IF(ISERROR(VLOOKUP(DaneN1[[#This Row],[KodGUS6]],LstMetropolie[],1,FALSE)),DaneN1[[#This Row],[Typ]],"T") -> G | H55: 020805 | I55: 208051 | J55: POLANICA-ZDRÓJ | L55: 2023 | M55: 5994 | N55: 61631080.38 | O55: 40811355.93 | P55: =+DaneN1[[#This Row],[Dbs]]+DaneN1[[#This Row],[Dbd]] -> 14545727.61 | Q55: 7127693.15 | R55: 7418034.46 | S55: 20819724.45 | T55: 1976105.22 | U55: 93195408.02 | V55: 37924797.74 | W55: 11946511.9 | X55: 535274.47 | Y55: 55270610.28 | Z55: 34525963.79 | AA55: 30000000 | AB55: =+DaneN1[[#This Row],[P]]-DaneN1[[#This Row],[Pd]] -> 4525963.79 | AC55: 145913.04 | AD55: 145913.04 | AE55: 31293121.36 | AF55: 2886558.19 | AG55: 615343.12 | AH55: 511284.53 | AI55: 0 | AJ55: 339763.75
A56: 2 | B56: 8 | C56: 6 | D56: 3 | E56: G | F56: =+TEXT(DaneN1[[#This Row],[WK]],"00")&DaneN1[[#This Row],[TYPS]]&D56&TEXT(DaneN1[[#This Row],[PK]],"00") -> 02G308 | G56: =+IF(ISERROR(VLOOKUP(DaneN1[[#This Row],[KodGUS6]],LstMetropolie[],1,FALSE)),DaneN1[[#This Row],[Typ]],"T") -> G | H56: 020806 | I56: 208063 | J56: BYSTRZYCA KŁODZKA | L56: 2023 | M56: 17366 | N56: 108384711.2 | O56: 94686590.17 | P56: =+DaneN1[[#This Row],[Dbs]]+DaneN1[[#This Row],[Dbd]] -> 53110721.95 | Q56: 37322343.05 | R56: 15788378.9 | S56: 13698121.01 | T56: 2092520.29 | U56: 124280540.1 | V56: 90561353.39 | W56: 29721472.4 | X56: 1040103.65 | Y56: 33719186.75 | Z56: 28752212.68 | AA56: 19600000 | AB56: =+DaneN1[[#This Row],[P]]-DaneN1[[#This Row],[Pd]] -> 9152212.68 | AC56: 2413800 | AD56: 2401000 | AE56: 33237000 | AF56: 4125236.78 | AG56: 967056.72 | AH56: 962210.11 | AI56: 0 | AJ56: 0
A57: 2 | B57: 8 | C57: 7 | D57: 2 | E57: G | F57: =+TEXT(DaneN1[[#This Row],[WK]],"00")&DaneN1[[#This Row],[TYPS]]&D57&TEXT(DaneN1[[#This Row],[PK]],"00") -> 02G208 | G57: =+IF(ISERROR(VLOOKUP(DaneN1[[#This Row],[KodGUS6]],LstMetropolie[],1,FALSE)),DaneN1[[#This Row],[Typ]],"T") -> G | H57: 020807 | I57: 208072 | J57: KŁODZKO | L57: 2023 | M57: 16479 | N57: 104396115.2 | O57: 85286434.65 | P57: =+DaneN1[[#This Row],[Dbs]]+DaneN1[[#This Row],[Dbd]] -> 43735151.64 | Q57: 29832755.4 | R57: 13902396.24 | S57: 19109680.5 | T57: 1773766.25 | U57: 111070284.8 | V57: 86394993.56 | W57: 36013377.49 | X57: 2690737.46 | Y57: 24675291.24 | Z57: 13816101.87 | AA57: 9900000 | AB57: =+DaneN1[[#This Row],[P]]-DaneN1[[#This Row],[Pd]] -> 3916101.87 | AC57: 6102829.76 | AD57: 6102829.76 | AE57: 41950178.39 | AF57: -1108558.91 | AG57: 750378.19 | AH57: 449447.37 | AI57: 0 | AJ57: 614
A58: 2 | B58: 8 | C58: 8 | D58: 3 | E58: G | F58: =+TEXT(DaneN1[[#This Row],[WK]],"00")&DaneN1[[#This Row],[TYPS]]&D58&TEXT(DaneN1[[#This Row],[PK]],"00") -> 02G308 | G58: =+IF(ISERROR(VLOOKUP(DaneN1[[#This Row],[KodGUS6]],LstMetropolie[],1,FALSE)),DaneN1[[#This Row],[Typ]],"T") -> G | H58: 020808 | I58: 208083 | J58: LĄDEK-ZDRÓJ | L58: 2023 | M58: 7551 | N58: 52107364.93 | O58: 42438886.46 | P58: =+DaneN1[[#This Row],[Dbs]]+DaneN1[[#This Row],[Dbd]] -> 21644737.65 | Q58: 12610585.05 | R58: 9034152.6 | S58: 9668478.47 | T58: 4463865.9 | U58: 68782727.1 | V58: 43437264.16 | W58: 16049562.83 | X58: 1232011.73 | Y58: 25345462.94 | Z58: 22394443.82 | AA58: 2253285.68 | AB58: =+DaneN1[[#This Row],[P]]-DaneN1[[#This Row],[Pd]] -> 20141158.14 | AC58: 2625285.68 | AD58: 2625285.68 | AE58: 19594620 | AF58: -998377.7 | AG58: 7660.94 | AH58: 97524.24 | AI58: 0 | AJ58: 0
A59: 2 | B59: 8 | C59: 9 | D59: 2 | E59: G | F59: =+TEXT(DaneN1[[#This Row],[WK]],"00")&DaneN1[[#This Row],[TYPS]]&D59&TEXT(DaneN1[[#This Row],[PK]],"00") -> 02G208 | G59: =+IF(ISERROR(VLOOKUP(DaneN1[[#This Row],[KodGUS6]],LstMetropolie[],1,FALSE)),DaneN1[[#This Row],[Typ]],"T") -> G | H59: 020809 | I59: 208092 | J59: LEWIN KŁODZKI | L59: 2023 | M59: 1962 | N59: 34315260.25 | O59: 14414858.58 | P59: =+DaneN1[[#This Row],[Dbs]]+DaneN1[[#This Row],[Dbd]] -> 7523588.7 | Q59: 5534696.2 | R59: 1988892.5 | S59: 19900401.67 | T59: 746461.54 | U59: 36189882.35 | V59: 11196520.06 | W59: 5351547.62 | X59: 47057.3 | Y59: 24993362.29 | Z59: 3521583.81 | AA59: 0 | AB59: =+DaneN1[[#This Row],[P]]-DaneN1[[#This Row],[Pd]] -> 3521583.81 | AC59: 321498 | AD59: 321498 | AE59: 463516 | AF59: 3218338.52 | AG59: 59409.23 | AH59: 39507.01 | AI59: 0 | AJ59: 0
A60: 2 | B60: 8 | C60: 10 | D60: 3 | E60: G | F60: =+TEXT(DaneN1[[#This Row],[WK]],"00")&DaneN1[[#This Row],[TYPS]]&D60&TEXT(DaneN1[[#This Row],[PK]],"00") -> 02G308 | G60: =+IF(ISERROR(VLOOKUP(DaneN1[[#This Row],[KodGUS6]],LstMetropolie[],1,FALSE)),DaneN1[[#This Row],[Typ]],"T") -> G | H60: 020810 | I60: 208103 | J60: MIĘDZYLESIE | L60: 2023 | M60: 6797 | N60: 45414060.48 | O60: 35464250.39 | P60: =+DaneN1[[#This Row],[Dbs]]+DaneN1[[#This Row],[Dbd]] -> 23091571.86 | Q60: 16004856.65 | R60: 7086715.21 | S60: 9949810.09 | T60: 744681.15 | U60: 49198664.63 | V60: 34760204.33 | W60: 15859898.33 | X60: 0 | Y60: 14438460.3 | Z60: 12851537.91 | AA60: 0 | AB60: =+DaneN1[[#This Row],[P]]-DaneN1[[#This Row],[Pd]] -> 12851537.91 | AC60: 0 | AD60: 0 | AE60: 0 | AF60: 704046.06 | AG60: 488270.31 | AH60: 365437.95 | AI60: 0 | AJ60: 0
A61: 2 | B61: 8 | C61: 11 | D61: 2 | E61: G | F61: =+TEXT(DaneN1[[#This Row],[WK]],"00")&DaneN1[[#This Row],[TYPS]]&D61&TEXT(DaneN1[[#This Row],[PK]],"00") -> 02G208 | G61: =+IF(ISERROR(VLOOKUP(DaneN1[[#This Row],[KodGUS6]],LstMetropolie[],1,FALSE)),DaneN1[[#This Row],[Typ]],"T") -> G | H61: 020811 | I61: 208112 | J61: NOWA RUDA | L61: 2023 | M61: 10658 | N61: 79959759.94 | O61: 61571033.87 | P61: =+DaneN1[[#This Row],[Dbs]]+DaneN1[[#This Row],[Dbd]] -> 34550332.49 | Q61: 26154144.9 | R61: 8396187.59 | S61: 18388726.07 | T61: 1727524.87 | U61: 93333858.37 | V61: 64652890.68 | W61: 22297695.28 | X61: 1074110.78 | Y61: 28680967.69 | Z61: 19659842.45 | AA61: 8000000 | AB61: =+DaneN1[[#This Row],[P]]-DaneN1[[#This Row],[Pd]] -> 11659842.45 | AC61: 13982.92 | AD61: 13982.92 | AE61: 18616798.64 | AF61: -3081856.81 | AG61: 651832.24 | AH61: 473452.51 | AI61: 0 | AJ61: 0
A62: 2 | B62: 8 | C62: 12 | D62: 3 | E62: G | F62: =+TEXT(DaneN1[[#This Row],[WK]],"00")&DaneN1[[#This Row],[TYPS]]&D62&TEXT(DaneN1[[#This Row],[PK]],"00") -> 02G308 | G62: =+IF(ISERROR(VLOOKUP(DaneN1[[#This Row],[KodGUS6]],LstMetropolie[],1,FALSE)),DaneN1[[#This Row],[Typ]],"T") -> G | H62: 020812 | I62: 208123 | J62: RADKÓW | L62: 2023 | M62: 8471 | N62: 64316492.06 | O62: 52493022.83 | P62: =+DaneN1[[#This Row],[Dbs]]+DaneN1[[#This Row],[Dbd]] -> 22856886.49 | Q62: 15594185.4 | R62: 7262701.09 | S62: 11823469.23 | T62: 2583565.03 | U62: 78006683.56 | V62: 53603152.41 | W62: 24013881.49 | X62: 1361317.99 | Y62: 24403531.15 | Z62: 17718753.84 | AA62: 6707665.11 | AB62: =+DaneN1[[#This Row],[P]]-DaneN1[[#This Row],[Pd]] -> 11011088.73 | AC62: 1842482.12 | AD62: 1580393.11 | AE62: 20472793.84 | AF62: -1110129.58 | AG62: 523281.07 | AH62: 290420.19 | AI62: 0 | AJ62: 31358.23
A63: 2 | B63: 8 | C63: 13 | D63: 3 | E63: G | F63: =+TEXT(DaneN1[[#This Row],[WK]],"00")&DaneN1[[#This Row],[TYPS]]&D63&TEXT(DaneN1[[#This Row],[PK]],"00") -> 02G308 | G63: =+IF(ISERROR(VLOOKUP(DaneN1[[#This Row],[KodGUS6]],LstMetropolie[],1,FALSE)),DaneN1[[#This Row],[Typ]],"T") -> G | H63: 020813 | I63: 208133 | J63: STRONIE ŚLĄSKIE | L63: 2023 | M63: 6780 | N63: 55983851.5 | O63: 35378040.14 | P63: =+DaneN1[[#This Row],[Dbs]]+DaneN1[[#This Row],[Dbd]] -> 15993462.44 | Q63: 10813701.35 | R63: 5179761.09 | S63: 20605811.36 | T63: 5673093.48 | U63: 52565009.43 | V63: 33441938.87 | W63: 13527372.5 | X63: 619728.81 | Y63: 19123070.56 | Z63: 2273802.33 | AA63: 0 | AB63: =+DaneN1[[#This Row],[P]]-DaneN1[[#This Row],[Pd]] -> 2273802.33 | AC63: 1064253.2 | AD63: 1064253.2 | AE63: 8045425.12 | AF63: 1936101.27 | AG63: 39638.93 | AH63: 72573.24 | AI63: 0 | AJ63: 0
A64: 2 | B64: 8 | C64: 14 | D64: 3 | E64: G | F64: =+TEXT(DaneN1[[#This Row],[WK]],"00")&DaneN1[[#This Row],[TYPS]]&D64&TEXT(DaneN1[[#This Row],[PK]],"00") -> 02G308 | G64: =+IF(ISERROR(VLOOKUP(DaneN1[[#This Row],[KodGUS6]],LstMetropolie[],1,FALSE)),DaneN1[[#This Row],[Typ]],"T") -> G | H64: 020814 | I64: 208143 | J64: SZCZYTNA | L64: 2023 | M64: 6914 | N64: 39835229.88 | O64: 33972404.98 | P64: =+DaneN1[[#This Row],[Dbs]]+DaneN1[[#This Row],[Dbd]] -> 19871877.71 | Q64: 14366194.75 | R64: 5505682.96 | S64: 5862824.9 | T64: 2811788.16 | U64: 47475019.03 | V64: 37175898.88 | W64: 14143414.79 | X64: 449873.14 | Y64: 10299120.15 | Z64: 10744665.69 | AA64: 6500000 | AB64: =+DaneN1[[#This Row],[P]]-DaneN1[[#This Row],[Pd]] -> 4244665.69 | AC64: 1872508.33 | AD64: 1872508.33 | AE64: 10749369.07 | AF64: -3203493.9 | AG64: 15778.46 | AH64: 266601.09 | AI64: 0 | AJ64: 0
A65: 2 | B65: 9 | C65: 1 | D65: 1 | E65: G | F65: =+TEXT(DaneN1[[#This Row],[WK]],"00")&DaneN1[[#This Row],[TYPS]]&D65&TEXT(DaneN1[[#This Row],[PK]],"00") -> 02G109 | G65: =+IF(ISERROR(VLOOKUP(DaneN1[[#This Row],[KodGUS6]],LstMetropolie[],1,FALSE)),DaneN1[[#This Row],[Typ]],"T") -> G | H65: 020901 | I65: 209011 | J65: CHOJNÓW | L65: 2023 | M65: 12392 | N65: 62432098.03 | O65: 59146372.8 | P65: =+DaneN1[[#This Row],[Dbs]]+DaneN1[[#This Row],[Dbd]] -> 28847076.44 | Q65: 18405473.2 | R65: 10441603.24 | S65: 3285725.23 | T65: 1649956.2 | U65: 64314263.39 | V65: 57270898.62 | W65: 26218312.63 | X65: 204960.56 | Y65: 7043364.77 | Z65: 19065270.24 | AA65: 0 | AB65: =+DaneN1[[#This Row],[P]]-DaneN1[[#This Row],[Pd]] -> 19065270.24 | AC65: 520948 | AD65: 520948 | AE65: 2491234.18 | AF65: 1875474.18 | AG65: 69487.5 | AH65: 363334.25 | AI65: 0 | AJ65: 71499.45
A66: 2 | B66: 9 | C66: 2 | D66: 2 | E66: G | F66: =+TEXT(DaneN1[[#This Row],[WK]],"00")&DaneN1[[#This Row],[TYPS]]&D66&TEXT(DaneN1[[#This Row],[PK]],"00") -> 02G209 | G66: =+IF(ISERROR(VLOOKUP(DaneN1[[#This Row],[KodGUS6]],LstMetropolie[],1,FALSE)),DaneN1[[#This Row],[Typ]],"T") -> G | H66: 020902 | I66: 209022 | J66: CHOJNÓW | L66: 2023 | M66: 9479 | N66: 77170587.37 | O66: 50586573.71 | P66: =+DaneN1[[#This Row],[Dbs]]+DaneN1[[#This Row],[Dbd]] -> 21784229.97 | Q66: 13851697.7 | R66: 7932532.27 | S66: 26584013.66 | T66: 17614380.25 | U66: 73507824.19 | V66: 57083722.7 | W66: 25393363.27 | X66: 731732.85 | Y66: 16424101.49 | Z66: 2407021.45 | AA66: 537722.29 | AB66: =+DaneN1[[#This Row],[P]]-DaneN1[[#This Row],[Pd]] -> 1869299.16 | AC66: 2532360 | AD66: 2532360 | AE66: 11101312.29 | AF66: -6497148.99 | AG66: 874611.9 | AH66: 677928.15 | AI66: 0 | AJ66: 0
A67: 2 | B67: 9 | C67: 3 | D67: 2 | E67: G | F67: =+TEXT(DaneN1[[#This Row],[WK]],"00")&DaneN1[[#This Row],[TYPS]]&D67&TEXT(DaneN1[[#This Row],[PK]],"00") -> 02G209 | G67: =+IF(ISERROR(VLOOKUP(DaneN1[[#This Row],[KodGUS6]],LstMetropolie[],1,FALSE)),DaneN1[[#This Row],[Typ]],"T") -> G | H67: 020903 | I67: 209032 | J67: KROTOSZYCE | L67: 2023 | M67: 3328 | N67: 31508853.09 | O67: 21964392 | P67: =+DaneN1[[#This Row],[Dbs]]+DaneN1[[#This Row],[Dbd]] -> 8579452.98 | Q67: 5533809.15 | R67: 3045643.83 | S67: 9544461.09 | T67: 177772.13 | U67: 31705100.49 | V67: 20800810.02 | W67: 8438925.04 | X67: 500940.38 | Y67: 10904290.47 | Z67: 2932348.65 | AA67: 0 | AB67: =+DaneN1[[#This Row],[P]]-DaneN1[[#This Row],[Pd]] -> 2932348.65 | AC67: 780382.52 | AD67: 780382.52 | AE67: 5692655.18 | AF67: 1163581.98 | AG67: 7575.03 | AH67: 19362 | AI67: 0 | AJ67: 0
A68: 2 | B68: 9 | C68: 4 | D68: 2 | E68: G | F68: =+TEXT(DaneN1[[#This Row],[WK]],"00")&DaneN1[[#This Row],[TYPS]]&D68&TEXT(DaneN1[[#This Row],[PK]],"00") -> 02G209 | G68: =+IF(ISERROR(VLOOKUP(DaneN1[[#This Row],[KodGUS6]],LstMetropolie[],1,FALSE)),DaneN1[[#This Row],[Typ]],"T") -> G | H68: 020904 | I68: 209042 | J68: KUNICE | L68: 2023 | M68: 7677 | N68: 44900739.9 | O68: 42587228.4 | P68: =+DaneN1[[#This Row],[Dbs]]+DaneN1[[#This Row],[Dbd]] -> 14888429.85 | Q68: 10751701.85 | R68: 4136728 | S68: 2313511.5 | T68: 34967.7 | U68: 47469692.28 | V68: 42318479.95 | W68: 18703831.66 | X68: 945064.07 | Y68: 5151212.33 | Z68: 5310293.45 | AA68: 0 | AB68: =+DaneN1[[#This Row],[P]]-DaneN1[[#This Row],[Pd]] -> 5310293.45 | AC68: 1750800 | AD68: 1750800 | AE68: 11825700 | AF68: 268748.45 | AG68: 0 | AH68: 0 | AI68: 0 | AJ68: 0
A69: 2 | B69: 9 | C69: 5 | D69: 2 | E69: G | F69: =+TEXT(DaneN1[[#This Row],[WK]],"00")&DaneN1[[#This Row],[TYPS]]&D69&TEXT(DaneN1[[#This Row],[PK]],"00") -> 02G209 | G69: =+IF(ISERROR(VLOOKUP(DaneN1[[#This Row],[KodGUS6]],LstMetropolie[],1,FALSE)),DaneN1[[#This Row],[Typ]],"T") -> G | H69: 020905 | I69: 209052 | J69: LEGNICKIE POLE | L69: 2023 | M69: 5314 | N69: 50169545.52 | O69: 40068378.39 | P69: =+DaneN1[[#This Row],[Dbs]]+DaneN1[[#This Row],[Dbd]] -> 10383110.68 | Q69: 5854640.4 | R69: 4528470.28 | S69: 10101167.13 | T69: 625520 | U69: 54925096.56 | V69: 38663424.46 | W69: 14573658.51 | X69: 577096.44 | Y69: 16261672.1 | Z69: 7719378.15 | AA69: 1000000 | AB69: =+DaneN1[[#This Row],[P]]-DaneN1[[#This Row],[Pd]] -> 6719378.15 | AC69: 1243309 | AD69: 1243309 | AE69: 8073027.28 | AF69: 1404953.93 | AG69: 8596.56 | AH69: 8596.56 | AI69: 0 | AJ69: 0
A70: 2 | B70: 9 | C70: 6 | D70: 2 | E70: G | F70: =+TEXT(DaneN1[[#This Row],[WK]],"00")&DaneN1[[#This Row],[TYPS]]&D70&TEXT(DaneN1[[#This Row],[PK]],"00") -> 02G209 | G70: =+IF(ISERROR(VLOOKUP(DaneN1[[#This Row],[KodGUS6]],LstMetropolie[],1,FALSE)),DaneN1[[#This Row],[Typ]],"T") -> G | H70: 020906 | I70: 209062 | J70: MIŁKOWICE | L70: 2023 | M70: 7219 | N70: 52429839.98 | O70: 35938558.35 | P70: =+DaneN1[[#This Row],[Dbs]]+DaneN1[[#This Row],[Dbd]] -> 14688047.68 | Q70: 9245590.25 | R70: 5442457.43 | S70: 16491281.63 | T70: 9966257.5 | U70: 42431637.54 | V70: 34551823.03 | W70: 12304749.5 | X70: 716039.99 | Y70: 7879814.51 | Z70: 4618431.31 | AA70: 0 | AB70: =+DaneN1[[#This Row],[P]]-DaneN1[[#This Row],[Pd]] -> 4618431.31 | AC70: 1342000 | AD70: 1342000 | AE70: 9152000 | AF70: 1386735.32 | AG70: 0 | AH70: 98052.81 | AI70: 0 | AJ70: 0
A71: 2 | B71: 9 | C71: 7 | D71: 3 | E71: G | F71: =+TEXT(DaneN1[[#This Row],[WK]],"00")&DaneN1[[#This Row],[TYPS]]&D71&TEXT(DaneN1[[#This Row],[PK]],"00") -> 02G309 | G71: =+IF(ISERROR(VLOOKUP(DaneN1[[#This Row],[KodGUS6]],LstMetropolie[],1,FALSE)),DaneN1[[#This Row],[Typ]],"T") -> G | H71: 020907 | I71: 209073 | J71: PROCHOWICE | L71: 2023 | M71: 7165 | N71: 61516574.93 | O71: 40194363.64 | P71: =+DaneN1[[#This Row],[Dbs]]+DaneN1[[#This Row],[Dbd]] -> 15858530.77 | Q71: 10274483.75 | R71: 5584047.02 | S71: 21322211.29 | T71: 430638.48 | U71: 67869894.78 | V71: 39979468.12 | W71: 16669026.38 | X71: 1236938.32 | Y71: 27890426.66 | Z71: 14399747.59 | AA71: 8900000 | AB71: =+DaneN1[[#This Row],[P]]-DaneN1[[#This Row],[Pd]] -> 5499747.59 | AC71: 2636162 | AD71: 2636162 | AE71: 23460758 | AF71: 214895.52 | AG71: 252379.15 | AH71: 382189.83 | AI71: 0 | AJ71: 0
A72: 2 | B72: 9 | C72: 8 | D72: 2 | E72: G | F72: =+TEXT(DaneN1[[#This Row],[WK]],"00")&DaneN1[[#This Row],[TYPS]]&D72&TEXT(DaneN1[[#This Row],[PK]],"00") -> 02G209 | G72: =+IF(ISERROR(VLOOKUP(DaneN1[[#This Row],[KodGUS6]],LstMetropolie[],1,FALSE)),DaneN1[[#This Row],[Typ]],"T") -> G | H72: 020908 | I72: 209082 | J72: RUJA | L72: 2023 | M72: 2416 | N72: 17688817.28 | O72: 15015229.46 | P72: =+DaneN1[[#This Row],[Dbs]]+DaneN1[[#This Row],[Dbd]] -> 8122169.43 | Q72: 5440472.35 | R72: 2681697.08 | S72: 2673587.82 | T72: 91900.59 | U72: 20027234.61 | V72: 14221354.84 | W72: 4740578.72 | X72: 78728.08 | Y72: 5805879.77 | Z72: 5849095.49 | AA72: 0 | AB72: =+DaneN1[[#This Row],[P]]-DaneN1[[#This Row],[Pd]] -> 5849095.49 | AC72: 393496 | AD72: 393496 | AE72: 1311500 | AF72: 793874.62 | AG72: 0 | AH72: 0 | AI72: 0 | AJ72: 0
A73: 2 | B73: 10 | C73: 1 | D73: 1 | E73: G | F73: =+TEXT(DaneN1[[#This Row],[WK]],"00")&DaneN1[[#This Row],[TYPS]]&D73&TEXT(DaneN1[[#This Row],[PK]],"00") -> 02G110 | G73: =+IF(ISERROR(VLOOKUP(DaneN1[[#This Row],[KodGUS6]],LstMetropolie[],1,FALSE)),DaneN1[[#This Row],[Typ]],"T") -> G | H73: =+TEXT(A73,"00")&TEXT(B73,"00")&TEXT(C73,"00") -> 021001 | I73: 210011 | J73: LUBAŃ | L73: =+Rok-1 -> 2023 | M73: 19640 | N73: 118119275.2 | O73: 95316828.1 | P73: =+DaneN1[[#This Row],[Dbs]]+DaneN1[[#This Row],[Dbd]] -> 41560670.2 | Q73: 26104111.05 | R73: 15456559.15 | S73: 22802447.13 | T73: 2058380.54 | U73: 126442717.3 | V73: 92936329.74 | W73: 40921243.93 | X73: 2538862.77 | Y73: 33506387.6 | Z73: 14360176.59 | AA73: 4650000 | AB73: =+DaneN1[[#This Row],[P]]-DaneN1[[#This Row],[Pd]] -> 9710176.59 | AC73: 1974000 | AD73: 1974000 | AE73: 33132006.99 | AF73: 2380498.36 | AG73: 24509.92 | AH73: 119393.56 | AI73: 0 | AJ73: 16838.99
A74: 2 | B74: 10 | C74: 2 | D74: 1 | E74: G | F74: =+TEXT(DaneN1[[#This Row],[WK]],"00")&DaneN1[[#This Row],[TYPS]]&D74&TEXT(DaneN1[[#This Row],[PK]],"00") -> 02G110 | G74: =+IF(ISERROR(VLOOKUP(DaneN1[[#This Row],[KodGUS6]],LstMetropolie[],1,FALSE)),DaneN1[[#This Row],[Typ]],"T") -> G | H74: 021002 | I74: 210021 | J74: ŚWIERADÓW-ZDRÓJ | L74: 2023 | M74: 3961 | N74: 50788407.26 | O74: 42209094.49 | P74: =+DaneN1[[#This Row],[Dbs]]+DaneN1[[#This Row],[Dbd]] -> 15469028.73 | Q74: 7404918.8 | R74: 8064109.93 | S74: 8579312.77 | T74: 1158530.23 | U74: 59625998.76 | V74: 41056054.04 | W74: 14490629.28 | X74: 1517274.31 | Y74: 18569944.72 | Z74: 14102950.38 | AA74: 8000000 | AB74: =+DaneN1[[#This Row],[P]]-DaneN1[[#This Row],[Pd]] -> 6102950.38 | AC74: 3900000 | AD74: 3900000 | AE74: 23360000 | AF74: 1153040.45 | AG74: 0 | AH74: 0 | AI74: 0 | AJ74: 0
A75: 2 | B75: 10 | C75: 3 | D75: 3 | E75: G | F75: =+TEXT(DaneN1[[#This Row],[WK]],"00")&DaneN1[[#This Row],[TYPS]]&D75&TEXT(DaneN1[[#This Row],[PK]],"00") -> 02G310 | G75: =+IF(ISERROR(VLOOKUP(DaneN1[[#This Row],[KodGUS6]],LstMetropolie[],1,FALSE)),DaneN1[[#This Row],[Typ]],"T") -> G | H75: 021003 | I75: 210033 | J75: LEŚNA | L75: 2023 | M75: 9319 | N75: 65176532.47 | O75: 50810491.76 | P75: =+DaneN1[[#This Row],[Dbs]]+DaneN1[[#This Row],[Dbd]] -> 29433532.04 | Q75: 20413340.2 | R75: 9020191.84 | S75: 14366040.71 | T75: 945601.18 | U75: 77665630.01 | V75: 50785003.39 | W75: 19437069.78 | X75: 780492.81 | Y75: 26880626.62 | Z75: 14777001.54 | AA75: 8560000 | AB75: =+DaneN1[[#This Row],[P]]-DaneN1[[#This Row],[Pd]] -> 6217001.54 | AC75: 2287904 | AD75: 2230000 | AE75: 15740000 | AF75: 25488.37 | AG75: 74051.96 | AH75: 105411.61 | AI75: 0 | AJ75: 0
A76: 2 | B76: 10 | C76: 4 | D76: 2 | E76: G | F76: =+TEXT(DaneN1[[#This Row],[WK]],"00")&DaneN1[[#This Row],[TYPS]]&D76&TEXT(DaneN1[[#This Row],[PK]],"00") -> 02G210 | G76: =+IF(ISERROR(VLOOKUP(DaneN1[[#This Row],[KodGUS6]],LstMetropolie[],1,FALSE)),DaneN1[[#This Row],[Typ]],"T") -> G | H76: 021004 | I76: 210042 | J76: LUBAŃ | L76: 2023 | M76: 6474 | N76: 42070705.02 | O76: 36704137.71 | P76: =+DaneN1[[#This Row],[Dbs]]+DaneN1[[#This Row],[Dbd]] -> 18393055.64 | Q76: 12755494.8 | R76: 5637560.84 | S76: 5366567.31 | T76: 126644.92 | U76: 46247551.38 | V76: 33756756.99 | W76: 15320360.84 | X76: 385988.77 | Y76: 12490794.39 | Z76: 11020369.1 | AA76: 0 | AB76: =+DaneN1[[#This Row],[P]]-DaneN1[[#This Row],[Pd]] -> 11020369.1 | AC76: 869301 | AD76: 869301 | AE76: 4893089 | AF76: 2947380.72 | AG76: 0 | AH76: 13531.71 | AI76: 0 | AJ76: 0
A77: 2 | B77: 10 | C77: 5 | D77: 3 | E77: G | F77: =+TEXT(DaneN1[[#This Row],[WK]],"00")&DaneN1[[#This Row],[TYPS]]&D77&TEXT(DaneN1[[#This Row],[PK]],"00") -> 02G310 | G77: =+IF(ISERROR(VLOOKUP(DaneN1[[#This Row],[KodGUS6]],LstMetropolie[],1,FALSE)),DaneN1[[#This Row],[Typ]],"T") -> G | H77: 021005 | I77: 210053 | J77: OLSZYNA | L77: 2023 | M77: 6312 | N77: 35517503.97 | O77: 32848245.81 | P77: =+DaneN1[[#This Row],[Dbs]]+DaneN1[[#This Row],[Dbd]] -> 17844316.93 | Q77: 11150183.55 | R77: 6694133.38 | S77: 2669258.16 | T77: 523112.46 | U77: 38302040.38 | V77: 32030651.81 | W77: 13033493.54 | X77: 96750.43 | Y77: 6271388.57 | Z77: 8310178.5 | AA77: 0 | AB77: =+DaneN1[[#This Row],[P]]-DaneN1[[#This Row],[Pd]] -> 8310178.5 | AC77: 508493.25 | AD77: 51600 | AE77: 2956584.2 | AF77: 817594 | AG77: 17930.92 | AH77: 95170.42 | AI77: 605.16 | AJ77: 0
A78: 2 | B78: 10 | C78: 6 | D78: 2 | E78: G | F78: =+TEXT(DaneN1[[#This Row],[WK]],"00")&DaneN1[[#This Row],[TYPS]]&D78&TEXT(DaneN1[[#This Row],[PK]],"00") -> 02G210 | G78: =+IF(ISERROR(VLOOKUP(DaneN1[[#This Row],[KodGUS6]],LstMetropolie[],1,FALSE)),DaneN1[[#This Row],[Typ]],"T") -> G | H78: 021006 | I78: 210062 | J78: PLATERÓWKA | L78: 2023 | M78: 1515 | N78: 11242424.46 | O78: 9872403.35 | P78: =+DaneN1[[#This Row],[Dbs]]+DaneN1[[#This Row],[Dbd]] -> 4579038.04 | Q78: 3463454.9 | R78: 1115583.14 | S78: 1370021.11 | T78: 0 | U78: 14643037.4 | V78: 8679211.29 | W78: 4547379.38 | X78: 11191.25 | Y78: 5963826.11 | Z78: 4798994.18 | AA78: 0 | AB78: =+DaneN1[[#This Row],[P]]-DaneN1[[#This Row],[Pd]] -> 4798994.18 | AC78: 50000 | AD78: 50000 | AE78: 110000 | AF78: 1193192.06 | AG78: 0 | AH78: 1350.68 | AI78: 0 | AJ78: 0
A79: 2 | B79: 10 | C79: 7 | D79: 2 | E79: G | F79: =+TEXT(DaneN1[[#This Row],[WK]],"00")&DaneN1[[#This Row],[TYPS]]&D79&TEXT(DaneN1[[#This Row],[PK]],"00") -> 02G210 | G79: =+IF(ISERROR(VLOOKUP(DaneN1[[#This Row],[KodGUS6]],LstMetropolie[],1,FALSE)),DaneN1[[#This Row],[Typ]],"T") -> G | H79: 021007 | I79: 210072 | J79: SIEKIERCZYN | L79: 2023 | M79: 4421 | N79: 38850584.86 | O79: 26761482.46 | P79: =+DaneN1[[#This Row],[Dbs]]+DaneN1[[#This Row],[Dbd]] -> 14790433.35 | Q79: 9606241.6 | R79: 5184191.75 | S79: 12089102.4 | T79: 546056.57 | U79: 38896062.16 | V79: 25283003.31 | W79: 10886621.53 | X79: 175306.35 | Y79: 13613058.85 | Z79: 2897984.54 | AA79: 0 | AB79: =+DaneN1[[#This Row],[P]]-DaneN1[[#This Row],[Pd]] -> 2897984.54 | AC79: 754425 | AD79: 696521 | AE79: 2174400 | AF79: 1478479.15 | AG79: 174628.07 | AH79: 241593.8 | AI79: 0 | AJ79: 0
A80: 2 | B80: 11 | C80: 1 | D80: 1 | E80: G | F80: =+TEXT(DaneN1[[#This Row],[WK]],"00")&DaneN1[[#This Row],[TYPS]]&D80&TEXT(DaneN1[[#This Row],[PK]],"00") -> 02G111 | G80: =+IF(ISERROR(VLOOKUP(DaneN1[[#This Row],[KodGUS6]],LstMetropolie[],1,FALSE)),DaneN1[[#This Row],[Typ]],"T") -> G | H80: 021101 | I80: 211011 | J80: LUBIN | L80: 2023 | M80: 68016 | N80: 459984291.2 | O80: 409117327.5 | P80: =+DaneN1[[#This Row],[Dbs]]+DaneN1[[#This Row],[Dbd]] -> 145262540.2 | Q80: 93523276.45 | R80: 51739263.79 | S80: 50866963.79 | T80: 2929882.22 | U80: 509134821.3 | V80: 383597105.1 | W80: 135399190.3 | X80: 11383647.02 | Y80: 125537716.1 | Z80: 98747433.3 | AA80: 50000000 | AB80: =+DaneN1[[#This Row],[P]]-DaneN1[[#This Row],[Pd]] -> 48747433.3 | AC80: 13999999.88 | AD80: 8999999.88 | AE80: 192733891.1 | AF80: 25520222.34 | AG80: 1649946.14 | AH80: 1849157.61 | AI80: 228422.16 | AJ80: 5467.32
A81: 2 | B81: 11 | C81: 2 | D81: 2 | E81: G | F81: =+TEXT(DaneN1[[#This Row],[WK]],"00")&DaneN1[[#This Row],[TYPS]]&D81&TEXT(DaneN1[[#This Row],[PK]],"00") -> 02G211 | G81: =+IF(ISERROR(VLOOKUP(DaneN1[[#This Row],[KodGUS6]],LstMetropolie[],1,FALSE)),DaneN1[[#This Row],[Typ]],"T") -> G | H81: 021102 | I81: 211022 | J81: LUBIN | L81: 2023 | M81: 18192 | N81: 118697507.4 | O81: 105653973.4 | P81: =+DaneN1[[#This Row],[Dbs]]+DaneN1[[#This Row],[Dbd]] -> 25771133.15 | Q81: 15084318.2 | R81: 10686814.95 | S81: 13043533.93 | T81: 424809.91 | U81: 129826494.4 | V81: 106415581.6 | W81: 31744131.77 | X81: 2478205.34 | Y81: 23410912.84 | Z81: 23795674.25 | AA81: 11000000 | AB81: =+DaneN1[[#This Row],[P]]-DaneN1[[#This Row],[Pd]] -> 12795674.25 | AC81: 3309161.6 | AD81: 3309161.6 | AE81: 38335808 | AF81: -761608.12 | AG81: 37465.92 | AH81: 533758.84 | AI81: 0 | AJ81: 0
A82: 2 | B82: 11 | C82: 3 | D82: 2 | E82: G | F82: =+TEXT(DaneN1[[#This Row],[WK]],"00")&DaneN1[[#This Row],[TYPS]]&D82&TEXT(DaneN1[[#This Row],[PK]],"00") -> 02G211 | G82: =+IF(ISERROR(VLOOKUP(DaneN1[[#This Row],[KodGUS6]],LstMetropolie[],1,FALSE)),DaneN1[[#This Row],[Typ]],"T") -> G | H82: 021103 | I82: 211032 | J82: RUDNA | L82: 2023 | M82: 7473 | N82: 100889817 | O82: 90495969.67 | P82: =+DaneN1[[#This Row],[Dbs]]+DaneN1[[#This Row],[Dbd]] -> 16360117.6 | Q82: 9722779.5 | R82: 6637338.1 | S82: 10393847.38 | T82: 552500.66 | U82: 115776670.8 | V82: 83281430.57 | W82: 28363614.71 | X82: 0 | Y82: 32495240.18 | Z82: 58989786.04 | AA82: 0 | AB82: =+DaneN1[[#This Row],[P]]-DaneN1[[#This Row],[Pd]] -> 58989786.04 | AC82: 0 | AD82: 0 | AE82: 0 | AF82: 7214539.1 | AG82: 90107.6 | AH82: 54482.94 | AI82: 0 | AJ82: 0
A83: 2 | B83: 11 | C83: 4 | D83: 3 | E83: G | F83: =+TEXT(DaneN1[[#This Row],[WK]],"00")&DaneN1[[#This Row],[TYPS]]&D83&TEXT(DaneN1[[#This Row],[PK]],"00") -> 02G311 | G83: =+IF(ISERROR(VLOOKUP(DaneN1[[#This Row],[KodGUS6]],LstMetropolie[],1,FALSE)),DaneN1[[#This Row],[Typ]],"T") -> G | H83: 021104 | I83: 211043 | J83: ŚCINAWA | L83: 2023 | M83: 9433 | N83: 127920629 | O83: 58421975.64 | P83: =+DaneN1[[#This Row],[Dbs]]+DaneN1[[#This Row],[Dbd]] -> 25569938.46 | Q83: 16214389.8 | R83: 9355548.66 | S83: 69498653.36 | T83: 817239.58 | U83: 162019208.6 | V83: 51684644.27 | W83: 17865882.51 | X83: 4900596.42 | Y83: 110334564.3 | Z83: 55525272.58 | AA83: 41271941.48 | AB83: =+DaneN1[[#This Row],[P]]-DaneN1[[#This Row],[Pd]] -> 14253331.1 | AC83: 9215860 | AD83: 8865860 | AE83: 93543291.41 | AF83: 6737331.37 | AG83: 282576.97 | AH83: 512665.63 | AI83: 0 | AJ83: 5090.68
A84: 2 | B84: 12 | C84: 1 | D84: 3 | E84: G | F84: =+TEXT(DaneN1[[#This Row],[WK]],"00")&DaneN1[[#This Row],[TYPS]]&D84&TEXT(DaneN1[[#This Row],[PK]],"00") -> 02G312 | G84: =+IF(ISERROR(VLOOKUP(DaneN1[[#This Row],[KodGUS6]],LstMetropolie[],1,FALSE)),DaneN1[[#This Row],[Typ]],"T") -> G | H84: 021201 | I84: 212013 | J84: GRYFÓW ŚLĄSKI | L84: 2023 | M84: 9125 | N84: 45434094.61 | O84: 42668271.25 | P84: =+DaneN1[[#This Row],[Dbs]]+DaneN1[[#This Row],[Dbd]] -> 22183017.08 | Q84: 13983145.35 | R84: 8199871.73 | S84: 2765823.36 | T84: 318375.5 | U84: 49856743.97 | V84: 40126443.86 | W84: 15984828.77 | X84: 620898.28 | Y84: 9730300.11 | Z84: 10881014.5 | AA84: 0 | AB84: =+DaneN1[[#This Row],[P]]-DaneN1[[#This Row],[Pd]] -> 10881014.5 | AC84: 980000 | AD84: 980000 | AE84: 7421774.26 | AF84: 2541827.39 | AG84: 66397.23 | AH84: 401546.61 | AI84: 0 | AJ84: 241774.26
A85: 2 | B85: 12 | C85: 2 | D85: 3 | E85: G | F85: =+TEXT(DaneN1[[#This Row],[WK]],"00")&DaneN1[[#This Row],[TYPS]]&D85&TEXT(DaneN1[[#This Row],[PK]],"00") -> 02G312 | G85: =+IF(ISERROR(VLOOKUP(DaneN1[[#This Row],[KodGUS6]],LstMetropolie[],1,FALSE)),DaneN1[[#This Row],[Typ]],"T") -> G | H85: 021202 | I85: 212023 | J85: LUBOMIERZ | L85: 2023 | M85: 5618 | N85: 45113736.17 | O85: 35633049.84 | P85: =+DaneN1[[#This Row],[Dbs]]+DaneN1[[#This Row],[Dbd]] -> 24078034.05 | Q85: 18010692.4 | R85: 6067341.65 | S85: 9480686.33 | T85: 391628.19 | U85: 51068357.69 | V85: 35504657.93 | W85: 16431013.34 | X85: 610366.63 | Y85: 15563699.76 | Z85: 9467305.04 | AA85: 5107889 | AB85: =+DaneN1[[#This Row],[P]]-DaneN1[[#This Row],[Pd]] -> 4359416.04 | AC85: 1334460 | AD85: 1324460 | AE85: 11464485.1 | AF85: 128391.91 | AG85: 0 | AH85: 164995.06 | AI85: 0 | AJ85: 25055.1
A86: 2 | B86: 12 | C86: 3 | D86: 3 | E86: G | F86: =+TEXT(DaneN1[[#This Row],[WK]],"00")&DaneN1[[#This Row],[TYPS]]&D86&TEXT(DaneN1[[#This Row],[PK]],"00") -> 02G312 | G86: =+IF(ISERROR(VLOOKUP(DaneN1[[#This Row],[KodGUS6]],LstMetropolie[],1,FALSE)),DaneN1[[#This Row],[Typ]],"T") -> G | H86: 021203 | I86: 212033 | J86: LWÓWEK ŚLĄSKI | L86: 2023 | M86: 16168 | N86: 93467008.36 | O86: 81603958.24 | P86: =+DaneN1[[#This Row],[Dbs]]+DaneN1[[#This Row],[Dbd]] -> 37941628.95 | Q86: 23606876.4 | R86: 14334752.55 | S86: 11863050.12 | T86: 284471.07 | U86: 106638409.9 | V86: 76422866.3 | W86: 30799612.62 | X86: 530865.38 | Y86: 30215543.57 | Z86: 20290725.03 | AA86: 14005000 | AB86: =+DaneN1[[#This Row],[P]]-DaneN1[[#This Row],[Pd]] -> 6285725.03 | AC86: 3100000 | AD86: 3100000 | AE86: 20385000 | AF86: 5181091.94 | AG86: 151660.46 | AH86: 400502.98 | AI86: 0 | AJ86: 0
A87: 2 | B87: 12 | C87: 4 | D87: 3 | E87: G | F87: =+TEXT(DaneN1[[#This Row],[WK]],"00")&DaneN1[[#This Row],[TYPS]]&D87&TEXT(DaneN1[[#This Row],[PK]],"00") -> 02G312 | G87: =+IF(ISERROR(VLOOKUP(DaneN1[[#This Row],[KodGUS6]],LstMetropolie[],1,FALSE)),DaneN1[[#This Row],[Typ]],"T") -> G | H87: 021204 | I87: 212043 | J87: MIRSK | L87: 2023 | M87: 8141 | N87: 50512914.67 | O87: 43064116.65 | P87: =+DaneN1[[#This Row],[Dbs]]+DaneN1[[#This Row],[Dbd]] -> 25005411.35 | Q87: 17169107.5 | R87: 7836303.85 | S87: 7448798.02 | T87: 611514.62 | U87: 53452059.06 | V87: 37689508.94 | W87: 13885041.37 | X87: 651009.39 | Y87: 15762550.12 | Z87: 11425285.17 | AA87: 0 | AB87: =+DaneN1[[#This Row],[P]]-DaneN1[[#This Row],[Pd]] -> 11425285.17 | AC87: 1615764.96 | AD87: 1615764.96 | AE87: 10643418.22 | AF87: 5374607.71 | AG87: 0 | AH87: 51520 | AI87: 0 | AJ87: 38565.1
A88: 2 | B88: 12 | C88: 5 | D88: 3 | E88: G | F88: =+TEXT(DaneN1[[#This Row],[WK]],"00")&DaneN1[[#This Row],[TYPS]]&D88&TEXT(DaneN1[[#This Row],[PK]],"00") -> 02G312 | G88: =+IF(ISERROR(VLOOKUP(DaneN1[[#This Row],[KodGUS6]],LstMetropolie[],1,FALSE)),DaneN1[[#This Row],[Typ]],"T") -> G | H88: 021205 | I88: 212053 | J88: WLEŃ | L88: 2023 | M88: 3908 | N88: 32678275.62 | O88: 23201188.63 | P88: =+DaneN1[[#This Row],[Dbs]]+DaneN1[[#This Row],[Dbd]] -> 13408971.61 | Q88: 8990534.35 | R88: 4418437.26 | S88: 9477086.99 | T88: 37170.48 | U88: 28634070.59 | V88: 21956462.45 | W88: 9416811.27 | X88: 609839.63 | Y88: 6677608.14 | Z88: 2083874.42 | AA88: 500000 | AB88: =+DaneN1[[#This Row],[P]]-DaneN1[[#This Row],[Pd]] -> 1583874.42 | AC88: 5452060 | AD88: 2338220 | AE88: 8648770.31 | AF88: 1244726.18 | AG88: 220705 | AH88: 408573.74 | AI88: 0 | AJ88: 0
A89: 2 | B89: 13 | C89: 1 | D89: 2 | E89: G | F89: =+TEXT(DaneN1[[#This Row],[WK]],"00")&DaneN1[[#This Row],[TYPS]]&D89&TEXT(DaneN1[[#This Row],[PK]],"00") -> 02G213 | G89: =+IF(ISERROR(VLOOKUP(DaneN1[[#This Row],[KodGUS6]],LstMetropolie[],1,FALSE)),DaneN1[[#This Row],[Typ]],"T") -> G | H89: 021301 | I89: 213012 | J89: CIESZKÓW | L89: 2023 | M89: 4570 | N89: 35451708.67 | O89: 25321672.94 | P89: =+DaneN1[[#This Row],[Dbs]]+DaneN1[[#This Row],[Dbd]] -> 15315498.91 | Q89: 10147773.45 | R89: 5167725.46 | S89: 10130035.73 | T89: 294547.15 | U89: 40399018.23 | V89: 24029984.3 | W89: 10583120.39 | X89: 400640.8 | Y89: 16369033.93 | Z89: 6506644.75 | AA89: 1900000 | AB89: =+DaneN1[[#This Row],[P]]-DaneN1[[#This Row],[Pd]] -> 4606644.75 | AC89: 660000 | AD89: 660000 | AE89: 5865000 | AF89: 1291688.64 | AG89: 286960.63 | AH89: 335000.03 | AI89: 0 | AJ89: 0
A90: 2 | B90: 13 | C90: 2 | D90: 2 | E90: G | F90: =+TEXT(DaneN1[[#This Row],[WK]],"00")&DaneN1[[#This Row],[TYPS]]&D90&TEXT(DaneN1[[#This Row],[PK]],"00") -> 02G213 | G90: =+IF(ISERROR(VLOOKUP(DaneN1[[#This Row],[KodGUS6]],LstMetropolie[],1,FALSE)),DaneN1[[#This Row],[Typ]],"T") -> G | H90: 021302 | I90: 213022 | J90: KROŚNICE | L90: 2023 | M90: 7985 | N90: 54891143.05 | O90: 47237870.33 | P90: =+DaneN1[[#This Row],[Dbs]]+DaneN1[[#This Row],[Dbd]] -> 19662469.99 | Q90: 11423641.45 | R90: 8238828.54 | S90: 7653272.72 | T90: 604338.4 | U90: 63688437.4 | V90: 47863765.59 | W90: 19905845.59 | X90: 2274413.03 | Y90: 15824671.81 | Z90: 13178686.55 | AA90: 8405606.5 | AB90: =+DaneN1[[#This Row],[P]]-DaneN1[[#This Row],[Pd]] -> 4773080.05 | AC90: 4150129.92 | AD90: 3908958 | AE90: 31972182.5 | AF90: -625895.26 | AG90: 17654.92 | AH90: 65256.57 | AI90: 0 | AJ90: 0
A91: 2 | B91: 13 | C91: 3 | D91: 3 | E91: G | F91: =+TEXT(DaneN1[[#This Row],[WK]],"00")&DaneN1[[#This Row],[TYPS]]&D91&TEXT(DaneN1[[#This Row],[PK]],"00") -> 02G313 | G91: =+IF(ISERROR(VLOOKUP(DaneN1[[#This Row],[KodGUS6]],LstMetropolie[],1,FALSE)),DaneN1[[#This Row],[Typ]],"T") -> G | H91: 021303 | I91: 213033 | J91: MILICZ | L91: 2023 | M91: 23113 | N91: 150732125 | O91: 132840442.2 | P91: =+DaneN1[[#This Row],[Dbs]]+DaneN1[[#This Row],[Dbd]] -> 69182630.08 | Q91: 45123230 | R91: 24059400.08 | S91: 17891682.85 | T91: 2032538.8 | U91: 160435551.2 | V91: 128200295.1 | W91: 46518964.01 | X91: 3675027.72 | Y91: 32235256.08 | Z91: 18466451.26 | AA91: 10000000 | AB91: =+DaneN1[[#This Row],[P]]-DaneN1[[#This Row],[Pd]] -> 8466451.26 | AC91: 3680000 | AD91: 3680000 | AE91: 46568856.91 | AF91: 4640147.04 | AG91: 290576.25 | AH91: 688007.66 | AI91: 33369.84 | AJ91: 0
A92: 2 | B92: 14 | C92: 1 | D92: 1 | E92: G | F92: =+TEXT(DaneN1[[#This Row],[WK]],"00")&DaneN1[[#This Row],[TYPS]]&D92&TEXT(DaneN1[[#This Row],[PK]],"00") -> 02G114 | G92: =+IF(ISERROR(VLOOKUP(DaneN1[[#This Row],[KodGUS6]],LstMetropolie[],1,FALSE)),DaneN1[[#This Row],[Typ]],"T") -> G | H92: 021401 | I92: 214011 | J92: OLEŚNICA | L92: 2023 | M92: 35210 | N92: 216614961.7 | O92: 184889787.2 | P92: =+DaneN1[[#This Row],[Dbs]]+DaneN1[[#This Row],[Dbd]] -> 80112820.57 | Q92: 48395466 | R92: 31717354.57 | S92: 31725174.48 | T92: 9341519.52 | U92: 233258717.1 | V92: 184616482.3 | W92: 75934169.77 | X92: 1313963 | Y92: 48642234.82 | Z92: 38622516.59 | AA92: 10000000 | AB92: =+DaneN1[[#This Row],[P]]-DaneN1[[#This Row],[Pd]] -> 28622516.59 | AC92: 11000000 | AD92: 5000000 | AE92: 22000133.98 | AF92: 273304.87 | AG92: 853930.44 | AH92: 204049.39 | AI92: 0 | AJ92: 133.98
A93: 2 | B93: 14 | C93: 2 | D93: 3 | E93: G | F93: =+TEXT(DaneN1[[#This Row],[WK]],"00")&DaneN1[[#This Row],[TYPS]]&D93&TEXT(DaneN1[[#This Row],[PK]],"00") -> 02G314 | G93: =+IF(ISERROR(VLOOKUP(DaneN1[[#This Row],[KodGUS6]],LstMetropolie[],1,FALSE)),DaneN1[[#This Row],[Typ]],"T") -> G | H93: 021402 | I93: 214023 | J93: BIERUTÓW | L93: 2023 | M93: 9340 | N93: 59402968.24 | O93: 46795250.01 | P93: =+DaneN1[[#This Row],[Dbs]]+DaneN1[[#This Row],[Dbd]] -> 27629740.28 | Q93: 18910776.85 | R93: 8718963.43 | S93: 12607718.23 | T93: 1247549.44 | U93: 70204014.33 | V93: 50736357.49 | W93: 19225952.84 | X93: 3117091.9 | Y93: 19467656.84 | Z93: 13160378.09 | AA93: 9700000 | AB93: =+DaneN1[[#This Row],[P]]-DaneN1[[#This Row],[Pd]] -> 3460378.09 | AC93: 2359332 | AD93: 2359332 | AE93: 39181318.93 | AF93: -3941107.48 | AG93: 117252.05 | AH93: 128807.28 | AI93: 0 | AJ93: 615634.93
A94: 2 | B94: 14 | C94: 3 | D94: 2 | E94: G | F94: =+TEXT(DaneN1[[#This Row],[WK]],"00")&DaneN1[[#This Row],[TYPS]]&D94&TEXT(DaneN1[[#This Row],[PK]],"00") -> 02G214 | G94: =+IF(ISERROR(VLOOKUP(DaneN1[[#This Row],[KodGUS6]],LstMetropolie[],1,FALSE)),DaneN1[[#This Row],[Typ]],"T") -> G | H94: 021403 | I94: 214032 | J94: DOBROSZYCE | L94: 2023 | M94: 7256 | N94: 57212297.03 | O94: 42553404.28 | P94: =+DaneN1[[#This Row],[Dbs]]+DaneN1[[#This Row],[Dbd]] -> 19021658.58 | Q94: 12682917.15 | R94: 6338741.43 | S94: 14658892.75 | T94: 146255.75 | U94: 67140151.18 | V94: 41828197.01 | W94: 19760474.53 | X94: 900342.5 | Y94: 25311954.17 | Z94: 13225030.71 | AA94: 6700000 | AB94: =+DaneN1[[#This Row],[P]]-DaneN1[[#This Row],[Pd]] -> 6525030.71 | AC94: 1000000 | AD94: 1000000 | AE94: 16300000 | AF94: 725207.27 | AG94: 598114.63 | AH94: 735685.63 | AI94: 0 | AJ94: 0
A95: 2 | B95: 14 | C95: 4 | D95: 2 | E95: G | F95: =+TEXT(DaneN1[[#This Row],[WK]],"00")&DaneN1[[#This Row],[TYPS]]&D95&TEXT(DaneN1[[#This Row],[PK]],"00") -> 02G214 | G95: =+IF(ISERROR(VLOOKUP(DaneN1[[#This Row],[KodGUS6]],LstMetropolie[],1,FALSE)),DaneN1[[#This Row],[Typ]],"T") -> G | H95: 021404 | I95: 214042 | J95: DZIADOWA KŁODA | L95: 2023 | M95: 4566 | N95: 37555557.44 | O95: 25757588.74 | P95: =+DaneN1[[#This Row],[Dbs]]+DaneN1[[#This Row],[Dbd]] -> 15449141.03 | Q95: 11416486.2 | R95: 4032654.83 | S95: 11797968.7 | T95: 0 | U95: 38071922.38 | V95: 24515388.61 | W95: 11039977.52 | X95: 271932.54 | Y95: 13556533.77 | Z95: 6243109.27 | AA95: 2000000 | AB95: =+DaneN1[[#This Row],[P]]-DaneN1[[#This Row],[Pd]] -> 4243109.27 | AC95: 3879369.4 | AD95: 3879369.4 | AE95: 4550081.62 | AF95: 1242200.13 | AG95: 8333.33 | AH95: 193642.72 | AI95: 0 | AJ95: 81.62
A96: 2 | B96: 14 | C96: 5 | D96: 3 | E96: G | F96: =+TEXT(DaneN1[[#This Row],[WK]],"00")&DaneN1[[#This Row],[TYPS]]&D96&TEXT(DaneN1[[#This Row],[PK]],"00") -> 02G314 | G96: =+IF(ISERROR(VLOOKUP(DaneN1[[#This Row],[KodGUS6]],LstMetropolie[],1,FALSE)),DaneN1[[#This Row],[Typ]],"T") -> G | H96: 021405 | I96: 214053 | J96: MIEDZYBÓRZ | L96: 2023 | M96: 5031 | N96: 42978990.09 | O96: 26226969.55 | P96: =+DaneN1[[#This Row],[Dbs]]+DaneN1[[#This Row],[Dbd]] -> 15046038.49 | Q96: 10331738.7 | R96: 4714299.79 | S96: 16752020.54 | T96: 289635.69 | U96: 47860040.68 | V96: 26929947.79 | W96: 12976300.5 | X96: 826593.04 | Y96: 20930092.89 | Z96: 7503817.84 | AA96: 3000000 | AB96: =+DaneN1[[#This Row],[P]]-DaneN1[[#This Row],[Pd]] -> 4503817.84 | AC96: 1343660 | AD96: 1343660 | AE96: 12399340 | AF96: -702978.24 | AG96: 158981.78 | AH96: 338653.19 | AI96: 0 | AJ96: 0
A97: 2 | B97: 14 | C97: 6 | D97: 2 | E97: G | F97: =+TEXT(DaneN1[[#This Row],[WK]],"00")&DaneN1[[#This Row],[TYPS]]&D97&TEXT(DaneN1[[#This Row],[PK]],"00") -> 02G214 | G97: =+IF(ISERROR(VLOOKUP(DaneN1[[#This Row],[KodGUS6]],LstMetropolie[],1,FALSE)),DaneN1[[#This Row],[Typ]],"T") -> G | H97: 021406 | I97: 214062 | J97: OLEŚNICA | L97: 2023 | M97: 16020 | N97: 80674167.13 | O97: 73232938.69 | P97: =+DaneN1[[#This Row],[Dbs]]+DaneN1[[#This Row],[Dbd]] -> 32948135.02 | Q97: 18293291.15 | R97: 14654843.87 | S97: 7441228.44 | T97: 1451320.31 | U97: 91263885.75 | V97: 75111257.18 | W97: 27240863.92 | X97: 2627506.72 | Y97: 16152628.57 | Z97: 16017655.4 | AA97: 9400000 | AB97: =+DaneN1[[#This Row],[P]]-DaneN1[[#This Row],[Pd]] -> 6617655.4 | AC97: 1300000 | AD97: 1300000 | AE97: 34873000 | AF97: -1878318.49 | AG97: 2412262.47 | AH97: 694153.81 | AI97: 0 | AJ97: 0
A98: 2 | B98: 14 | C98: 7 | D98: 3 | E98: G | F98: =+TEXT(DaneN1[[#This Row],[WK]],"00")&DaneN1[[#This Row],[TYPS]]&D98&TEXT(DaneN1[[#This Row],[PK]],"00") -> 02G314 | G98: =+IF(ISERROR(VLOOKUP(DaneN1[[#This Row],[KodGUS6]],LstMetropolie[],1,FALSE)),DaneN1[[#This Row],[Typ]],"T") -> G | H98: 021407 | I98: 214073 | J98: SYCÓW | L98: 2023 | M98: 16470 | N98: 94846579 | O98: 84082446.1 | P98: =+DaneN1[[#This Row],[Dbs]]+DaneN1[[#This Row],[Dbd]] -> 38897920.13 | Q98: 24364451.9 | R98: 14533468.23 | S98: 10764132.9 | T98: 2437014.06 | U98: 105935335.5 | V98: 83062214.14 | W98: 36394804.92 | X98: 1936850.18 | Y98: 22873121.37 | Z98: 16853356.21 | AA98: 8800000 | AB98: =+DaneN1[[#This Row],[P]]-DaneN1[[#This Row],[Pd]] -> 8053356.21 | AC98: 3100000 | AD98: 3100000 | AE98: 31531360.1 | AF98: 1020231.96 | AG98: 530538.65 | AH98: 1008221.06 | AI98: 0 | AJ98: 1360.1
A99: 2 | B99: 14 | C99: 8 | D99: 3 | E99: G | F99: =+TEXT(DaneN1[[#This Row],[WK]],"00")&DaneN1[[#This Row],[TYPS]]&D99&TEXT(DaneN1[[#This Row],[PK]],"00") -> 02G314 | G99: =+IF(ISERROR(VLOOKUP(DaneN1[[#This Row],[KodGUS6]],LstMetropolie[],1,FALSE)),DaneN1[[#This Row],[Typ]],"T") -> G | H99: 021408 | I99: 214083 | J99: TWARDOGÓRA | L99: 2023 | M99: 12534 | N99: 95200589.32 | O99: 64884212.5 | P99: =+DaneN1[[#This Row],[Dbs]]+DaneN1[[#This Row],[Dbd]] -> 25339453.85 | Q99: 15153684.45 | R99: 10185769.4 | S99: 30316376.82 | T99: 1051722.25 | U99: 118492454.6 | V99: 60089950.93 | W99: 26889991.89 | X99: 919438.77 | Y99: 58402503.69 | Z99: 31724432.2 | AA99: 14500000 | AB99: =+DaneN1[[#This Row],[P]]-DaneN1[[#This Row],[Pd]] -> 17224432.2 | AC99: 4065250 | AD99: 4065250 | AE99: 23369349.38 | AF99: 4794261.57 | AG99: 38237.42 | AH99: 1770.34 | AI99: 0 | AJ99: 0
A100: 2 | B100: 15 | C100: 1 | D100: 1 | E100: G | F100: =+TEXT(DaneN1[[#This Row],[WK]],"00")&DaneN1[[#This Row],[TYPS]]&D100&TEXT(DaneN1[[#This Row],[PK]],"00") -> 02G115 | G100: =+IF(ISERROR(VLOOKUP(DaneN1[[#This Row],[KodGUS6]],LstMetropolie[],1,FALSE)),DaneN1[[#This Row],[Typ]],"T") -> G | H100: 021501 | I100: 215011 | J100: OŁAWA | L100: 2023 | M100: 33183 | N100: 169953898.6 | O100: 160339834.2 | P100: =+DaneN1[[#This Row],[Dbs]]+DaneN1[[#This Row],[Dbd]] -> 64209606.47 | Q100: 38434794.4 | R100: 25774812.07 | S100: 9614064.45 | T100: 1682315.02 | U100: 189200207 | V100: 157615941.4 | W100: 72545661.72 | X100: 3919661.53 | Y100: 31584265.59 | Z100: 35233420.75 | AA100: 7748450 | AB100: =+DaneN1[[#This Row],[P]]-DaneN1[[#This Row],[Pd]] -> 27484970.75 | AC100: 7748450 | AD100: 7748450 | AE100: 56393081 | AF100: 2723892.74 | AG100: 444958.82 | AH100: 1497011.7 | AI100: 0 | AJ100: 0
A101: 2 | B101: 15 | C101: 2 | D101: 2 | E101: G | F101: =+TEXT(DaneN1[[#This Row],[WK]],"00")&DaneN1[[#This Row],[TYPS]]&D101&TEXT(DaneN1[[#This Row],[PK]],"00") -> 02G215 | G101: =+IF(ISERROR(VLOOKUP(DaneN1[[#This Row],[KodGUS6]],LstMetropolie[],1,FALSE)),DaneN1[[#This Row],[Typ]],"T") -> G | H101: 021502 | I101: 215022 | J101: DOMANIÓW | L101: 2023 | M101: 4926 | N101: 44516291.19 | O101: 33337027.43 | P101: =+DaneN1[[#This Row],[Dbs]]+DaneN1[[#This Row],[Dbd]] -> 17907208.31 | Q101: 12941009.9 | R101: 4966198.41 | S101: 11179263.76 | T101: 4138.54 | U101: 53134678.94 | V101: 32303284.68 | W101: 11572804.36 | X101: 1116541.91 | Y101: 20831394.26 | Z101: 10594725.59 | AA101: 3000000 | AB101: =+DaneN1[[#This Row],[P]]-DaneN1[[#This Row],[Pd]] -> 7594725.59 | AC101: 1100000 | AD101: 1100000 | AE101: 14654085 | AF101: 1033742.75 | AG101: 304420.56 | AH101: 1011965.41 | AI101: 0 | AJ101: 0
A102: 2 | B102: 15 | C102: 3 | D102: 3 | E102: G | F102: =+TEXT(DaneN1[[#This Row],[WK]],"00")&DaneN1[[#This Row],[TYPS]]&D102&TEXT(DaneN1[[#This Row],[PK]],"00") -> 02G315 | G102: =+IF(ISERROR(VLOOKUP(DaneN1[[#This Row],[KodGUS6]],LstMetropolie[],1,FALSE)),DaneN1[[#This Row],[Typ]],"T") -> G | H102: 021503 | I102: 215033 | J102: JELCZ-LASKOWICE | L102: 2023 | M102: 23707 | N102: 145274535.2 | O102: 134210866.8 | P102: =+DaneN1[[#This Row],[Dbs]]+DaneN1[[#This Row],[Dbd]] -> 48363279.69 | Q102: 28881898.95 | R102: 19481380.74 | S102: 11063668.43 | T102: 3014473.03 | U102: 145560904.9 | V102: 119731209.5 | W102: 49062486.51 | X102: 61963.2 | Y102: 25829695.41 | Z102: 37941101.68 | AA102: 0 | AB102: =+DaneN1[[#This Row],[P]]-DaneN1[[#This Row],[Pd]] -> 37941101.68 | AC102: 1500000 | AD102: 1500000 | AE102: 0 | AF102: 14479657.24 | AG102: 87279.13 | AH102: 105587.46 | AI102: 0 | AJ102: 0
A103: 2 | B103: 15 | C103: 4 | D103: 2 | E103: G | F103: =+TEXT(DaneN1[[#This Row],[WK]],"00")&DaneN1[[#This Row],[TYPS]]&D103&TEXT(DaneN1[[#This Row],[PK]],"00") -> 02G215 | G103: =+IF(ISERROR(VLOOKUP(DaneN1[[#This Row],[KodGUS6]],LstMetropolie[],1,FALSE)),DaneN1[[#This Row],[Typ]],"T") -> G | H103: 021504 | I103: 215042 | J103: OŁAWA | L103: 2023 | M103: 15562 | N103: 114808382.3 | O103: 105842647.8 | P103: =+DaneN1[[#This Row],[Dbs]]+DaneN1[[#This Row],[Dbd]] -> 34453007.33 | Q103: 23007605.65 | R103: 11445401.68 | S103: 8965734.54 | T103: 1746747.27 | U103: 121689241.8 | V103: 94563650.15 | W103: 35647032.39 | X103: 228975.18 | Y103: 27125591.67 | Z103: 17501087.67 | AA103: 0 | AB103: =+DaneN1[[#This Row],[P]]-DaneN1[[#This Row],[Pd]] -> 17501087.67 | AC103: 2720000 | AD103: 720000 | AE103: 7885000 | AF103: 11278997.63 | AG103: 0 | AH103: 26800.62 | AI103: 0 | AJ103: 0
A104: 2 | B104: 16 | C104: 1 | D104: 3 | E104: G | F104: =+TEXT(DaneN1[[#This Row],[WK]],"00")&DaneN1[[#This Row],[TYPS]]&D104&TEXT(DaneN1[[#This Row],[PK]],"00") -> 02G316 | G104: =+IF(ISERROR(VLOOKUP(DaneN1[[#This Row],[KodGUS6]],LstMetropolie[],1,FALSE)),DaneN1[[#This Row],[Typ]],"T") -> G | H104: 021601 | I104: 216013 | J104: CHOCIANÓW | L104: 2023 | M104: 12403 | N104: 80838936.76 | O104: 53234139.49 | P104: =+DaneN1[[#This Row],[Dbs]]+DaneN1[[#This Row],[Dbd]] -> 27552548.53 | Q104: 19710955.1 | R104: 7841593.43 | S104: 27604797.27 | T104: 2019850.63 | U104: 99686688.55 | V104: 54118772.73 | W104: 29326784.49 | X104: 1474339.23 | Y104: 45567915.82 | Z104: 21322213 | AA104: 13500000 | AB104: =+DaneN1[[#This Row],[P]]-DaneN1[[#This Row],[Pd]] -> 7822213 | AC104: 1801000 | AD104: 1801000 | AE104: 28524325.67 | AF104: -884633.24 | AG104: 145317.11 | AH104: 773816.81 | AI104: 0 | AJ104: 112325.67
A105: 2 | B105: 16 | C105: 2 | D105: 2 | E105: G | F105: =+TEXT(DaneN1[[#This Row],[WK]],"00")&DaneN1[[#This Row],[TYPS]]&D105&TEXT(DaneN1[[#This Row],[PK]],"00") -> 02G216 | G105: =+IF(ISERROR(VLOOKUP(DaneN1[[#This Row],[KodGUS6]],LstMetropolie[],1,FALSE)),DaneN1[[#This Row],[Typ]],"T") -> G | H105: 021602 | I105: 216022 | J105: GAWORZYCE | L105: 2023 | M105: 3777 | N105: 27452644.9 | O105: 20957084.49 | P105: =+DaneN1[[#This Row],[Dbs]]+DaneN1[[#This Row],[Dbd]] -> 12219950.54 | Q105: 8431597.2 | R105: 3788353.34 | S105: 6495560.41 | T105: 189626.04 | U105: 33123746.29 | V105: 20096650.19 | W105: 8846815.84 | X105: 442260.1 | Y105: 13027096.1 | Z105: 7675287.05 | AA105: 3968158.5 | AB105: =+DaneN1[[#This Row],[P]]-DaneN1[[#This Row],[Pd]] -> 3707128.55 | AC105: 1110000 | AD105: 1110000 | AE105: 10573900.5 | AF105: 860434.3 | AG105: 8675 | AH105: 34700 | AI105: 0 | AJ105: 0
A106: 2 | B106: 16 | C106: 3 | D106: 2 | E106: G | F106: =+TEXT(DaneN1[[#This Row],[WK]],"00")&DaneN1[[#This Row],[TYPS]]&D106&TEXT(DaneN1[[#This Row],[PK]],"00") -> 02G216 | G106: =+IF(ISERROR(VLOOKUP(DaneN1[[#This Row],[KodGUS6]],LstMetropolie[],1,FALSE)),DaneN1[[#This Row],[Typ]],"T") -> G | H106: 021603 | I106: 216032 | J106: GRĘBOCICE | L106: 2023 | M106: 5293 | N106: 85489209.54 | O106: 71476032.02 | P106: =+DaneN1[[#This Row],[Dbs]]+DaneN1[[#This Row],[Dbd]] -> 11376772.35 | Q106: 7232792.25 | R106: 4143980.1 | S106: 14013177.52 | T106: 196747.96 | U106: 75077699.01 | V106: 46503595.78 | W106: 18876621.37 | X106: 79750.71 | Y106: 28574103.23 | Z106: 11498165.12 | AA106: 185266.8 | AB106: =+DaneN1[[#This Row],[P]]-DaneN1[[#This Row],[Pd]] -> 11312898.32 | AC106: 381800 | AD106: 381800 | AE106: 2686300 | AF106: 24972436.24 | AG106: 6254.84 | AH106: 68321 | AI106: 0 | AJ106: 0
A107: 2 | B107: 16 | C107: 4 | D107: 3 | E107: G | F107: =+TEXT(DaneN1[[#This Row],[WK]],"00")&DaneN1[[#This Row],[TYPS]]&D107&TEXT(DaneN1[[#This Row],[PK]],"00") -> 02G316 | G107: =+IF(ISERROR(VLOOKUP(DaneN1[[#This Row],[KodGUS6]],LstMetropolie[],1,FALSE)),DaneN1[[#This Row],[Typ]],"T") -> G | H107: 021604 | I107: 216043 | J107: POLKOWICE | L107: 2023 | M107: 26866 | N107: 347865975.1 | O107: 318960518.9 | P107: =+DaneN1[[#This Row],[Dbs]]+DaneN1[[#This Row],[Dbd]] -> 56594386.67 | Q107: 33222228.1 | R107: 23372158.57 | S107: 28905456.21 | T107: 1354061.56 | U107: 421744784.1 | V107: 302652869.2 | W107: 113708308.3 | X107: 9353871.54 | Y107: 119091914.9 | Z107: 123314979 | AA107: 68000000 | AB107: =+DaneN1[[#This Row],[P]]-DaneN1[[#This Row],[Pd]] -> 55314978.96 | AC107: 18800000 | AD107: 18800000 | AE107: 168979648 | AF107: 16307649.7 | AG107: 1178978.91 | AH107: 1464610.46 | AI107: 0 | AJ107: 0
A108: 2 | B108: 16 | C108: 5 | D108: 3 | E108: G | F108: =+TEXT(DaneN1[[#This Row],[WK]],"00")&DaneN1[[#This Row],[TYPS]]&D108&TEXT(DaneN1[[#This Row],[PK]],"00") -> 02G316 | G108: =+IF(ISERROR(VLOOKUP(DaneN1[[#This Row],[KodGUS6]],LstMetropolie[],1,FALSE)),DaneN1[[#This Row],[Typ]],"T") -> G | H108: 021605 | I108: 216053 | J108: PRZEMKÓW | L108: 2023 | M108: 7843 | N108: 39408937.1 | O108: 35264942.08 | P108: =+DaneN1[[#This Row],[Dbs]]+DaneN1[[#This Row],[Dbd]] -> 21558384.06 | Q108: 16265270.6 | R108: 5293113.46 | S108: 4143995.02 | T108: 93589.6 | U108: 47364986.53 | V108: 34762358.7 | W108: 17441169.64 | X108: 2130328.62 | Y108: 12602627.83 | Z108: 18203775.41 | AA108: 5000000 | AB108: =+DaneN1[[#This Row],[P]]-DaneN1[[#This Row],[Pd]] -> 13203775.41 | AC108: 1781000 | AD108: 1781000 | AE108: 27093652.25 | AF108: 502583.38 | AG108: 30860.56 | AH108: 60116.98 | AI108: 0 | AJ108: 673103.25
A109: 2 | B109: 16 | C109: 6 | D109: 2 | E109: G | F109: =+TEXT(DaneN1[[#This Row],[WK]],"00")&DaneN1[[#This Row],[TYPS]]&D109&TEXT(DaneN1[[#This Row],[PK]],"00") -> 02G216 | G109: =+IF(ISERROR(VLOOKUP(DaneN1[[#This Row],[KodGUS6]],LstMetropolie[],1,FALSE)),DaneN1[[#This Row],[Typ]],"T") -> G | H109: 021606 | I109: 216062 | J109: RADWANICE | L109: 2023 | M109: 5071 | N109: 54650318.38 | O109: 34555621.46 | P109: =+DaneN1[[#This Row],[Dbs]]+DaneN1[[#This Row],[Dbd]] -> 12248162.12 | Q109: 7745194.15 | R109: 4502967.97 | S109: 20094696.92 | T109: 95555 | U109: 60947296.71 | V109: 25466539.72 | W109: 11356117.18 | X109: 5539.26 | Y109: 35480756.99 | Z109: 9781477.55 | AA109: 0 | AB109: =+DaneN1[[#This Row],[P]]-DaneN1[[#This Row],[Pd]] -> 9781477.55 | AC109: 1934764.36 | AD109: 1934764.36 | AE109: 0 | AF109: 9089081.74 | AG109: 17.68 | AH109: 356792.86 | AI109: 0 | AJ109: 0
A110: 2 | B110: 17 | C110: 1 | D110: 2 | E110: G | F110: =+TEXT(DaneN1[[#This Row],[WK]],"00")&DaneN1[[#This Row],[TYPS]]&D110&TEXT(DaneN1[[#This Row],[PK]],"00") -> 02G217 | G110: =+IF(ISERROR(VLOOKUP(DaneN1[[#This Row],[KodGUS6]],LstMetropolie[],1,FALSE)),DaneN1[[#This Row],[Typ]],"T") -> G | H110: 021701 | I110: 217012 | J110: BORÓW | L110: 2023 | M110: 5039 | N110: 32629967.7 | O110: 27731700.76 | P110: =+DaneN1[[#This Row],[Dbs]]+DaneN1[[#This Row],[Dbd]] -> 15213953.71 | Q110: 10480236.2 | R110: 4733717.51 | S110: 4898266.94 | T110: 67780 | U110: 37447294.85 | V110: 25405107.61 | W110: 10925156.2 | X110: 234865.15 | Y110: 12042187.24 | Z110: 10376247.74 | AA110: 1600000 | AB110: =+DaneN1[[#This Row],[P]]-DaneN1[[#This Row],[Pd]] -> 8776247.74 | AC110: 651315 | AD110: 455540 | AE110: 4261080 | AF110: 2326593.15 | AG110: 238105.33 | AH110: 146490.87 | AI110: 0 | AJ110: 0
A111: 2 | B111: 17 | C111: 2 | D111: 2 | E111: G | F111: =+TEXT(DaneN1[[#This Row],[WK]],"00")&DaneN1[[#This Row],[TYPS]]&D111&TEXT(DaneN1[[#This Row],[PK]],"00") -> 02G217 | G111: =+IF(ISERROR(VLOOKUP(DaneN1[[#This Row],[KodGUS6]],LstMetropolie[],1,FALSE)),DaneN1[[#This Row],[Typ]],"T") -> G | H111: 021702 | I111: 217022 | J111: KONDRATOWICE | L111: 2023 | M111: 3972 | N111: 29071132.59 | O111: 24019700.59 | P111: =+DaneN1[[#This Row],[Dbs]]+DaneN1[[#This Row],[Dbd]] -> 12180181.03 | Q111: 7645130.4 | R111: 4535050.63 | S111: 5051432 | T111: 730504.46 | U111: 31437931.37 | V111: 24821244.4 | W111: 9533252.87 | X111: 100560.8 | Y111: 6616686.97 | Z111: 3725218.62 | AA111: 249317 | AB111: =+DaneN1[[#This Row],[P]]-DaneN1[[#This Row],[Pd]] -> 3475901.62 | AC111: 523805 | AD111: 461080 | AE111: 2497884.71 | AF111: -801543.81 | AG111: 78815 | AH111: 133103 | AI111: 0 | AJ111: 43267.71
A112: 2 | B112: 17 | C112: 3 | D112: 2 | E112: G | F112: =+TEXT(DaneN1[[#This Row],[WK]],"00")&DaneN1[[#This Row],[TYPS]]&D112&TEXT(DaneN1[[#This Row],[PK]],"00") -> 02G217 | G112: =+IF(ISERROR(VLOOKUP(DaneN1[[#This Row],[KodGUS6]],LstMetropolie[],1,FALSE)),DaneN1[[#This Row],[Typ]],"T") -> G | H112: 021703 | I112: 217032 | J112: PRZEWORNO | L112: 2023 | M112: 4528 | N112: 24735782.38 | O112: 23937079.58 | P112: =+DaneN1[[#This Row],[Dbs]]+DaneN1[[#This Row],[Dbd]] -> 12771579.43 | Q112: 8975461.8 | R112: 3796117.63 | S112: 798702.8 | T112: 100310 | U112: 27800295.91 | V112: 22240044.04 | W112: 9084988.3 | X112: 114598.72 | Y112: 5560251.87 | Z112: 8871780.09 | AA112: 2800000 | AB112: =+DaneN1[[#This Row],[P]]-DaneN1[[#This Row],[Pd]] -> 6071780.09 | AC112: 3920957 | AD112: 555000 | AE112: 3845002.06 | AF112: 1697035.54 | AG112: 0 | AH112: 23741.09 | AI112: 0 | AJ112: 27.06
A113: 2 | B113: 17 | C113: 4 | D113: 3 | E113: G | F113: =+TEXT(DaneN1[[#This Row],[WK]],"00")&DaneN1[[#This Row],[TYPS]]&D113&TEXT(DaneN1[[#This Row],[PK]],"00") -> 02G317 | G113: =+IF(ISERROR(VLOOKUP(DaneN1[[#This Row],[KodGUS6]],LstMetropolie[],1,FALSE)),DaneN1[[#This Row],[Typ]],"T") -> G | H113: 021704 | I113: 217043 | J113: STRZELIN | L113: 2023 | M113: 21429 | N113: 153878148.6 | O113: 125517934.9 | P113: =+DaneN1[[#This Row],[Dbs]]+DaneN1[[#This Row],[Dbd]] -> 49880079.67 | Q113: 28705244.9 | R113: 21174834.77 | S113: 28360213.73 | T113: 1994804.76 | U113: 162766624.2 | V113: 121989219.4 | W113: 47894419.31 | X113: 5187512.56 | Y113: 40777404.82 | Z113: 14781007.96 | AA113: 14251846.78 | AB113: =+DaneN1[[#This Row],[P]]-DaneN1[[#This Row],[Pd]] -> 529161.18 | AC113: 5804214 | AD113: 5804214 | AE113: 75737830.97 | AF113: 3528715.5 | AG113: 10150.26 | AH113: 2633.43 | AI113: 0 | AJ113: 0
A114: 2 | B114: 17 | C114: 5 | D114: 3 | E114: G | F114: =+TEXT(DaneN1[[#This Row],[WK]],"00")&DaneN1[[#This Row],[TYPS]]&D114&TEXT(DaneN1[[#This Row],[PK]],"00") -> 02G317 | G114: =+IF(ISERROR(VLOOKUP(DaneN1[[#This Row],[KodGUS6]],LstMetropolie[],1,FALSE)),DaneN1[[#This Row],[Typ]],"T") -> G | H114: 021705 | I114: 217053 | J114: WIĄZÓW | L114: 2023 | M114: 6903 | N114: 56316532.19 | O114: 45439616.25 | P114: =+DaneN1[[#This Row],[Dbs]]+DaneN1[[#This Row],[Dbd]] -> 22133874.68 | Q114: 14845750.2 | R114: 7288124.48 | S114: 10876915.94 | T114: 189288.26 | U114: 56274379.78 | V114: 40078152.53 | W114: 16951339.88 | X114: 291026.36 | Y114: 16196227.25 | Z114: 10048317.62 | AA114: 0 | AB114: =+DaneN1[[#This Row],[P]]-DaneN1[[#This Row],[Pd]] -> 10048317.62 | AC114: 3063430.76 | AD114: 1076495.76 | AE114: 3083885 | AF114: 5361463.72 | AG114: 166947.62 | AH114: 253799.57 | AI114: 0 | AJ114: 0
